Workbook

Sheet Combinations (hidden)
A1: Combinations
A2: Degree Days
A3: No of Firm Customers
A4: Nov GCR Rate
A5: Nov Lag GCR Rate
A6: Trend
A8: Degree Days // No of Firm Customers // Nov GCR Rate // Nov Lag GCR Rate // Trend
A10: Degree Days // Nov GCR Rate // Nov Lag GCR Rate // Trend
A11: Degree Days // No of Firm Customers // Nov Lag GCR Rate // Trend
A12: Degree Days // No of Firm Customers // Nov GCR Rate // Trend
A13: Degree Days // No of Firm Customers // Nov GCR Rate // Nov Lag GCR Rate
A14: No of Firm Customers // Nov GCR Rate // Nov Lag GCR Rate // Trend
A16: Degree Days // No of Firm Customers // Nov GCR Rate
A17: Degree Days // No of Firm Customers // Nov Lag GCR Rate
A18: Degree Days // No of Firm Customers // Trend
A19: Degree Days // Nov GCR Rate // Nov Lag GCR Rate
A20: Degree Days // Nov GCR Rate // Trend
A21: Degree Days // Nov Lag GCR Rate // Trend
A22: No of Firm Customers // Nov GCR Rate // Nov Lag GCR Rate
A23: No of Firm Customers // Nov GCR Rate // Trend
A24: No of Firm Customers // Nov Lag GCR Rate // Trend
A25: Nov GCR Rate // Nov Lag GCR Rate // Trend
A27: Degree Days // No of Firm Customers
A28: Degree Days // Nov GCR Rate
A29: Degree Days // Nov Lag GCR Rate
A30: Degree Days // Trend
A31: No of Firm Customers // Nov GCR Rate
A32: No of Firm Customers // Nov Lag GCR Rate
A33: No of Firm Customers // Trend
A34: Nov GCR Rate // Nov Lag GCR Rate
A35: Nov GCR Rate // Trend
A36: Nov Lag GCR Rate // Trend

Sheet CKY 010
S1: 19 | T1: 01/02 | U1: T1 | W1: 0.05 | X1: 0.5 | AA1: Iterations | AB1: Actuals | AD1: 19 | AE1: 101
A2: Choose Your Market Area: | B2: 10 | S2: 18 | T2: 02/03 | U2: T2 | W2: 0.1 | X2: 0.55 | Z2: 10 | AA2: 'CKY Table'!$B$4:$M$33 | AB2: 'CKY Table'!B | AD2: 18 | AE2: =AE1+31 -> 132 | AG2: 25 | AH2: 'CMD Table'!$B$4:$M$33 | AI2: 'CMD Table'!B | AK2: 17 | AL2: 'CGV Table'!$B$4:$M$33 | AM2: 'CGV Table'!B | AO2: 25 | AP2: 'CPA Table'!$B$4:$M$33 | AQ2: 'CPA Table'!B
S3: =S2-1 -> 17 | T3: 03/04 | U3: T3 | W3: 0.15 | X3: 0.6 | Z3: 11 | AA3: 'CKY Table'!$N$4:$Y$33 | AB3: 'CKY Table'!N | AD3: =AD2-1 -> 17 | AE3: =AE2+31 -> 163 | AG3: 26 | AH3: 'CMD Table'!$N$4:$Y$33 | AI3: 'CMD Table'!N | AK3: 30 | AL3: 'CGV Table'!$N$4:$Y$33 | AM3: 'CGV Table'!N | AO3: 26 | AP3: 'CPA Table'!$N$4:$Y$33 | AQ3: 'CPA Table'!N
A4: Choose Log/UPC or No Log/No UPC: | B4: No Log | E4: SINGLE REGRESSION: | S4: =S3-1 -> 16 | T4: 04/05 | U4: T4 | W4: 0.2 | X4: 0.65 | Z4: 12 | AA4: 'CKY Table'!$Z$4:$AK$33 | AB4: 'CKY Table'!Z | AD4: =AD3-1 -> 16 | AE4: 194 | AG4: 27 | AH4: 'CMD Table'!$Z$4:$AK$33 | AI4: 'CMD Table'!Z | AK4: 31 | AL4: 'CGV Table'!$Z$4:$AK$33 | AM4: 'CGV Table'!Z | AO4: 29 | AP4: 'CPA Table'!$Z$4:$AK$33 | AQ4: 'CPA Table'!Z
S5: =S4-1 -> 15 | T5: 05/06 | U5: T5 | W5: 0.25 | X5: 0.7 | Z5: 13 | AA5: 'CKY Table'!$AL$4:$AW$33 | AB5: 'CKY Table'!AL | AD5: 15 | AE5: 225 | AG5: 32 | AH5: 'CMD Table'!$AL$4:$AW$33 | AI5: 'CMD Table'!AL | AK5: 33 | AL5: 'CGV Table'!$AL$4:$AW$33 | AM5: 'CGV Table'!AL | AO5: 35 | AP5: 'CPA Table'!$AL$4:$AW$33 | AQ5: 'CPA Table'!AL
B6: Start | C6: End | S6: =S5-1 -> 14 | T6: 06/07 | U6: T6 | W6: 0.3 | X6: 0.75 | Z6: 15 | AA6: 'CKY Table'!$AX$4:$BI$33 | AB6: 'CKY Table'!AX | AD6: 14 | AE6: 256 | AG6: Total | AH6: 'CMD Table'!$AX$4:$BI$33 | AI6: 'CMD Table'!AX | AK6: 34 | AL6: 'CGV Table'!$AX$4:$BI$33 | AM6: 'CGV Table'!AX | AO6: 36 | AP6: 'CPA Table'!$AX$4:$BI$33 | AQ6: 'CPA Table'!AX
A7: Choose Start/End Date: | B7: 15/16 | C7: 19/20 | S7: 13 | T7: 07/08 | U7: T7 | W7: 0.35 | X7: 8 | Z7: 16 | AA7: 'CKY Table'!$BJ$4:$BU$33 | AB7: 'CKY Table'!BJ | AD7: 13 | AE7: 287 | AK7: 80 | AL7: 'CGV Table'!$BJ$4:$BU$33 | AM7: 'CGV Table'!BJ | AO7: 38 | AP7: 'CPA Table'!$BJ$4:$BU$33 | AQ7: 'CPA Table'!BJ
S8: 12 | T8: 08/09 | U8: T8 | W8: 0.4 | X8: 0.85 | Z8: 18 | AA8: 'CKY Table'!$BV$4:$CG$33 | AB8: 'CKY Table'!BV | AD8: 12 | AE8: 318 | AK8: 81 | AL8: 'CGV Table'!$BV$4:$CG$33 | AM8: 'CGV Table'!BV | AO8: 39 | AP8: 'CPA Table'!$BV$4:$CG$33 | AQ8: 'CPA Table'!BV
A9: Choose Explanatory Variables: | B9: Degree Days | S9: 11 | T9: 09/10 | U9: T9 | W9: 0.45 | X9: 0.9 | Z9: Total | AA9: 'CKY Table'!$CH$4:$CS$33 | AB9: 'CKY Table'!CH | AD9: 11 | AE9: 349 | AG9: 1 | AH9: 'COH Table'!$B$4:$M$33 | AI9: 'COH Table'!B | AK9: 90 | AL9: 'CGV Table'!$CH$4:$CS$33 | AM9: 'CGV Table'!CH | AO9: 40 | AP9: 'CPA Table'!$CH$4:$CS$33 | AQ9: 'CPA Table'!CH
B10: Customers | E10: ALL REGRESSIONS: | S10: 10 | T10: 10/11 | U10: T10 | W10: 0.5 | X10: 0.95 | AD10: 10 | AE10: 380 | AG10: 2 | AH10: 'COH Table'!$N$4:$Y$33 | AI10: 'COH Table'!N | AK10: Total | AL10: 'CGV Table'!$CT$4:$DE$33 | AM10: 'CGV Table'!CT | AO10: Total | AP10: 'CPA Table'!$CT$4:$DE$33 | AQ10: 'CPA Table'!CT
B11: Rate | S11: 9 | T11: 11/12 | U11: T11 | AD11: 9 | AE11: 411 | AG11: 3 | AH11: 'COH Table'!$Z$4:$AK$33 | AI11: 'COH Table'!Z
B12: Lag Rate | S12: 8 | T12: 12/13 | U12: T12 | W12: Degree Days | X12: positive | AD12: 8 | AE12: 442 | AG12: 4 | AH12: 'COH Table'!$AL$4:$AW$33 | AI12: 'COH Table'!AL
B13: Trend | S13: 7 | T13: 13/14 | U13: T13 | W13: Customers | X13: positive | AD13: 7 | AE13: 473 | AG13: 5 | AH13: 'COH Table'!$AX$4:$BI$33 | AI13: 'COH Table'!AX | AK13: 10 | AL13: 'CKY Table'!$B$4:$M$33 | AM13: 'CKY Table'!B
B14: Nonfarm | S14: 6 | T14: 14/15 | U14: T14 | W14: Rate | X14: negative | AD14: 6 | AE14: 504 | AG14: 6 | AH14: 'COH Table'!$BJ$4:$BU$33 | AI14: 'COH Table'!BJ | AK14: 11 | AL14: 'CKY Table'!$N$4:$Y$33 | AM14: 'CKY Table'!N
A15: Choose Parameters: | S15: 5 | T15: 15/16 | U15: T15 | W15: Lag Rate | X15: negative | AD15: =AD14-1 -> 5 | AE15: 535 | AG15: 7 | AH15: 'COH Table'!$BV$4:$CG$33 | AI15: 'COH Table'!BV | AK15: 12 | AL15: 'CKY Table'!$Z$4:$AK$33 | AM15: 'CKY Table'!Z
A16: p-value: | B16: 0.2 | S16: 4 | T16: 16/17 | U16: T16 | W16: Trend | X16: negative | AG16: 8 | AH16: 'COH Table'!$CH$4:$CS$33 | AI16: 'COH Table'!CH | AK16: 13 | AL16: 'CKY Table'!$AL$4:$AW$33 | AM16: 'CKY Table'!AL
A17: Significance F: | B17: 0.15 | S17: 3 | T17: 17/18 | U17: T17 | W17: Nonfarm | X17: positive | AG17: 9 | AH17: 'COH Table'!$CT$4:$DE$33 | AI17: 'COH Table'!CT | AK17: 15 | AL17: 'CKY Table'!$AX$4:$BI$33 | AM17: 'CKY Table'!AX
A18: Adj R-Sqaured: | B18: 0.6 | S18: 2 | T18: 18/19 | U18: T18 | AG18: 15 | AH18: 'COH Table'!$DF$4:$DQ$33 | AI18: 'COH Table'!DF | AK18: 16 | AL18: 'CKY Table'!$BJ$4:$BU$33 | AM18: 'CKY Table'!BJ
S19: 1 | T19: 19/20 | U19: T19 | W19: Log Degree Days | X19: positive | AG19: 35 | AH19: 'COH Table'!$DR$4:$EC$33 | AI19: 'COH Table'!DR | AK19: 18 | AL19: 'CKY Table'!$BV$4:$CG$33 | AM19: 'CKY Table'!BV
A20: Trend Squared: | B20: No | W20: Log Rate | X20: negative | AG20: 39 | AH20: 'COH Table'!$ED$4:$EO$33 | AI20: 'COH Table'!ED | AK20: Total | AL20: 'CKY Table'!$CH$4:$CS$33 | AM20: 'CKY Table'!CH
A21: SUMMARY OUTPUT | W21: Log Lag Rate | X21: negative | AG21: Total | AH21: 'COH Table'!$EP$4:$FA$33 | AI21: 'COH Table'!EP
W22: Log Trend | X22: negative | Z22: ***Cells S1:U?? Need to be updated to add a new year every year. Update dropdowns in B7 and C7 to add new row (highlight->data->data validation)
A23: Regression Statistics | W23: Log Nonfarm | X23: positive | Z23: ***To Change states, copy paste from the relevant state list into Z2:AB14, these can be find in column AG and to the right
A24: Multiple R | B24: 1 | Z24: ***Numbers in column AE should point to the line that contains the word "Statistics" for each number of years. Update every year
A25: R Square | B25: 1 | W25: Log | X25: Yes | Z25: ***Cells W1:X27 should only need changed if new variables are added (or removed)
A26: Adjusted R Square | B26: 65535 | W26: No Log | X26: No | Z26: ***See hidden rows 45 - 93. Changes are needed in rows 59:69 if new var added. Need to add row to blue box for each new year
A27: Standard Error | B27: 0
A28: Observations | B28: 5
A30: ANOVA
B31: df | C31: SS | D31: MS | E31: F | F31: Significance F
A32: Regression | B32: 6 | C32: 2439738 | D32: 406623
A33: Residual | B33: 0 | C33: 0 | D33: 65535
A34: Total | B34: 6 | C34: 2439738
B36: Coefficients | C36: Standard Error | D36: t Stat | E36: P-value | F36: Lower 95% | G36: Upper 95%
A37: Intercept | B37: 25783.822 | C37: 0 | D37: 65535 | F37: 25783.822 | G37: 25783.822
A38: Degree Days | B38: -6.216819114 | C38: 0 | D38: 65535 | F38: -6.216819114 | G38: -6.216819114
A39: Customers | B39: 0 | C39: 0 | D39: 65535 | F39: 0 | G39: 0
A40: Rate | B40: 2664.09972 | C40: 0 | D40: 65535 | F40: 2664.09972 | G40: 2664.09972
A41: Lag Rate | B41: 2218.900162 | C41: 0 | D41: 65535 | F41: 2218.900162 | G41: 2218.900162
A42: Trend | B42: -422.8024483 | C42: 0 | D42: 65535 | F42: -422.8024483 | G42: -422.8024483
A43: Nonfarm | B43: 0 | C43: 0 | D43: 65535 | F43: 0 | G43: 0
A59: No Log | B59: Degree Days | C59: Customers | D59: Rate | E59: Lag Rate | F59: Trend | G59: Nonfarm | H59: Degree Days | I59: Degree Days | J59: Degree Days | K59: Degree Days | L59: Customers | M59: Customers | N59: Customers | O59: Rate | P59: Rate | Q59: Lag Rate | R59: Nonfarm | S59: Nonfarm | T59: Nonfarm | U59: Nonfarm | V59: Nonfarm | W59: Degree Days | X59: Degree Days | Y59: Degree Days | Z59: Degree Days | AA59: Degree Days | AB59: Degree Days | AC59: Customers | AD59: Customers | AE59: Customers | AF59: Rate | AG59: Degree Days | AH59: Degree Days | AI59: Degree Days | AJ59: Degree Days | AK59: Customers | AL59: Customers | AM59: Customers | AN59: Rate | AO59: Rate | AP59: Lag Rate | AQ59: Degree Days | AR59: Degree Days | AS59: Degree Days | AT59: Degree Days | AU59: Customers | AV59: Degree Days | AW59: Degree Days | AX59: Degree Days | AY59: Degree Days | AZ59: Degree Days | BA59: Degree Days | BB59: Customers | BC59: Customers | BD59: Customers | BE59: Rate | BF59: Degree Days | BG59: Degree Days | BH59: Degree Days | BI59: Degree Days | BJ59: Degree Days | BK59: Customers | BL59: Degree Days
H60: Customers | I60: Rate | J60: Lag Rate | K60: Trend | L60: Rate | M60: Lag Rate | N60: Trend | O60: Lag Rate | P60: Trend | Q60: Trend | R60: Degree Days | S60: Customers | T60: Rate | U60: Lag Rate | V60: Trend | W60: Customers | X60: Customers | Y60: Customers | Z60: Rate | AA60: Rate | AB60: Lag Rate | AC60: Rate | AD60: Rate | AE60: Lag Rate | AF60: Lag Rate | AG60: Customers | AH60: Rate | AI60: Lag Rate | AJ60: Trend | AK60: Rate | AL60: Lag Rate | AM60: Trend | AN60: Lag Rate | AO60: Trend | AP60: Trend | AQ60: Rate | AR60: Customers | AS60: Customers | AT60: Customers | AU60: Rate | AV60: Customers | AW60: Customers | AX60: Customers | AY60: Rate | AZ60: Rate | BA60: Lag Rate | BB60: Rate | BC60: Rate | BD60: Lag Rate | BE60: Lag Rate | BF60: Customers | BG60: Rate | BH60: Customers | BI60: Customers | BJ60: Customers | BK60: Rate | BL60: Customers
W61: Rate | X61: Lag Rate | Y61: Trend | Z61: Lag Rate | AA61: Trend | AB61: Trend | AC61: Lag Rate | AD61: Trend | AE61: Trend | AF61: Trend | AG61: Nonfarm | AH61: Nonfarm | AI61: Nonfarm | AJ61: Nonfarm | AK61: Nonfarm | AL61: Nonfarm | AM61: Nonfarm | AN61: Nonfarm | AO61: Nonfarm | AP61: Nonfarm | AQ61: Lag Rate | AR61: Lag Rate | AS61: Rate | AT61: Rate | AU61: Lag Rate | AV61: Rate | AW61: Lag Rate | AX61: Trend | AY61: Lag Rate | AZ61: Trend | BA61: Trend | BB61: Lag Rate | BC61: Trend | BD61: Trend | BE61: Trend | BF61: Rate | BG61: Lag Rate | BH61: Lag Rate | BI61: Rate | BJ61: Rate | BK61: Lag Rate | BL61: Rate
AQ62: Trend | AR62: Trend | AS62: Trend | AT62: Lag Rate | AU62: Trend | AV62: Nonfarm | AW62: Nonfarm | AX62: Nonfarm | AY62: Nonfarm | AZ62: Nonfarm | BA62: Nonfarm | BB62: Nonfarm | BC62: Nonfarm | BD62: Nonfarm | BE62: Nonfarm | BF62: Lag Rate | BG62: Trend | BH62: Trend | BI62: Trend | BJ62: Lag Rate | BK62: Trend | BL62: Lag Rate
BF63: Trend | BG63: Nonfarm | BH63: Nonfarm | BI63: Nonfarm | BJ63: Nonfarm | BK63: Nonfarm | BL63: Trend
BL64: Nonfarm
A65: Log | B65: Log Degree Days | C65: Log Rate | D65: Log Lag Rate | E65: Log Trend | F65: Log Nonfarm | G65: Log Degree Days | H65: Log Degree Days | I65: Log Degree Days | J65: Log Rate | K65: Log Rate | L65: Log Lag Rate | M65: Log Degree Days | N65: Log Rate | O65: Log Lag Rate | P65: Log Trend | Q65: Log Degree Days | R65: Log Degree Days | S65: Log Degree Days | T65: Log Rate | U65: Log Degree Days | V65: Log Degree Days | W65: Log Degree Days | X65: Log Rate | Y65: Log Rate | Z65: Log Lag Rate | AA65: Log Degree Days | AB65: Log Degree Days | AC65: Log Degree Days | AD65: Log Degree Days | AE65: Log Rate | AF65: Log Degree Days
G66: Log Rate | H66: Log Lag Rate | I66: Log Trend | J66: Log Lag Rate | K66: Log Trend | L66: Log Trend | M66: Log Nonfarm | N66: Log Nonfarm | O66: Log Nonfarm | P66: Log Nonfarm | Q66: Log Rate | R66: Log Rate | S66: Log Lag Rate | T66: Log Lag Rate | U66: Log Rate | V66: Log Lag Rate | W66: Log Trend | X66: Log Lag Rate | Y66: Log Trend | Z66: Log Trend | AA66: Log Rate | AB66: Log Rate | AC66: Log Rate | AD66: Log Lag Rate | AE66: Log Lag Rate | AF66: Log Rate
Q67: Log Lag Rate | R67: Log Trend | S67: Log Trend | T67: Log Trend | U67: Log Nonfarm | V67: Log Nonfarm | W67: Log Nonfarm | X67: Log Nonfarm | Y67: Log Nonfarm | Z67: Log Nonfarm | AA67: Log Lag Rate | AB67: Log Lag Rate | AC67: Log Trend | AD67: Log Trend | AE67: Log Trend | AF67: Log Lag Rate
AA68: Log Trend | AB68: Log Nonfarm | AC68: Log Nonfarm | AD68: Log Nonfarm | AE68: Log Nonfarm | AF68: Log Trend
AF69: Log Nonfarm
B71: B | C71: C | D71: D | E71: E | F71: F | G71: G | H71: H | J71: =IF(C72<>"",C72,IF(D72<>"",D72,IF(E72<>"",E72,IF(F72<>"",F72,IF(G72<>"",G72,IF(H72<>"",H72,"")))))) -> H
B72: =IF(AND(B73="",A73<>""),B71,"") ->  | C72: =IF(AND(D73="",C73<>""),C71,"") ->  | H72: H | J72: =SUM(J75:J92) -> 78
A73: Winter | B73: =IF($B$4="No Log","Usage","Log UPC") -> Usage | C73: =IF($B$9<>"",$B$9,"") -> Degree Days | D73: =IF($B$10<>"",$B$10,"") -> Customers | E73: =IF($B$11<>"",$B$11,"") -> Rate | F73: =IF($B$12<>"",$B$12,"") -> Lag Rate | G73: =IF($B$13<>"",$B$13,"") -> Trend | H73: =IF(B14<>"",B14,"") -> Nonfarm
A74: =B7 -> 15/16 | B74: =IF($A74="","",IF(B$73="","",VLOOKUP($A74,'CKY Table'!$A$5:$CX$24,HLOOKUP(B$73,INDIRECT(VLOOKUP($B$2,$Z$2:$AA$15,2,FALSE)),21,FALSE),FALSE))) -> 30680 | C74: =IF($A74="","",IF(C$73="","",IF(C$73="Trend",IF($B$21="Yes",$I75^2,$I75),IF(C$73="Log Trend",IF($B$21="Yes",LN($I75^2),LN($I75)),VLOOKUP($A74,'CKY Table'!$A$5:$CX$24,HLOOKUP(C$73,INDIRECT(VLOOKUP($B$2,$Z$2:$AA$15,2,FALSE)),21,FALSE),FALSE))))) -> 1189 | D74: =IF($A74="","",IF(D$73="","",IF(D$73="Trend",IF($B$21="Yes",$I75^2,$I75),IF(D$73="Log Trend",IF($B$21="Yes",LN($I75^2),LN($I75)),VLOOKUP($A74,'CKY Table'!$A$5:$CX$24,HLOOKUP(D$73,INDIRECT(VLOOKUP($B$2,$Z$2:$AA$15,2,FALSE)),21,FALSE),FALSE))))) -> 25 | E74: =IF($A74="","",IF(E$73="","",IF(E$73="Trend",IF($B$21="Yes",$I75^2,$I75),IF(E$73="Log Trend",IF($B$21="Yes",LN($I75^2),LN($I75)),VLOOKUP($A74,'CKY Table'!$A$5:$CX$24,HLOOKUP(E$73,INDIRECT(VLOOKUP($B$2,$Z$2:$AA$15,2,FALSE)),21,FALSE),FALSE))))) -> 2.21 | F74: =IF($A74="","",IF(F$73="","",IF(F$73="Trend",IF($B$21="Yes",$I75^2,$I75),IF(F$73="Log Trend",IF($B$21="Yes",LN($I75^2),LN($I75)),VLOOKUP($A74,'CKY Table'!$A$5:$CX$24,HLOOKUP(F$73,INDIRECT(VLOOKUP($B$2,$Z$2:$AA$15,2,FALSE)),21,FALSE),FALSE))))) -> 3.075 | G74: =IF($A74="","",IF(G$73="","",IF(G$73="Trend",IF($B$21="Yes",$I75^2,$I75),IF(G$73="Log Trend",IF($B$21="Yes",LN($I75^2),LN($I75)),VLOOKUP($A74,'CKY Table'!$A$5:$CX$24,HLOOKUP(G$73,INDIRECT(VLOOKUP($B$2,$Z$2:$AA$15,2,FALSE)),21,FALSE),FALSE))))) -> 1 | H74: =IF($A74="","",IF(H$73="","",IF(H$73="Trend",IF($B$21="Yes",$I75^2,$I75),IF(H$73="Log Trend",IF($B$21="Yes",LN($I75^2),LN($I75)),VLOOKUP($A74,'CKY Table'!$A$5:$CX$24,HLOOKUP(H$73,INDIRECT(VLOOKUP($B$2,$Z$2:$AA$15,2,FALSE)),21,FALSE),FALSE))))) -> 13.74226917
A75: =IFERROR(IF(IF(LEFT($C$7,2)+0>LEFT(A74,2)+0,OFFSET(INDIRECT(VLOOKUP($A$74,$T$1:$U$15,2,FALSE)),$I75,0),$C$7)=A74,"",IF(LEFT($C$7,2)+0>LEFT(A74,2)+0,OFFSET(INDIRECT(VLOOKUP($A$74,$T$1:$U$15,2,FALSE)),$I75,0),$C$7)),"") -> 16/17 | B75: =IF($A75="","",IF(B$73="","",VLOOKUP($A75,'CKY Table'!$A$5:$CX$24,HLOOKUP(B$73,INDIRECT(VLOOKUP($B$2,$Z$2:$AA$15,2,FALSE)),21,FALSE),FALSE))) -> 32183 | C75: =IF($A75="","",IF(C$73="","",IF(C$73="Trend",IF($B$21="Yes",$I76^2,$I76),IF(C$73="Log Trend",IF($B$21="Yes",LN($I76^2),LN($I76)),VLOOKUP($A75,'CKY Table'!$A$5:$CX$24,HLOOKUP(C$73,INDIRECT(VLOOKUP($B$2,$Z$2:$AA$15,2,FALSE)),21,FALSE),FALSE))))) -> 1245 | D75: =IF($A75="","",IF(D$73="","",IF(D$73="Trend",IF($B$21="Yes",$I76^2,$I76),IF(D$73="Log Trend",IF($B$21="Yes",LN($I76^2),LN($I76)),VLOOKUP($A75,'CKY Table'!$A$5:$CX$24,HLOOKUP(D$73,INDIRECT(VLOOKUP($B$2,$Z$2:$AA$15,2,FALSE)),21,FALSE),FALSE))))) -> 26 | E75: =IF($A75="","",IF(E$73="","",IF(E$73="Trend",IF($B$21="Yes",$I76^2,$I76),IF(E$73="Log Trend",IF($B$21="Yes",LN($I76^2),LN($I76)),VLOOKUP($A75,'CKY Table'!$A$5:$CX$24,HLOOKUP(E$73,INDIRECT(VLOOKUP($B$2,$Z$2:$AA$15,2,FALSE)),21,FALSE),FALSE))))) -> 3.784 | F75: =IF($A75="","",IF(F$73="","",IF(F$73="Trend",IF($B$21="Yes",$I76^2,$I76),IF(F$73="Log Trend",IF($B$21="Yes",LN($I76^2),LN($I76)),VLOOKUP($A75,'CKY Table'!$A$5:$CX$24,HLOOKUP(F$73,INDIRECT(VLOOKUP($B$2,$Z$2:$AA$15,2,FALSE)),21,FALSE),FALSE))))) -> 2.21 | G75: =IF($A75="","",IF(G$73="","",IF(G$73="Trend",IF($B$21="Yes",$I76^2,$I76),IF(G$73="Log Trend",IF($B$21="Yes",LN($I76^2),LN($I76)),VLOOKUP($A75,'CKY Table'!$A$5:$CX$24,HLOOKUP(G$73,INDIRECT(VLOOKUP($B$2,$Z$2:$AA$15,2,FALSE)),21,FALSE),FALSE))))) -> 2 | H75: =IF($A75="","",IF(H$73="","",IF(H$73="Trend",IF($B$21="Yes",$I76^2,$I76),IF(H$73="Log Trend",IF($B$21="Yes",LN($I76^2),LN($I76)),VLOOKUP($A75,'CKY Table'!$A$5:$CX$24,HLOOKUP(H$73,INDIRECT(VLOOKUP($B$2,$Z$2:$AA$15,2,FALSE)),21,FALSE),FALSE))))) -> 13.43735608 | I75: 1 | J75: =IF(AND(A76="",A75<>""),ROW(),"") -> 
A76: 17/18 | B76: =IF($A76="","",IF(B$73="","",VLOOKUP($A76,'CKY Table'!$A$5:$CX$24,HLOOKUP(B$73,INDIRECT(VLOOKUP($B$2,$Z$2:$AA$15,2,FALSE)),21,FALSE),FALSE))) -> 30038 | C76: =IF($A76="","",IF(C$73="","",IF(C$73="Trend",IF($B$21="Yes",$I77^2,$I77),IF(C$73="Log Trend",IF($B$21="Yes",LN($I77^2),LN($I77)),VLOOKUP($A76,'CKY Table'!$A$5:$CX$24,HLOOKUP(C$73,INDIRECT(VLOOKUP($B$2,$Z$2:$AA$15,2,FALSE)),21,FALSE),FALSE))))) -> 1612 | D76: =IF($A76="","",IF(D$73="","",IF(D$73="Trend",IF($B$21="Yes",$I77^2,$I77),IF(D$73="Log Trend",IF($B$21="Yes",LN($I77^2),LN($I77)),VLOOKUP($A76,'CKY Table'!$A$5:$CX$24,HLOOKUP(D$73,INDIRECT(VLOOKUP($B$2,$Z$2:$AA$15,2,FALSE)),21,FALSE),FALSE))))) -> 26 | E76: =IF($A76="","",IF(E$73="","",IF(E$73="Trend",IF($B$21="Yes",$I77^2,$I77),IF(E$73="Log Trend",IF($B$21="Yes",LN($I77^2),LN($I77)),VLOOKUP($A76,'CKY Table'!$A$5:$CX$24,HLOOKUP(E$73,INDIRECT(VLOOKUP($B$2,$Z$2:$AA$15,2,FALSE)),21,FALSE),FALSE))))) -> 2.683 | F76: =IF($A76="","",IF(F$73="","",IF(F$73="Trend",IF($B$21="Yes",$I77^2,$I77),IF(F$73="Log Trend",IF($B$21="Yes",LN($I77^2),LN($I77)),VLOOKUP($A76,'CKY Table'!$A$5:$CX$24,HLOOKUP(F$73,INDIRECT(VLOOKUP($B$2,$Z$2:$AA$15,2,FALSE)),21,FALSE),FALSE))))) -> 3.784 | G76: =IF($A76="","",IF(G$73="","",IF(G$73="Trend",IF($B$21="Yes",$I77^2,$I77),IF(G$73="Log Trend",IF($B$21="Yes",LN($I77^2),LN($I77)),VLOOKUP($A76,'CKY Table'!$A$5:$CX$24,HLOOKUP(G$73,INDIRECT(VLOOKUP($B$2,$Z$2:$AA$15,2,FALSE)),21,FALSE),FALSE))))) -> 3 | H76: =IF($A76="","",IF(H$73="","",IF(H$73="Trend",IF($B$21="Yes",$I77^2,$I77),IF(H$73="Log Trend",IF($B$21="Yes",LN($I77^2),LN($I77)),VLOOKUP($A76,'CKY Table'!$A$5:$CX$24,HLOOKUP(H$73,INDIRECT(VLOOKUP($B$2,$Z$2:$AA$15,2,FALSE)),21,FALSE),FALSE))))) -> 13.03009565 | I76: 2
A77: 18/19 | B77: =IF($A77="","",IF(B$73="","",VLOOKUP($A77,'CKY Table'!$A$5:$CX$24,HLOOKUP(B$73,INDIRECT(VLOOKUP($B$2,$Z$2:$AA$15,2,FALSE)),21,FALSE),FALSE))) -> 31101 | C77: =IF($A77="","",IF(C$73="","",IF(C$73="Trend",IF($B$21="Yes",$I78^2,$I78),IF(C$73="Log Trend",IF($B$21="Yes",LN($I78^2),LN($I78)),VLOOKUP($A77,'CKY Table'!$A$5:$CX$24,HLOOKUP(C$73,INDIRECT(VLOOKUP($B$2,$Z$2:$AA$15,2,FALSE)),21,FALSE),FALSE))))) -> 1352 | D77: =IF($A77="","",IF(D$73="","",IF(D$73="Trend",IF($B$21="Yes",$I78^2,$I78),IF(D$73="Log Trend",IF($B$21="Yes",LN($I78^2),LN($I78)),VLOOKUP($A77,'CKY Table'!$A$5:$CX$24,HLOOKUP(D$73,INDIRECT(VLOOKUP($B$2,$Z$2:$AA$15,2,FALSE)),21,FALSE),FALSE))))) -> 26 | E77: =IF($A77="","",IF(E$73="","",IF(E$73="Trend",IF($B$21="Yes",$I78^2,$I78),IF(E$73="Log Trend",IF($B$21="Yes",LN($I78^2),LN($I78)),VLOOKUP($A77,'CKY Table'!$A$5:$CX$24,HLOOKUP(E$73,INDIRECT(VLOOKUP($B$2,$Z$2:$AA$15,2,FALSE)),21,FALSE),FALSE))))) -> 3.551 | F77: =IF($A77="","",IF(F$73="","",IF(F$73="Trend",IF($B$21="Yes",$I78^2,$I78),IF(F$73="Log Trend",IF($B$21="Yes",LN($I78^2),LN($I78)),VLOOKUP($A77,'CKY Table'!$A$5:$CX$24,HLOOKUP(F$73,INDIRECT(VLOOKUP($B$2,$Z$2:$AA$15,2,FALSE)),21,FALSE),FALSE))))) -> 2.683 | G77: =IF($A77="","",IF(G$73="","",IF(G$73="Trend",IF($B$21="Yes",$I78^2,$I78),IF(G$73="Log Trend",IF($B$21="Yes",LN($I78^2),LN($I78)),VLOOKUP($A77,'CKY Table'!$A$5:$CX$24,HLOOKUP(G$73,INDIRECT(VLOOKUP($B$2,$Z$2:$AA$15,2,FALSE)),21,FALSE),FALSE))))) -> 4 | H77: =IF($A77="","",IF(H$73="","",IF(H$73="Trend",IF($B$21="Yes",$I78^2,$I78),IF(H$73="Log Trend",IF($B$21="Yes",LN($I78^2),LN($I78)),VLOOKUP($A77,'CKY Table'!$A$5:$CX$24,HLOOKUP(H$73,INDIRECT(VLOOKUP($B$2,$Z$2:$AA$15,2,FALSE)),21,FALSE),FALSE))))) -> 12.85221602 | I77: 3
A78: 19/20 | B78: =IF($A78="","",IF(B$73="","",VLOOKUP($A78,'CKY Table'!$A$5:$CX$24,HLOOKUP(B$73,INDIRECT(VLOOKUP($B$2,$Z$2:$AA$15,2,FALSE)),21,FALSE),FALSE))) -> 31053 | C78: =IF($A78="","",IF(C$73="","",IF(C$73="Trend",IF($B$21="Yes",$I79^2,$I79),IF(C$73="Log Trend",IF($B$21="Yes",LN($I79^2),LN($I79)),VLOOKUP($A78,'CKY Table'!$A$5:$CX$24,HLOOKUP(C$73,INDIRECT(VLOOKUP($B$2,$Z$2:$AA$15,2,FALSE)),21,FALSE),FALSE))))) -> 1026 | D78: =IF($A78="","",IF(D$73="","",IF(D$73="Trend",IF($B$21="Yes",$I79^2,$I79),IF(D$73="Log Trend",IF($B$21="Yes",LN($I79^2),LN($I79)),VLOOKUP($A78,'CKY Table'!$A$5:$CX$24,HLOOKUP(D$73,INDIRECT(VLOOKUP($B$2,$Z$2:$AA$15,2,FALSE)),21,FALSE),FALSE))))) -> 25 | E78: =IF($A78="","",IF(E$73="","",IF(E$73="Trend",IF($B$21="Yes",$I79^2,$I79),IF(E$73="Log Trend",IF($B$21="Yes",LN($I79^2),LN($I79)),VLOOKUP($A78,'CKY Table'!$A$5:$CX$24,HLOOKUP(E$73,INDIRECT(VLOOKUP($B$2,$Z$2:$AA$15,2,FALSE)),21,FALSE),FALSE))))) -> 2.208 | F78: =IF($A78="","",IF(F$73="","",IF(F$73="Trend",IF($B$21="Yes",$I79^2,$I79),IF(F$73="Log Trend",IF($B$21="Yes",LN($I79^2),LN($I79)),VLOOKUP($A78,'CKY Table'!$A$5:$CX$24,HLOOKUP(F$73,INDIRECT(VLOOKUP($B$2,$Z$2:$AA$15,2,FALSE)),21,FALSE),FALSE))))) -> 3.551 | G78: =IF($A78="","",IF(G$73="","",IF(G$73="Trend",IF($B$21="Yes",$I79^2,$I79),IF(G$73="Log Trend",IF($B$21="Yes",LN($I79^2),LN($I79)),VLOOKUP($A78,'CKY Table'!$A$5:$CX$24,HLOOKUP(G$73,INDIRECT(VLOOKUP($B$2,$Z$2:$AA$15,2,FALSE)),21,FALSE),FALSE))))) -> 5 | H78: =IF($A78="","",IF(H$73="","",IF(H$73="Trend",IF($B$21="Yes",$I79^2,$I79),IF(H$73="Log Trend",IF($B$21="Yes",LN($I79^2),LN($I79)),VLOOKUP($A78,'CKY Table'!$A$5:$CX$24,HLOOKUP(H$73,INDIRECT(VLOOKUP($B$2,$Z$2:$AA$15,2,FALSE)),21,FALSE),FALSE))))) -> 12.77695725 | I78: 4 | J78: 78
B79: =IF($A79="","",IF(B$73="","",VLOOKUP($A79,'CKY Table'!$A$5:$CX$24,HLOOKUP(B$73,INDIRECT(VLOOKUP($B$2,$Z$2:$AA$15,2,FALSE)),21,FALSE),FALSE))) ->  | C79: =IF($A79="","",IF(C$73="","",IF(C$73="Trend",IF($B$21="Yes",$I80^2,$I80),IF(C$73="Log Trend",IF($B$21="Yes",LN($I80^2),LN($I80)),VLOOKUP($A79,'CKY Table'!$A$5:$CX$24,HLOOKUP(C$73,INDIRECT(VLOOKUP($B$2,$Z$2:$AA$15,2,FALSE)),21,FALSE),FALSE))))) ->  | D79: =IF($A79="","",IF(D$73="","",IF(D$73="Trend",IF($B$21="Yes",$I80^2,$I80),IF(D$73="Log Trend",IF($B$21="Yes",LN($I80^2),LN($I80)),VLOOKUP($A79,'CKY Table'!$A$5:$CX$24,HLOOKUP(D$73,INDIRECT(VLOOKUP($B$2,$Z$2:$AA$15,2,FALSE)),21,FALSE),FALSE))))) ->  | E79: =IF($A79="","",IF(E$73="","",IF(E$73="Trend",IF($B$21="Yes",$I80^2,$I80),IF(E$73="Log Trend",IF($B$21="Yes",LN($I80^2),LN($I80)),VLOOKUP($A79,'CKY Table'!$A$5:$CX$24,HLOOKUP(E$73,INDIRECT(VLOOKUP($B$2,$Z$2:$AA$15,2,FALSE)),21,FALSE),FALSE))))) ->  | F79: =IF($A79="","",IF(F$73="","",IF(F$73="Trend",IF($B$21="Yes",$I80^2,$I80),IF(F$73="Log Trend",IF($B$21="Yes",LN($I80^2),LN($I80)),VLOOKUP($A79,'CKY Table'!$A$5:$CX$24,HLOOKUP(F$73,INDIRECT(VLOOKUP($B$2,$Z$2:$AA$15,2,FALSE)),21,FALSE),FALSE))))) ->  | G79: =IF($A79="","",IF(G$73="","",IF(G$73="Trend",IF($B$21="Yes",$I80^2,$I80),IF(G$73="Log Trend",IF($B$21="Yes",LN($I80^2),LN($I80)),VLOOKUP($A79,'CKY Table'!$A$5:$CX$24,HLOOKUP(G$73,INDIRECT(VLOOKUP($B$2,$Z$2:$AA$15,2,FALSE)),21,FALSE),FALSE))))) ->  | H79: =IF($A79="","",IF(H$73="","",IF(H$73="Trend",IF($B$21="Yes",$I80^2,$I80),IF(H$73="Log Trend",IF($B$21="Yes",LN($I80^2),LN($I80)),VLOOKUP($A79,'CKY Table'!$A$5:$CX$24,HLOOKUP(H$73,INDIRECT(VLOOKUP($B$2,$Z$2:$AA$15,2,FALSE)),21,FALSE),FALSE))))) ->  | I79: 5
B80: =IF($A80="","",IF(B$73="","",VLOOKUP($A80,'CKY Table'!$A$5:$CX$24,HLOOKUP(B$73,INDIRECT(VLOOKUP($B$2,$Z$2:$AA$15,2,FALSE)),21,FALSE),FALSE))) ->  | C80: =IF($A80="","",IF(C$73="","",IF(C$73="Trend",IF($B$21="Yes",$I81^2,$I81),IF(C$73="Log Trend",IF($B$21="Yes",LN($I81^2),LN($I81)),VLOOKUP($A80,'CKY Table'!$A$5:$CX$24,HLOOKUP(C$73,INDIRECT(VLOOKUP($B$2,$Z$2:$AA$15,2,FALSE)),21,FALSE),FALSE))))) ->  | D80: =IF($A80="","",IF(D$73="","",IF(D$73="Trend",IF($B$21="Yes",$I81^2,$I81),IF(D$73="Log Trend",IF($B$21="Yes",LN($I81^2),LN($I81)),VLOOKUP($A80,'CKY Table'!$A$5:$CX$24,HLOOKUP(D$73,INDIRECT(VLOOKUP($B$2,$Z$2:$AA$15,2,FALSE)),21,FALSE),FALSE))))) ->  | E80: =IF($A80="","",IF(E$73="","",IF(E$73="Trend",IF($B$21="Yes",$I81^2,$I81),IF(E$73="Log Trend",IF($B$21="Yes",LN($I81^2),LN($I81)),VLOOKUP($A80,'CKY Table'!$A$5:$CX$24,HLOOKUP(E$73,INDIRECT(VLOOKUP($B$2,$Z$2:$AA$15,2,FALSE)),21,FALSE),FALSE))))) ->  | F80: =IF($A80="","",IF(F$73="","",IF(F$73="Trend",IF($B$21="Yes",$I81^2,$I81),IF(F$73="Log Trend",IF($B$21="Yes",LN($I81^2),LN($I81)),VLOOKUP($A80,'CKY Table'!$A$5:$CX$24,HLOOKUP(F$73,INDIRECT(VLOOKUP($B$2,$Z$2:$AA$15,2,FALSE)),21,FALSE),FALSE))))) ->  | G80: =IF($A80="","",IF(G$73="","",IF(G$73="Trend",IF($B$21="Yes",$I81^2,$I81),IF(G$73="Log Trend",IF($B$21="Yes",LN($I81^2),LN($I81)),VLOOKUP($A80,'CKY Table'!$A$5:$CX$24,HLOOKUP(G$73,INDIRECT(VLOOKUP($B$2,$Z$2:$AA$15,2,FALSE)),21,FALSE),FALSE))))) ->  | H80: =IF($A80="","",IF(H$73="","",IF(H$73="Trend",IF($B$21="Yes",$I81^2,$I81),IF(H$73="Log Trend",IF($B$21="Yes",LN($I81^2),LN($I81)),VLOOKUP($A80,'CKY Table'!$A$5:$CX$24,HLOOKUP(H$73,INDIRECT(VLOOKUP($B$2,$Z$2:$AA$15,2,FALSE)),21,FALSE),FALSE))))) ->  | I80: 6
B81: =IF($A81="","",IF(B$73="","",VLOOKUP($A81,'CKY Table'!$A$5:$CX$24,HLOOKUP(B$73,INDIRECT(VLOOKUP($B$2,$Z$2:$AA$15,2,FALSE)),21,FALSE),FALSE))) ->  | C81: =IF($A81="","",IF(C$73="","",IF(C$73="Trend",IF($B$21="Yes",$I82^2,$I82),IF(C$73="Log Trend",IF($B$21="Yes",LN($I82^2),LN($I82)),VLOOKUP($A81,'CKY Table'!$A$5:$CX$24,HLOOKUP(C$73,INDIRECT(VLOOKUP($B$2,$Z$2:$AA$15,2,FALSE)),21,FALSE),FALSE))))) ->  | D81: =IF($A81="","",IF(D$73="","",IF(D$73="Trend",IF($B$21="Yes",$I82^2,$I82),IF(D$73="Log Trend",IF($B$21="Yes",LN($I82^2),LN($I82)),VLOOKUP($A81,'CKY Table'!$A$5:$CX$24,HLOOKUP(D$73,INDIRECT(VLOOKUP($B$2,$Z$2:$AA$15,2,FALSE)),21,FALSE),FALSE))))) ->  | E81: =IF($A81="","",IF(E$73="","",IF(E$73="Trend",IF($B$21="Yes",$I82^2,$I82),IF(E$73="Log Trend",IF($B$21="Yes",LN($I82^2),LN($I82)),VLOOKUP($A81,'CKY Table'!$A$5:$CX$24,HLOOKUP(E$73,INDIRECT(VLOOKUP($B$2,$Z$2:$AA$15,2,FALSE)),21,FALSE),FALSE))))) ->  | F81: =IF($A81="","",IF(F$73="","",IF(F$73="Trend",IF($B$21="Yes",$I82^2,$I82),IF(F$73="Log Trend",IF($B$21="Yes",LN($I82^2),LN($I82)),VLOOKUP($A81,'CKY Table'!$A$5:$CX$24,HLOOKUP(F$73,INDIRECT(VLOOKUP($B$2,$Z$2:$AA$15,2,FALSE)),21,FALSE),FALSE))))) ->  | G81: =IF($A81="","",IF(G$73="","",IF(G$73="Trend",IF($B$21="Yes",$I82^2,$I82),IF(G$73="Log Trend",IF($B$21="Yes",LN($I82^2),LN($I82)),VLOOKUP($A81,'CKY Table'!$A$5:$CX$24,HLOOKUP(G$73,INDIRECT(VLOOKUP($B$2,$Z$2:$AA$15,2,FALSE)),21,FALSE),FALSE))))) ->  | H81: =IF($A81="","",IF(H$73="","",IF(H$73="Trend",IF($B$21="Yes",$I82^2,$I82),IF(H$73="Log Trend",IF($B$21="Yes",LN($I82^2),LN($I82)),VLOOKUP($A81,'CKY Table'!$A$5:$CX$24,HLOOKUP(H$73,INDIRECT(VLOOKUP($B$2,$Z$2:$AA$15,2,FALSE)),21,FALSE),FALSE))))) ->  | I81: 7
B82: =IF($A82="","",IF(B$73="","",VLOOKUP($A82,'CKY Table'!$A$5:$CX$24,HLOOKUP(B$73,INDIRECT(VLOOKUP($B$2,$Z$2:$AA$15,2,FALSE)),21,FALSE),FALSE))) ->  | C82: =IF($A82="","",IF(C$73="","",IF(C$73="Trend",IF($B$21="Yes",$I83^2,$I83),IF(C$73="Log Trend",IF($B$21="Yes",LN($I83^2),LN($I83)),VLOOKUP($A82,'CKY Table'!$A$5:$CX$24,HLOOKUP(C$73,INDIRECT(VLOOKUP($B$2,$Z$2:$AA$15,2,FALSE)),21,FALSE),FALSE))))) ->  | D82: =IF($A82="","",IF(D$73="","",IF(D$73="Trend",IF($B$21="Yes",$I83^2,$I83),IF(D$73="Log Trend",IF($B$21="Yes",LN($I83^2),LN($I83)),VLOOKUP($A82,'CKY Table'!$A$5:$CX$24,HLOOKUP(D$73,INDIRECT(VLOOKUP($B$2,$Z$2:$AA$15,2,FALSE)),21,FALSE),FALSE))))) ->  | E82: =IF($A82="","",IF(E$73="","",IF(E$73="Trend",IF($B$21="Yes",$I83^2,$I83),IF(E$73="Log Trend",IF($B$21="Yes",LN($I83^2),LN($I83)),VLOOKUP($A82,'CKY Table'!$A$5:$CX$24,HLOOKUP(E$73,INDIRECT(VLOOKUP($B$2,$Z$2:$AA$15,2,FALSE)),21,FALSE),FALSE))))) ->  | F82: =IF($A82="","",IF(F$73="","",IF(F$73="Trend",IF($B$21="Yes",$I83^2,$I83),IF(F$73="Log Trend",IF($B$21="Yes",LN($I83^2),LN($I83)),VLOOKUP($A82,'CKY Table'!$A$5:$CX$24,HLOOKUP(F$73,INDIRECT(VLOOKUP($B$2,$Z$2:$AA$15,2,FALSE)),21,FALSE),FALSE))))) ->  | G82: =IF($A82="","",IF(G$73="","",IF(G$73="Trend",IF($B$21="Yes",$I83^2,$I83),IF(G$73="Log Trend",IF($B$21="Yes",LN($I83^2),LN($I83)),VLOOKUP($A82,'CKY Table'!$A$5:$CX$24,HLOOKUP(G$73,INDIRECT(VLOOKUP($B$2,$Z$2:$AA$15,2,FALSE)),21,FALSE),FALSE))))) ->  | H82: =IF($A82="","",IF(H$73="","",IF(H$73="Trend",IF($B$21="Yes",$I83^2,$I83),IF(H$73="Log Trend",IF($B$21="Yes",LN($I83^2),LN($I83)),VLOOKUP($A82,'CKY Table'!$A$5:$CX$24,HLOOKUP(H$73,INDIRECT(VLOOKUP($B$2,$Z$2:$AA$15,2,FALSE)),21,FALSE),FALSE))))) ->  | I82: 8
B83: =IF($A83="","",IF(B$73="","",VLOOKUP($A83,'CKY Table'!$A$5:$CX$24,HLOOKUP(B$73,INDIRECT(VLOOKUP($B$2,$Z$2:$AA$15,2,FALSE)),21,FALSE),FALSE))) ->  | C83: =IF($A83="","",IF(C$73="","",IF(C$73="Trend",IF($B$21="Yes",$I84^2,$I84),IF(C$73="Log Trend",IF($B$21="Yes",LN($I84^2),LN($I84)),VLOOKUP($A83,'CKY Table'!$A$5:$CX$24,HLOOKUP(C$73,INDIRECT(VLOOKUP($B$2,$Z$2:$AA$15,2,FALSE)),21,FALSE),FALSE))))) ->  | D83: =IF($A83="","",IF(D$73="","",IF(D$73="Trend",IF($B$21="Yes",$I84^2,$I84),IF(D$73="Log Trend",IF($B$21="Yes",LN($I84^2),LN($I84)),VLOOKUP($A83,'CKY Table'!$A$5:$CX$24,HLOOKUP(D$73,INDIRECT(VLOOKUP($B$2,$Z$2:$AA$15,2,FALSE)),21,FALSE),FALSE))))) ->  | E83: =IF($A83="","",IF(E$73="","",IF(E$73="Trend",IF($B$21="Yes",$I84^2,$I84),IF(E$73="Log Trend",IF($B$21="Yes",LN($I84^2),LN($I84)),VLOOKUP($A83,'CKY Table'!$A$5:$CX$24,HLOOKUP(E$73,INDIRECT(VLOOKUP($B$2,$Z$2:$AA$15,2,FALSE)),21,FALSE),FALSE))))) ->  | F83: =IF($A83="","",IF(F$73="","",IF(F$73="Trend",IF($B$21="Yes",$I84^2,$I84),IF(F$73="Log Trend",IF($B$21="Yes",LN($I84^2),LN($I84)),VLOOKUP($A83,'CKY Table'!$A$5:$CX$24,HLOOKUP(F$73,INDIRECT(VLOOKUP($B$2,$Z$2:$AA$15,2,FALSE)),21,FALSE),FALSE))))) ->  | G83: =IF($A83="","",IF(G$73="","",IF(G$73="Trend",IF($B$21="Yes",$I84^2,$I84),IF(G$73="Log Trend",IF($B$21="Yes",LN($I84^2),LN($I84)),VLOOKUP($A83,'CKY Table'!$A$5:$CX$24,HLOOKUP(G$73,INDIRECT(VLOOKUP($B$2,$Z$2:$AA$15,2,FALSE)),21,FALSE),FALSE))))) ->  | H83: =IF($A83="","",IF(H$73="","",IF(H$73="Trend",IF($B$21="Yes",$I84^2,$I84),IF(H$73="Log Trend",IF($B$21="Yes",LN($I84^2),LN($I84)),VLOOKUP($A83,'CKY Table'!$A$5:$CX$24,HLOOKUP(H$73,INDIRECT(VLOOKUP($B$2,$Z$2:$AA$15,2,FALSE)),21,FALSE),FALSE))))) ->  | I83: 9
B84: =IF($A84="","",IF(B$73="","",VLOOKUP($A84,'CKY Table'!$A$5:$CX$24,HLOOKUP(B$73,INDIRECT(VLOOKUP($B$2,$Z$2:$AA$15,2,FALSE)),21,FALSE),FALSE))) ->  | C84: =IF($A84="","",IF(C$73="","",IF(C$73="Trend",IF($B$21="Yes",$I85^2,$I85),IF(C$73="Log Trend",IF($B$21="Yes",LN($I85^2),LN($I85)),VLOOKUP($A84,'CKY Table'!$A$5:$CX$24,HLOOKUP(C$73,INDIRECT(VLOOKUP($B$2,$Z$2:$AA$15,2,FALSE)),21,FALSE),FALSE))))) ->  | D84: =IF($A84="","",IF(D$73="","",IF(D$73="Trend",IF($B$21="Yes",$I85^2,$I85),IF(D$73="Log Trend",IF($B$21="Yes",LN($I85^2),LN($I85)),VLOOKUP($A84,'CKY Table'!$A$5:$CX$24,HLOOKUP(D$73,INDIRECT(VLOOKUP($B$2,$Z$2:$AA$15,2,FALSE)),21,FALSE),FALSE))))) ->  | E84: =IF($A84="","",IF(E$73="","",IF(E$73="Trend",IF($B$21="Yes",$I85^2,$I85),IF(E$73="Log Trend",IF($B$21="Yes",LN($I85^2),LN($I85)),VLOOKUP($A84,'CKY Table'!$A$5:$CX$24,HLOOKUP(E$73,INDIRECT(VLOOKUP($B$2,$Z$2:$AA$15,2,FALSE)),21,FALSE),FALSE))))) ->  | F84: =IF($A84="","",IF(F$73="","",IF(F$73="Trend",IF($B$21="Yes",$I85^2,$I85),IF(F$73="Log Trend",IF($B$21="Yes",LN($I85^2),LN($I85)),VLOOKUP($A84,'CKY Table'!$A$5:$CX$24,HLOOKUP(F$73,INDIRECT(VLOOKUP($B$2,$Z$2:$AA$15,2,FALSE)),21,FALSE),FALSE))))) ->  | G84: =IF($A84="","",IF(G$73="","",IF(G$73="Trend",IF($B$21="Yes",$I85^2,$I85),IF(G$73="Log Trend",IF($B$21="Yes",LN($I85^2),LN($I85)),VLOOKUP($A84,'CKY Table'!$A$5:$CX$24,HLOOKUP(G$73,INDIRECT(VLOOKUP($B$2,$Z$2:$AA$15,2,FALSE)),21,FALSE),FALSE))))) ->  | H84: =IF($A84="","",IF(H$73="","",IF(H$73="Trend",IF($B$21="Yes",$I85^2,$I85),IF(H$73="Log Trend",IF($B$21="Yes",LN($I85^2),LN($I85)),VLOOKUP($A84,'CKY Table'!$A$5:$CX$24,HLOOKUP(H$73,INDIRECT(VLOOKUP($B$2,$Z$2:$AA$15,2,FALSE)),21,FALSE),FALSE))))) ->  | I84: 10
B85: =IF($A85="","",IF(B$73="","",VLOOKUP($A85,'CKY Table'!$A$5:$CX$24,HLOOKUP(B$73,INDIRECT(VLOOKUP($B$2,$Z$2:$AA$15,2,FALSE)),21,FALSE),FALSE))) ->  | C85: =IF($A85="","",IF(C$73="","",IF(C$73="Trend",IF($B$21="Yes",$I86^2,$I86),IF(C$73="Log Trend",IF($B$21="Yes",LN($I86^2),LN($I86)),VLOOKUP($A85,'CKY Table'!$A$5:$CX$24,HLOOKUP(C$73,INDIRECT(VLOOKUP($B$2,$Z$2:$AA$15,2,FALSE)),21,FALSE),FALSE))))) ->  | D85: =IF($A85="","",IF(D$73="","",IF(D$73="Trend",IF($B$21="Yes",$I86^2,$I86),IF(D$73="Log Trend",IF($B$21="Yes",LN($I86^2),LN($I86)),VLOOKUP($A85,'CKY Table'!$A$5:$CX$24,HLOOKUP(D$73,INDIRECT(VLOOKUP($B$2,$Z$2:$AA$15,2,FALSE)),21,FALSE),FALSE))))) ->  | E85: =IF($A85="","",IF(E$73="","",IF(E$73="Trend",IF($B$21="Yes",$I86^2,$I86),IF(E$73="Log Trend",IF($B$21="Yes",LN($I86^2),LN($I86)),VLOOKUP($A85,'CKY Table'!$A$5:$CX$24,HLOOKUP(E$73,INDIRECT(VLOOKUP($B$2,$Z$2:$AA$15,2,FALSE)),21,FALSE),FALSE))))) ->  | F85: =IF($A85="","",IF(F$73="","",IF(F$73="Trend",IF($B$21="Yes",$I86^2,$I86),IF(F$73="Log Trend",IF($B$21="Yes",LN($I86^2),LN($I86)),VLOOKUP($A85,'CKY Table'!$A$5:$CX$24,HLOOKUP(F$73,INDIRECT(VLOOKUP($B$2,$Z$2:$AA$15,2,FALSE)),21,FALSE),FALSE))))) ->  | G85: =IF($A85="","",IF(G$73="","",IF(G$73="Trend",IF($B$21="Yes",$I86^2,$I86),IF(G$73="Log Trend",IF($B$21="Yes",LN($I86^2),LN($I86)),VLOOKUP($A85,'CKY Table'!$A$5:$CX$24,HLOOKUP(G$73,INDIRECT(VLOOKUP($B$2,$Z$2:$AA$15,2,FALSE)),21,FALSE),FALSE))))) ->  | H85: =IF($A85="","",IF(H$73="","",IF(H$73="Trend",IF($B$21="Yes",$I86^2,$I86),IF(H$73="Log Trend",IF($B$21="Yes",LN($I86^2),LN($I86)),VLOOKUP($A85,'CKY Table'!$A$5:$CX$24,HLOOKUP(H$73,INDIRECT(VLOOKUP($B$2,$Z$2:$AA$15,2,FALSE)),21,FALSE),FALSE))))) ->  | I85: 11
B86: =IF($A86="","",IF(B$73="","",VLOOKUP($A86,'CKY Table'!$A$5:$CX$24,HLOOKUP(B$73,INDIRECT(VLOOKUP($B$2,$Z$2:$AA$15,2,FALSE)),21,FALSE),FALSE))) ->  | C86: =IF($A86="","",IF(C$73="","",IF(C$73="Trend",IF($B$21="Yes",$I87^2,$I87),IF(C$73="Log Trend",IF($B$21="Yes",LN($I87^2),LN($I87)),VLOOKUP($A86,'CKY Table'!$A$5:$CX$24,HLOOKUP(C$73,INDIRECT(VLOOKUP($B$2,$Z$2:$AA$15,2,FALSE)),21,FALSE),FALSE))))) ->  | D86: =IF($A86="","",IF(D$73="","",IF(D$73="Trend",IF($B$21="Yes",$I87^2,$I87),IF(D$73="Log Trend",IF($B$21="Yes",LN($I87^2),LN($I87)),VLOOKUP($A86,'CKY Table'!$A$5:$CX$24,HLOOKUP(D$73,INDIRECT(VLOOKUP($B$2,$Z$2:$AA$15,2,FALSE)),21,FALSE),FALSE))))) ->  | E86: =IF($A86="","",IF(E$73="","",IF(E$73="Trend",IF($B$21="Yes",$I87^2,$I87),IF(E$73="Log Trend",IF($B$21="Yes",LN($I87^2),LN($I87)),VLOOKUP($A86,'CKY Table'!$A$5:$CX$24,HLOOKUP(E$73,INDIRECT(VLOOKUP($B$2,$Z$2:$AA$15,2,FALSE)),21,FALSE),FALSE))))) ->  | F86: =IF($A86="","",IF(F$73="","",IF(F$73="Trend",IF($B$21="Yes",$I87^2,$I87),IF(F$73="Log Trend",IF($B$21="Yes",LN($I87^2),LN($I87)),VLOOKUP($A86,'CKY Table'!$A$5:$CX$24,HLOOKUP(F$73,INDIRECT(VLOOKUP($B$2,$Z$2:$AA$15,2,FALSE)),21,FALSE),FALSE))))) ->  | G86: =IF($A86="","",IF(G$73="","",IF(G$73="Trend",IF($B$21="Yes",$I87^2,$I87),IF(G$73="Log Trend",IF($B$21="Yes",LN($I87^2),LN($I87)),VLOOKUP($A86,'CKY Table'!$A$5:$CX$24,HLOOKUP(G$73,INDIRECT(VLOOKUP($B$2,$Z$2:$AA$15,2,FALSE)),21,FALSE),FALSE))))) ->  | H86: =IF($A86="","",IF(H$73="","",IF(H$73="Trend",IF($B$21="Yes",$I87^2,$I87),IF(H$73="Log Trend",IF($B$21="Yes",LN($I87^2),LN($I87)),VLOOKUP($A86,'CKY Table'!$A$5:$CX$24,HLOOKUP(H$73,INDIRECT(VLOOKUP($B$2,$Z$2:$AA$15,2,FALSE)),21,FALSE),FALSE))))) ->  | I86: 12
B87: =IF($A87="","",IF(B$73="","",VLOOKUP($A87,'CKY Table'!$A$5:$CX$24,HLOOKUP(B$73,INDIRECT(VLOOKUP($B$2,$Z$2:$AA$15,2,FALSE)),21,FALSE),FALSE))) ->  | C87: =IF($A87="","",IF(C$73="","",IF(C$73="Trend",IF($B$21="Yes",$I88^2,$I88),IF(C$73="Log Trend",IF($B$21="Yes",LN($I88^2),LN($I88)),VLOOKUP($A87,'CKY Table'!$A$5:$CX$24,HLOOKUP(C$73,INDIRECT(VLOOKUP($B$2,$Z$2:$AA$15,2,FALSE)),21,FALSE),FALSE))))) ->  | D87: =IF($A87="","",IF(D$73="","",IF(D$73="Trend",IF($B$21="Yes",$I88^2,$I88),IF(D$73="Log Trend",IF($B$21="Yes",LN($I88^2),LN($I88)),VLOOKUP($A87,'CKY Table'!$A$5:$CX$24,HLOOKUP(D$73,INDIRECT(VLOOKUP($B$2,$Z$2:$AA$15,2,FALSE)),21,FALSE),FALSE))))) ->  | E87: =IF($A87="","",IF(E$73="","",IF(E$73="Trend",IF($B$21="Yes",$I88^2,$I88),IF(E$73="Log Trend",IF($B$21="Yes",LN($I88^2),LN($I88)),VLOOKUP($A87,'CKY Table'!$A$5:$CX$24,HLOOKUP(E$73,INDIRECT(VLOOKUP($B$2,$Z$2:$AA$15,2,FALSE)),21,FALSE),FALSE))))) ->  | F87: =IF($A87="","",IF(F$73="","",IF(F$73="Trend",IF($B$21="Yes",$I88^2,$I88),IF(F$73="Log Trend",IF($B$21="Yes",LN($I88^2),LN($I88)),VLOOKUP($A87,'CKY Table'!$A$5:$CX$24,HLOOKUP(F$73,INDIRECT(VLOOKUP($B$2,$Z$2:$AA$15,2,FALSE)),21,FALSE),FALSE))))) ->  | G87: =IF($A87="","",IF(G$73="","",IF(G$73="Trend",IF($B$21="Yes",$I88^2,$I88),IF(G$73="Log Trend",IF($B$21="Yes",LN($I88^2),LN($I88)),VLOOKUP($A87,'CKY Table'!$A$5:$CX$24,HLOOKUP(G$73,INDIRECT(VLOOKUP($B$2,$Z$2:$AA$15,2,FALSE)),21,FALSE),FALSE))))) ->  | H87: =IF($A87="","",IF(H$73="","",IF(H$73="Trend",IF($B$21="Yes",$I88^2,$I88),IF(H$73="Log Trend",IF($B$21="Yes",LN($I88^2),LN($I88)),VLOOKUP($A87,'CKY Table'!$A$5:$CX$24,HLOOKUP(H$73,INDIRECT(VLOOKUP($B$2,$Z$2:$AA$15,2,FALSE)),21,FALSE),FALSE))))) ->  | I87: 13
B88: =IF($A88="","",IF(B$73="","",VLOOKUP($A88,'CKY Table'!$A$5:$CX$24,HLOOKUP(B$73,INDIRECT(VLOOKUP($B$2,$Z$2:$AA$15,2,FALSE)),21,FALSE),FALSE))) ->  | C88: =IF($A88="","",IF(C$73="","",IF(C$73="Trend",IF($B$21="Yes",$I89^2,$I89),IF(C$73="Log Trend",IF($B$21="Yes",LN($I89^2),LN($I89)),VLOOKUP($A88,'CKY Table'!$A$5:$CX$24,HLOOKUP(C$73,INDIRECT(VLOOKUP($B$2,$Z$2:$AA$15,2,FALSE)),21,FALSE),FALSE))))) ->  | D88: =IF($A88="","",IF(D$73="","",IF(D$73="Trend",IF($B$21="Yes",$I89^2,$I89),IF(D$73="Log Trend",IF($B$21="Yes",LN($I89^2),LN($I89)),VLOOKUP($A88,'CKY Table'!$A$5:$CX$24,HLOOKUP(D$73,INDIRECT(VLOOKUP($B$2,$Z$2:$AA$15,2,FALSE)),21,FALSE),FALSE))))) ->  | E88: =IF($A88="","",IF(E$73="","",IF(E$73="Trend",IF($B$21="Yes",$I89^2,$I89),IF(E$73="Log Trend",IF($B$21="Yes",LN($I89^2),LN($I89)),VLOOKUP($A88,'CKY Table'!$A$5:$CX$24,HLOOKUP(E$73,INDIRECT(VLOOKUP($B$2,$Z$2:$AA$15,2,FALSE)),21,FALSE),FALSE))))) ->  | F88: =IF($A88="","",IF(F$73="","",IF(F$73="Trend",IF($B$21="Yes",$I89^2,$I89),IF(F$73="Log Trend",IF($B$21="Yes",LN($I89^2),LN($I89)),VLOOKUP($A88,'CKY Table'!$A$5:$CX$24,HLOOKUP(F$73,INDIRECT(VLOOKUP($B$2,$Z$2:$AA$15,2,FALSE)),21,FALSE),FALSE))))) ->  | G88: =IF($A88="","",IF(G$73="","",IF(G$73="Trend",IF($B$21="Yes",$I89^2,$I89),IF(G$73="Log Trend",IF($B$21="Yes",LN($I89^2),LN($I89)),VLOOKUP($A88,'CKY Table'!$A$5:$CX$24,HLOOKUP(G$73,INDIRECT(VLOOKUP($B$2,$Z$2:$AA$15,2,FALSE)),21,FALSE),FALSE))))) ->  | H88: =IF($A88="","",IF(H$73="","",IF(H$73="Trend",IF($B$21="Yes",$I89^2,$I89),IF(H$73="Log Trend",IF($B$21="Yes",LN($I89^2),LN($I89)),VLOOKUP($A88,'CKY Table'!$A$5:$CX$24,HLOOKUP(H$73,INDIRECT(VLOOKUP($B$2,$Z$2:$AA$15,2,FALSE)),21,FALSE),FALSE))))) ->  | I88: 14
B89: =IF($A89="","",IF(B$73="","",VLOOKUP($A89,'CKY Table'!$A$5:$CX$24,HLOOKUP(B$73,INDIRECT(VLOOKUP($B$2,$Z$2:$AA$15,2,FALSE)),21,FALSE),FALSE))) ->  | C89: =IF($A89="","",IF(C$73="","",IF(C$73="Trend",IF($B$21="Yes",$I90^2,$I90),IF(C$73="Log Trend",IF($B$21="Yes",LN($I90^2),LN($I90)),VLOOKUP($A89,'CKY Table'!$A$5:$CX$24,HLOOKUP(C$73,INDIRECT(VLOOKUP($B$2,$Z$2:$AA$15,2,FALSE)),21,FALSE),FALSE))))) ->  | D89: =IF($A89="","",IF(D$73="","",IF(D$73="Trend",IF($B$21="Yes",$I90^2,$I90),IF(D$73="Log Trend",IF($B$21="Yes",LN($I90^2),LN($I90)),VLOOKUP($A89,'CKY Table'!$A$5:$CX$24,HLOOKUP(D$73,INDIRECT(VLOOKUP($B$2,$Z$2:$AA$15,2,FALSE)),21,FALSE),FALSE))))) ->  | E89: =IF($A89="","",IF(E$73="","",IF(E$73="Trend",IF($B$21="Yes",$I90^2,$I90),IF(E$73="Log Trend",IF($B$21="Yes",LN($I90^2),LN($I90)),VLOOKUP($A89,'CKY Table'!$A$5:$CX$24,HLOOKUP(E$73,INDIRECT(VLOOKUP($B$2,$Z$2:$AA$15,2,FALSE)),21,FALSE),FALSE))))) ->  | F89: =IF($A89="","",IF(F$73="","",IF(F$73="Trend",IF($B$21="Yes",$I90^2,$I90),IF(F$73="Log Trend",IF($B$21="Yes",LN($I90^2),LN($I90)),VLOOKUP($A89,'CKY Table'!$A$5:$CX$24,HLOOKUP(F$73,INDIRECT(VLOOKUP($B$2,$Z$2:$AA$15,2,FALSE)),21,FALSE),FALSE))))) ->  | G89: =IF($A89="","",IF(G$73="","",IF(G$73="Trend",IF($B$21="Yes",$I90^2,$I90),IF(G$73="Log Trend",IF($B$21="Yes",LN($I90^2),LN($I90)),VLOOKUP($A89,'CKY Table'!$A$5:$CX$24,HLOOKUP(G$73,INDIRECT(VLOOKUP($B$2,$Z$2:$AA$15,2,FALSE)),21,FALSE),FALSE))))) ->  | H89: =IF($A89="","",IF(H$73="","",IF(H$73="Trend",IF($B$21="Yes",$I90^2,$I90),IF(H$73="Log Trend",IF($B$21="Yes",LN($I90^2),LN($I90)),VLOOKUP($A89,'CKY Table'!$A$5:$CX$24,HLOOKUP(H$73,INDIRECT(VLOOKUP($B$2,$Z$2:$AA$15,2,FALSE)),21,FALSE),FALSE))))) ->  | I89: 15
B90: =IF($A90="","",IF(B$73="","",VLOOKUP($A90,'CKY Table'!$A$5:$CX$24,HLOOKUP(B$73,INDIRECT(VLOOKUP($B$2,$Z$2:$AA$15,2,FALSE)),21,FALSE),FALSE))) ->  | C90: =IF($A90="","",IF(C$73="","",IF(C$73="Trend",IF($B$21="Yes",$I91^2,$I91),IF(C$73="Log Trend",IF($B$21="Yes",LN($I91^2),LN($I91)),VLOOKUP($A90,'CKY Table'!$A$5:$CX$24,HLOOKUP(C$73,INDIRECT(VLOOKUP($B$2,$Z$2:$AA$15,2,FALSE)),21,FALSE),FALSE))))) ->  | D90: =IF($A90="","",IF(D$73="","",IF(D$73="Trend",IF($B$21="Yes",$I91^2,$I91),IF(D$73="Log Trend",IF($B$21="Yes",LN($I91^2),LN($I91)),VLOOKUP($A90,'CKY Table'!$A$5:$CX$24,HLOOKUP(D$73,INDIRECT(VLOOKUP($B$2,$Z$2:$AA$15,2,FALSE)),21,FALSE),FALSE))))) ->  | E90: =IF($A90="","",IF(E$73="","",IF(E$73="Trend",IF($B$21="Yes",$I91^2,$I91),IF(E$73="Log Trend",IF($B$21="Yes",LN($I91^2),LN($I91)),VLOOKUP($A90,'CKY Table'!$A$5:$CX$24,HLOOKUP(E$73,INDIRECT(VLOOKUP($B$2,$Z$2:$AA$15,2,FALSE)),21,FALSE),FALSE))))) ->  | F90: =IF($A90="","",IF(F$73="","",IF(F$73="Trend",IF($B$21="Yes",$I91^2,$I91),IF(F$73="Log Trend",IF($B$21="Yes",LN($I91^2),LN($I91)),VLOOKUP($A90,'CKY Table'!$A$5:$CX$24,HLOOKUP(F$73,INDIRECT(VLOOKUP($B$2,$Z$2:$AA$15,2,FALSE)),21,FALSE),FALSE))))) ->  | G90: =IF($A90="","",IF(G$73="","",IF(G$73="Trend",IF($B$21="Yes",$I91^2,$I91),IF(G$73="Log Trend",IF($B$21="Yes",LN($I91^2),LN($I91)),VLOOKUP($A90,'CKY Table'!$A$5:$CX$24,HLOOKUP(G$73,INDIRECT(VLOOKUP($B$2,$Z$2:$AA$15,2,FALSE)),21,FALSE),FALSE))))) ->  | H90: =IF($A90="","",IF(H$73="","",IF(H$73="Trend",IF($B$21="Yes",$I91^2,$I91),IF(H$73="Log Trend",IF($B$21="Yes",LN($I91^2),LN($I91)),VLOOKUP($A90,'CKY Table'!$A$5:$CX$24,HLOOKUP(H$73,INDIRECT(VLOOKUP($B$2,$Z$2:$AA$15,2,FALSE)),21,FALSE),FALSE))))) ->  | I90: 16
B91: =IF($A91="","",IF(B$73="","",VLOOKUP($A91,'CKY Table'!$A$5:$CX$24,HLOOKUP(B$73,INDIRECT(VLOOKUP($B$2,$Z$2:$AA$15,2,FALSE)),21,FALSE),FALSE))) ->  | C91: =IF($A91="","",IF(C$73="","",IF(C$73="Trend",IF($B$21="Yes",$I92^2,$I92),IF(C$73="Log Trend",IF($B$21="Yes",LN($I92^2),LN($I92)),VLOOKUP($A91,'CKY Table'!$A$5:$CX$24,HLOOKUP(C$73,INDIRECT(VLOOKUP($B$2,$Z$2:$AA$15,2,FALSE)),21,FALSE),FALSE))))) ->  | D91: =IF($A91="","",IF(D$73="","",IF(D$73="Trend",IF($B$21="Yes",$I92^2,$I92),IF(D$73="Log Trend",IF($B$21="Yes",LN($I92^2),LN($I92)),VLOOKUP($A91,'CKY Table'!$A$5:$CX$24,HLOOKUP(D$73,INDIRECT(VLOOKUP($B$2,$Z$2:$AA$15,2,FALSE)),21,FALSE),FALSE))))) ->  | E91: =IF($A91="","",IF(E$73="","",IF(E$73="Trend",IF($B$21="Yes",$I92^2,$I92),IF(E$73="Log Trend",IF($B$21="Yes",LN($I92^2),LN($I92)),VLOOKUP($A91,'CKY Table'!$A$5:$CX$24,HLOOKUP(E$73,INDIRECT(VLOOKUP($B$2,$Z$2:$AA$15,2,FALSE)),21,FALSE),FALSE))))) ->  | F91: =IF($A91="","",IF(F$73="","",IF(F$73="Trend",IF($B$21="Yes",$I92^2,$I92),IF(F$73="Log Trend",IF($B$21="Yes",LN($I92^2),LN($I92)),VLOOKUP($A91,'CKY Table'!$A$5:$CX$24,HLOOKUP(F$73,INDIRECT(VLOOKUP($B$2,$Z$2:$AA$15,2,FALSE)),21,FALSE),FALSE))))) ->  | G91: =IF($A91="","",IF(G$73="","",IF(G$73="Trend",IF($B$21="Yes",$I92^2,$I92),IF(G$73="Log Trend",IF($B$21="Yes",LN($I92^2),LN($I92)),VLOOKUP($A91,'CKY Table'!$A$5:$CX$24,HLOOKUP(G$73,INDIRECT(VLOOKUP($B$2,$Z$2:$AA$15,2,FALSE)),21,FALSE),FALSE))))) ->  | H91: =IF($A91="","",IF(H$73="","",IF(H$73="Trend",IF($B$21="Yes",$I92^2,$I92),IF(H$73="Log Trend",IF($B$21="Yes",LN($I92^2),LN($I92)),VLOOKUP($A91,'CKY Table'!$A$5:$CX$24,HLOOKUP(H$73,INDIRECT(VLOOKUP($B$2,$Z$2:$AA$15,2,FALSE)),21,FALSE),FALSE))))) ->  | I91: 17
B92: =IF($A92="","",IF(B$73="","",VLOOKUP($A92,'CKY Table'!$A$5:$CX$24,HLOOKUP(B$73,INDIRECT(VLOOKUP($B$2,$Z$2:$AA$15,2,FALSE)),21,FALSE),FALSE))) ->  | C92: =IF($A92="","",IF(C$73="","",IF(C$73="Trend",IF($B$21="Yes",$I93^2,$I93),IF(C$73="Log Trend",IF($B$21="Yes",LN($I93^2),LN($I93)),VLOOKUP($A92,'CKY Table'!$A$5:$CX$24,HLOOKUP(C$73,INDIRECT(VLOOKUP($B$2,$Z$2:$AA$15,2,FALSE)),21,FALSE),FALSE))))) ->  | D92: =IF($A92="","",IF(D$73="","",IF(D$73="Trend",IF($B$21="Yes",$I93^2,$I93),IF(D$73="Log Trend",IF($B$21="Yes",LN($I93^2),LN($I93)),VLOOKUP($A92,'CKY Table'!$A$5:$CX$24,HLOOKUP(D$73,INDIRECT(VLOOKUP($B$2,$Z$2:$AA$15,2,FALSE)),21,FALSE),FALSE))))) ->  | E92: =IF($A92="","",IF(E$73="","",IF(E$73="Trend",IF($B$21="Yes",$I93^2,$I93),IF(E$73="Log Trend",IF($B$21="Yes",LN($I93^2),LN($I93)),VLOOKUP($A92,'CKY Table'!$A$5:$CX$24,HLOOKUP(E$73,INDIRECT(VLOOKUP($B$2,$Z$2:$AA$15,2,FALSE)),21,FALSE),FALSE))))) ->  | F92: =IF($A92="","",IF(F$73="","",IF(F$73="Trend",IF($B$21="Yes",$I93^2,$I93),IF(F$73="Log Trend",IF($B$21="Yes",LN($I93^2),LN($I93)),VLOOKUP($A92,'CKY Table'!$A$5:$CX$24,HLOOKUP(F$73,INDIRECT(VLOOKUP($B$2,$Z$2:$AA$15,2,FALSE)),21,FALSE),FALSE))))) ->  | G92: =IF($A92="","",IF(G$73="","",IF(G$73="Trend",IF($B$21="Yes",$I93^2,$I93),IF(G$73="Log Trend",IF($B$21="Yes",LN($I93^2),LN($I93)),VLOOKUP($A92,'CKY Table'!$A$5:$CX$24,HLOOKUP(G$73,INDIRECT(VLOOKUP($B$2,$Z$2:$AA$15,2,FALSE)),21,FALSE),FALSE))))) ->  | H92: =IF($A92="","",IF(H$73="","",IF(H$73="Trend",IF($B$21="Yes",$I93^2,$I93),IF(H$73="Log Trend",IF($B$21="Yes",LN($I93^2),LN($I93)),VLOOKUP($A92,'CKY Table'!$A$5:$CX$24,HLOOKUP(H$73,INDIRECT(VLOOKUP($B$2,$Z$2:$AA$15,2,FALSE)),21,FALSE),FALSE))))) ->  | I92: 18
I93: 19
A95: Different Scenarios (19 Years): | B95: =IF($B$4="Log",IF(B65="","",B65),IF(B59="","",B59)) -> Degree Days | C95: Customers | D95: Rate | E95: Lag Rate | F95: Trend | G95: Nonfarm | H95: Degree Days | I95: Degree Days | J95: Degree Days | K95: Degree Days | L95: Customers | M95: Customers | N95: Customers | O95: Rate | P95: Rate | Q95: Lag Rate | R95: Nonfarm | S95: Nonfarm | T95: Nonfarm | U95: Nonfarm | V95: Nonfarm | W95: Degree Days | X95: Degree Days | Y95: Degree Days | Z95: Degree Days | AA95: Degree Days | AB95: Degree Days | AC95: Customers | AD95: Customers | AE95: Customers | AF95: Rate | AG95: Degree Days | AH95: Degree Days | AI95: Degree Days | AJ95: Degree Days | AK95: Customers | AL95: Customers | AM95: Customers | AN95: Rate | AO95: Rate | AP95: Lag Rate | AQ95: Degree Days | AR95: Degree Days | AS95: Degree Days | AT95: Degree Days | AU95: Customers | AV95: Degree Days | AW95: Degree Days | AX95: Degree Days | AY95: Degree Days | AZ95: Degree Days | BA95: Degree Days | BB95: Customers | BC95: Customers | BD95: Customers | BE95: Rate | BF95: Degree Days | BG95: Degree Days | BH95: Degree Days | BI95: Degree Days | BJ95: Degree Days | BK95: Customers | BL95: Degree Days
G96: =IF($B$4="Log",IF(G66="","",G66),IF(G60="","",G60)) ->  | H96: Customers | I96: Rate | J96: Lag Rate | K96: Trend | L96: Rate | M96: Lag Rate | N96: Trend | O96: Lag Rate | P96: Trend | Q96: Trend | R96: Degree Days | S96: Customers | T96: Rate | U96: Lag Rate | V96: Trend | W96: Customers | X96: Customers | Y96: Customers | Z96: Rate | AA96: Rate | AB96: Lag Rate | AC96: Rate | AD96: Rate | AE96: Lag Rate | AF96: Lag Rate | AG96: Customers | AH96: Rate | AI96: Lag Rate | AJ96: Trend | AK96: Rate | AL96: Lag Rate | AM96: Trend | AN96: Lag Rate | AO96: Trend | AP96: Trend | AQ96: Rate | AR96: Customers | AS96: Customers | AT96: Customers | AU96: Rate | AV96: Customers | AW96: Customers | AX96: Customers | AY96: Rate | AZ96: Rate | BA96: Lag Rate | BB96: Rate | BC96: Rate | BD96: Lag Rate | BE96: Lag Rate | BF96: Customers | BG96: Rate | BH96: Customers | BI96: Customers | BJ96: Customers | BK96: Rate | BL96: Customers
G97: =IF($B$4="Log",IF(G67="","",G67),IF(G61="","",G61)) ->  | W97: Rate | X97: Lag Rate | Y97: Trend | Z97: Lag Rate | AA97: Trend | AB97: Trend | AC97: Lag Rate | AD97: Trend | AE97: Trend | AF97: Trend | AG97: Nonfarm | AH97: Nonfarm | AI97: Nonfarm | AJ97: Nonfarm | AK97: Nonfarm | AL97: Nonfarm | AM97: Nonfarm | AN97: Nonfarm | AO97: Nonfarm | AP97: Nonfarm | AQ97: Lag Rate | AR97: Lag Rate | AS97: Rate | AT97: Rate | AU97: Lag Rate | AV97: Rate | AW97: Lag Rate | AX97: Trend | AY97: Lag Rate | AZ97: Trend | BA97: Trend | BB97: Lag Rate | BC97: Trend | BD97: Trend | BE97: Trend | BF97: Rate | BG97: Lag Rate | BH97: Lag Rate | BI97: Rate | BJ97: Rate | BK97: Lag Rate | BL97: Rate
G98: =IF($B$4="Log",IF(G68="","",G68),IF(G62="","",G62)) ->  | AQ98: Trend | AR98: Trend | AS98: Trend | AT98: Lag Rate | AU98: Trend | AV98: Nonfarm | AW98: Nonfarm | AX98: Nonfarm | AY98: Nonfarm | AZ98: Nonfarm | BA98: Nonfarm | BB98: Nonfarm | BC98: Nonfarm | BD98: Nonfarm | BE98: Nonfarm | BF98: Lag Rate | BG98: Trend | BH98: Trend | BI98: Trend | BJ98: Lag Rate | BK98: Trend | BL98: Lag Rate
G99: =IF($B$4="Log",IF(G69="","",G69),IF(G63="","",G63)) ->  | H99: =IF($B$4="Log",IF(H69="","",H69),IF(H63="","",H63)) ->  | I99: =IF($B$4="Log",IF(I69="","",I69),IF(I63="","",I63)) ->  | J99: =IF($B$4="Log",IF(J69="","",J69),IF(J63="","",J63)) ->  | L99: =IF($B$4="Log",IF(L69="","",L69),IF(L63="","",L63)) ->  | BF99: Trend | BG99: Nonfarm | BH99: Nonfarm | BI99: Nonfarm | BJ99: Nonfarm | BK99: Nonfarm | BL99: Trend
B100: =IF($B$4="Log","",IF(B64="","",B64)) ->  | C100: =IF($B$4="Log","",IF(C64="","",C64)) ->  | BL100: Nonfarm
A101: Statistics
A102: Multiple R | B102: 0.2275482041 | C102: 0.5271304897 | D102: 0.03985233435 | E102: 0.1927727957 | F102: 0.01419522364 | G102: 0.1989512142 | H102: 0.5493462078 | I102: 0.2472706522 | J102: 0.2743299556 | K102: 0.2315642648 | L102: 0.5855648599 | M102: 0.6020222516 | N102: 0.7599371955 | O102: 0.2603300715 | P102: 0.05939476546 | Q102: 0.1958007034 | R102: 0.2646167825 | S102: 0.5396317533 | T102: 0.2017771995 | U102: 0.2976365017 | V102: 0.1989526555 | W102: 0.5894785538 | X102: 0.6093222022 | Y102: 0.7714196449 | Z102: 0.3455831061 | AA102: 0.2474781124 | AB102: 0.2849127736 | AC102: 0.6130910999 | AD102: 0.7634336468 | AE102: 0.7855135572 | AF102: 0.268919226 | AG102: 0.5542094662 | AH102: 0.2770142691 | AI102: 0.3227531922 | AJ102: 0.2680570497 | AK102: 0.5942396159 | AL102: 0.6199096454 | AM102: 0.760706439 | AN102: 0.3514181587 | AO102: 0.2029793028 | AP102: 0.3036627071 | AQ102: 0.347305106 | AR102: 0.8026147798 | AS102: 0.7787708625 | AT102: 0.6162920196 | AU102: 0.7863321618 | AV102: 0.5955759582 | AW102: 0.6217927867 | AX102: 0.7714720418 | AY102: 0.3845895392 | AZ102: 0.27701728 | BA102: 0.3336312757 | BB102: 0.6273721923 | BC102: 0.7640775239 | BD102: 0.7855152757 | BE102: 0.3541472732 | BF102: 0.8026374645 | BG102: 0.3854241832 | BH102: 0.8034134558 | BI102: 0.7787709536 | BJ102: 0.6278149315 | BK102: 0.7863322282 | BL102: 0.8034403743
A103: R-Squared | B103: 0.05177818518 | C103: 0.2778665532 | D103: 0.001588208553 | E103: 0.03716135075 | F103: 0.0002015043741 | G103: 0.03958158562 | H103: 0.301781256 | I103: 0.06114277542 | J103: 0.07525692454 | K103: 0.05362200871 | L103: 0.3428862052 | M103: 0.3624307914 | N103: 0.5775045411 | O103: 0.06777174611 | P103: 0.003527738164 | Q103: 0.03833791546 | R103: 0.0700220416 | S103: 0.2912024292 | T103: 0.04071403824 | U103: 0.08858748716 | V103: 0.03958215913 | W103: 0.3474849653 | X103: 0.3712735461 | Y103: 0.5950882685 | Z103: 0.1194276832 | AA103: 0.06124541611 | AB103: 0.08117528856 | AC103: 0.3758806968 | AD103: 0.582830933 | AE103: 0.6170315485 | AF103: 0.07231755012 | AG103: 0.3071481324 | AH103: 0.0767369053 | AI103: 0.104169623 | AJ103: 0.07185458188 | AK103: 0.3531207211 | AL103: 0.3842879685 | AM103: 0.5786742864 | AN103: 0.1234947222 | AO103: 0.04120059737 | AP103: 0.09221103971 | AQ103: 0.1206208366 | AR103: 0.6441904847 | AS103: 0.6064840563 | AT103: 0.3798158534 | AU103: 0.6183182687 | AV103: 0.354710722 | AW103: 0.3866262696 | AX103: 0.5951691113 | AY103: 0.1479091137 | AZ103: 0.07673857339 | BA103: 0.1113098281 | BB103: 0.3935958677 | BC103: 0.5838144625 | BD103: 0.6170342484 | BE103: 0.1254202911 | BF103: 0.6442268994 | BG103: 0.148551801 | BH103: 0.6454731809 | BI103: 0.6064841982 | BJ103: 0.3941515882 | BK103: 0.6183183732 | BL103: 0.6455164351
A104: Adjusted R-Squared | B104: -0.003999568631 | C104: 0.2353881151 | D104: -0.05714189683 | E104: -0.01947621686 | F104: -0.05861017184 | G104: -0.01691361522 | H104: 0.214503913 | I104: -0.05621437765 | J104: -0.04033595989 | K104: -0.0646752402 | L104: 0.2607469809 | M104: 0.2827346404 | N104: 0.5246926087 | O104: -0.04875678562 | P104: -0.1210312946 | Q104: -0.08186984511 | R104: -0.0462252032 | S104: 0.2026027328 | T104: -0.07919670698 | U104: -0.02533907695 | V104: -0.08047007098 | W104: 0.2169819584 | X104: 0.2455282554 | Y104: 0.5141059222 | Z104: -0.05668678011 | AA104: -0.1265055007 | AB104: -0.1025896537 | AC104: 0.2510568361 | AD104: 0.4993971196 | AE104: 0.5404378582 | AF104: -0.1132189399 | AG104: 0.1685777589 | AH104: -0.1079157136 | AI104: -0.07499645234 | AJ104: -0.1137745017 | AK104: 0.2237448653 | AL104: 0.2611455622 | AM104: 0.4944091437 | AN104: -0.05180633332 | AO104: -0.1505592832 | AP104: -0.08934675234 | AQ104: -0.1306303529 | AR104: 0.5425306232 | AS104: 0.4940509295 | AT104: 0.2026203829 | AU104: 0.5092663455 | AV104: 0.1703423568 | AW104: 0.2113766323 | AX104: 0.4795031431 | AY104: -0.09554542525 | AZ104: -0.1870504056 | BA104: -0.1426016496 | BB104: 0.2203375441 | BC104: 0.4649043089 | BD104: 0.5076154622 | BE104: -0.1244596257 | BF104: 0.5073910915 | BG104: -0.1789282755 | BH104: 0.509116712 | BI104: 0.4551319667 | BJ104: 0.1611329683 | BK104: 0.4715177475 | BL104: 0.4682746526
A105: Significance F | B105: 0.3488126136 | C105: 0.0203880463 | D105: 0.8713194778 | E105: 0.4291245836 | F105: 0.954005596 | G105: 0.4141883526 | H105: 0.05648485625 | I105: 0.6036655892 | J105: 0.5347720538 | K105: 0.6434533336 | L105: 0.0347635945 | M105: 0.0273035223 | N105: 0.001015257867 | O105: 0.5703981271 | P105: 0.9721241052 | Q105: 0.7314420899 | R105: 0.5594757189 | S105: 0.0637056225 | T105: 0.717108239 | U105: 0.4761238031 | V105: 0.7239052926 | W105: 0.08565056485 | X105: 0.06644279703 | Y105: 0.002949651152 | Z105: 0.5788743379 | AA105: 0.8064291272 | AB105: 0.7265717151 | AC105: 0.06316842198 | AD105: 0.003657647447 | AE105: 0.001971379498 | AF105: 0.7620653206 | AG105: 0.1284248885 | AH105: 0.7443361511 | AI105: 0.6362483512 | AJ105: 0.7639236353 | AK105: 0.08073391662 | AL105: 0.05753618009 | AM105: 0.003928475632 | AN105: 0.5640226232 | AO105: 0.8845481426 | AP105: 0.6827705419 | AQ105: 0.7500246912 | AR105: 0.003977607822 | AS105: 0.007665032165 | AT105: 0.1291138187 | AU105: 0.006287708585 | AV105: 0.1622674858 | AW105: 0.1210672294 | AX105: 0.009206304696 | AY105: 0.663809536 | AZ105: 0.8790118771 | BA105: 0.7788786407 | BB105: 0.1132308563 | BC105: 0.0110013282 | BD105: 0.00642642027 | BE105: 0.7349841324 | BF105: 0.01129268114 | BG105: 0.8034906072 | BH105: 0.01106373286 | BI105: 0.02023322433 | BJ105: 0.2058515196 | BK105: 0.01697706143 | BL105: 0.02703143685
A106: Coefficients
A107: Intercept | B107: 32802.30764 | C107: 33542.77932 | D107: 29826.1661 | E107: 30724.04902 | F107: 29942.7193 | G107: 14120.65792 | H107: 35322.3215 | I107: 32676.09804 | J107: 33036.12454 | K107: 33095.4542 | L107: 35756.85339 | M107: 35014.8433 | N107: 34449.74383 | O107: 30280.34867 | P107: 29510.36651 | Q107: 30884.10492 | R107: 20924.11898 | S107: 24080.17258 | T107: 14063.07178 | U107: 12583.19141 | V107: 14118.83135 | W107: 36366.78031 | X107: 36017.78996 | Y107: 32820.17819 | Z107: 32913.57239 | AA107: 32586.08423 | AB107: 33598.65957 | AC107: 35834.5085 | AD107: 35079.92657 | AE107: 35413.62289 | AF107: 29805.65306 | AG107: 28782.68124 | AH107: 21641.27887 | AI107: 17813.60688 | AJ107: 21220.03542 | AK107: 27403.89804 | AL107: 22910.43946 | AM107: 37377.24437 | AN107: 11341.19744 | AO107: 14101.7211 | AP107: 12320.66294 | AQ107: 32608.54196 | AR107: 33487.6024 | AS107: 33454.21706 | AT107: 36398.18421 | AU107: 35156.89808 | AV107: 28790.02344 | AW107: 24825.90548 | AX107: 33625.82584 | AY107: 17805.33148 | AZ107: 21637.87694 | BA107: 18098.67904 | BB107: 24700.54292 | BC107: 37755.74624 | BD107: 35554.87202 | BE107: 11386.90759 | BF107: 33456.71159 | BG107: 17705.41851 | BH107: 30234.90678 | BI107: 33420.53158 | BJ107: 25548.61568 | BK107: 35128.94278 | BL107: 30192.20271
A108: Coefficient 1 | B108: -1.956152684 | C108: -164.0700902 | D108: 35.7888342 | E108: -160.0088954 | F108: 5.096491228 | G108: 1199.371327 | H108: -1.342881762 | I108: -2.159936167 | J108: -1.707528092 | K108: -2.049565344 | L108: -209.3706985 | M108: -180.3694501 | N108: -334.5057272 | O108: 188.2456835 | P108: 62.49583778 | Q108: -167.237998 | R108: 856.4490047 | S108: 705.4010613 | T108: 1193.028952 | U108: 1379.491606 | V108: 1199.715371 | W108: -0.6307218378 | X108: -0.8363339991 | Y108: 1.323714769 | Z108: -2.016157414 | AA108: -2.147317246 | AB108: -1.851836463 | AC108: -200.6909038 | AD108: -340.0671464 | AE108: -334.9119674 | AF108: 232.9021726 | AG108: -1.147233396 | AH108: -1.777551601 | AI108: -1.162936013 | AJ108: -1.670822048 | AK108: -203.1966514 | AL108: -173.7109335 | AM108: -339.3116322 | AN108: 201.2890822 | AO108: 43.76611579 | AP108: -198.9451863 | AQ108: -1.970839335 | AR108: 1.664522555 | AS108: 1.578554033 | AT108: -0.5836739304 | AU108: -331.7541066 | AV108: -0.3879556307 | AW108: -0.4550781956 | AX108: 1.306214814 | AY108: -1.474127549 | AZ108: -1.776219622 | BA108: -1.309668205 | BB108: -191.3857725 | BC108: -344.3834748 | BD108: -335.1454625 | BE108: 230.2563741 | BF108: 1.65326335 | BG108: -1.445276787 | BH108: 1.746835623 | BI108: 1.579369221 | BJ108: -0.2301207206 | BK108: -331.7065425 | BL108: 1.734791726
A109: Coefficient 2 | H109: -157.2026618 | I109: 89.47304541 | J109: -129.4306193 | K109: -15.90256423 | L109: -263.6658353 | M109: -245.2572317 | N109: 277.9827423 | O109: -255.8409979 | P109: 19.07911262 | Q109: -12.70584696 | R109: -1.577578694 | S109: -158.1986792 | T109: 30.23541556 | U109: -185.4140406 | V109: -0.2726651899 | W109: -201.5235528 | X109: -174.9261609 | Y109: -364.685505 | Z109: 229.2934789 | AA109: 95.36374181 | AB109: -143.4283955 | AC109: -142.6541308 | AD109: -80.26040519 | AE109: -170.261594 | AF109: -261.8885973 | AG109: -154.3063163 | AH109: 76.25918263 | AI109: -159.4686332 | AJ109: -15.85383932 | AK109: -257.7165138 | AL109: -258.8398436 | AM109: 282.8746993 | AN109: -288.9611819 | AO109: 9.616356628 | AP109: -22.44031533 | AQ109: 251.4981821 | AR109: -372.9138077 | AS109: -378.8597305 | AT109: -193.5134364 | AU109: 46.21890337 | AV109: -199.1171359 | AW109: -171.5025263 | AX109: -365.5737359 | AY109: 228.1755676 | AZ109: 77.02173477 | BA109: -175.5164035 | BB109: -119.8211898 | BC109: -78.90573034 | BD109: -170.027836 | BE109: -292.2943204 | BF109: -372.1165279 | BG109: 244.5057737 | BH109: -369.5735579 | BI109: -378.8267802 | BJ109: -189.0790049 | BK109: 46.24176296 | BL109: -368.6952496
A110: Coefficient 3 | W110: -236.766073 | X110: -227.707558 | Y110: 316.165358 | Z110: -240.6324221 | AA110: 4.432289954 | AB110: -29.14453731 | AC110: -182.2394395 | AD110: 264.56248 | AE110: 260.1899515 | AF110: 29.3274764 | AG110: 468.1777759 | AH110: 796.9837647 | AI110: 1101.496586 | AJ110: 856.1845267 | AK110: 618.9566202 | AL110: 908.4142473 | AM110: -217.0441255 | AN110: 1437.858677 | AO110: 1178.056932 | AP110: 1420.951181 | AQ110: -244.1062909 | AR110: -192.0059287 | AS110: -120.7072138 | AT110: -118.9366366 | AU110: -189.0162796 | AV110: -241.8905766 | AW110: -247.7534589 | AX110: 316.9708369 | AY110: -269.9039571 | AZ110: 0.5664610175 | BA110: -32.04299226 | BB110: -204.6723906 | BC110: 269.2781572 | BD110: 260.4526235 | BE110: 19.18495689 | BF110: 7.90683595 | BG110: -272.216527 | BH110: -198.3065908 | BI110: -120.7447299 | BJ110: -111.7537044 | BK110: -189.0716096 | BL110: 8.618421603
A111: Coefficient 4 | AQ111: 15.18854058 | AR111: 305.9308431 | AS111: 303.3328759 | AT111: -180.468855 | AU111: 265.9582536 | AV111: 544.0441158 | AW111: 805.6185574 | AX111: -58.13328415 | AY111: 1093.270791 | AZ111: 796.3985931 | BA111: 1125.621853 | BB111: 825.7386808 | BC111: -199.1731621 | BD111: -10.5702865 | BE111: 1410.813077 | BF111: -195.0672774 | BG111: 11.16395527 | BH111: 302.3210869 | BI111: 303.2950121 | BJ111: -202.7133667 | BK111: 265.909356 | BL111: -201.6609473
A112: Coefficient 5 | BF112: 306.6082458 | BG112: 1084.276706 | BH112: 236.2857802 | BI112: 2.444869562 | BJ112: 779.3241779 | BK112: 2.082514919 | BL112: 303.0494285
A113: Coefficient 6 | BL113: 236.9419801
A114: p-value for Intercept | B114: 3.229599835e-09 | C114: 2.607658455e-14 | D114: 2.849173972e-15 | E114: 3.191347446e-16 | F114: 3.338863635e-16 | G114: 0.4668029816 | H114: 1.07596833e-09 | I114: 1.015858254e-08 | J114: 8.033456893e-09 | K114: 5.154168162e-08 | L114: 3.473123887e-11 | M114: 7.732536167e-13 | N114: 2.337946058e-15 | O114: 2.537613867e-14 | P114: 2.526669168e-10 | Q114: 1.018201966e-12 | R114: 0.3430657535 | S114: 0.1832242932 | T114: 0.4822203889 | U114: 0.519814163 | V114: 0.4808651849 | W114: 3.591448775e-09 | X114: 1.759427298e-09 | Y114: 5.011054499e-10 | Z114: 1.850892476e-08 | AA114: 4.273400103e-07 | AB114: 1.246026103e-07 | AC114: 9.93331707e-11 | AD114: 8.320094264e-12 | AE114: 9.023228213e-14 | AF114: 5.595248153e-10 | AG114: 0.1586637637 | AH114: 0.3439141472 | AI114: 0.4326762156 | AJ114: 0.3534950007 | AK114: 0.1340859563 | AL114: 0.1897739425 | AM114: 0.02024668329 | AN114: 0.5681278512 | AO114: 0.4955150735 | AP114: 0.5418395562 | AQ114: 7.162437906e-07 | AR114: 8.521586839e-10 | AS114: 3.575348025e-09 | AT114: 8.744020394e-09 | AU114: 2.281520479e-11 | AV114: 0.1596064261 | AW114: 0.215205931 | AX114: 0.0468657571 | AY114: 0.4380197371 | AZ114: 0.3613668237 | BA114: 0.4404292851 | BB114: 0.1814454102 | BC114: 0.023366033 | BD114: 0.02605953667 | BE114: 0.5798845479 | BF114: 7.230915047e-09 | BG114: 0.4582092256 | BH114: 0.06798607357 | BI114: 0.05414417716 | BJ114: 0.219529541 | BK114: 0.03518035795 | BL114: 0.08100783416
A115: p-value for Coefficient 1 | B115: 0.3488126136 | C115: 0.0203880463 | D115: 0.8713194778 | E115: 0.4291245836 | F115: 0.954005596 | G115: 0.4141883526 | H115: 0.4698539044 | I115: 0.3287186374 | J115: 0.428779854 | K115: 0.3560722853 | L115: 0.01082145125 | M115: 0.01141319206 | N115: 0.0002531287442 | O115: 0.4790260683 | P115: 0.8201648727 | Q115: 0.4373670691 | R115: 0.5830689795 | S115: 0.5908080596 | T115: 0.4310379043 | U115: 0.3561662932 | V115: 0.4298373731 | W115: 0.7495657362 | X115: 0.6525956238 | Y115: 0.4322277786 | Z115: 0.3630814165 | AA115: 0.3521107592 | AB115: 0.416132873 | AC115: 0.01577261022 | AD115: 0.0003727059414 | AE115: 0.0002525520595 | AF115: 0.4699979238 | AG115: 0.5655728069 | AH115: 0.456128854 | AI115: 0.6169298995 | AJ115: 0.4812838762 | AK115: 0.01674168081 | AL115: 0.01699503837 | AM115: 0.0005370194386 | AN115: 0.4515868215 | AO115: 0.8756955759 | AP115: 0.3658282851 | AQ115: 0.3953243276 | AR115: 0.3187850502 | AS115: 0.3745009919 | AT115: 0.7700447516 | AU115: 0.0005235013919 | AV115: 0.8553194648 | AW115: 0.8206404972 | AX115: 0.4626062293 | AY115: 0.5367147801 | AZ115: 0.4750109626 | BA115: 0.5919758407 | BB115: 0.02560682139 | BC115: 0.0007738931528 | BD115: 0.0006283601891 | BE115: 0.4779547475 | BF115: 0.3483168005 | BG115: 0.5625218026 | BH115: 0.3257960758 | BI115: 0.4025107567 | BJ115: 0.9147124025 | BK115: 0.001259457627 | BL115: 0.356223625
A116: p-value for Coefficient 2 | H116: 0.0292945632 | I116: 0.6948151186 | J116: 0.5329035416 | K116: 0.8620711041 | L116: 0.2263587006 | M116: 0.1645259075 | N116: 0.003910968894 | O116: 0.3023357203 | P116: 0.8621376037 | Q116: 0.8904752131 | R116: 0.4797073045 | S116: 0.02989776223 | T116: 0.8924019494 | U116: 0.3674341658 | V116: 0.9975719439 | W116: 0.02152049017 | X116: 0.01792079792 | Y116: 0.0004416718022 | Z116: 0.3993751829 | AA116: 0.7319289632 | AB116: 0.5126189925 | AC116: 0.5780725921 | AD116: 0.6678909512 | AE116: 0.2324963541 | AF116: 0.3082779737 | AG116: 0.03869690313 | AH116: 0.74574547 | AI116: 0.4612655661 | AJ116: 0.8656644094 | AK116: 0.2494141414 | AL116: 0.1528578067 | AM116: 0.005974262151 | AN116: 0.2524510491 | AO116: 0.9316293958 | AP116: 0.8100103498 | AQ116: 0.4413174909 | AR116: 0.0003369034047 | AS116: 0.0005998386453 | AT116: 0.02945481968 | AU116: 0.831149437 | AV116: 0.02773384511 | AW116: 0.02361173656 | AX116: 0.000801730679 | AY116: 0.4108472197 | AZ116: 0.789488285 | BA116: 0.4436141013 | BB116: 0.6500857497 | BC116: 0.6838424111 | BD116: 0.2560519286 | BE116: 0.2650150086 | BF116: 0.0007527692652 | BG116: 0.4642504213 | BH116: 0.0006844815664 | BI116: 0.001072333956 | BJ116: 0.03875642671 | BK116: 0.8375850991 | BL116: 0.001468106219
A117: p-value for Coefficient 3 | W117: 0.3216076578 | X117: 0.2173952719 | Y117: 0.004895912691 | Z117: 0.3348508327 | AA117: 0.9682305325 | AB117: 0.7602035495 | AC117: 0.3872592472 | AD117: 0.01019351054 | AE117: 0.006500891542 | AF117: 0.7899990434 | AG117: 0.737930406 | AH117: 0.6220342408 | AI117: 0.497201083 | AJ117: 0.5952232761 | AK117: 0.6331903542 | AL117: 0.4768056029 | AM117: 0.8410405735 | AN117: 0.3442891147 | AO117: 0.4545768024 | AP117: 0.3603778214 | AQ117: 0.3474243206 | AR117: 0.1862441353 | AS117: 0.5345743011 | AT117: 0.6672703217 | AU117: 0.2730501174 | AV117: 0.3269468718 | AW117: 0.1994215476 | AX117: 0.007007331806 | AY117: 0.2978062351 | AZ117: 0.9960581408 | BA117: 0.7423071068 | BB117: 0.350113425 | BC117: 0.01458421622 | BD117: 0.01125898377 | BE117: 0.8631478708 | BF117: 0.9714558909 | BG117: 0.3141251919 | BH117: 0.1975195075 | BI117: 0.5514823274 | BJ117: 0.6943307282 | BK117: 0.298032376 | BL117: 0.9701052849
A118: p-value for Coefficient 4 | AQ118: 0.8923423533 | AR118: 0.005509189285 | AS118: 0.008902046122 | AT118: 0.4073178444 | AU118: 0.009897593439 | AV118: 0.6981182787 | AW118: 0.5633140324 | AX118: 0.9585788195 | AY118: 0.5050959712 | AZ118: 0.6353859811 | BA118: 0.5020812165 | BB118: 0.5328090241 | BC118: 0.8582746236 | BD118: 0.9922135245 | BE118: 0.3721538301 | BF118: 0.2613140347 | BG118: 0.9226029043 | BH118: 0.008764152684 | BI118: 0.0127947713 | BJ118: 0.3743557795 | BK118: 0.01602177912 | BL118: 0.2727498399
A119: p-value for Coefficient 5 | BF119: 0.008312659834 | BG119: 0.5251160121 | BH119: 0.8316723767 | BI119: 0.9983054282 | BJ119: 0.5885663854 | BK119: 0.9985234827 | BL119: 0.01291072417
A120: p-value for Coefficient 6 | BL120: 0.8380043649
A122: Adjusted R-Squared Rank | B122: =IFERROR(RANK(B104,$B104:$BL104),"") -> 33 | C122: =IFERROR(RANK(C104,$B104:$BL104),"") -> 22 | D122: 43 | E122: 35 | F122: 44 | G122: 34 | H122: 26 | I122: 41 | J122: 37 | K122: 45 | L122: 19 | M122: 17 | N122: 3 | O122: 39 | P122: 56 | Q122: 49 | R122: 38 | S122: 29 | T122: 47 | U122: 36 | V122: 48 | W122: 25 | X122: 21 | Y122: 4 | Z122: 42 | AA122: 58 | AB122: 52 | AC122: 20 | AD122: 9 | AE122: 2 | AF122: 54 | AG122: 31 | AH122: 53 | AI122: 46 | AJ122: 55 | AK122: 23 | AL122: 18 | AM122: 10 | AN122: 40 | AO122: 61 | AP122: 50 | AQ122: 59 | AR122: 1 | AS122: 11 | AT122: 28 | AU122: 5 | AV122: 30 | AW122: 27 | AX122: 12 | AY122: 51 | AZ122: 63 | BA122: 60 | BB122: 24 | BC122: 15 | BD122: 7 | BE122: 57 | BF122: 8 | BG122: 62 | BH122: 6 | BI122: 16 | BJ122: 32 | BK122: 13 | BL122: 14
A123: ="Adjusted R-Squared > "&$B$18&", p-Values at "&$B$16&" signficance, and F-Test < "&$B$17&", and Correct Signs" -> Adjusted R-Squared > 0.6, p-Values at 0.2 signficance, and F-Test < 0.15, and Correct Signs | B123: =IFERROR(IF(COUNT(B114:B120)=0,"",IF(AND(B115<=$B$16,B116<=$B$16,B117<=$B$16,B118<=$B$16,B119<=$B$16,B120<=$B$16,B104>=$B$18,B105<$B$17,B124="Yes"),"!!!","")),"") ->  | C123: =IFERROR(IF(COUNT(C114:C120)=0,"",IF(AND(C115<=$B$16,C116<=$B$16,C117<=$B$16,C118<=$B$16,C119<=$B$16,C120<=$B$16,C104>=$B$18,C105<$B$17,C124="Yes"),"!!!","")),"") -> 
A124: Correct Signs? | B124: =IFERROR(IF(COUNT(B114:B120)=0,"",IF(AND(IF(B$95="",IF(B108<0,"negative","positive"),IF(OR(B$95="Trend",B$95="Log Trend"),IF(B108<0,"negative","positive"),IF($B$4="Log",VLOOKUP(B$95,$W$19:$X$23,2,FALSE),VLOOKUP(B$95,$W$12:$X$17,2,FALSE))))=IF(B108<0,"negative","positive"),IF(B$96="",IF(B109<0,"negative","positive"),IF(OR(B$96="Trend",B$96="Log Trend"),IF(B109<0,"negative","positive"),IF($B$4="Log",VLOOKUP(B$96,$W$19:$X$23,2,FALSE),VLOOKUP(B$96,$W$12:$X$17,2,FALSE))))=IF(B109<0,"negative","positive"),IF(B$97="",IF(B110<0,"negative","positive"),IF(OR(B$97="Trend",B$97="Log Trend"),IF(B110<0,"negative","positive"),IF($B$4="Log",VLOOKUP(B$97,$W$19:$X$23,2,FALSE),VLOOKUP(B$97,$W$12:$X$17,2,FALSE))))=IF(B110<0,"negative","positive"),IF(B$98="",IF(B111<0,"negative","positive"),IF(OR(B$98="Trend",B$98="Log Trend"),IF(B111<0,"negative","positive"),IF($B$4="Log",VLOOKUP(B$98,$W$19:$X$23,2,FALSE),VLOOKUP(B$98,$W$12:$X$17,2,FALSE))))=IF(B111<0,"negative","positive"),IF(B$99="",IF(B112<0,"negative","positive"),IF(OR(B$99="Trend",B$99="Log Trend"),IF(B112<0,"negative","positive"),IF($B$4="Log",VLOOKUP(B$99,$W$19:$X$23,2,FALSE),VLOOKUP(B$99,$W$12:$X$17,2,FALSE))))=IF(B112<0,"negative","positive"),IF(B$100="",IF(B113<0,"negative","positive"),IF(OR(B$100="Trend",B$100="Log Trend"),IF(B113<0,"negative","positive"),IF($B$4="Log",VLOOKUP(B$100,$W$19:$X$23,2,FALSE),VLOOKUP(B$100,$W$12:$X$17,2,FALSE))))=IF(B113<0,"negative","positive")),"YES","")),"") ->  | C124: =IFERROR(IF(COUNT(C114:C120)=0,"",IF(AND(IF(C$95="",IF(C108<0,"negative","positive"),IF(OR(C$95="Trend",C$95="Log Trend"),IF(C108<0,"negative","positive"),IF($B$4="Log",VLOOKUP(C$95,$W$19:$X$23,2,FALSE),VLOOKUP(C$95,$W$12:$X$17,2,FALSE))))=IF(C108<0,"negative","positive"),IF(C$96="",IF(C109<0,"negative","positive"),IF(OR(C$96="Trend",C$96="Log Trend"),IF(C109<0,"negative","positive"),IF($B$4="Log",VLOOKUP(C$96,$W$19:$X$23,2,FALSE),VLOOKUP(C$96,$W$12:$X$17,2,FALSE))))=IF(C109<0,"negative","positive"),IF(C$97="",IF(C110<0,"negative","positive"),IF(OR(C$97="Trend",C$97="Log Trend"),IF(C110<0,"negative","positive"),IF($B$4="Log",VLOOKUP(C$97,$W$19:$X$23,2,FALSE),VLOOKUP(C$97,$W$12:$X$17,2,FALSE))))=IF(C110<0,"negative","positive"),IF(C$98="",IF(C111<0,"negative","positive"),IF(OR(C$98="Trend",C$98="Log Trend"),IF(C111<0,"negative","positive"),IF($B$4="Log",VLOOKUP(C$98,$W$19:$X$23,2,FALSE),VLOOKUP(C$98,$W$12:$X$17,2,FALSE))))=IF(C111<0,"negative","positive"),IF(C$99="",IF(C112<0,"negative","positive"),IF(OR(C$99="Trend",C$99="Log Trend"),IF(C112<0,"negative","positive"),IF($B$4="Log",VLOOKUP(C$99,$W$19:$X$23,2,FALSE),VLOOKUP(C$99,$W$12:$X$17,2,FALSE))))=IF(C112<0,"negative","positive"),IF(C$100="",IF(C113<0,"negative","positive"),IF(OR(C$100="Trend",C$100="Log Trend"),IF(C113<0,"negative","positive"),IF($B$4="Log",VLOOKUP(C$100,$W$19:$X$23,2,FALSE),VLOOKUP(C$100,$W$12:$X$17,2,FALSE))))=IF(C113<0,"negative","positive")),"YES","")),"") ->  | E124: YES | F124: YES | G124: YES | Q124: YES | U124: YES | V124: YES | AP124: YES
AF125: =IF(AND(AF115<=$B$16,AF116<=$B$16,AF117<=$B$16,AF118<=$B$16,AF119<=$B$16,AF104>=$B$18,AF105<$B$17,AF124="Yes"),"Great","") -> 
A126: Different Scenarios (18 Years): | B126: =B$95 -> Degree Days | C126: =C95 -> Customers | D126: Rate | E126: Lag Rate | F126: Trend | G126: Nonfarm | H126: Degree Days | I126: Degree Days | J126: Degree Days | K126: Degree Days | L126: Customers | M126: Customers | N126: Customers | O126: Rate | P126: Rate | Q126: Lag Rate | R126: Nonfarm | S126: Nonfarm | T126: Nonfarm | U126: Nonfarm | V126: Nonfarm | W126: Degree Days | X126: Degree Days | Y126: Degree Days | Z126: Degree Days | AA126: Degree Days | AB126: Degree Days | AC126: Customers | AD126: Customers | AE126: Customers | AF126: Rate | AG126: Degree Days | AH126: Degree Days | AI126: Degree Days | AJ126: Degree Days | AK126: Customers | AL126: Customers | AM126: Customers | AN126: Rate | AO126: Rate | AP126: Lag Rate | AQ126: Degree Days | AR126: Degree Days | AS126: Degree Days | AT126: Degree Days | AU126: Customers | AV126: Degree Days | AW126: Degree Days | AX126: Degree Days | AY126: Degree Days | AZ126: Degree Days | BA126: Degree Days | BB126: Customers | BC126: Customers | BD126: Customers | BE126: Rate | BF126: Degree Days | BG126: Degree Days | BH126: Degree Days | BI126: Degree Days | BJ126: Degree Days | BK126: Customers | BL126: Degree Days
B127: =B$96 ->  | H127: Customers | I127: Rate | J127: Lag Rate | K127: Trend | L127: Rate | M127: Lag Rate | N127: Trend | O127: Lag Rate | P127: Trend | Q127: Trend | R127: Degree Days | S127: Customers | T127: Rate | U127: Lag Rate | V127: Trend | W127: Customers | X127: Customers | Y127: Customers | Z127: Rate | AA127: Rate | AB127: Lag Rate | AC127: Rate | AD127: Rate | AE127: Lag Rate | AF127: Lag Rate | AG127: Customers | AH127: Rate | AI127: Lag Rate | AJ127: Trend | AK127: Rate | AL127: Lag Rate | AM127: Trend | AN127: Lag Rate | AO127: Trend | AP127: Trend | AQ127: Rate | AR127: Customers | AS127: Customers | AT127: Customers | AU127: Rate | AV127: Customers | AW127: Customers | AX127: Customers | AY127: Rate | AZ127: Rate | BA127: Lag Rate | BB127: Rate | BC127: Rate | BD127: Lag Rate | BE127: Lag Rate | BF127: Customers | BG127: Rate | BH127: Customers | BI127: Customers | BJ127: Customers | BK127: Rate | BL127: Customers
B128: =B$97 ->  | W128: Rate | X128: Lag Rate | Y128: Trend | Z128: Lag Rate | AA128: Trend | AB128: Trend | AC128: Lag Rate | AD128: Trend | AE128: Trend | AF128: Trend | AG128: Nonfarm | AH128: Nonfarm | AI128: Nonfarm | AJ128: Nonfarm | AK128: Nonfarm | AL128: Nonfarm | AM128: Nonfarm | AN128: Nonfarm | AO128: Nonfarm | AP128: Nonfarm | AQ128: Lag Rate | AR128: Lag Rate | AS128: Rate | AT128: Rate | AU128: Lag Rate | AV128: Rate | AW128: Lag Rate | AX128: Trend | AY128: Lag Rate | AZ128: Trend | BA128: Trend | BB128: Lag Rate | BC128: Trend | BD128: Trend | BE128: Trend | BF128: Rate | BG128: Lag Rate | BH128: Lag Rate | BI128: Rate | BJ128: Rate | BK128: Lag Rate | BL128: Rate
B129: =B$98 ->  | AQ129: Trend | AR129: Trend | AS129: Trend | AT129: Lag Rate | AU129: Trend | AV129: Nonfarm | AW129: Nonfarm | AX129: Nonfarm | AY129: Nonfarm | AZ129: Nonfarm | BA129: Nonfarm | BB129: Nonfarm | BC129: Nonfarm | BD129: Nonfarm | BE129: Nonfarm | BF129: Lag Rate | BG129: Trend | BH129: Trend | BI129: Trend | BJ129: Lag Rate | BK129: Trend | BL129: Lag Rate
B130: =B$99 ->  | J130: =J99 ->  | BF130: Trend | BG130: Nonfarm | BH130: Nonfarm | BI130: Nonfarm | BJ130: Nonfarm | BK130: Nonfarm | BL130: Trend
B131: =B$100 ->  | C131: =C100 ->  | BL131: Nonfarm
A132: Statistics
A133: Multiple R | B133: 0.2614195331 | C133: 0.5835978201 | D133: 0.01741368389 | E133: 0.2703294915 | F133: 0.02803853972 | G133: 0.1822505177 | H133: 0.6224629302 | I133: 0.2705390773 | J133: 0.3605405081 | K133: 0.2952211464 | L133: 0.7155925558 | M133: 0.7776936361 | N133: 0.7662512459 | O133: 0.3269473325 | P133: 0.02831374695 | Q133: 0.3330574432 | R133: 0.2763304917 | S133: 0.5853835352 | T133: 0.1833933623 | U133: 0.3328465908 | V133: 0.1841955074 | W133: 0.7219779171 | X133: 0.792720706 | Y133: 0.771786135 | Z133: 0.4272192354 | AA133: 0.2978526896 | AB133: 0.476981583 | AC133: 0.8096526783 | AD133: 0.7864081989 | AE133: 0.84088615 | AF133: 0.3428056891 | AG133: 0.6236184124 | AH133: 0.2836692427 | AI133: 0.3771434609 | AJ133: 0.302584228 | AK133: 0.7166619123 | AL133: 0.7780134699 | AM133: 0.7686888772 | AN133: 0.3847434761 | AO133: 0.1842042565 | AP133: 0.3872715846 | AQ133: 0.4796504719 | AR133: 0.8419921617 | AS133: 0.7915073038 | AT133: 0.8151873789 | AU133: 0.8460150669 | AV133: 0.7259193066 | AW133: 0.7936019524 | AX133: 0.7725284196 | AY133: 0.4399792455 | AZ133: 0.3044530782 | BA133: 0.4810620244 | BB133: 0.8099983228 | BC133: 0.7905534171 | BD133: 0.8421699553 | BE133: 0.3976010769 | BF133: 0.8472230142 | BG133: 0.4843549567 | BH133: 0.8427092013 | BI133: 0.7934284605 | BJ133: 0.8173068554 | BK133: 0.8480279708 | BL133: 0.8485046426
A134: R-Squared | B134: 0.06834017227 | C134: 0.3405864156 | D134: 0.0003032363866 | E134: 0.07307803399 | F134: 0.0007861597095 | G134: 0.0332152512 | H134: 0.3874600995 | I134: 0.07319139236 | J134: 0.129989458 | K134: 0.08715552529 | L134: 0.512072706 | M134: 0.6048073916 | N134: 0.5871409719 | O134: 0.1068945582 | P134: 0.0008016682661 | Q134: 0.1109272604 | R134: 0.07635854062 | S134: 0.3426738833 | T134: 0.03363312534 | U134: 0.110786853 | V134: 0.03392798495 | W134: 0.5212521128 | X134: 0.6284061177 | Y134: 0.5956538382 | Z134: 0.1825162751 | AA134: 0.08871622468 | AB134: 0.2275114305 | AC134: 0.6555374595 | AD134: 0.6184378554 | AE134: 0.7070895173 | AF134: 0.1175157405 | AG134: 0.3888999243 | AH134: 0.08046823926 | AI134: 0.1422371901 | AJ134: 0.09155721503 | AK134: 0.5136042966 | AL134: 0.6053049594 | AM134: 0.59088259 | AN134: 0.1480275424 | AO134: 0.03393120812 | AP134: 0.1499792802 | AQ134: 0.2300645752 | AR134: 0.7089508003 | AS134: 0.626483812 | AT134: 0.6645304627 | AU134: 0.7157414934 | AV134: 0.5269588397 | AW134: 0.6298040588 | AX134: 0.5968001592 | AY134: 0.1935817364 | AZ134: 0.09269167682 | BA134: 0.2314206713 | BB134: 0.6560972829 | BC134: 0.6249747053 | BD134: 0.7092502337 | BE134: 0.1580866164 | BF134: 0.7177868357 | BG134: 0.2345997241 | BH134: 0.710158798 | BI134: 0.6295287219 | BJ134: 0.6679904959 | BK134: 0.7191514392 | BL134: 0.7199601285
A135: Adjusted R-Squared | B135: 0.01011143304 | C135: 0.2993730666 | D135: -0.06217781134 | E135: 0.01514541111 | F135: -0.06166470531 | G135: -0.0272087956 | H135: 0.3057881128 | I135: -0.05038308866 | J135: 0.01398805241 | K135: -0.03455707134 | L135: 0.4470157334 | M135: 0.5521150438 | N135: 0.5320931015 | O135: -0.01218616737 | P135: -0.132424776 | Q135: -0.007615771495 | R135: -0.04679365396 | S135: 0.2550304011 | T135: -0.09521579128 | U135: -0.007774899938 | V135: -0.09488161706 | W135: 0.4186632799 | X135: 0.5487788572 | Y135: 0.509008232 | Z135: 0.007341191223 | AA135: -0.10655887 | AB135: 0.06197816565 | AC135: 0.5817240579 | AD135: 0.5366745387 | AE135: 0.6443229853 | AF135: -0.0715880294 | AG135: 0.2579499081 | AH135: -0.1165742809 | AI135: -0.04156912633 | AJ135: -0.103109096 | AK135: 0.4093766459 | AL135: 0.5207274507 | AM135: 0.5032145736 | AN135: -0.03453798425 | AO135: -0.173083533 | AP135: -0.0321680169 | AQ135: -0.006838632411 | AR135: 0.6193972004 | AS135: 0.5115557542 | AT135: 0.5613090666 | AU135: 0.6282773375 | AV135: 0.3814077135 | AW135: 0.5158976154 | AX135: 0.4727386697 | AY135: -0.05454696004 | AZ135: -0.1864801149 | BA135: -0.005065275936 | BB135: 0.5502810622 | BC135: 0.509582307 | BD135: 0.6197887671 | BE135: -0.1009636555 | BF135: 0.6001980173 | BG135: -0.08431705749 | BH135: 0.5893916305 | BI135: 0.4751656894 | BJ135: 0.5296532025 | BK135: 0.6021312056 | BL135: 0.5672111077
A136: Significance F | B136: 0.2947088505 | C136: 0.01100315357 | D136: 0.9453233335 | E136: 0.2779509697 | F136: 0.9120617682 | G136: 0.4691827717 | H136: 0.02532257566 | I136: 0.5654906643 | J136: 0.351911827 | K136: 0.504633333 | L136: 0.004598999316 | M136: 0.0009463811853 | N136: 0.001313752011 | O136: 0.4283221333 | P136: 0.9940031301 | Q136: 0.4140279945 | R136: 0.5511573978 | S136: 0.04298893233 | T136: 0.7736869297 | U136: 0.4145186388 | V136: 0.7719181688 | W136: 0.01379320837 | X136: 0.002524125878 | Y136: 0.004460940648 | Z136: 0.4045173639 | AA136: 0.7183885753 | AB136: 0.2913557486 | AC136: 0.001510672302 | AD136: 0.003018197698 | AE136: 0.0005011448373 | AF136: 0.6127041432 | AG136: 0.06804709985 | AH136: 0.7494286637 | AI136: 0.527722103 | AJ136: 0.7077450814 | AK136: 0.01532169152 | AL136: 0.003791592707 | AM136: 0.004826945658 | AN136: 0.5087862281 | AO136: 0.9188918173 | AP136: 0.5024925873 | AQ136: 0.456138331 | AR136: 0.001839092704 | AS136: 0.008417883818 | AT136: 0.004391487505 | AU136: 0.001589879736 | AV136: 0.03410194442 | AW136: 0.007977032396 | AX136: 0.01331162273 | AY136: 0.5577252969 | AZ136: 0.8515374323 | BA136: 0.4525343173 | BB136: 0.005107395546 | BC136: 0.008624711517 | BD136: 0.001827462984 | BE136: 0.6625406753 | BF136: 0.004893543136 | BG136: 0.6108668108 | BH136: 0.005668950812 | BI136: 0.02140850071 | BJ136: 0.01189873778 | BK136: 0.004764233348 | BL136: 0.01296481349
A137: Coefficients
A138: Intercept | B138: 33378.26485 | C138: 34198.45516 | D138: 29964.92166 | E138: 31248.42802 | F138: 30144.62092 | G138: 15226.45281 | H138: 36849.61227 | I138: 33242.71092 | J138: 34211.25701 | K138: 34639.38992 | L138: 38672.61137 | M138: 38065.17521 | N138: 34960.35189 | O138: 30800.67067 | P138: 30184.48977 | Q138: 32602.97846 | R138: 25037.51187 | S138: 30297.1715 | T138: 15109.02093 | U138: 15485.87307 | V138: 15340.67843 | W138: 39575.14533 | X138: 39815.88156 | Y138: 33667.92192 | Z138: 34150.49487 | AA138: 35115.32082 | AB138: 38214.69282 | AC138: 39976.2253 | AD138: 37047.61388 | AE138: 37567.24692 | AF138: 31908.97898 | AG138: 40529.74486 | AH138: 25291.52656 | AI138: 23897.86015 | AJ138: 28251.23479 | AK138: 42172.88971 | AL138: 36150.8615 | AM138: 40325.79053 | AN138: 14298.13158 | AO138: 15317.89435 | AP138: 16583.73477 | AQ138: 37705.56426 | AR138: 36909.67041 | AS138: 35775.58523 | AT138: 40868.70867 | AU138: 38519.52938 | AV138: 46997.49503 | AW138: 43441.83904 | AX138: 36953.85667 | AY138: 24345.34158 | AZ138: 28951.17721 | BA138: 32188.07314 | BB138: 42090.86442 | BC138: 44285.79296 | BD138: 41633.36272 | BE138: 15488.42837 | BF138: 37840.34958 | BG138: 31126.64882 | BH138: 40283.75125 | BI138: 41248.97924 | BJ138: 46644.94553 | BK138: 43741.08959 | BL138: 42457.28004
A139: Coefficient 1 | B139: -2.303196843 | C139: -188.4790753 | D139: 15.95628203 | E139: -250.5097006 | F139: -10.86068111 | G139: 1118.054292 | H139: -1.913313108 | I139: -2.425018453 | J139: -2.109988517 | K139: -2.797278208 | L139: -288.3595421 | M139: -252.3115108 | N139: -335.369522 | O139: 196.9375299 | P139: -5.18984385 | Q139: -358.4608836 | R139: 593.9815303 | S139: 288.4506079 | T139: 1120.136388 | U139: 1192.41234 | V139: 1116.848105 | W139: -0.8882511073 | X139: -1.368255743 | Y139: 1.006721471 | Z139: -2.470361109 | AA139: -2.842749745 | AB139: -3.279526963 | AC139: -299.3380516 | AD139: -352.8614803 | AE139: -338.2224137 | AF139: 110.4414158 | AG139: -2.048374328 | AH139: -2.10582116 | AI139: -1.700348749 | AJ139: -2.510113113 | AK139: -293.4529311 | AL139: -250.4321695 | AM139: -344.2170575 | AN139: 206.8844272 | AO139: 2.36714885 | AP139: -368.3472354 | AQ139: -3.23550109 | AR139: 0.4756325377 | AS139: 0.9788278047 | AT139: -0.8791890502 | AU139: -347.5245686 | AV139: -1.13689338 | AW139: -1.501385149 | AX139: 0.8842631757 | AY139: -2.076905947 | AZ139: -2.562188476 | BA139: -3.008066055 | BB139: -302.3919172 | BC139: -365.4983257 | BD139: -344.9356428 | BE139: 122.6331085 | BF139: 0.4987192124 | BG139: -2.936623012 | BH139: 0.3497761438 | BI139: 0.7767597221 | BJ139: -1.073049245 | BK139: -356.7482465 | BL139: 0.3300405151
A140: Coefficient 2 | H140: -183.001616 | I140: 65.06689466 | J140: -230.9843141 | K140: -57.40115507 | L140: -473.5909656 | M140: -510.3369688 | N140: 260.8267026 | O140: -353.6022338 | P140: -12.43747243 | Q140: -87.83469942 | R140: -1.978725115 | S140: -184.8920486 | T140: 18.73370361 | U140: -258.3410223 | V140: -10.34134703 | W140: -278.4886235 | X140: -245.9974777 | Y140: -358.0170688 | Z140: 249.2937297 | AA140: -52.44217188 | AB140: -408.336334 | AC140: -281.7228189 | AD140: -239.008688 | AE140: -374.1462171 | AF140: -380.9775828 | AG140: -185.82658 | AH140: 60.0084959 | AI140: -239.6132627 | AJ140: -52.41545369 | AK140: -482.8636468 | AL140: -509.32751 | AM140: 267.8104437 | AN140: -366.9969517 | AO140: -9.621992598 | AP140: -89.39329664 | AQ140: 69.03299199 | AR140: -348.871014 | AS140: -374.7523926 | AT140: -289.5607395 | AU140: -129.8164765 | AV140: -286.1584409 | AW140: -248.7756168 | AX140: -360.4214268 | AY140: 246.5434097 | AZ140: -44.89267876 | BA140: -407.6406075 | BB140: -287.8243163 | BC140: -250.936697 | BD140: -372.0089364 | BE140: -393.5499539 | BF140: -358.7907972 | BG140: 77.34513747 | BH140: -351.3366938 | BI140: -379.3305801 | BJ140: -295.4624341 | BK140: -139.9397428 | BL140: -362.7301324
A141: Coefficient 3 | W141: -438.8445867 | X141: -491.1733071 | Y141: 295.9233876 | Z141: -358.1493727 | AA141: -74.09081173 | AB141: -153.1087115 | AC141: -411.2885216 | AD141: 202.3809579 | AE141: 182.7956638 | AF141: -59.11523108 | AG141: -258.2622162 | AH141: 566.989113 | AI141: 736.6782089 | AJ141: 447.1278285 | AK141: -252.3242873 | AL141: 140.9737915 | AM141: -395.1980301 | AN141: 1246.68016 | AO141: 1117.195098 | AP141: 1213.648726 | AQ141: -421.7411691 | AR141: -367.4065761 | AS141: -237.2442777 | AT141: -247.4549754 | AU141: -348.1107423 | AV141: -448.1117313 | AW141: -491.1309299 | AX141: 295.7265983 | AY141: -364.9507063 | AZ141: -66.93079822 | BA141: -148.2468612 | BB141: -410.2366192 | BC141: 208.7498989 | BD141: 188.5533149 | BE141: -57.5350607 | BF141: -131.2225967 | BG141: -422.6028148 | BH141: -367.5078773 | BI141: -246.1955482 | BJ141: -255.9976687 | BK141: -343.3748746 | BL141: -139.2526997
A142: Coefficient 4 | AQ142: -134.2809273 | AR142: 200.7829393 | AS142: 236.9366622 | AT142: -411.0226118 | AU142: 156.481021 | AV142: -516.8422685 | AW142: -254.4783058 | AX142: -230.4499452 | AY142: 700.4226343 | AZ142: 426.6529934 | BA142: 421.3964087 | BB142: -152.6781672 | BC142: -525.464479 | BD142: -300.5916621 | BE142: 1238.248313 | BF142: -340.7619608 | BG142: -126.7559575 | BH142: 200.5546925 | BI142: 234.3880519 | BJ142: -408.1885494 | BK142: 161.7175852 | BL142: -339.2683623
A143: Coefficient 5 | BF143: 175.0563492 | BG143: 455.7278364 | BH143: -236.5691419 | BI143: -378.2842568 | BJ143: -402.8391765 | BK143: -380.5192757 | BL143: 173.1735537
A144: Coefficient 6 | BL144: -319.7167267
A145: p-value for Intercept | B145: 1.056103816e-08 | C145: 1.291841706e-13 | D145: 3.374517021e-14 | E145: 1.191809199e-14 | F145: 3.313140553e-15 | G145: 0.4572751474 | H145: 1.890571463e-09 | I145: 3.680580806e-08 | J145: 2.193755489e-08 | K145: 2.415632057e-07 | L145: 5.603998152e-11 | M145: 6.818013427e-13 | N145: 2.451785342e-14 | O145: 3.914605585e-13 | P145: 2.107413391e-08 | Q145: 9.879570275e-11 | R145: 0.3002478853 | S145: 0.1119645367 | T145: 0.4764956824 | U145: 0.446303884 | V145: 0.4693303543 | W145: 2.555373513e-09 | X145: 2.698960718e-10 | Y145: 5.844435799e-09 | Z145: 4.60310662e-08 | AA145: 7.196392361e-06 | AB145: 4.502373675e-07 | AC145: 2.446029579e-11 | AD145: 2.132757465e-10 | AE145: 7.363481906e-13 | AF145: 4.883010063e-08 | AG145: 0.06785852662 | AH145: 0.3121719037 | AI145: 0.3225007984 | AJ145: 0.2748216165 | AK145: 0.0253183491 | AL145: 0.02596133188 | AM145: 0.01796586669 | AN145: 0.4889317643 | AO145: 0.4908123599 | AP145: 0.4228139401 | AQ145: 5.566343423e-06 | AR145: 6.257875054e-09 | AS145: 9.24695819e-08 | AT145: 9.751914159e-10 | AU145: 1.868702956e-10 | AV145: 0.02790184905 | AW145: 0.02114130513 | AX145: 0.05250912126 | AY145: 0.3181606917 | AZ145: 0.2919663989 | BA145: 0.2004435651 | BB145: 0.01332388451 | BC145: 0.0129570105 | BD145: 0.007537995617 | BE145: 0.4733233546 | BF145: 6.357157239e-08 | BG145: 0.2411021358 | BH145: 0.02228917269 | BI145: 0.03874096739 | BJ145: 0.01556689803 | BK145: 0.008301885761 | BL145: 0.02349032684
A146: p-value for Coefficient 1 | B146: 0.2947088505 | C146: 0.01100315357 | D146: 0.9453233335 | E146: 0.2779509697 | F146: 0.9120617682 | G146: 0.4691827717 | H146: 0.3009354457 | I146: 0.2945712619 | J146: 0.3376087911 | K146: 0.2520392517 | L146: 0.001241156516 | M146: 0.0004296875665 | N146: 0.0003364399657 | O146: 0.4627372489 | P146: 0.9880272298 | Q146: 0.1929402226 | R146: 0.7232368714 | S146: 0.8301716096 | T146: 0.4830312456 | U146: 0.4375691583 | V146: 0.4841823348 | W146: 0.6124753193 | X146: 0.3617109709 | Y146: 0.5957322489 | Z146: 0.2742156597 | AA146: 0.2645982011 | AB146: 0.1681115606 | AC146: 0.0003272145227 | AD146: 0.0003043975545 | AE146: 0.0001047025353 | AF146: 0.7512479926 | AG146: 0.3208919114 | AH146: 0.4126240841 | AI146: 0.4854871207 | AJ146: 0.3619655173 | AK146: 0.002299268719 | AL146: 0.0009112678677 | AM146: 0.0006461755469 | AN146: 0.4470822498 | AO146: 0.9946433993 | AP146: 0.1884670913 | AQ146: 0.1913021031 | AR146: 0.7776375888 | AS146: 0.6055972908 | AT146: 0.5650884114 | AU146: 0.0001622440612 | AV146: 0.5550709213 | AW146: 0.3705493662 | AX146: 0.6694234796 | AY146: 0.4069925957 | AZ146: 0.3755561635 | BA146: 0.2615779178 | BB146: 0.0007412687808 | BC146: 0.0005691619094 | BD146: 0.0002426916361 | BE146: 0.729149332 | BF146: 0.7731048764 | BG146: 0.2949017704 | BH146: 0.8494599185 | BI146: 0.7076452545 | BJ146: 0.5244274439 | BK146: 0.0003682862053 | BL146: 0.8617834299
A147: p-value for Coefficient 2 | H147: 0.01358319246 | I147: 0.7831475313 | J147: 0.318891207 | K147: 0.5863850998 | L147: 0.03650130792 | M147: 0.006382776372 | N147: 0.009102227009 | O147: 0.2008291738 | P147: 0.932212046 | Q147: 0.436699195 | R147: 0.4157027292 | S147: 0.01792437734 | T147: 0.9368746181 | U147: 0.2705859718 | V147: 0.9176131046 | W147: 0.002787094449 | X147: 0.0006877174494 | Y147: 0.0008975525262 | Z147: 0.3589853892 | AA147: 0.8791538426 | AB147: 0.13305441 | AC147: 0.172995843 | AD147: 0.3020266803 | AE147: 0.03120257924 | AF147: 0.195103391 | AG147: 0.01809181653 | AH147: 0.8061112881 | AI147: 0.3173440717 | AJ147: 0.6358903038 | AK147: 0.04359517632 | AL147: 0.008612928651 | AM147: 0.01131544927 | AN147: 0.1919380451 | AO147: 0.948526355 | AP147: 0.4351533394 | AQ147: 0.8387380071 | AR147: 0.0004651586678 | AS147: 0.0008222799392 | AT147: 0.0008289603829 | AU147: 0.5402247294 | AV147: 0.003892303713 | AW147: 0.001167475178 | AX147: 0.001412803164 | AY147: 0.3794951441 | AZ147: 0.9005005953 | BA147: 0.1480064446 | BB147: 0.1891670345 | BC147: 0.2967394106 | BD147: 0.03862061428 | BE147: 0.1894833449 | BF147: 0.0006616287806 | BG147: 0.8270946595 | BH147: 0.0007900417406 | BI147: 0.001299471792 | BJ147: 0.001368692047 | BK147: 0.5276734677 | BL147: 0.001124347511
A148: p-value for Coefficient 3 | W148: 0.0679551574 | X148: 0.009309721689 | Y148: 0.0177758181 | Z148: 0.1927751604 | AA148: 0.632847057 | AB148: 0.204959937 | AC148: 0.03001059664 | AD148: 0.06826180645 | AE148: 0.04417605478 | AF148: 0.6876636131 | AG148: 0.8584845929 | AH148: 0.7441772859 | AI148: 0.661639332 | AJ148: 0.7983080696 | AK148: 0.836722262 | AL148: 0.8962031506 | AM148: 0.7258121097 | AN148: 0.4247778896 | AO148: 0.4997088018 | AP148: 0.4359589473 | AQ148: 0.1463675344 | AR148: 0.04244188596 | AS148: 0.3191500223 | AT148: 0.2579300337 | AU148: 0.05485796418 | AV148: 0.0733573905 | AW148: 0.0122056996 | AX148: 0.02246819204 | AY148: 0.199941888 | AZ148: 0.6824159064 | BA148: 0.2411442482 | BB148: 0.03718909661 | BC148: 0.07117300461 | BD148: 0.05041659341 | BE148: 0.6998888986 | BF148: 0.5513445316 | BG148: 0.1616202881 | BH148: 0.05112336865 | BI148: 0.3234953023 | BJ148: 0.2628542053 | BK148: 0.06793836878 | BL148: 0.5475806507
A149: p-value for Coefficient 4 | AQ149: 0.3865393652 | AR149: 0.08030215078 | AS149: 0.07792345972 | AT149: 0.03481302363 | AU149: 0.1209703952 | AV149: 0.6985143325 | AW149: 0.8280952743 | AX149: 0.8505175892 | AY149: 0.6796685974 | AZ149: 0.815086893 | BA149: 0.8010940051 | BB149: 0.8865695797 | BC149: 0.6419600984 | BD149: 0.760863987 | BE149: 0.4428608125 | BF149: 0.07231283613 | BG149: 0.4381892129 | BH149: 0.09314441363 | BI149: 0.09334054589 | BJ149: 0.04338752655 | BK149: 0.1266461102 | BL149: 0.08614799818
A150: p-value for Coefficient 5 | BF150: 0.1582260963 | BG150: 0.7942652777 | BH150: 0.8268017572 | BI150: 0.7588746491 | BJ150: 0.7297474875 | BK150: 0.7093530353 | BL150: 0.1808470329
A151: p-value for Coefficient 6 | BL151: 0.7755885597
A153: Adjusted R-Squared Rank | B153: =IFERROR(RANK(B135,$B135:$BL135),"") -> 36 | C153: =IFERROR(RANK(C135,$B135:$BL135),"") -> 30 | D153: 52 | E153: 34 | F153: 51 | G153: 43 | H153: 29 | I153: 49 | J153: 35 | K153: 46 | L153: 25 | M153: 11 | N153: 15 | O153: 42 | P153: 61 | Q153: 40 | R153: 48 | S153: 32 | T153: 56 | U153: 41 | V153: 55 | W153: 26 | X153: 13 | Y153: 21 | Z153: 37 | AA153: 59 | AB153: 33 | AC153: 8 | AD153: 14 | AE153: 1 | AF153: 53 | AG153: 31 | AH153: 60 | AI153: 47 | AJ153: 58 | AK153: 27 | AL153: 17 | AM153: 22 | AN153: 45 | AO153: 62 | AP153: 44 | AQ153: 39 | AR153: 4 | AS153: 19 | AT153: 10 | AU153: 2 | AV153: 28 | AW153: 18 | AX153: 24 | AY153: 50 | AZ153: 63 | BA153: 38 | BB153: 12 | BC153: 20 | BD153: 3 | BE153: 57 | BF153: 6 | BG153: 54 | BH153: 7 | BI153: 23 | BJ153: 16 | BK153: 5 | BL153: 9
A154: ="Adjusted R-Squared > "&$B$18&", p-Values at "&$B$16&" signficance, and F-Test < "&$B$17&", and Correct Signs" -> Adjusted R-Squared > 0.6, p-Values at 0.2 signficance, and F-Test < 0.15, and Correct Signs | B154: =IFERROR(IF(COUNT(B145:B151)=0,"",IF(AND(B146<=$B$16,B147<=$B$16,B148<=$B$16,B149<=$B$16,B150<=$B$16,B151<=$B$16,B135>=$B$18,B136<$B$17,B155="Yes"),"!!!","")),"") ->  | C154: =IFERROR(IF(COUNT(C145:C151)=0,"",IF(AND(C146<=$B$16,C147<=$B$16,C148<=$B$16,C149<=$B$16,C150<=$B$16,C151<=$B$16,C135>=$B$18,C136<$B$17,C155="Yes"),"!!!","")),"") -> 
A155: Correct Signs? | B155: =IFERROR(IF(COUNT(B145:B151)=0,"",IF(AND(IF(B$95="",IF(B139<0,"negative","positive"),IF(OR(B$95="Trend",B$95="Log Trend"),IF(B139<0,"negative","positive"),IF($B$4="Log",VLOOKUP(B$95,$W$19:$X$23,2,FALSE),VLOOKUP(B$95,$W$12:$X$17,2,FALSE))))=IF(B139<0,"negative","positive"),IF(B$96="",IF(B140<0,"negative","positive"),IF(OR(B$96="Trend",B$96="Log Trend"),IF(B140<0,"negative","positive"),IF($B$4="Log",VLOOKUP(B$96,$W$19:$X$23,2,FALSE),VLOOKUP(B$96,$W$12:$X$17,2,FALSE))))=IF(B140<0,"negative","positive"),IF(B$97="",IF(B141<0,"negative","positive"),IF(OR(B$97="Trend",B$97="Log Trend"),IF(B141<0,"negative","positive"),IF($B$4="Log",VLOOKUP(B$97,$W$19:$X$23,2,FALSE),VLOOKUP(B$97,$W$12:$X$17,2,FALSE))))=IF(B141<0,"negative","positive"),IF(B$98="",IF(B142<0,"negative","positive"),IF(OR(B$98="Trend",B$98="Log Trend"),IF(B142<0,"negative","positive"),IF($B$4="Log",VLOOKUP(B$98,$W$19:$X$23,2,FALSE),VLOOKUP(B$98,$W$12:$X$17,2,FALSE))))=IF(B142<0,"negative","positive"),IF(B$99="",IF(B143<0,"negative","positive"),IF(OR(B$99="Trend",B$99="Log Trend"),IF(B143<0,"negative","positive"),IF($B$4="Log",VLOOKUP(B$99,$W$19:$X$23,2,FALSE),VLOOKUP(B$99,$W$12:$X$17,2,FALSE))))=IF(B143<0,"negative","positive"),IF(B$100="",IF(B144<0,"negative","positive"),IF(OR(B$100="Trend",B$100="Log Trend"),IF(B144<0,"negative","positive"),IF($B$4="Log",VLOOKUP(B$100,$W$19:$X$23,2,FALSE),VLOOKUP(B$100,$W$12:$X$17,2,FALSE))))=IF(B144<0,"negative","positive")),"YES","")),"") ->  | C155: =IFERROR(IF(COUNT(C145:C151)=0,"",IF(AND(IF(C$95="",IF(C139<0,"negative","positive"),IF(OR(C$95="Trend",C$95="Log Trend"),IF(C139<0,"negative","positive"),IF($B$4="Log",VLOOKUP(C$95,$W$19:$X$23,2,FALSE),VLOOKUP(C$95,$W$12:$X$17,2,FALSE))))=IF(C139<0,"negative","positive"),IF(C$96="",IF(C140<0,"negative","positive"),IF(OR(C$96="Trend",C$96="Log Trend"),IF(C140<0,"negative","positive"),IF($B$4="Log",VLOOKUP(C$96,$W$19:$X$23,2,FALSE),VLOOKUP(C$96,$W$12:$X$17,2,FALSE))))=IF(C140<0,"negative","positive"),IF(C$97="",IF(C141<0,"negative","positive"),IF(OR(C$97="Trend",C$97="Log Trend"),IF(C141<0,"negative","positive"),IF($B$4="Log",VLOOKUP(C$97,$W$19:$X$23,2,FALSE),VLOOKUP(C$97,$W$12:$X$17,2,FALSE))))=IF(C141<0,"negative","positive"),IF(C$98="",IF(C142<0,"negative","positive"),IF(OR(C$98="Trend",C$98="Log Trend"),IF(C142<0,"negative","positive"),IF($B$4="Log",VLOOKUP(C$98,$W$19:$X$23,2,FALSE),VLOOKUP(C$98,$W$12:$X$17,2,FALSE))))=IF(C142<0,"negative","positive"),IF(C$99="",IF(C143<0,"negative","positive"),IF(OR(C$99="Trend",C$99="Log Trend"),IF(C143<0,"negative","positive"),IF($B$4="Log",VLOOKUP(C$99,$W$19:$X$23,2,FALSE),VLOOKUP(C$99,$W$12:$X$17,2,FALSE))))=IF(C143<0,"negative","positive"),IF(C$100="",IF(C144<0,"negative","positive"),IF(OR(C$100="Trend",C$100="Log Trend"),IF(C144<0,"negative","positive"),IF($B$4="Log",VLOOKUP(C$100,$W$19:$X$23,2,FALSE),VLOOKUP(C$100,$W$12:$X$17,2,FALSE))))=IF(C144<0,"negative","positive")),"YES","")),"") ->  | E155: YES | F155: YES | G155: YES | P155: YES | Q155: YES | U155: YES | V155: YES | AP155: YES
AF156: =IF(AND(AF146<=$B$16,AF147<=$B$16,AF148<=$B$16,AF149<=$B$16,AF150<=$B$16,AF135>=$B$18,AF136<$B$17,AF155="Yes"),"Great","") -> 
A157: Different Scenarios (17 Years): | B157: =B$95 -> Degree Days | C157: =C$95 -> Customers | D157: Rate | E157: Lag Rate | F157: Trend | G157: Nonfarm | H157: Degree Days | I157: Degree Days | J157: Degree Days | K157: Degree Days | L157: Customers | M157: Customers | N157: Customers | O157: Rate | P157: Rate | Q157: Lag Rate | R157: Nonfarm | S157: Nonfarm | T157: Nonfarm | U157: Nonfarm | V157: Nonfarm | W157: Degree Days | X157: Degree Days | Y157: Degree Days | Z157: Degree Days | AA157: Degree Days | AB157: Degree Days | AC157: Customers | AD157: Customers | AE157: Customers | AF157: Rate | AG157: Degree Days | AH157: Degree Days | AI157: Degree Days | AJ157: Degree Days | AK157: Customers | AL157: Customers | AM157: Customers | AN157: Rate | AO157: Rate | AP157: Lag Rate | AQ157: Degree Days | AR157: Degree Days | AS157: Degree Days | AT157: Degree Days | AU157: Customers | AV157: Degree Days | AW157: Degree Days | AX157: Degree Days | AY157: Degree Days | AZ157: Degree Days | BA157: Degree Days | BB157: Customers | BC157: Customers | BD157: Customers | BE157: Rate | BF157: Degree Days | BG157: Degree Days | BH157: Degree Days | BI157: Degree Days | BJ157: Degree Days | BK157: Customers | BL157: Degree Days
B158: =B$96 ->  | C158: =C$96 ->  | H158: Customers | I158: Rate | J158: Lag Rate | K158: Trend | L158: Rate | M158: Lag Rate | N158: Trend | O158: Lag Rate | P158: Trend | Q158: Trend | R158: Degree Days | S158: Customers | T158: Rate | U158: Lag Rate | V158: Trend | W158: Customers | X158: Customers | Y158: Customers | Z158: Rate | AA158: Rate | AB158: Lag Rate | AC158: Rate | AD158: Rate | AE158: Lag Rate | AF158: Lag Rate | AG158: Customers | AH158: Rate | AI158: Lag Rate | AJ158: Trend | AK158: Rate | AL158: Lag Rate | AM158: Trend | AN158: Lag Rate | AO158: Trend | AP158: Trend | AQ158: Rate | AR158: Customers | AS158: Customers | AT158: Customers | AU158: Rate | AV158: Customers | AW158: Customers | AX158: Customers | AY158: Rate | AZ158: Rate | BA158: Lag Rate | BB158: Rate | BC158: Rate | BD158: Lag Rate | BE158: Lag Rate | BF158: Customers | BG158: Rate | BH158: Customers | BI158: Customers | BJ158: Customers | BK158: Rate | BL158: Customers
B159: =B$97 ->  | C159: =C$97 ->  | W159: Rate | X159: Lag Rate | Y159: Trend | Z159: Lag Rate | AA159: Trend | AB159: Trend | AC159: Lag Rate | AD159: Trend | AE159: Trend | AF159: Trend | AG159: Nonfarm | AH159: Nonfarm | AI159: Nonfarm | AJ159: Nonfarm | AK159: Nonfarm | AL159: Nonfarm | AM159: Nonfarm | AN159: Nonfarm | AO159: Nonfarm | AP159: Nonfarm | AQ159: Lag Rate | AR159: Lag Rate | AS159: Rate | AT159: Rate | AU159: Lag Rate | AV159: Rate | AW159: Lag Rate | AX159: Trend | AY159: Lag Rate | AZ159: Trend | BA159: Trend | BB159: Lag Rate | BC159: Trend | BD159: Trend | BE159: Trend | BF159: Rate | BG159: Lag Rate | BH159: Lag Rate | BI159: Rate | BJ159: Rate | BK159: Lag Rate | BL159: Rate
B160: =B$98 ->  | C160: =C$98 ->  | AQ160: Trend | AR160: Trend | AS160: Trend | AT160: Lag Rate | AU160: Trend | AV160: Nonfarm | AW160: Nonfarm | AX160: Nonfarm | AY160: Nonfarm | AZ160: Nonfarm | BA160: Nonfarm | BB160: Nonfarm | BC160: Nonfarm | BD160: Nonfarm | BE160: Nonfarm | BF160: Lag Rate | BG160: Trend | BH160: Trend | BI160: Trend | BJ160: Lag Rate | BK160: Trend | BL160: Lag Rate
B161: =B$99 ->  | C161: =C$99 ->  | BF161: Trend | BG161: Nonfarm | BH161: Nonfarm | BI161: Nonfarm | BJ161: Nonfarm | BK161: Nonfarm | BL161: Trend
B162: =B$100 ->  | C162: =C$100 ->  | BL162: Nonfarm
A163: Statistics
A164: Multiple R | B164: 0.4629390424 | C164: 0.5354360502 | D164: 0.01020135279 | E164: 0.1821116269 | F164: 0.1900670797 | G164: 0.3204381823 | H164: 0.6549117292 | I164: 0.4744465731 | J164: 0.4745608372 | K164: 0.4660034975 | L164: 0.6726410992 | M164: 0.7196417935 | N164: 0.8779974413 | O164: 0.222945548 | P164: 0.3137276559 | Q164: 0.2028047504 | R164: 0.4940268297 | S164: 0.5592156963 | T164: 0.3207616437 | U164: 0.3672428654 | V164: 0.3906330805 | W164: 0.7130877158 | X164: 0.7620197801 | Y164: 0.8779976634 | Z164: 0.5096656931 | AA164: 0.5175083611 | AB164: 0.4751474003 | AC164: 0.7612729775 | AD164: 0.8788643003 | AE164: 0.8832633956 | AF164: 0.3222533639 | AG164: 0.6566170866 | AH164: 0.5028534763 | AI164: 0.5069835048 | AJ164: 0.5030731924 | AK164: 0.6745876107 | AL164: 0.723677906 | AM164: 0.880523241 | AN164: 0.3901943506 | AO164: 0.4939207207 | AP164: 0.3921309475 | AQ164: 0.526102407 | AR164: 0.8832701392 | AS164: 0.8788674788 | AT164: 0.7823359324 | AU164: 0.884143733 | AV164: 0.7130924496 | AW164: 0.7620642035 | AX164: 0.8807549243 | AY164: 0.5378252615 | AZ164: 0.5682239833 | BA164: 0.5075236451 | BB164: 0.7615352419 | BC164: 0.8823758868 | BD164: 0.884982415 | BE164: 0.4950225172 | BF164: 0.884167581 | BG164: 0.5716512485 | BH164: 0.8850786436 | BI164: 0.8825970258 | BJ164: 0.7825782998 | BK164: 0.8866751216 | BL164: 0.8867667034
A165: R-Squared | B165: 0.214312557 | C165: 0.2866917639 | D165: 0.0001040675987 | E165: 0.03316464467 | F165: 0.0361254948 | G165: 0.1026806287 | H165: 0.4289093731 | I165: 0.2250995507 | J165: 0.2252079882 | K165: 0.2171592597 | L165: 0.4524460484 | M165: 0.5178843109 | N165: 0.770879507 | O165: 0.04970471735 | P165: 0.09842504209 | Q165: 0.04112976679 | R165: 0.2440625085 | S165: 0.312722195 | T165: 0.102888032 | U165: 0.1348673222 | V165: 0.1525942036 | W165: 0.5084940904 | X165: 0.5806741453 | Y165: 0.7708798969 | Z165: 0.2597591187 | AA165: 0.2678149038 | AB165: 0.2257650521 | AC165: 0.5795365462 | AD165: 0.7724024583 | AE165: 0.7801542259 | AF165: 0.1038472305 | AG165: 0.4311459984 | AH165: 0.2528616186 | AI165: 0.2570322742 | AJ165: 0.2530826369 | AK165: 0.4550684445 | AL165: 0.5237097117 | AM165: 0.7753211779 | AN165: 0.1522516312 | AO165: 0.2439576783 | AP165: 0.15376668 | AQ165: 0.2767837427 | AR165: 0.7801661388 | AS165: 0.7724080453 | AT165: 0.6120495112 | AU165: 0.7817101406 | AV165: 0.5085008417 | AW165: 0.5807418503 | AX165: 0.7757292367 | AY165: 0.289256012 | AZ165: 0.3228784952 | BA165: 0.2575802503 | BB165: 0.5799359247 | BC165: 0.7785872056 | BD165: 0.7831938749 | BE165: 0.2450472925 | BF165: 0.7817523112 | BG165: 0.3267851499 | BH165: 0.7833642053 | BI165: 0.7789775099 | BJ165: 0.6124287954 | BK165: 0.7861927713 | BL165: 0.7863551863
A166: Adjusted R-Squared | B166: 0.1619333941 | C166: 0.2391378815 | D166: -0.06655566123 | E166: -0.03129104569 | F166: -0.02813280554 | G166: 0.04285933724 | H166: 0.3473249978 | I166: 0.1143994865 | J166: 0.1145234151 | K166: 0.1053248682 | L166: 0.3742240553 | M166: 0.449010641 | N166: 0.738148008 | O166: -0.0860517516 | P166: -0.03037138047 | Q166: -0.0958516951 | R166: 0.1360714383 | S166: 0.2145396514 | T166: -0.02527082053 | U166: 0.01127693968 | V166: 0.03153623268 | W166: 0.3950696497 | X166: 0.4839066403 | Y166: 0.7180060269 | Z166: 0.08893429998 | AA166: 0.09884911232 | AB166: 0.04709544868 | AC166: 0.4825065184 | AD166: 0.7198799487 | AE166: 0.7294205858 | AF166: -0.1029572548 | AG166: 0.299871998 | AH166: 0.08044506908 | AI166: 0.0855781836 | AJ166: 0.08071709157 | AK166: 0.3293150086 | AL166: 0.4137965682 | AM166: 0.7234722189 | AN166: -0.0433826077 | AO166: 0.06948637333 | AP166: -0.04151793231 | AQ166: 0.03571165689 | AR166: 0.706888185 | AS166: 0.6965440604 | AT166: 0.4827326816 | AU166: 0.7089468541 | AV166: 0.344667789 | AW166: 0.4409891337 | AX166: 0.7009723157 | AY166: 0.05234134927 | AZ166: 0.09717132692 | BA166: 0.01010700039 | BB166: 0.4399145662 | BC166: 0.7047829408 | BD166: 0.7109251665 | BE166: -0.006603609964 | BF166: 0.6825488163 | BG166: 0.02077839981 | BH166: 0.6848933895 | BI166: 0.6785127417 | BJ166: 0.436260066 | BK166: 0.6890076673 | BL166: 0.658168298
A167: Significance F | B167: 0.06130088999 | C167: 0.02675822645 | D167: 0.9690035019 | E167: 0.4842041533 | F167: 0.4649767675 | G167: 0.2098589362 | H167: 0.01981231509 | I167: 0.1677727368 | J167: 0.167608462 | K167: 0.1801830494 | L167: 0.01475667196 | M167: 0.006054229116 | N167: 3.314725322e-05 | O167: 0.6998581328 | P167: 0.4841867291 | Q167: 0.7452789541 | R167: 0.1410591284 | S167: 0.07243129218 | T167: 0.4676560456 | U167: 0.3627262746 | V167: 0.3137906597 | W167: 0.02273232524 | X167: 0.008530213204 | Y167: 0.0001883809849 | Z167: 0.255889446 | AA167: 0.2407211788 | AB167: 0.3276069017 | AC167: 0.008674984827 | AD167: 0.0001805400994 | AE167: 0.0001447327358 | AF167: 0.6873551504 | AG167: 0.05519384357 | AH167: 0.2694228126 | AI167: 0.2611789893 | AJ167: 0.2689812593 | AK167: 0.04260308607 | AL167: 0.0187437611 | AM167: 0.0001662736355 | AN167: 0.5268192084 | AO167: 0.2876510202 | AP167: 0.5221226079 | AQ167: 0.3807197368 | AR167: 0.0006411978764 | AS167: 0.0007830560177 | AT167: 0.01592899105 | AU167: 0.0006156495152 | AV167: 0.0571083293 | AW167: 0.02435557421 | AX167: 0.0007194831153 | AY167: 0.3526319144 | AZ167: 0.2831024672 | BA167: 0.4262526025 | BB167: 0.02461126814 | BC167: 0.0006682146519 | BD167: 0.0005918891547 | BE167: 0.4573675245 | BF167: 0.002243873168 | BG167: 0.4283512206 | BH167: 0.002159616514 | BI167: 0.002394988494 | BJ167: 0.03958596856 | BK167: 0.002017825765 | BL167: 0.006323637997
A168: Coefficients
A169: Intercept | B169: 35233.98145 | C169: 33405.16709 | D169: 29777.39265 | E169: 30582.13719 | F169: 29176.08824 | G169: 6142.447846 | H169: 37445.92039 | I169: 35066.70783 | J169: 35466.76407 | K169: 34848.5074 | L169: 37560.83553 | M169: 37338.08504 | N169: 34246.77399 | O169: 30333.22794 | P169: 26602.76096 | Q169: 29811.83919 | R169: 20937.78832 | S169: 20502.59984 | T169: 6072.418559 | U169: 7008.297905 | V169: 3717.246059 | W169: 39290.1533 | X169: 39530.12671 | Y169: 34239.29612 | Z169: 35369.85015 | AA169: 32348.07813 | AB169: 35747.07063 | AC169: 39262.46466 | AD169: 33772.69671 | AE169: 35129.6275 | AF169: 27255.78064 | AG169: 33305.48385 | AH169: 21248.02136 | AI169: 20680.41901 | AJ169: 18398.96352 | AK169: 33151.12731 | AL169: 31019.83238 | AM169: 28855.13012 | AN169: 6654.243227 | AO169: -2735.939304 | AP169: 4303.049741 | AQ169: 33256.39615 | AR169: 35172.33732 | AS169: 33798.88594 | AT169: 40453.73146 | AU169: 34652.01847 | AV169: 39524.32052 | AW169: 38801.65083 | AX169: 28123.64921 | AY169: 21128.28515 | AZ169: 11148.07703 | BA169: 19872.2019 | BB169: 37526.49459 | BC169: 26967.2096 | BD169: 30571.56442 | BE169: -2168.336974 | BF169: 34726.56842 | BG169: 12551.00769 | BH169: 30076.87767 | BI169: 26256.87867 | BJ169: 42214.98199 | BK169: 28733.08133 | BL169: 28252.41699
A170: Coefficient 1 | B170: -3.780396761 | C170: -159.6775931 | D170: 8.300046191 | E170: -154.611872 | F170: 71.2254902 | G170: 1784.443229 | H170: -3.125393642 | I170: -3.951608956 | J170: -3.632248999 | K170: -3.643051802 | L170: -254.9373487 | M170: -233.5779729 | N170: -333.3075217 | O170: 124.2171763 | P170: 321.6410765 | Q170: -82.76549201 | R170: 1022.176358 | S170: 945.7318567 | T170: 1785.494214 | U170: 1775.988785 | V170: 1910.156458 | W170: -2.131852741 | X170: -2.166374388 | Y170: 0.006161347642 | Z170: -3.829889921 | AA170: -3.530004403 | AB170: -3.683995915 | AC170: -280.993286 | AD170: -329.4383683 | AE170: -334.4229889 | AF170: 322.7397161 | AG170: -2.998262871 | AH170: -3.439104454 | AI170: -3.087416348 | AJ170: -2.950822624 | AK170: -246.2847593 | AL170: -223.8356382 | AM170: -324.4140874 | AN170: 127.3544141 | AO170: 393.6653587 | AP170: -40.29548926 | AQ170: -3.571396212 | AR170: -0.03408700673 | AS170: -0.02339110025 | AT170: -1.64633139 | AU170: -330.514141 | AV170: -2.137306245 | AW170: -2.146186819 | AX170: 0.2077198673 | AY170: -3.298364406 | AZ170: -2.636349034 | BA170: -3.015104946 | BB170: -277.4747711 | BC170: -316.6361359 | BD170: -326.9289055 | BE170: 393.4900713 | BF170: -0.06432287643 | BG170: -2.697555789 | BH170: 0.1346462469 | BI170: 0.203156848 | BJ170: -1.685722331 | BK170: -319.4309533 | BL170: 0.1314825347
A171: Coefficient 2 | H171: -140.2046671 | I171: 86.2077762 | J171: -89.9476427 | K171: 20.963876 | L171: -421.0355547 | M171: -459.2427135 | N171: 339.995526 | O171: -224.4600474 | P171: 186.1049614 | Q171: 46.08912342 | R171: -3.26764354 | S171: -143.8658962 | T171: 11.71838984 | U171: -152.3206893 | V171: 84.14798435 | W171: -218.1150709 | X171: -208.6404711 | Y171: -333.4465892 | Z171: 181.0041331 | AA171: 290.5286512 | AB171: -108.6802212 | AC171: -275.9482953 | AD171: 51.89786 | AE171: -112.7254076 | AF171: -86.15793043 | AG171: -136.1242088 | AH171: 77.99730322 | AI171: -98.28129386 | AJ171: 38.31669199 | AK171: -405.8660761 | AL171: -445.9501305 | AM171: 335.4921405 | AN171: -223.9233469 | AO171: 226.4289917 | AP171: 71.76977209 | AQ171: 291.5786494 | AR171: -333.6553045 | AS171: -328.8924539 | AT171: -250.3490182 | AU171: 52.45699985 | AV171: -218.4716709 | AW171: -207.7810879 | AX171: -328.3118005 | AY171: 174.9173004 | AZ171: 346.8788145 | BA171: -79.33882079 | BB171: -270.7223558 | BC171: 78.40323262 | BD171: -104.6636438 | BE171: -38.8458264 | BF171: -329.0160366 | BG171: 345.4588861 | BH171: -329.4253612 | BI171: -320.4691619 | BJ171: -253.127792 | BK171: 75.1561711 | BL171: -321.8785351
A172: Coefficient 3 | W172: -316.9933644 | X172: -388.1518433 | Y172: 340.1926718 | Z172: -188.2089526 | AA172: 126.2906921 | AB172: -12.60783475 | AC172: -365.9138194 | AD172: 355.4117327 | AE172: 306.6596389 | AF172: 160.3306885 | AG172: 291.4379609 | AH172: 989.1737612 | AI172: 1058.764232 | AJ172: 1153.326848 | AK172: 312.2481187 | AL172: 454.771038 | AM172: 394.3794107 | AN172: 1783.43655 | AO172: 2158.024362 | AP172: 1889.427407 | AQ172: -110.9530418 | AR172: -112.896415 | AS172: 52.13869087 | AT172: -207.8968114 | AU172: -112.9266213 | AV172: -317.5175353 | AW172: -387.3246894 | AX172: 341.7381886 | AY172: -192.9330547 | AZ172: 168.5721221 | BA172: 12.94649911 | BB172: -364.1057643 | BC172: 357.8030574 | BD172: 305.2893179 | BE172: 214.4327422 | BF172: 53.12086786 | BG172: -73.95408865 | BH172: -103.4115971 | BI172: 78.19220704 | BJ172: -211.4848168 | BK172: -102.9105081 | BL172: 75.05810047
A173: Coefficient 4 | AQ173: 92.39756008 | AR173: 305.5183795 | AS173: 354.7348221 | AT173: -334.9042672 | AU173: 322.1824332 | AV173: -16.26796047 | AW173: 50.96349526 | AX173: 429.4440967 | AY173: 1019.989058 | AZ173: 1452.392485 | BA173: 1096.0257 | BB173: 122.3273622 | BC173: 480.0866442 | BD173: 328.7875828 | BE173: 2137.930686 | BF173: -113.2518623 | BG173: 144.3906132 | BH173: 309.6993769 | BI173: 363.8518467 | BJ173: -335.9670162 | BK173: 327.1821335 | BL173: -101.6901677
A174: Coefficient 5 | BF174: 320.2253018 | BG174: 1397.756162 | BH174: 352.3015357 | BI174: 514.1503734 | BJ174: -122.1002934 | BK174: 412.0439358 | BL174: 331.4600039
A175: Coefficient 6 | BL175: 434.8967531
A176: p-value for Intercept | B176: 1.439939918e-09 | C176: 7.653174337e-13 | D176: 4.409788109e-14 | E176: 5.864225512e-14 | F176: 8.423522172e-15 | G176: 0.7387089226 | H176: 7.833412392e-10 | I176: 5.705577896e-09 | J176: 5.477688694e-09 | K176: 4.400475529e-08 | L176: 3.648482675e-10 | M176: 2.578567708e-11 | N176: 1.607722437e-15 | O176: 1.270351605e-12 | P176: 1.69319346e-07 | Q176: 1.357635299e-08 | R176: 0.300043055 | S176: 0.2683128875 | T176: 0.7508130895 | U176: 0.709168978 | V176: 0.8426156799 | W176: 2.994144212e-09 | X176: 6.731132648e-10 | Y176: 9.747984893e-11 | Z176: 1.573240111e-08 | AA176: 3.541267775e-06 | AB176: 9.328688363e-07 | AC176: 4.264200105e-10 | AD176: 1.269463797e-10 | AE176: 5.32179336e-12 | AF176: 5.613675214e-06 | AG176: 0.09517191921 | AH176: 0.309427838 | AI176: 0.3205242912 | AJ176: 0.3983223549 | AK176: 0.08546062754 | AL176: 0.07419796166 | AM176: 0.01809542976 | AN176: 0.7307687368 | AO176: 0.8861369159 | AP176: 0.8292224966 | AQ176: 2.172689407e-05 | AR176: 3.002633339e-09 | AS176: 1.074824123e-08 | AT176: 3.322333956e-09 | AU176: 2.999055233e-09 | AV176: 0.05358420526 | AW176: 0.03900796594 | AX176: 0.03921370626 | AY176: 0.3206063491 | AZ176: 0.6195107188 | BA176: 0.3951639422 | BB176: 0.04148067227 | BC176: 0.04285853119 | BD176: 0.01845171905 | BE176: 0.9152790918 | BF176: 1.029436257e-07 | BG176: 0.6030826608 | BH176: 0.0393336116 | BI176: 0.07648099006 | BJ176: 0.03200544744 | BK176: 0.04273772545 | BL176: 0.0757213699
A177: p-value for Coefficient 1 | B177: 0.06130088999 | C177: 0.02675822645 | D177: 0.9690035019 | E177: 0.4842041533 | F177: 0.4649767675 | G177: 0.2098589362 | H177: 0.0829545954 | I177: 0.0633887551 | J177: 0.08360275477 | K177: 0.0935531106 | L177: 0.004305837596 | M177: 0.00214595572 | N177: 1.009809618e-05 | O177: 0.6292197362 | P177: 0.3420202169 | Q177: 0.7908693192 | R177: 0.4701926418 | S177: 0.4785071181 | T177: 0.2260028464 | U177: 0.2203636939 | V177: 0.1870847377 | W177: 0.2450338243 | X177: 0.1863304283 | Y177: 0.9963185565 | Z177: 0.07697975068 | AA177: 0.1065107662 | AB177: 0.1017732126 | AC177: 0.001383102295 | AD177: 3.195503479e-05 | AE177: 1.687457291e-05 | AF177: 0.3575657303 | AG177: 0.1239009106 | AH177: 0.1302233474 | AI177: 0.1674798813 | AJ177: 0.2087991012 | AK177: 0.01244210068 | AL177: 0.006234103047 | AM177: 4.427214294e-05 | AN177: 0.6143023875 | AO177: 0.2321391447 | AP177: 0.8952935431 | AQ177: 0.1160484741 | AR177: 0.9800747956 | AS177: 0.9865884462 | AT177: 0.3357328129 | AU177: 5.30032107e-05 | AV177: 0.2756608579 | AW177: 0.225539329 | AX177: 0.88498357 | AY177: 0.1541881444 | AZ177: 0.2598541302 | BA177: 0.2195589928 | BB177: 0.004419314927 | BC177: 0.0001645813898 | BD177: 7.226043096e-05 | BE177: 0.2516020392 | BF177: 0.9640547173 | BG177: 0.2723041117 | BH177: 0.9275767223 | BI177: 0.8916741492 | BJ177: 0.3575292854 | BK177: 0.000261707067 | BL177: 0.9322416735
A178: p-value for Coefficient 2 | H178: 0.03780406439 | I178: 0.6656218494 | J178: 0.664036821 | K178: 0.8247491372 | L178: 0.05863942201 | M178: 0.02134594493 | N178: 8.722941702e-05 | O178: 0.4070377764 | P178: 0.2369314891 | Q178: 0.7381520436 | R178: 0.1279319777 | S178: 0.05758869206 | T178: 0.9554355014 | U178: 0.4823552432 | V178: 0.3791985202 | W178: 0.01692751525 | X178: 0.005534283411 | Y178: 8.550935382e-05 | Z178: 0.4499498522 | AA178: 0.3602413711 | AB178: 0.7099879561 | AC178: 0.1906648961 | AD178: 0.7726986047 | AE178: 0.4721221918 | AF178: 0.7835395724 | AG178: 0.05917448016 | AH178: 0.7019262549 | AI178: 0.64171137 | AJ178: 0.6983659846 | AK178: 0.08827639846 | AL178: 0.03210063081 | AM178: 0.0001791407102 | AN178: 0.4000562238 | AO178: 0.1433652759 | AP178: 0.5991118975 | AQ178: 0.3756612349 | AR178: 0.0001359997789 | AS178: 0.0002378123622 | AT178: 0.006328360653 | AU178: 0.7749299414 | AV178: 0.02800306759 | AW178: 0.01020004867 | AX178: 0.0001920057353 | AY178: 0.4749332226 | AZ178: 0.2878488724 | BA178: 0.7920307365 | BB178: 0.2290666406 | BC178: 0.6813918545 | BD178: 0.5216521732 | BE178: 0.8974787333 | BF178: 0.0003750595639 | BG178: 0.3103974257 | BH178: 0.0003099637338 | BI178: 0.000585943874 | BJ178: 0.01147854853 | BK178: 0.7019758999 | BL178: 0.0009248288496
A179: p-value for Coefficient 3 | W179: 0.1705212531 | X179: 0.04920695075 | Y179: 0.0007112363062 | Z179: 0.4492555274 | AA179: 0.3996218629 | AB179: 0.9244289035 | AC179: 0.06899297769 | AD179: 0.0009042780774 | AE179: 0.001699287643 | AF179: 0.3915894616 | AG179: 0.8246526407 | AH179: 0.4992780159 | AI179: 0.4688156073 | AJ179: 0.4432929048 | AK179: 0.8064030759 | AL179: 0.6965511428 | AM179: 0.6206804404 | AN179: 0.2319210802 | AO179: 0.1376876404 | AP179: 0.2110948763 | AQ179: 0.7064212436 | AR179: 0.4900926847 | AS179: 0.7813604925 | AT179: 0.3440034191 | AU179: 0.4881018409 | AV179: 0.1944799381 | AW179: 0.06077030845 | AX179: 0.001043080582 | AY179: 0.4483054945 | AZ179: 0.2871228603 | BA179: 0.926573065 | BB179: 0.08333991782 | BC179: 0.00125993011 | BD179: 0.002577440343 | BE179: 0.2479188607 | BF179: 0.7826211408 | BG179: 0.8051964877 | BH179: 0.5462140563 | BI179: 0.6953328869 | BJ179: 0.363329149 | BK179: 0.5443801568 | BL179: 0.716094668
A180: p-value for Coefficient 4 | AQ180: 0.6047783667 | AR180: 0.006341453057 | AS180: 0.002872372218 | AT180: 0.09874242834 | AU180: 0.005956351652 | AV180: 0.98996739 | AW180: 0.9656116731 | AX180: 0.6197199313 | AY180: 0.4938453018 | AZ180: 0.342728074 | BA180: 0.4870331543 | BB180: 0.9167020773 | BC180: 0.5733219385 | BD180: 0.6889076887 | BE180: 0.15993749 | BF180: 0.5067515814 | BG180: 0.4501134077 | BH180: 0.008341663181 | BI180: 0.003696326955 | BJ180: 0.1138796361 | BK180: 0.007632314422 | BL180: 0.5698027073
A181: p-value for Coefficient 5 | BF181: 0.01382335882 | BG181: 0.3854267727 | BH181: 0.694690159 | BI181: 0.57895542 | BJ181: 0.9192324204 | BK181: 0.6404698876 | BL181: 0.01715487594
A182: p-value for Coefficient 6 | BL182: 0.6524726625
A184: Adjusted R-Squared Rank | B184: =IFERROR(RANK(B166,$B166:$BL166),"") -> 33 | C184: =IFERROR(RANK(C166,$B166:$BL166),"") -> 31 | D184: 60 | E184: 57 | F184: 55 | G184: 47 | H184: 27 | I184: 36 | J184: 35 | K184: 37 | L184: 26 | M184: 20 | N184: 1 | O184: 61 | P184: 56 | Q184: 62 | R184: 34 | S184: 32 | T184: 54 | U184: 51 | V184: 49 | W184: 25 | X184: 17 | Y184: 5 | Z184: 40 | AA184: 38 | AB184: 46 | AC184: 19 | AD184: 4 | AE184: 2 | AF184: 63 | AG184: 30 | AH184: 43 | AI184: 41 | AJ184: 42 | AK184: 29 | AL184: 24 | AM184: 3 | AN184: 59 | AO184: 44 | AP184: 58 | AQ184: 48 | AR184: 8 | AS184: 11 | AT184: 18 | AU184: 7 | AV184: 28 | AW184: 21 | AX184: 10 | AY184: 45 | AZ184: 39 | BA184: 52 | BB184: 22 | BC184: 9 | BD184: 6 | BE184: 53 | BF184: 14 | BG184: 50 | BH184: 13 | BI184: 15 | BJ184: 23 | BK184: 12 | BL184: 16
A185: ="Adjusted R-Squared > "&$B$18&", p-Values at "&$B$16&" signficance, and F-Test < "&$B$17&", and Correct Signs" -> Adjusted R-Squared > 0.6, p-Values at 0.2 signficance, and F-Test < 0.15, and Correct Signs | B185: =IFERROR(IF(COUNT(B176:B182)=0,"",IF(AND(B177<=$B$16,B178<=$B$16,B179<=$B$16,B180<=$B$16,B181<=$B$16,B182<=$B$16,B166>=$B$18,B167<$B$17,B186="Yes"),"!!!","")),"") ->  | C185: =IFERROR(IF(COUNT(C176:C182)=0,"",IF(AND(C177<=$B$16,C178<=$B$16,C179<=$B$16,C180<=$B$16,C181<=$B$16,C182<=$B$16,C166>=$B$18,C167<$B$17,C186="Yes"),"!!!","")),"") -> 
A186: Correct Signs? | B186: =IFERROR(IF(COUNT(B176:B182)=0,"",IF(AND(IF(B$95="",IF(B170<0,"negative","positive"),IF(OR(B$95="Trend",B$95="Log Trend"),IF(B170<0,"negative","positive"),IF($B$4="Log",VLOOKUP(B$95,$W$19:$X$23,2,FALSE),VLOOKUP(B$95,$W$12:$X$17,2,FALSE))))=IF(B170<0,"negative","positive"),IF(B$96="",IF(B171<0,"negative","positive"),IF(OR(B$96="Trend",B$96="Log Trend"),IF(B171<0,"negative","positive"),IF($B$4="Log",VLOOKUP(B$96,$W$19:$X$23,2,FALSE),VLOOKUP(B$96,$W$12:$X$17,2,FALSE))))=IF(B171<0,"negative","positive"),IF(B$97="",IF(B172<0,"negative","positive"),IF(OR(B$97="Trend",B$97="Log Trend"),IF(B172<0,"negative","positive"),IF($B$4="Log",VLOOKUP(B$97,$W$19:$X$23,2,FALSE),VLOOKUP(B$97,$W$12:$X$17,2,FALSE))))=IF(B172<0,"negative","positive"),IF(B$98="",IF(B173<0,"negative","positive"),IF(OR(B$98="Trend",B$98="Log Trend"),IF(B173<0,"negative","positive"),IF($B$4="Log",VLOOKUP(B$98,$W$19:$X$23,2,FALSE),VLOOKUP(B$98,$W$12:$X$17,2,FALSE))))=IF(B173<0,"negative","positive"),IF(B$99="",IF(B174<0,"negative","positive"),IF(OR(B$99="Trend",B$99="Log Trend"),IF(B174<0,"negative","positive"),IF($B$4="Log",VLOOKUP(B$99,$W$19:$X$23,2,FALSE),VLOOKUP(B$99,$W$12:$X$17,2,FALSE))))=IF(B174<0,"negative","positive"),IF(B$100="",IF(B175<0,"negative","positive"),IF(OR(B$100="Trend",B$100="Log Trend"),IF(B175<0,"negative","positive"),IF($B$4="Log",VLOOKUP(B$100,$W$19:$X$23,2,FALSE),VLOOKUP(B$100,$W$12:$X$17,2,FALSE))))=IF(B175<0,"negative","positive")),"YES","")),"") ->  | C186: =IFERROR(IF(COUNT(C176:C182)=0,"",IF(AND(IF(C$95="",IF(C170<0,"negative","positive"),IF(OR(C$95="Trend",C$95="Log Trend"),IF(C170<0,"negative","positive"),IF($B$4="Log",VLOOKUP(C$95,$W$19:$X$23,2,FALSE),VLOOKUP(C$95,$W$12:$X$17,2,FALSE))))=IF(C170<0,"negative","positive"),IF(C$96="",IF(C171<0,"negative","positive"),IF(OR(C$96="Trend",C$96="Log Trend"),IF(C171<0,"negative","positive"),IF($B$4="Log",VLOOKUP(C$96,$W$19:$X$23,2,FALSE),VLOOKUP(C$96,$W$12:$X$17,2,FALSE))))=IF(C171<0,"negative","positive"),IF(C$97="",IF(C172<0,"negative","positive"),IF(OR(C$97="Trend",C$97="Log Trend"),IF(C172<0,"negative","positive"),IF($B$4="Log",VLOOKUP(C$97,$W$19:$X$23,2,FALSE),VLOOKUP(C$97,$W$12:$X$17,2,FALSE))))=IF(C172<0,"negative","positive"),IF(C$98="",IF(C173<0,"negative","positive"),IF(OR(C$98="Trend",C$98="Log Trend"),IF(C173<0,"negative","positive"),IF($B$4="Log",VLOOKUP(C$98,$W$19:$X$23,2,FALSE),VLOOKUP(C$98,$W$12:$X$17,2,FALSE))))=IF(C173<0,"negative","positive"),IF(C$99="",IF(C174<0,"negative","positive"),IF(OR(C$99="Trend",C$99="Log Trend"),IF(C174<0,"negative","positive"),IF($B$4="Log",VLOOKUP(C$99,$W$19:$X$23,2,FALSE),VLOOKUP(C$99,$W$12:$X$17,2,FALSE))))=IF(C174<0,"negative","positive"),IF(C$100="",IF(C175<0,"negative","positive"),IF(OR(C$100="Trend",C$100="Log Trend"),IF(C175<0,"negative","positive"),IF($B$4="Log",VLOOKUP(C$100,$W$19:$X$23,2,FALSE),VLOOKUP(C$100,$W$12:$X$17,2,FALSE))))=IF(C175<0,"negative","positive")),"YES","")),"") ->  | E186: YES | F186: YES | G186: YES | Q186: YES | U186: YES | V186: YES | AP186: YES
A188: Different Scenarios (16 Years): | B188: =B$95 -> Degree Days | C188: =C$95 -> Customers | D188: Rate | E188: Lag Rate | F188: Trend | G188: Nonfarm | H188: Degree Days | I188: Degree Days | J188: Degree Days | K188: Degree Days | L188: Customers | M188: Customers | N188: Customers | O188: Rate | P188: Rate | Q188: Lag Rate | R188: Nonfarm | S188: Nonfarm | T188: Nonfarm | U188: Nonfarm | V188: Nonfarm | W188: Degree Days | X188: Degree Days | Y188: Degree Days | Z188: Degree Days | AA188: Degree Days | AB188: Degree Days | AC188: Customers | AD188: Customers | AE188: Customers | AF188: Rate | AG188: Degree Days | AH188: Degree Days | AI188: Degree Days | AJ188: Degree Days | AK188: Customers | AL188: Customers | AM188: Customers | AN188: Rate | AO188: Rate | AP188: Lag Rate | AQ188: Degree Days | AR188: Degree Days | AS188: Degree Days | AT188: Degree Days | AU188: Customers | AV188: Degree Days | AW188: Degree Days | AX188: Degree Days | AY188: Degree Days | AZ188: Degree Days | BA188: Degree Days | BB188: Customers | BC188: Customers | BD188: Customers | BE188: Rate | BF188: Degree Days | BG188: Degree Days | BH188: Degree Days | BI188: Degree Days | BJ188: Degree Days | BK188: Customers | BL188: Degree Days
B189: =B$96 ->  | C189: =C$96 ->  | H189: Customers | I189: Rate | J189: Lag Rate | K189: Trend | L189: Rate | M189: Lag Rate | N189: Trend | O189: Lag Rate | P189: Trend | Q189: Trend | R189: Degree Days | S189: Customers | T189: Rate | U189: Lag Rate | V189: Trend | W189: Customers | X189: Customers | Y189: Customers | Z189: Rate | AA189: Rate | AB189: Lag Rate | AC189: Rate | AD189: Rate | AE189: Lag Rate | AF189: Lag Rate | AG189: Customers | AH189: Rate | AI189: Lag Rate | AJ189: Trend | AK189: Rate | AL189: Lag Rate | AM189: Trend | AN189: Lag Rate | AO189: Trend | AP189: Trend | AQ189: Rate | AR189: Customers | AS189: Customers | AT189: Customers | AU189: Rate | AV189: Customers | AW189: Customers | AX189: Customers | AY189: Rate | AZ189: Rate | BA189: Lag Rate | BB189: Rate | BC189: Rate | BD189: Lag Rate | BE189: Lag Rate | BF189: Customers | BG189: Rate | BH189: Customers | BI189: Customers | BJ189: Customers | BK189: Rate | BL189: Customers
B190: =B$97 ->  | C190: =C$97 ->  | W190: Rate | X190: Lag Rate | Y190: Trend | Z190: Lag Rate | AA190: Trend | AB190: Trend | AC190: Lag Rate | AD190: Trend | AE190: Trend | AF190: Trend | AG190: Nonfarm | AH190: Nonfarm | AI190: Nonfarm | AJ190: Nonfarm | AK190: Nonfarm | AL190: Nonfarm | AM190: Nonfarm | AN190: Nonfarm | AO190: Nonfarm | AP190: Nonfarm | AQ190: Lag Rate | AR190: Lag Rate | AS190: Rate | AT190: Rate | AU190: Lag Rate | AV190: Rate | AW190: Lag Rate | AX190: Trend | AY190: Lag Rate | AZ190: Trend | BA190: Trend | BB190: Lag Rate | BC190: Trend | BD190: Trend | BE190: Trend | BF190: Rate | BG190: Lag Rate | BH190: Lag Rate | BI190: Rate | BJ190: Rate | BK190: Lag Rate | BL190: Rate
B191: =B$98 ->  | C191: =C$98 ->  | AQ191: Trend | AR191: Trend | AS191: Trend | AT191: Lag Rate | AU191: Trend | AV191: Nonfarm | AW191: Nonfarm | AX191: Nonfarm | AY191: Nonfarm | AZ191: Nonfarm | BA191: Nonfarm | BB191: Nonfarm | BC191: Nonfarm | BD191: Nonfarm | BE191: Nonfarm | BF191: Lag Rate | BG191: Trend | BH191: Trend | BI191: Trend | BJ191: Lag Rate | BK191: Trend | BL191: Lag Rate
B192: =B$99 ->  | C192: =C$99 ->  | BF192: Trend | BG192: Nonfarm | BH192: Nonfarm | BI192: Nonfarm | BJ192: Nonfarm | BK192: Nonfarm | BL192: Trend
B193: =B$100 ->  | C193: =C$100 ->  | BL193: Nonfarm
A194: Statistics
A195: Multiple R | B195: 0.5040895022 | C195: 0.5286590319 | D195: 0.007401320417 | E195: 0.1835023832 | F195: 0.2616595812 | G195: 0.3333589107 | H195: 0.6520533218 | I195: 0.5103689424 | J195: 0.5132737679 | K195: 0.5249571556 | L195: 0.6707000876 | M195: 0.72678594 | N195: 0.8911340078 | O195: 0.2141682124 | P195: 0.4181630452 | Q195: 0.262469923 | R195: 0.5337446747 | S195: 0.5511246467 | T195: 0.3334365063 | U195: 0.3791920616 | V195: 0.4581639867 | W195: 0.7084953206 | X195: 0.7595047316 | Y195: 0.8915199789 | Z195: 0.5360919466 | AA195: 0.6115384972 | AB195: 0.5252827831 | AC195: 0.7680630186 | AD195: 0.8961446171 | AE195: 0.89167173 | AF195: 0.4227720671 | AG195: 0.6544018252 | AH195: 0.5382272945 | AI195: 0.5442208357 | AJ195: 0.56858805 | AK195: 0.6717389102 | AL195: 0.7283719009 | AM195: 0.8961942136 | AN195: 0.3945121656 | AO195: 0.6127346211 | AP195: 0.4671625818 | AQ195: 0.6143390037 | AR195: 0.8920307077 | AS195: 0.8970125852 | AT195: 0.7815964012 | AU195: 0.8963070029 | AV195: 0.7084958618 | AW195: 0.7595069831 | AX195: 0.8961953036 | AY195: 0.5639907006 | AZ195: 0.6790887009 | BA195: 0.5721395615 | BB195: 0.7681281288 | BC195: 0.9057979537 | BD195: 0.8962565587 | BE195: 0.6337381133 | BF195: 0.8971387662 | BG195: 0.6918324968 | BH195: 0.8962581628 | BI195: 0.9058428492 | BJ195: 0.7822114247 | BK195: 0.9060401599 | BL195: 0.9060819854
A196: R-Squared | B196: 0.2541062263 | C196: 0.279480372 | D196: 5.477954391e-05 | E196: 0.03367312463 | F196: 0.06846573642 | G196: 0.1111281633 | H196: 0.4251735344 | I196: 0.2604764574 | J196: 0.2634499608 | K196: 0.2755800152 | L196: 0.4498386075 | M196: 0.5282178026 | N196: 0.7941198199 | O196: 0.04586802322 | P196: 0.1748603324 | Q196: 0.0688904605 | R196: 0.2848833777 | S196: 0.3037383762 | T196: 0.1111799037 | U196: 0.1437866196 | V196: 0.2099142387 | W196: 0.5019656193 | X196: 0.5768474374 | Y196: 0.7948078727 | Z196: 0.2873945752 | AA196: 0.3739793335 | AB196: 0.2759220023 | AC196: 0.5899208005 | AD196: 0.8030751748 | AE196: 0.7950784741 | AF196: 0.1787362207 | AG196: 0.4282417488 | AH196: 0.2896886205 | AI196: 0.296176318 | AJ196: 0.3232923706 | AK196: 0.4512331635 | AL196: 0.530525626 | AM196: 0.8031640684 | AN196: 0.1556398488 | AO196: 0.3754437159 | AP196: 0.2182408779 | AQ196: 0.3774124115 | AR196: 0.7957187834 | AS196: 0.804631578 | AT196: 0.6108929343 | AU196: 0.8033662434 | AV196: 0.5019663862 | AW196: 0.5768508573 | AX196: 0.8031660221 | AY196: 0.3180855103 | AZ196: 0.4611614637 | BA196: 0.3273436778 | BB196: 0.5900208223 | BC196: 0.8204699329 | BD196: 0.803275819 | BE196: 0.4016239962 | BF196: 0.8048579658 | BG196: 0.4786322036 | BH196: 0.8032786943 | BI196: 0.8205512674 | BJ196: 0.6118547129 | BK196: 0.8209087713 | BL196: 0.8209845643
A197: Adjusted R-Squared | B197: 0.2008280996 | C197: 0.2280146843 | D197: -0.07136987906 | E197: -0.03535022361 | F197: 0.001927574733 | G197: 0.04763731786 | H197: 0.3367386936 | I197: 0.1467036046 | J197: 0.1501345702 | K197: 0.1641307868 | L197: 0.3651983932 | M197: 0.4556359261 | N197: 0.762445946 | O197: -0.1009215117 | P197: 0.04791576811 | Q197: -0.07435716096 | R197: 0.1748654359 | S197: 0.1966212033 | T197: -0.02556164958 | U197: 0.01206148411 | V197: 0.08836258312 | W197: 0.3774570241 | X197: 0.4710592967 | Y197: 0.7435098409 | Z197: 0.1092432191 | AA197: 0.2174741669 | AB197: 0.09490250283 | AC197: 0.4874010006 | AD197: 0.7538439684 | AE197: 0.7438480926 | AF197: -0.02657972414 | AG197: 0.285302186 | AH197: 0.1121107756 | AI197: 0.1202203975 | AJ197: 0.1541154632 | AK197: 0.3140414544 | AL197: 0.4131570325 | AM197: 0.7539550855 | AN197: -0.05545018897 | AO197: 0.2193046448 | AP197: 0.02280109734 | AQ197: 0.1510169247 | AR197: 0.7214347046 | AS197: 0.7335885155 | AT197: 0.4693994559 | AU197: 0.7318630592 | AV197: 0.3208632539 | AW197: 0.4229784418 | AX197: 0.7315900302 | AY197: 0.07011660498 | AZ197: 0.2652201778 | BA197: 0.08274137884 | BB197: 0.440937485 | BC197: 0.7551862722 | BD197: 0.7317397531 | BE197: 0.1840327222 | BF197: 0.7072869486 | BG197: 0.2179483054 | BH197: 0.7049180415 | BI197: 0.730826901 | BJ197: 0.4177820694 | BK197: 0.7313631569 | BL197: 0.7016409405
A198: Significance F | B198: 0.04648049604 | C198: 0.0352598514 | D198: 0.9782971383 | E198: 0.4963266188 | F198: 0.3276118196 | G198: 0.207041493 | H198: 0.02735198876 | I198: 0.1406656404 | J198: 0.1370296884 | K198: 0.1230092437 | L198: 0.02056769951 | M198: 0.007573908729 | N198: 3.455369593e-05 | O198: 0.7369786925 | P198: 0.2867005512 | Q198: 0.6287891584 | R198: 0.1130966326 | S198: 0.09506507191 | T198: 0.4648256932 | U198: 0.3645717963 | V198: 0.2162133612 | W198: 0.03383282841 | X198: 0.01342944903 | Y198: 0.0001986847233 | Z198: 0.2381766432 | AA198: 0.1197754369 | AB198: 0.2586698577 | AC198: 0.01122276201 | AD198: 0.0001559075124 | AE198: 0.0001971455897 | AF198: 0.4832042345 | AG198: 0.07299714326 | AH198: 0.2342242372 | AI198: 0.2233049244 | AJ198: 0.1816734783 | AK198: 0.05817436138 | AL198: 0.02424613941 | AM198: 0.0001554928641 | AN198: 0.5497518888 | AO198: 0.1182677441 | AP198: 0.3808085719 | AQ198: 0.2270158258 | AR198: 0.0008644746741 | AS198: 0.0006825534851 | AT198: 0.02425815585 | AU198: 0.0007063169787 | AV198: 0.08132135204 | AW198: 0.03682384295 | AX198: 0.0007101373198 | AY198: 0.3347831462 | AZ198: 0.1179186442 | BA198: 0.3162869766 | BB198: 0.0314832321 | BC198: 0.0004356220279 | BD198: 0.0007080402828 | BE198: 0.1904225782 | BF198: 0.002544655638 | BG198: 0.1933723963 | BH198: 0.00264308187 | BI198: 0.001712540087 | BJ198: 0.05764738347 | BK198: 0.001696437427 | BL198: 0.005664096767
A199: Coefficients
A200: Intercept | B200: 35718.56532 | C200: 33533.741 | D200: 29792.50747 | E200: 30529.64118 | F200: 28857.175 | G200: 5203.323623 | H200: 37478.05876 | I200: 35570.5774 | J200: 35924.95113 | K200: 34774.25631 | L200: 37775.13495 | M200: 37853.67266 | N200: 34229.54764 | O200: 30322.8979 | P200: 25346.70482 | Q200: 28644.71424 | R200: 21277.6911 | S200: 20836.33189 | T200: 5231.299333 | U200: 6068.832754 | V200: 646.3451707 | W200: 39282.2786 | X200: 39570.80143 | Y200: 34527.92024 | Z200: 35793.36398 | AA200: 31283.86259 | AB200: 34582.48915 | AC200: 39753.98767 | AD200: 32998.40768 | AE200: 34561.15822 | AF200: 24614.50925 | AG200: 32631.12523 | AH200: 21495.01229 | AI200: 21032.98844 | AJ200: 15859.24935 | AK200: 34476.58535 | AL200: 33747.39799 | AM200: 26440.42972 | AN200: 5902.713402 | AO200: -9850.732754 | AP200: -1589.787675 | AQ200: 30588.33249 | AR200: 34840.91043 | AS200: 33380.98949 | AT200: 40553.08464 | AU200: 33216.61518 | AV200: 39361.72073 | AW200: 39406.04752 | AX200: 26487.9357 | AY200: 21367.28198 | AZ200: 4317.365035 | BA200: 14055.7357 | BB200: 40651.23826 | BC200: 21035.87718 | BD200: 26748.94238 | BE200: -14583.26864 | BF200: 33566.15231 | BG200: -235.9487432 | BH200: 26807.98982 | BI200: 21321.4519 | BJ200: 43388.93752 | BK200: 20198.67634 | BL200: 20479.5915
A201: Coefficient 1 | B201: -4.191835843 | C201: -164.3456566 | D201: -6.050994999 | E201: -154.7483302 | F201: 106.6926471 | G201: 1850.279495 | H201: -3.283010261 | I201: -4.306811675 | J201: -4.048763623 | K201: -3.89505887 | L201: -262.263424 | M201: -249.2544444 | N201: -329.5934137 | O201: 107.674354 | P201: 435.8585553 | Q201: 26.41725391 | R201: 1032.735907 | S201: 924.7689773 | T201: 1850.254555 | U201: 1841.877643 | V201: 2110.604586 | W201: -2.167996196 | X201: -2.025891461 | Y201: -0.2605867393 | Z201: -4.168321647 | AA201: -3.820606312 | AB201: -3.894322903 | AC201: -296.0070914 | AD201: -319.0737071 | AE201: -330.3191909 | AF201: 446.4381576 | AG201: -3.150349582 | AH201: -3.788733914 | AI201: -3.501972892 | AJ201: -3.119820575 | AK201: -254.9609399 | AL201: -241.6106488 | AM201: -316.4505893 | AN201: 106.1564324 | AO201: 554.1786012 | AP201: 118.9935273 | AQ201: -3.816484533 | AR201: -0.2514986937 | AS201: -0.3955913316 | AT201: -1.414347653 | AU201: -319.7637269 | AV201: -2.16940772 | AW201: -2.022248732 | AX201: -0.01438692677 | AY201: -3.633317299 | AZ201: -2.730045701 | BA201: -3.070931365 | BB201: -298.0933496 | BC201: -294.9575461 | BD201: -317.0292971 | BE201: 591.6865609 | BF201: -0.3878001708 | BG201: -2.601640273 | BH201: -0.01746057126 | BI201: -0.09298291473 | BJ201: -1.458075581 | BK201: -292.9496874 | BL201: -0.08976958014
A202: Coefficient 2 | H202: -132.9909617 | I202: 66.22407231 | J202: -82.79749439 | K202: 61.49850811 | L202: -424.4752657 | M202: -479.5262705 | N202: 364.0663275 | O202: -215.2709235 | P202: 278.6401291 | Q202: 116.3124124 | R202: -3.676337172 | S202: -145.9495235 | T202: -5.880745882 | U202: -152.4043361 | V202: 129.5770675 | W202: -216.2192799 | X202: -215.81631 | Y202: -323.6123566 | Z202: 151.508356 | AA202: 419.3230788 | AB202: 23.70520726 | AC202: -274.2317694 | AD202: 131.5680414 | AE202: -39.76131873 | AF202: 80.44586457 | AG202: -127.4665798 | AH202: 57.62266209 | AI202: -91.15732569 | AJ202: 84.88194024 | AK202: -412.8033025 | AL202: -469.1944562 | AM202: 359.9480235 | AN202: -212.0773356 | AO202: 353.0966009 | AP202: 173.9458294 | AQ202: 429.2981859 | AR202: -324.5287463 | AS202: -309.3926859 | AT202: -262.8292658 | AU202: 127.9961741 | AV202: -216.3630021 | AW202: -215.5754941 | AX202: -316.1727395 | AY202: 145.0291993 | AZ202: 508.99687 | BA202: 83.28623872 | BB202: -276.8718041 | BC202: 192.8361026 | BD202: -13.90703869 | BE202: 214.030448 | BF202: -310.1927058 | BG202: 541.9280141 | BH202: -316.6946985 | BI202: -293.0764671 | BJ202: -268.3398826 | BK202: 200.2647636 | BL202: -291.1461091
A203: Coefficient 3 | W203: -314.6324395 | X203: -399.954216 | Y203: 356.3722529 | Z203: -165.8340343 | AA203: 227.7865646 | AB203: 70.139229 | AC203: -386.3021364 | AD203: 407.7556535 | AE203: 350.1541068 | AF203: 312.1079382 | AG203: 341.400463 | AH203: 1007.985506 | AI203: 1066.485638 | AJ203: 1327.024964 | AK203: 231.7435809 | AL203: 292.286476 | AM203: 566.718435 | AN203: 1839.038158 | AO203: 2562.013816 | AP203: 2206.303017 | AQ203: 75.71372048 | AR203: -38.77636482 | AS203: 139.0884173 | AT203: -216.5527316 | AU203: -22.15627193 | AV203: -314.8385586 | AW203: -399.6905241 | AX203: 359.5396435 | AY203: -170.3844914 | AZ203: 295.7620946 | BA203: 116.6370277 | BB203: -387.6162112 | BC203: 422.0789498 | BD203: 355.1838375 | BE203: 448.0297628 | BF203: 135.7860086 | BG203: 175.7876101 | BH203: -13.96979596 | BI203: 193.6016993 | BJ203: -223.0408541 | BK203: 28.35387945 | BL203: 200.9576783
A204: Coefficient 4 | AQ204: 259.3405271 | AR204: 343.0729943 | AS204: 398.5727024 | AT204: -350.3578127 | AU204: 398.8172244 | AV204: -5.512363204 | AW204: 11.5074838 | AX204: 564.4605515 | AY204: 1033.524657 | AZ204: 1839.527709 | BA204: 1406.285542 | BB204: -62.56449834 | BC204: 828.6535212 | BD204: 552.7105701 | BE204: 2764.696318 | BF204: -19.56607395 | BG204: 376.4293343 | BH204: 354.6667116 | BI204: 419.6862559 | BJ204: -353.3635934 | BK204: 434.1857251 | BL204: 28.1774496
A205: Coefficient 5 | BF205: 390.8600859 | BG205: 2039.976551 | BH205: 549.9070967 | BI205: 815.1007206 | BJ205: -196.0188143 | BK205: 867.3035407 | BL205: 431.8003852
A206: Coefficient 6 | BL206: 853.9786055
A207: p-value for Intercept | B207: 3.540753051e-09 | C207: 1.043042049e-11 | D207: 2.904192913e-13 | E207: 4.133963165e-13 | F207: 8.996583728e-14 | G207: 0.783428322 | H207: 3.114635406e-09 | I207: 1.520926975e-08 | J207: 1.379209804e-08 | K207: 6.984433e-08 | L207: 2.064301857e-09 | M207: 2.081036148e-10 | N207: 1.70272613e-14 | O207: 7.909910491e-12 | P207: 7.985575087e-07 | Q207: 2.567472891e-07 | R207: 0.2952236632 | S207: 0.2913306323 | T207: 0.7905850318 | U207: 0.7539166065 | V207: 0.9726860377 | W207: 1.272231342e-08 | X207: 3.130621095e-09 | Y207: 1.956213185e-10 | Z207: 4.576641244e-08 | AA207: 4.871881216e-06 | AB207: 2.784909249e-06 | AC207: 2.326519515e-09 | AD207: 8.109232877e-10 | AE207: 1.183924871e-10 | AF207: 9.465315254e-05 | AG207: 0.1166778177 | AH207: 0.3094032332 | AI207: 0.317193227 | AJ207: 0.4608295651 | AK207: 0.09591582844 | AL207: 0.07127339128 | AM207: 0.02739392063 | AN207: 0.7683940696 | AO207: 0.5966211738 | AP207: 0.9384639447 | AQ207: 8.125490546e-05 | AR207: 1.176098039e-08 | AS207: 2.294384954e-08 | AT207: 1.524234929e-08 | AU207: 6.975940921e-08 | AV207: 0.06906684524 | AW207: 0.04763466941 | AX207: 0.04792730178 | AY207: 0.3246992542 | AZ207: 0.8377010572 | BA207: 0.5497794218 | BB207: 0.04056902609 | BC207: 0.1007962942 | BD207: 0.04262017881 | BE207: 0.4755119711 | BF207: 6.147962663e-07 | BG207: 0.9918918021 | BH207: 0.06930590584 | BI207: 0.1326801764 | BJ207: 0.03877147981 | BK207: 0.1630628066 | BL207: 0.2012206413
A208: p-value for Coefficient 1 | B208: 0.04648049604 | C208: 0.0352598514 | D208: 0.9782971383 | E208: 0.4963266188 | F208: 0.3276118196 | G208: 0.207041493 | H208: 0.09262360722 | I208: 0.05193194137 | J208: 0.06520331106 | K208: 0.07600147668 | L208: 0.006206620165 | M208: 0.002713637867 | N208: 1.323301215e-05 | O208: 0.6901849768 | P208: 0.2179492217 | Q208: 0.9397913105 | R208: 0.4677808845 | S208: 0.5127359188 | T208: 0.2246652087 | U208: 0.2185152875 | V208: 0.1510702854 | W208: 0.2843401089 | X208: 0.2630389147 | Y208: 0.8443744676 | Z208: 0.06666669095 | AA208: 0.07444911646 | AB208: 0.08872592987 | AC208: 0.001793562318 | AD208: 4.675880706e-05 | AE208: 2.84710981e-05 | AF208: 0.229229258 | AG208: 0.1319553779 | AH208: 0.1080364094 | AI208: 0.1329582769 | AJ208: 0.1816531245 | AK208: 0.01837143119 | AL208: 0.008467501503 | AM208: 6.085494924e-05 | AN208: 0.6887198534 | AO208: 0.09981561625 | AP208: 0.7269184429 | AQ208: 0.08778455992 | AR208: 0.8560714167 | AS208: 0.7727238064 | AT208: 0.4575253729 | AU208: 0.0001014511959 | AV208: 0.3124945429 | AW208: 0.2959150988 | AX208: 0.9918501414 | AY208: 0.1337864341 | AZ208: 0.2127343578 | BA208: 0.2086174793 | BB208: 0.005785235632 | BC208: 0.0002847114789 | BD208: 0.0001342684466 | BE208: 0.09349966016 | BF208: 0.7878072979 | BG208: 0.2521518206 | BH208: 0.990591702 | BI208: 0.9476511756 | BJ208: 0.4705248904 | BK208: 0.0006829520543 | BL208: 0.9521276117
A209: p-value for Coefficient 2 | H209: 0.07090915156 | I209: 0.7432369307 | J209: 0.691276027 | K209: 0.5454811403 | L209: 0.06608347388 | M209: 0.02126631115 | N209: 7.286420217e-05 | O209: 0.443663142 | P209: 0.1209253379 | Q209: 0.4955318218 | R209: 0.09891361339 | S209: 0.08035273011 | T209: 0.9784713438 | U209: 0.4937475978 | V209: 0.2246535732 | W209: 0.03278206689 | X209: 0.01146034802 | Y209: 0.0001339855547 | Z209: 0.5373517306 | AA209: 0.1947483904 | AB209: 0.9412292484 | AC209: 0.2038948029 | AD209: 0.4742765763 | AE209: 0.8167042633 | AF209: 0.8159138764 | AG209: 0.1084006015 | AH209: 0.7805625354 | AI209: 0.6686059556 | AJ209: 0.4253097821 | AK209: 0.09771041658 | AL209: 0.0330539775 | AM209: 0.0001324012203 | AN209: 0.4421116208 | AO209: 0.04373431257 | AP209: 0.306079585 | AQ209: 0.2075563478 | AR209: 0.0002561081396 | AS209: 0.000453850184 | AT209: 0.01157039838 | AU209: 0.5100112832 | AV209: 0.05321041761 | AW209: 0.02061378682 | AX209: 0.0003044262904 | AY209: 0.5642118223 | AZ209: 0.1215686145 | BA209: 0.8016265345 | BB209: 0.2325504408 | BC209: 0.325246013 | BD209: 0.9384139479 | BE209: 0.5022325595 | BF209: 0.0008672430749 | BG209: 0.1193053249 | BH209: 0.0006060503817 | BI209: 0.00118781132 | BJ209: 0.02043971185 | BK209: 0.3444730761 | BL209: 0.00248917011
A210: p-value for Coefficient 3 | W210: 0.1987555906 | X210: 0.06026555398 | Y210: 0.0005610325249 | Z210: 0.513534564 | AA210: 0.165954058 | AB210: 0.6574837235 | AC210: 0.06574569664 | AD210: 0.0005706546847 | AE210: 0.001916996327 | AF210: 0.1887856173 | AG210: 0.8039748393 | AH210: 0.4957676688 | AI210: 0.4694608617 | AJ210: 0.3757841856 | AK210: 0.8642833432 | AL210: 0.8122026742 | AM210: 0.4720411947 | AN210: 0.2354708501 | AO210: 0.07322936957 | AP210: 0.1558838745 | AQ210: 0.8099970036 | AR210: 0.8287821657 | AS210: 0.4726357684 | AT210: 0.3476525766 | AU210: 0.900765063 | AV210: 0.2282174417 | AW210: 0.0751068621 | AX210: 0.0007937195364 | AY210: 0.5125077581 | AZ210: 0.08817103817 | BA210: 0.4901478496 | BB210: 0.07982651276 | BC210: 0.0005935176387 | BD210: 0.002454262224 | BE210: 0.05692562147 | BF210: 0.5093027871 | BG210: 0.5754804978 | BH210: 0.9411661136 | BI210: 0.3481910455 | BJ210: 0.3646790716 | BK210: 0.8787254547 | BL210: 0.3700696171
A211: p-value for Coefficient 4 | AQ211: 0.2333518825 | AR211: 0.005593136538 | AS211: 0.001677489874 | AT211: 0.1070661896 | AU211: 0.005375659235 | AV211: 0.996789822 | AW211: 0.9926457462 | AX211: 0.5084679503 | AY211: 0.4962951842 | AZ211: 0.2091403909 | BA211: 0.3788051948 | BB211: 0.9596136907 | BC211: 0.3240615883 | BD211: 0.5123770909 | BE211: 0.06792506139 | BF211: 0.9163571107 | BG211: 0.1098238881 | BH211: 0.006855216023 | BI211: 0.001789979987 | BJ211: 0.123365308 | BK211: 0.004924427569 | BL211: 0.8859167891
A212: p-value for Coefficient 5 | BF212: 0.01028517518 | BG212: 0.1937070239 | BH212: 0.5491775754 | BI212: 0.3684492568 | BJ212: 0.8780524383 | BK212: 0.3456573587 | BL212: 0.01011759511
A213: p-value for Coefficient 6 | BL213: 0.3913511407
A215: Adjusted R-Squared Rank | B215: =IFERROR(RANK(B197,$B197:$AF197),"") -> 13 | C215: =IFERROR(RANK(C197,$B197:$AF197),"") -> 11 | D215: 29 | E215: 28 | F215: 25 | G215: 23 | H215: 10 | I215: 18 | J215: 17 | K215: 16 | L215: 9 | M215: 7 | N215: 1 | O215: 31 | P215: 22 | Q215: 30 | R215: 15 | S215: =IFERROR(RANK(S197,$B197:$AF197),"") -> 14 | T215: =IFERROR(RANK(T197,$B197:$AF197),"") -> 26 | U215: =IFERROR(RANK(U197,$B197:$AF197),"") -> 24 | V215: 21 | W215: =IFERROR(RANK(W197,$B197:$AF197),"") -> 8 | X215: =IFERROR(RANK(X197,$B197:$AF197),"") -> 6 | Y215: =IFERROR(RANK(Y197,$B197:$AF197),"") -> 4 | Z215: 19 | AA215: 12 | AB215: 20 | AC215: 5 | AD215: 2 | AE215: 3 | AF215: 27
A216: ="Adjusted R-Squared > "&$B$18&", p-Values at "&$B$16&" signficance, and F-Test < "&$B$17&", and Correct Signs" -> Adjusted R-Squared > 0.6, p-Values at 0.2 signficance, and F-Test < 0.15, and Correct Signs | B216: =IFERROR(IF(COUNT(B207:B212)=0,"",IF(AND(B208<=$B$16,B209<=$B$16,B210<=$B$16,B211<=$B$16,B212<=$B$16,B197>=$B$18,B198<$B$17,B217="Yes"),"!!!","")),"") -> 
A217: Correct Signs? | B217: =IFERROR(IF(COUNT(B207:B212)=0,"",IF(AND(IF(B$126="",IF(B201<0,"negative","positive"),IF(OR(B$126="Trend",B$126="Log Trend"),IF(B201<0,"negative","positive"),IF($B$4="Log",VLOOKUP(B$126,$W$19:$X$22,2,FALSE),VLOOKUP(B$126,$W$12:$X$17,2,FALSE))))=IF(B201<0,"negative","positive"),IF(B$127="",IF(B202<0,"negative","positive"),IF(OR(B$127="Trend",B$127="Log Trend"),IF(B202<0,"negative","positive"),IF($B$4="Log",VLOOKUP(B$127,$W$19:$X$22,2,FALSE),VLOOKUP(B$127,$W$12:$X$17,2,FALSE))))=IF(B202<0,"negative","positive"),IF(B$128="",IF(B203<0,"negative","positive"),IF(OR(B$128="Trend",B$128="Log Trend"),IF(B203<0,"negative","positive"),IF($B$4="Log",VLOOKUP(B$128,$W$19:$X$22,2,FALSE),VLOOKUP(B$128,$W$12:$X$17,2,FALSE))))=IF(B203<0,"negative","positive"),IF(B$129="",IF(B204<0,"negative","positive"),IF(OR(B$129="Trend",B$129="Log Trend"),IF(B204<0,"negative","positive"),IF($B$4="Log",VLOOKUP(B$129,$W$19:$X$22,2,FALSE),VLOOKUP(B$129,$W$12:$X$17,2,FALSE))))=IF(B204<0,"negative","positive"),IF(B$130="",IF(B205<0,"negative","positive"),IF(OR(B$130="Trend",B$130="Log Trend"),IF(B205<0,"negative","positive"),IF($B$4="Log",VLOOKUP(B$130,$W$19:$X$22,2,FALSE),VLOOKUP(B$130,$W$12:$X$17,2,FALSE))))=IF(B205<0,"negative","positive")),"YES","")),"") ->  | D217: YES | E217: YES | F217: YES | G217: YES | T217: YES | U217: YES | V217: YES
A219: Different Scenarios (15 Years): | B219: =B$95 -> Degree Days | C219: =C$95 -> Customers | D219: Rate | E219: Lag Rate | F219: Trend | G219: Nonfarm | H219: Degree Days | I219: Degree Days | J219: Degree Days | K219: Degree Days | L219: Customers | M219: Customers | N219: Customers | O219: Rate | P219: Rate | Q219: Lag Rate | R219: Nonfarm | S219: Nonfarm | T219: Nonfarm | U219: Nonfarm | V219: Nonfarm | W219: Degree Days | X219: Degree Days | Y219: Degree Days | Z219: Degree Days | AA219: Degree Days | AB219: Degree Days | AC219: Customers | AD219: Customers | AE219: Customers | AF219: Rate | AG219: Degree Days | AH219: Degree Days | AI219: Degree Days | AJ219: Degree Days | AK219: Customers | AL219: Customers | AM219: Customers | AN219: Rate | AO219: Rate | AP219: Lag Rate | AQ219: Degree Days | AR219: Degree Days | AS219: Degree Days | AT219: Degree Days | AU219: Customers | AV219: Degree Days | AW219: Degree Days | AX219: Degree Days | AY219: Degree Days | AZ219: Degree Days | BA219: Degree Days | BB219: Customers | BC219: Customers | BD219: Customers | BE219: Rate | BF219: Degree Days | BG219: Degree Days | BH219: Degree Days | BI219: Degree Days | BJ219: Degree Days | BK219: Customers | BL219: Degree Days
B220: =B$96 ->  | C220: =C$96 ->  | H220: Customers | I220: Rate | J220: Lag Rate | K220: Trend | L220: Rate | M220: Lag Rate | N220: Trend | O220: Lag Rate | P220: Trend | Q220: Trend | R220: Degree Days | S220: Customers | T220: Rate | U220: Lag Rate | V220: Trend | W220: Customers | X220: Customers | Y220: Customers | Z220: Rate | AA220: Rate | AB220: Lag Rate | AC220: Rate | AD220: Rate | AE220: Lag Rate | AF220: Lag Rate | AG220: Customers | AH220: Rate | AI220: Lag Rate | AJ220: Trend | AK220: Rate | AL220: Lag Rate | AM220: Trend | AN220: Lag Rate | AO220: Trend | AP220: Trend | AQ220: Rate | AR220: Customers | AS220: Customers | AT220: Customers | AU220: Rate | AV220: Customers | AW220: Customers | AX220: Customers | AY220: Rate | AZ220: Rate | BA220: Lag Rate | BB220: Rate | BC220: Rate | BD220: Lag Rate | BE220: Lag Rate | BF220: Customers | BG220: Rate | BH220: Customers | BI220: Customers | BJ220: Customers | BK220: Rate | BL220: Customers
B221: =B$97 ->  | C221: =C$97 ->  | W221: Rate | X221: Lag Rate | Y221: Trend | Z221: Lag Rate | AA221: Trend | AB221: Trend | AC221: Lag Rate | AD221: Trend | AE221: Trend | AF221: Trend | AG221: Nonfarm | AH221: Nonfarm | AI221: Nonfarm | AJ221: Nonfarm | AK221: Nonfarm | AL221: Nonfarm | AM221: Nonfarm | AN221: Nonfarm | AO221: Nonfarm | AP221: Nonfarm | AQ221: Lag Rate | AR221: Lag Rate | AS221: Rate | AT221: Rate | AU221: Lag Rate | AV221: Rate | AW221: Lag Rate | AX221: Trend | AY221: Lag Rate | AZ221: Trend | BA221: Trend | BB221: Lag Rate | BC221: Trend | BD221: Trend | BE221: Trend | BF221: Rate | BG221: Lag Rate | BH221: Lag Rate | BI221: Rate | BJ221: Rate | BK221: Lag Rate | BL221: Rate
B222: =B$98 ->  | C222: =C$98 ->  | AQ222: Trend | AR222: Trend | AS222: Trend | AT222: Lag Rate | AU222: Trend | AV222: Nonfarm | AW222: Nonfarm | AX222: Nonfarm | AY222: Nonfarm | AZ222: Nonfarm | BA222: Nonfarm | BB222: Nonfarm | BC222: Nonfarm | BD222: Nonfarm | BE222: Nonfarm | BF222: Lag Rate | BG222: Trend | BH222: Trend | BI222: Trend | BJ222: Lag Rate | BK222: Trend | BL222: Lag Rate
B223: =B$99 ->  | C223: =C$99 ->  | BF223: Trend | BG223: Nonfarm | BH223: Nonfarm | BI223: Nonfarm | BJ223: Nonfarm | BK223: Nonfarm | BL223: Trend
B224: =B$100 ->  | C224: =C$100 ->  | BL224: Nonfarm
A225: Statistics
... 464 more rows

Sheet CKY 010 log
S1: 19 | T1: 01/02 | U1: T1 | W1: 0.05 | X1: 0.5 | AA1: Iterations | AB1: Actuals | AD1: 19 | AE1: 101
A2: Choose Your Market Area: | B2: 10 | S2: 18 | T2: 02/03 | U2: T2 | W2: 0.1 | X2: 0.55 | Z2: 10 | AA2: 'CKY Table'!$B$4:$M$33 | AB2: 'CKY Table'!B | AD2: 18 | AE2: =AE1+31 -> 132 | AG2: 25 | AH2: 'CMD Table'!$B$4:$M$33 | AI2: 'CMD Table'!B | AK2: 17 | AL2: 'CGV Table'!$B$4:$M$33 | AM2: 'CGV Table'!B | AO2: 25 | AP2: 'CPA Table'!$B$4:$M$33 | AQ2: 'CPA Table'!B
S3: =S2-1 -> 17 | T3: 03/04 | U3: T3 | W3: 0.15 | X3: 0.6 | Z3: 11 | AA3: 'CKY Table'!$N$4:$Y$33 | AB3: 'CKY Table'!N | AD3: =AD2-1 -> 17 | AE3: =AE2+31 -> 163 | AG3: 26 | AH3: 'CMD Table'!$N$4:$Y$33 | AI3: 'CMD Table'!N | AK3: 30 | AL3: 'CGV Table'!$N$4:$Y$33 | AM3: 'CGV Table'!N | AO3: 26 | AP3: 'CPA Table'!$N$4:$Y$33 | AQ3: 'CPA Table'!N
A4: Choose Log/UPC or No Log/No UPC: | B4: Log | E4: SINGLE REGRESSION: | S4: =S3-1 -> 16 | T4: 04/05 | U4: T4 | W4: 0.2 | X4: 0.65 | Z4: 12 | AA4: 'CKY Table'!$Z$4:$AK$33 | AB4: 'CKY Table'!Z | AD4: =AD3-1 -> 16 | AE4: 194 | AG4: 27 | AH4: 'CMD Table'!$Z$4:$AK$33 | AI4: 'CMD Table'!Z | AK4: 31 | AL4: 'CGV Table'!$Z$4:$AK$33 | AM4: 'CGV Table'!Z | AO4: 29 | AP4: 'CPA Table'!$Z$4:$AK$33 | AQ4: 'CPA Table'!Z
S5: =S4-1 -> 15 | T5: 05/06 | U5: T5 | W5: 0.25 | X5: 0.7 | Z5: 13 | AA5: 'CKY Table'!$AL$4:$AW$33 | AB5: 'CKY Table'!AL | AD5: 15 | AE5: 225 | AG5: 32 | AH5: 'CMD Table'!$AL$4:$AW$33 | AI5: 'CMD Table'!AL | AK5: 33 | AL5: 'CGV Table'!$AL$4:$AW$33 | AM5: 'CGV Table'!AL | AO5: 35 | AP5: 'CPA Table'!$AL$4:$AW$33 | AQ5: 'CPA Table'!AL
B6: Start | C6: End | S6: =S5-1 -> 14 | T6: 06/07 | U6: T6 | W6: 0.3 | X6: 0.75 | Z6: 15 | AA6: 'CKY Table'!$AX$4:$BI$33 | AB6: 'CKY Table'!AX | AD6: 14 | AE6: 256 | AG6: Total | AH6: 'CMD Table'!$AX$4:$BI$33 | AI6: 'CMD Table'!AX | AK6: 34 | AL6: 'CGV Table'!$AX$4:$BI$33 | AM6: 'CGV Table'!AX | AO6: 36 | AP6: 'CPA Table'!$AX$4:$BI$33 | AQ6: 'CPA Table'!AX
A7: Choose Start/End Date: | B7: 15/16 | C7: 19/20 | S7: 13 | T7: 07/08 | U7: T7 | W7: 0.35 | X7: 8 | Z7: 16 | AA7: 'CKY Table'!$BJ$4:$BU$33 | AB7: 'CKY Table'!BJ | AD7: 13 | AE7: 287 | AK7: 80 | AL7: 'CGV Table'!$BJ$4:$BU$33 | AM7: 'CGV Table'!BJ | AO7: 38 | AP7: 'CPA Table'!$BJ$4:$BU$33 | AQ7: 'CPA Table'!BJ
S8: 12 | T8: 08/09 | U8: T8 | W8: 0.4 | X8: 0.85 | Z8: 18 | AA8: 'CKY Table'!$BV$4:$CG$33 | AB8: 'CKY Table'!BV | AD8: 12 | AE8: 318 | AK8: 81 | AL8: 'CGV Table'!$BV$4:$CG$33 | AM8: 'CGV Table'!BV | AO8: 39 | AP8: 'CPA Table'!$BV$4:$CG$33 | AQ8: 'CPA Table'!BV
A9: Choose Explanatory Variables: | B9: Log Degree Days | S9: 11 | T9: 09/10 | U9: T9 | W9: 0.45 | X9: 0.9 | Z9: Total | AA9: 'CKY Table'!$CH$4:$CS$33 | AB9: 'CKY Table'!CH | AD9: 11 | AE9: 349 | AG9: 1 | AH9: 'COH Table'!$B$4:$M$33 | AI9: 'COH Table'!B | AK9: 90 | AL9: 'CGV Table'!$CH$4:$CS$33 | AM9: 'CGV Table'!CH | AO9: 40 | AP9: 'CPA Table'!$CH$4:$CS$33 | AQ9: 'CPA Table'!CH
B10: Log Rate | E10: ALL REGRESSIONS: | S10: 10 | T10: 10/11 | U10: T10 | W10: 0.5 | X10: 0.95 | AD10: 10 | AE10: 380 | AG10: 2 | AH10: 'COH Table'!$N$4:$Y$33 | AI10: 'COH Table'!N | AK10: Total | AL10: 'CGV Table'!$CT$4:$DE$33 | AM10: 'CGV Table'!CT | AO10: Total | AP10: 'CPA Table'!$CT$4:$DE$33 | AQ10: 'CPA Table'!CT
B11: Log Lag Rate | S11: 9 | T11: 11/12 | U11: T11 | AD11: 9 | AE11: 411 | AG11: 3 | AH11: 'COH Table'!$Z$4:$AK$33 | AI11: 'COH Table'!Z
B12: Log Trend | S12: 8 | T12: 12/13 | U12: T12 | W12: Degree Days | X12: positive | AD12: 8 | AE12: 442 | AG12: 4 | AH12: 'COH Table'!$AL$4:$AW$33 | AI12: 'COH Table'!AL
B13: Log Nonfarm | S13: 7 | T13: 13/14 | U13: T13 | W13: Customers | X13: positive | AD13: 7 | AE13: 473 | AG13: 5 | AH13: 'COH Table'!$AX$4:$BI$33 | AI13: 'COH Table'!AX | AK13: 10 | AL13: 'CKY Table'!$B$4:$M$33 | AM13: 'CKY Table'!B
S14: 6 | T14: 14/15 | U14: T14 | W14: Rate | X14: negative | AD14: 6 | AE14: 504 | AG14: 6 | AH14: 'COH Table'!$BJ$4:$BU$33 | AI14: 'COH Table'!BJ | AK14: 11 | AL14: 'CKY Table'!$N$4:$Y$33 | AM14: 'CKY Table'!N
A15: Choose Parameters: | S15: 5 | T15: 15/16 | U15: T15 | W15: Lag Rate | X15: negative | AD15: =AD14-1 -> 5 | AE15: 535 | AG15: 7 | AH15: 'COH Table'!$BV$4:$CG$33 | AI15: 'COH Table'!BV | AK15: 12 | AL15: 'CKY Table'!$Z$4:$AK$33 | AM15: 'CKY Table'!Z
A16: p-value: | B16: 0.2 | S16: 4 | T16: 16/17 | U16: T16 | W16: Trend | X16: negative | AG16: 8 | AH16: 'COH Table'!$CH$4:$CS$33 | AI16: 'COH Table'!CH | AK16: 13 | AL16: 'CKY Table'!$AL$4:$AW$33 | AM16: 'CKY Table'!AL
A17: Significance F: | B17: 0.15 | S17: 3 | T17: 17/18 | U17: T17 | W17: Nonfarm | X17: positive | AG17: 9 | AH17: 'COH Table'!$CT$4:$DE$33 | AI17: 'COH Table'!CT | AK17: 15 | AL17: 'CKY Table'!$AX$4:$BI$33 | AM17: 'CKY Table'!AX
A18: Adj R-Sqaured: | B18: 0.6 | S18: 2 | T18: 18/19 | U18: T18 | AG18: 15 | AH18: 'COH Table'!$DF$4:$DQ$33 | AI18: 'COH Table'!DF | AK18: 16 | AL18: 'CKY Table'!$BJ$4:$BU$33 | AM18: 'CKY Table'!BJ
S19: 1 | T19: 19/20 | U19: T19 | W19: Log Degree Days | X19: positive | AG19: 35 | AH19: 'COH Table'!$DR$4:$EC$33 | AI19: 'COH Table'!DR | AK19: 18 | AL19: 'CKY Table'!$BV$4:$CG$33 | AM19: 'CKY Table'!BV
A20: Trend Squared: | B20: No | W20: Log Rate | X20: negative | AG20: 39 | AH20: 'COH Table'!$ED$4:$EO$33 | AI20: 'COH Table'!ED | AK20: Total | AL20: 'CKY Table'!$CH$4:$CS$33 | AM20: 'CKY Table'!CH
W21: Log Lag Rate | X21: negative | AG21: Total | AH21: 'COH Table'!$EP$4:$FA$33 | AI21: 'COH Table'!EP
W22: Log Trend | X22: negative | Z22: ***Cells S1:U?? Need to be updated to add a new year every year. Update dropdowns in B7 and C7 to add new row (highlight->data->data validation)
W23: Log Nonfarm | X23: positive | Z23: ***To Change states, copy paste from the relevant state list into Z2:AB14, these can be find in column AG and to the right
Z24: ***Numbers in column AE should point to the line that contains the word "Statistics" for each number of years. Update every year
W25: Log | X25: Yes | Z25: ***Cells W1:X27 should only need changed if new variables are added (or removed)
W26: No Log | X26: No | Z26: ***See hidden rows 45 - 93. Changes are needed in rows 59:69 if new var added. Need to add row to blue box for each new year
A59: No Log | B59: Degree Days | C59: Customers | D59: Rate | E59: Lag Rate | F59: Trend | G59: Nonfarm | H59: Degree Days | I59: Degree Days | J59: Degree Days | K59: Degree Days | L59: Customers | M59: Customers | N59: Customers | O59: Rate | P59: Rate | Q59: Lag Rate | R59: Nonfarm | S59: Nonfarm | T59: Nonfarm | U59: Nonfarm | V59: Nonfarm | W59: Degree Days | X59: Degree Days | Y59: Degree Days | Z59: Degree Days | AA59: Degree Days | AB59: Degree Days | AC59: Customers | AD59: Customers | AE59: Customers | AF59: Rate | AG59: Degree Days | AH59: Degree Days | AI59: Degree Days | AJ59: Degree Days | AK59: Customers | AL59: Customers | AM59: Customers | AN59: Rate | AO59: Rate | AP59: Lag Rate | AQ59: Degree Days | AR59: Degree Days | AS59: Degree Days | AT59: Degree Days | AU59: Customers | AV59: Degree Days | AW59: Degree Days | AX59: Degree Days | AY59: Degree Days | AZ59: Degree Days | BA59: Degree Days | BB59: Customers | BC59: Customers | BD59: Customers | BE59: Rate | BF59: Degree Days | BG59: Degree Days | BH59: Degree Days | BI59: Degree Days | BJ59: Degree Days | BK59: Customers | BL59: Degree Days
H60: Customers | I60: Rate | J60: Lag Rate | K60: Trend | L60: Rate | M60: Lag Rate | N60: Trend | O60: Lag Rate | P60: Trend | Q60: Trend | R60: Degree Days | S60: Customers | T60: Rate | U60: Lag Rate | V60: Trend | W60: Customers | X60: Customers | Y60: Customers | Z60: Rate | AA60: Rate | AB60: Lag Rate | AC60: Rate | AD60: Rate | AE60: Lag Rate | AF60: Lag Rate | AG60: Customers | AH60: Rate | AI60: Lag Rate | AJ60: Trend | AK60: Rate | AL60: Lag Rate | AM60: Trend | AN60: Lag Rate | AO60: Trend | AP60: Trend | AQ60: Rate | AR60: Customers | AS60: Customers | AT60: Customers | AU60: Rate | AV60: Customers | AW60: Customers | AX60: Customers | AY60: Rate | AZ60: Rate | BA60: Lag Rate | BB60: Rate | BC60: Rate | BD60: Lag Rate | BE60: Lag Rate | BF60: Customers | BG60: Rate | BH60: Customers | BI60: Customers | BJ60: Customers | BK60: Rate | BL60: Customers
W61: Rate | X61: Lag Rate | Y61: Trend | Z61: Lag Rate | AA61: Trend | AB61: Trend | AC61: Lag Rate | AD61: Trend | AE61: Trend | AF61: Trend | AG61: Nonfarm | AH61: Nonfarm | AI61: Nonfarm | AJ61: Nonfarm | AK61: Nonfarm | AL61: Nonfarm | AM61: Nonfarm | AN61: Nonfarm | AO61: Nonfarm | AP61: Nonfarm | AQ61: Lag Rate | AR61: Lag Rate | AS61: Rate | AT61: Rate | AU61: Lag Rate | AV61: Rate | AW61: Lag Rate | AX61: Trend | AY61: Lag Rate | AZ61: Trend | BA61: Trend | BB61: Lag Rate | BC61: Trend | BD61: Trend | BE61: Trend | BF61: Rate | BG61: Lag Rate | BH61: Lag Rate | BI61: Rate | BJ61: Rate | BK61: Lag Rate | BL61: Rate
AQ62: Trend | AR62: Trend | AS62: Trend | AT62: Lag Rate | AU62: Trend | AV62: Nonfarm | AW62: Nonfarm | AX62: Nonfarm | AY62: Nonfarm | AZ62: Nonfarm | BA62: Nonfarm | BB62: Nonfarm | BC62: Nonfarm | BD62: Nonfarm | BE62: Nonfarm | BF62: Lag Rate | BG62: Trend | BH62: Trend | BI62: Trend | BJ62: Lag Rate | BK62: Trend | BL62: Lag Rate
BF63: Trend | BG63: Nonfarm | BH63: Nonfarm | BI63: Nonfarm | BJ63: Nonfarm | BK63: Nonfarm | BL63: Trend
BL64: Nonfarm
A65: Log | B65: Log Degree Days | C65: Log Rate | D65: Log Lag Rate | E65: Log Trend | F65: Log Nonfarm | G65: Log Degree Days | H65: Log Degree Days | I65: Log Degree Days | J65: Log Rate | K65: Log Rate | L65: Log Lag Rate | M65: Log Degree Days | N65: Log Rate | O65: Log Lag Rate | P65: Log Trend | Q65: Log Degree Days | R65: Log Degree Days | S65: Log Degree Days | T65: Log Rate | U65: Log Degree Days | V65: Log Degree Days | W65: Log Degree Days | X65: Log Rate | Y65: Log Rate | Z65: Log Lag Rate | AA65: Log Degree Days | AB65: Log Degree Days | AC65: Log Degree Days | AD65: Log Degree Days | AE65: Log Rate | AF65: Log Degree Days
G66: Log Rate | H66: Log Lag Rate | I66: Log Trend | J66: Log Lag Rate | K66: Log Trend | L66: Log Trend | M66: Log Nonfarm | N66: Log Nonfarm | O66: Log Nonfarm | P66: Log Nonfarm | Q66: Log Rate | R66: Log Rate | S66: Log Lag Rate | T66: Log Lag Rate | U66: Log Rate | V66: Log Lag Rate | W66: Log Trend | X66: Log Lag Rate | Y66: Log Trend | Z66: Log Trend | AA66: Log Rate | AB66: Log Rate | AC66: Log Rate | AD66: Log Lag Rate | AE66: Log Lag Rate | AF66: Log Rate
Q67: Log Lag Rate | R67: Log Trend | S67: Log Trend | T67: Log Trend | U67: Log Nonfarm | V67: Log Nonfarm | W67: Log Nonfarm | X67: Log Nonfarm | Y67: Log Nonfarm | Z67: Log Nonfarm | AA67: Log Lag Rate | AB67: Log Lag Rate | AC67: Log Trend | AD67: Log Trend | AE67: Log Trend | AF67: Log Lag Rate
AA68: Log Trend | AB68: Log Nonfarm | AC68: Log Nonfarm | AD68: Log Nonfarm | AE68: Log Nonfarm | AF68: Log Trend
AF69: Log Nonfarm
B71: B | C71: C | D71: D | E71: E | F71: F | G71: G | H71: H | J71: =IF(C72<>"",C72,IF(D72<>"",D72,IF(E72<>"",E72,IF(F72<>"",F72,IF(G72<>"",G72,IF(H72<>"",H72,"")))))) -> G
B72: =IF(AND(B73="",A73<>""),B71,"") ->  | C72: =IF(AND(D73="",C73<>""),C71,"") ->  | G72: G | J72: =SUM(J75:J92) -> 78
A73: Winter | B73: =IF($B$4="No Log","Usage","Log UPC") -> Log UPC | C73: =IF($B$9<>"",$B$9,"") -> Log Degree Days | D73: =IF($B$10<>"",$B$10,"") -> Log Rate | E73: =IF($B$11<>"",$B$11,"") -> Log Lag Rate | F73: =IF($B$12<>"",$B$12,"") -> Log Trend | G73: =IF($B$13<>"",$B$13,"") -> Log Nonfarm | H73: =IF(B14<>"",B14,"") -> 
A74: =B7 -> 15/16 | B74: =IF($A74="","",IF(B$73="","",VLOOKUP($A74,'CKY Table'!$A$5:$CX$24,HLOOKUP(B$73,INDIRECT(VLOOKUP($B$2,$Z$2:$AA$15,2,FALSE)),21,FALSE),FALSE))) -> 7.112490431 | C74: =IF($A74="","",IF(C$73="","",IF(C$73="Trend",IF($B$21="Yes",$I75^2,$I75),IF(C$73="Log Trend",IF($B$21="Yes",LN($I75^2),LN($I75)),VLOOKUP($A74,'CKY Table'!$A$5:$CX$24,HLOOKUP(C$73,INDIRECT(VLOOKUP($B$2,$Z$2:$AA$15,2,FALSE)),21,FALSE),FALSE))))) -> 7.080867897 | D74: =IF($A74="","",IF(D$73="","",IF(D$73="Trend",IF($B$21="Yes",$I75^2,$I75),IF(D$73="Log Trend",IF($B$21="Yes",LN($I75^2),LN($I75)),VLOOKUP($A74,'CKY Table'!$A$5:$CX$24,HLOOKUP(D$73,INDIRECT(VLOOKUP($B$2,$Z$2:$AA$15,2,FALSE)),21,FALSE),FALSE))))) -> 0.7929925155 | E74: =IF($A74="","",IF(E$73="","",IF(E$73="Trend",IF($B$21="Yes",$I75^2,$I75),IF(E$73="Log Trend",IF($B$21="Yes",LN($I75^2),LN($I75)),VLOOKUP($A74,'CKY Table'!$A$5:$CX$24,HLOOKUP(E$73,INDIRECT(VLOOKUP($B$2,$Z$2:$AA$15,2,FALSE)),21,FALSE),FALSE))))) -> 1.123304901 | F74: =IF($A74="","",IF(F$73="","",IF(F$73="Trend",IF($B$21="Yes",$I75^2,$I75),IF(F$73="Log Trend",IF($B$21="Yes",LN($I75^2),LN($I75)),VLOOKUP($A74,'CKY Table'!$A$5:$CX$24,HLOOKUP(F$73,INDIRECT(VLOOKUP($B$2,$Z$2:$AA$15,2,FALSE)),21,FALSE),FALSE))))) -> 0 | G74: =IF($A74="","",IF(G$73="","",IF(G$73="Trend",IF($B$21="Yes",$I75^2,$I75),IF(G$73="Log Trend",IF($B$21="Yes",LN($I75^2),LN($I75)),VLOOKUP($A74,'CKY Table'!$A$5:$CX$24,HLOOKUP(G$73,INDIRECT(VLOOKUP($B$2,$Z$2:$AA$15,2,FALSE)),21,FALSE),FALSE))))) -> 2.620476424 | H74: =IF($A74="","",IF(H$73="","",IF(H$73="Trend",IF($B$21="Yes",$I75^2,$I75),IF(H$73="Log Trend",IF($B$21="Yes",LN($I75^2),LN($I75)),VLOOKUP($A74,'CKY Table'!$A$5:$CX$24,HLOOKUP(H$73,INDIRECT(VLOOKUP($B$2,$Z$2:$AA$15,2,FALSE)),21,FALSE),FALSE))))) -> 
A75: =IFERROR(IF(IF(LEFT($C$7,2)+0>LEFT(A74,2)+0,OFFSET(INDIRECT(VLOOKUP($A$74,$T$1:$U$15,2,FALSE)),$I75,0),$C$7)=A74,"",IF(LEFT($C$7,2)+0>LEFT(A74,2)+0,OFFSET(INDIRECT(VLOOKUP($A$74,$T$1:$U$15,2,FALSE)),$I75,0),$C$7)),"") -> 16/17 | B75: =IF($A75="","",IF(B$73="","",VLOOKUP($A75,'CKY Table'!$A$5:$CX$24,HLOOKUP(B$73,INDIRECT(VLOOKUP($B$2,$Z$2:$AA$15,2,FALSE)),21,FALSE),FALSE))) -> 7.121097104 | C75: =IF($A75="","",IF(C$73="","",IF(C$73="Trend",IF($B$21="Yes",$I76^2,$I76),IF(C$73="Log Trend",IF($B$21="Yes",LN($I76^2),LN($I76)),VLOOKUP($A75,'CKY Table'!$A$5:$CX$24,HLOOKUP(C$73,INDIRECT(VLOOKUP($B$2,$Z$2:$AA$15,2,FALSE)),21,FALSE),FALSE))))) -> 7.126890809 | D75: =IF($A75="","",IF(D$73="","",IF(D$73="Trend",IF($B$21="Yes",$I76^2,$I76),IF(D$73="Log Trend",IF($B$21="Yes",LN($I76^2),LN($I76)),VLOOKUP($A75,'CKY Table'!$A$5:$CX$24,HLOOKUP(D$73,INDIRECT(VLOOKUP($B$2,$Z$2:$AA$15,2,FALSE)),21,FALSE),FALSE))))) -> 1.330781651 | E75: =IF($A75="","",IF(E$73="","",IF(E$73="Trend",IF($B$21="Yes",$I76^2,$I76),IF(E$73="Log Trend",IF($B$21="Yes",LN($I76^2),LN($I76)),VLOOKUP($A75,'CKY Table'!$A$5:$CX$24,HLOOKUP(E$73,INDIRECT(VLOOKUP($B$2,$Z$2:$AA$15,2,FALSE)),21,FALSE),FALSE))))) -> 0.7929925155 | F75: =IF($A75="","",IF(F$73="","",IF(F$73="Trend",IF($B$21="Yes",$I76^2,$I76),IF(F$73="Log Trend",IF($B$21="Yes",LN($I76^2),LN($I76)),VLOOKUP($A75,'CKY Table'!$A$5:$CX$24,HLOOKUP(F$73,INDIRECT(VLOOKUP($B$2,$Z$2:$AA$15,2,FALSE)),21,FALSE),FALSE))))) -> 0.6931471806 | G75: =IF($A75="","",IF(G$73="","",IF(G$73="Trend",IF($B$21="Yes",$I76^2,$I76),IF(G$73="Log Trend",IF($B$21="Yes",LN($I76^2),LN($I76)),VLOOKUP($A75,'CKY Table'!$A$5:$CX$24,HLOOKUP(G$73,INDIRECT(VLOOKUP($B$2,$Z$2:$AA$15,2,FALSE)),21,FALSE),FALSE))))) -> 2.598038596 | H75: =IF($A75="","",IF(H$73="","",IF(H$73="Trend",IF($B$21="Yes",$I76^2,$I76),IF(H$73="Log Trend",IF($B$21="Yes",LN($I76^2),LN($I76)),VLOOKUP($A75,'CKY Table'!$A$5:$CX$24,HLOOKUP(H$73,INDIRECT(VLOOKUP($B$2,$Z$2:$AA$15,2,FALSE)),21,FALSE),FALSE))))) ->  | I75: 1 | J75: =IF(AND(A76="",A75<>""),ROW(),"") -> 
A76: 17/18 | B76: =IF($A76="","",IF(B$73="","",VLOOKUP($A76,'CKY Table'!$A$5:$CX$24,HLOOKUP(B$73,INDIRECT(VLOOKUP($B$2,$Z$2:$AA$15,2,FALSE)),21,FALSE),FALSE))) -> 7.052121988 | C76: =IF($A76="","",IF(C$73="","",IF(C$73="Trend",IF($B$21="Yes",$I77^2,$I77),IF(C$73="Log Trend",IF($B$21="Yes",LN($I77^2),LN($I77)),VLOOKUP($A76,'CKY Table'!$A$5:$CX$24,HLOOKUP(C$73,INDIRECT(VLOOKUP($B$2,$Z$2:$AA$15,2,FALSE)),21,FALSE),FALSE))))) -> 7.385230923 | D76: =IF($A76="","",IF(D$73="","",IF(D$73="Trend",IF($B$21="Yes",$I77^2,$I77),IF(D$73="Log Trend",IF($B$21="Yes",LN($I77^2),LN($I77)),VLOOKUP($A76,'CKY Table'!$A$5:$CX$24,HLOOKUP(D$73,INDIRECT(VLOOKUP($B$2,$Z$2:$AA$15,2,FALSE)),21,FALSE),FALSE))))) -> 0.9869355714 | E76: =IF($A76="","",IF(E$73="","",IF(E$73="Trend",IF($B$21="Yes",$I77^2,$I77),IF(E$73="Log Trend",IF($B$21="Yes",LN($I77^2),LN($I77)),VLOOKUP($A76,'CKY Table'!$A$5:$CX$24,HLOOKUP(E$73,INDIRECT(VLOOKUP($B$2,$Z$2:$AA$15,2,FALSE)),21,FALSE),FALSE))))) -> 1.330781651 | F76: =IF($A76="","",IF(F$73="","",IF(F$73="Trend",IF($B$21="Yes",$I77^2,$I77),IF(F$73="Log Trend",IF($B$21="Yes",LN($I77^2),LN($I77)),VLOOKUP($A76,'CKY Table'!$A$5:$CX$24,HLOOKUP(F$73,INDIRECT(VLOOKUP($B$2,$Z$2:$AA$15,2,FALSE)),21,FALSE),FALSE))))) -> 1.098612289 | G76: =IF($A76="","",IF(G$73="","",IF(G$73="Trend",IF($B$21="Yes",$I77^2,$I77),IF(G$73="Log Trend",IF($B$21="Yes",LN($I77^2),LN($I77)),VLOOKUP($A76,'CKY Table'!$A$5:$CX$24,HLOOKUP(G$73,INDIRECT(VLOOKUP($B$2,$Z$2:$AA$15,2,FALSE)),21,FALSE),FALSE))))) -> 2.567261732 | H76: =IF($A76="","",IF(H$73="","",IF(H$73="Trend",IF($B$21="Yes",$I77^2,$I77),IF(H$73="Log Trend",IF($B$21="Yes",LN($I77^2),LN($I77)),VLOOKUP($A76,'CKY Table'!$A$5:$CX$24,HLOOKUP(H$73,INDIRECT(VLOOKUP($B$2,$Z$2:$AA$15,2,FALSE)),21,FALSE),FALSE))))) ->  | I76: 2
A77: 18/19 | B77: =IF($A77="","",IF(B$73="","",VLOOKUP($A77,'CKY Table'!$A$5:$CX$24,HLOOKUP(B$73,INDIRECT(VLOOKUP($B$2,$Z$2:$AA$15,2,FALSE)),21,FALSE),FALSE))) -> 7.086898714 | C77: =IF($A77="","",IF(C$73="","",IF(C$73="Trend",IF($B$21="Yes",$I78^2,$I78),IF(C$73="Log Trend",IF($B$21="Yes",LN($I78^2),LN($I78)),VLOOKUP($A77,'CKY Table'!$A$5:$CX$24,HLOOKUP(C$73,INDIRECT(VLOOKUP($B$2,$Z$2:$AA$15,2,FALSE)),21,FALSE),FALSE))))) -> 7.209340257 | D77: =IF($A77="","",IF(D$73="","",IF(D$73="Trend",IF($B$21="Yes",$I78^2,$I78),IF(D$73="Log Trend",IF($B$21="Yes",LN($I78^2),LN($I78)),VLOOKUP($A77,'CKY Table'!$A$5:$CX$24,HLOOKUP(D$73,INDIRECT(VLOOKUP($B$2,$Z$2:$AA$15,2,FALSE)),21,FALSE),FALSE))))) -> 1.267229254 | E77: =IF($A77="","",IF(E$73="","",IF(E$73="Trend",IF($B$21="Yes",$I78^2,$I78),IF(E$73="Log Trend",IF($B$21="Yes",LN($I78^2),LN($I78)),VLOOKUP($A77,'CKY Table'!$A$5:$CX$24,HLOOKUP(E$73,INDIRECT(VLOOKUP($B$2,$Z$2:$AA$15,2,FALSE)),21,FALSE),FALSE))))) -> 0.9869355714 | F77: =IF($A77="","",IF(F$73="","",IF(F$73="Trend",IF($B$21="Yes",$I78^2,$I78),IF(F$73="Log Trend",IF($B$21="Yes",LN($I78^2),LN($I78)),VLOOKUP($A77,'CKY Table'!$A$5:$CX$24,HLOOKUP(F$73,INDIRECT(VLOOKUP($B$2,$Z$2:$AA$15,2,FALSE)),21,FALSE),FALSE))))) -> 1.386294361 | G77: =IF($A77="","",IF(G$73="","",IF(G$73="Trend",IF($B$21="Yes",$I78^2,$I78),IF(G$73="Log Trend",IF($B$21="Yes",LN($I78^2),LN($I78)),VLOOKUP($A77,'CKY Table'!$A$5:$CX$24,HLOOKUP(G$73,INDIRECT(VLOOKUP($B$2,$Z$2:$AA$15,2,FALSE)),21,FALSE),FALSE))))) -> 2.55351625 | H77: =IF($A77="","",IF(H$73="","",IF(H$73="Trend",IF($B$21="Yes",$I78^2,$I78),IF(H$73="Log Trend",IF($B$21="Yes",LN($I78^2),LN($I78)),VLOOKUP($A77,'CKY Table'!$A$5:$CX$24,HLOOKUP(H$73,INDIRECT(VLOOKUP($B$2,$Z$2:$AA$15,2,FALSE)),21,FALSE),FALSE))))) ->  | I77: 3
A78: 19/20 | B78: =IF($A78="","",IF(B$73="","",VLOOKUP($A78,'CKY Table'!$A$5:$CX$24,HLOOKUP(B$73,INDIRECT(VLOOKUP($B$2,$Z$2:$AA$15,2,FALSE)),21,FALSE),FALSE))) -> 7.124574876 | C78: =IF($A78="","",IF(C$73="","",IF(C$73="Trend",IF($B$21="Yes",$I79^2,$I79),IF(C$73="Log Trend",IF($B$21="Yes",LN($I79^2),LN($I79)),VLOOKUP($A78,'CKY Table'!$A$5:$CX$24,HLOOKUP(C$73,INDIRECT(VLOOKUP($B$2,$Z$2:$AA$15,2,FALSE)),21,FALSE),FALSE))))) -> 6.933423026 | D78: =IF($A78="","",IF(D$73="","",IF(D$73="Trend",IF($B$21="Yes",$I79^2,$I79),IF(D$73="Log Trend",IF($B$21="Yes",LN($I79^2),LN($I79)),VLOOKUP($A78,'CKY Table'!$A$5:$CX$24,HLOOKUP(D$73,INDIRECT(VLOOKUP($B$2,$Z$2:$AA$15,2,FALSE)),21,FALSE),FALSE))))) -> 0.7920871284 | E78: =IF($A78="","",IF(E$73="","",IF(E$73="Trend",IF($B$21="Yes",$I79^2,$I79),IF(E$73="Log Trend",IF($B$21="Yes",LN($I79^2),LN($I79)),VLOOKUP($A78,'CKY Table'!$A$5:$CX$24,HLOOKUP(E$73,INDIRECT(VLOOKUP($B$2,$Z$2:$AA$15,2,FALSE)),21,FALSE),FALSE))))) -> 1.267229254 | F78: =IF($A78="","",IF(F$73="","",IF(F$73="Trend",IF($B$21="Yes",$I79^2,$I79),IF(F$73="Log Trend",IF($B$21="Yes",LN($I79^2),LN($I79)),VLOOKUP($A78,'CKY Table'!$A$5:$CX$24,HLOOKUP(F$73,INDIRECT(VLOOKUP($B$2,$Z$2:$AA$15,2,FALSE)),21,FALSE),FALSE))))) -> 1.609437912 | G78: =IF($A78="","",IF(G$73="","",IF(G$73="Trend",IF($B$21="Yes",$I79^2,$I79),IF(G$73="Log Trend",IF($B$21="Yes",LN($I79^2),LN($I79)),VLOOKUP($A78,'CKY Table'!$A$5:$CX$24,HLOOKUP(G$73,INDIRECT(VLOOKUP($B$2,$Z$2:$AA$15,2,FALSE)),21,FALSE),FALSE))))) -> 2.547643334 | H78: =IF($A78="","",IF(H$73="","",IF(H$73="Trend",IF($B$21="Yes",$I79^2,$I79),IF(H$73="Log Trend",IF($B$21="Yes",LN($I79^2),LN($I79)),VLOOKUP($A78,'CKY Table'!$A$5:$CX$24,HLOOKUP(H$73,INDIRECT(VLOOKUP($B$2,$Z$2:$AA$15,2,FALSE)),21,FALSE),FALSE))))) ->  | I78: 4 | J78: 78
B79: =IF($A79="","",IF(B$73="","",VLOOKUP($A79,'CKY Table'!$A$5:$CX$24,HLOOKUP(B$73,INDIRECT(VLOOKUP($B$2,$Z$2:$AA$15,2,FALSE)),21,FALSE),FALSE))) ->  | C79: =IF($A79="","",IF(C$73="","",IF(C$73="Trend",IF($B$21="Yes",$I80^2,$I80),IF(C$73="Log Trend",IF($B$21="Yes",LN($I80^2),LN($I80)),VLOOKUP($A79,'CKY Table'!$A$5:$CX$24,HLOOKUP(C$73,INDIRECT(VLOOKUP($B$2,$Z$2:$AA$15,2,FALSE)),21,FALSE),FALSE))))) ->  | D79: =IF($A79="","",IF(D$73="","",IF(D$73="Trend",IF($B$21="Yes",$I80^2,$I80),IF(D$73="Log Trend",IF($B$21="Yes",LN($I80^2),LN($I80)),VLOOKUP($A79,'CKY Table'!$A$5:$CX$24,HLOOKUP(D$73,INDIRECT(VLOOKUP($B$2,$Z$2:$AA$15,2,FALSE)),21,FALSE),FALSE))))) ->  | E79: =IF($A79="","",IF(E$73="","",IF(E$73="Trend",IF($B$21="Yes",$I80^2,$I80),IF(E$73="Log Trend",IF($B$21="Yes",LN($I80^2),LN($I80)),VLOOKUP($A79,'CKY Table'!$A$5:$CX$24,HLOOKUP(E$73,INDIRECT(VLOOKUP($B$2,$Z$2:$AA$15,2,FALSE)),21,FALSE),FALSE))))) ->  | F79: =IF($A79="","",IF(F$73="","",IF(F$73="Trend",IF($B$21="Yes",$I80^2,$I80),IF(F$73="Log Trend",IF($B$21="Yes",LN($I80^2),LN($I80)),VLOOKUP($A79,'CKY Table'!$A$5:$CX$24,HLOOKUP(F$73,INDIRECT(VLOOKUP($B$2,$Z$2:$AA$15,2,FALSE)),21,FALSE),FALSE))))) ->  | G79: =IF($A79="","",IF(G$73="","",IF(G$73="Trend",IF($B$21="Yes",$I80^2,$I80),IF(G$73="Log Trend",IF($B$21="Yes",LN($I80^2),LN($I80)),VLOOKUP($A79,'CKY Table'!$A$5:$CX$24,HLOOKUP(G$73,INDIRECT(VLOOKUP($B$2,$Z$2:$AA$15,2,FALSE)),21,FALSE),FALSE))))) ->  | H79: =IF($A79="","",IF(H$73="","",IF(H$73="Trend",IF($B$21="Yes",$I80^2,$I80),IF(H$73="Log Trend",IF($B$21="Yes",LN($I80^2),LN($I80)),VLOOKUP($A79,'CKY Table'!$A$5:$CX$24,HLOOKUP(H$73,INDIRECT(VLOOKUP($B$2,$Z$2:$AA$15,2,FALSE)),21,FALSE),FALSE))))) ->  | I79: 5
B80: =IF($A80="","",IF(B$73="","",VLOOKUP($A80,'CKY Table'!$A$5:$CX$24,HLOOKUP(B$73,INDIRECT(VLOOKUP($B$2,$Z$2:$AA$15,2,FALSE)),21,FALSE),FALSE))) ->  | C80: =IF($A80="","",IF(C$73="","",IF(C$73="Trend",IF($B$21="Yes",$I81^2,$I81),IF(C$73="Log Trend",IF($B$21="Yes",LN($I81^2),LN($I81)),VLOOKUP($A80,'CKY Table'!$A$5:$CX$24,HLOOKUP(C$73,INDIRECT(VLOOKUP($B$2,$Z$2:$AA$15,2,FALSE)),21,FALSE),FALSE))))) ->  | D80: =IF($A80="","",IF(D$73="","",IF(D$73="Trend",IF($B$21="Yes",$I81^2,$I81),IF(D$73="Log Trend",IF($B$21="Yes",LN($I81^2),LN($I81)),VLOOKUP($A80,'CKY Table'!$A$5:$CX$24,HLOOKUP(D$73,INDIRECT(VLOOKUP($B$2,$Z$2:$AA$15,2,FALSE)),21,FALSE),FALSE))))) ->  | E80: =IF($A80="","",IF(E$73="","",IF(E$73="Trend",IF($B$21="Yes",$I81^2,$I81),IF(E$73="Log Trend",IF($B$21="Yes",LN($I81^2),LN($I81)),VLOOKUP($A80,'CKY Table'!$A$5:$CX$24,HLOOKUP(E$73,INDIRECT(VLOOKUP($B$2,$Z$2:$AA$15,2,FALSE)),21,FALSE),FALSE))))) ->  | F80: =IF($A80="","",IF(F$73="","",IF(F$73="Trend",IF($B$21="Yes",$I81^2,$I81),IF(F$73="Log Trend",IF($B$21="Yes",LN($I81^2),LN($I81)),VLOOKUP($A80,'CKY Table'!$A$5:$CX$24,HLOOKUP(F$73,INDIRECT(VLOOKUP($B$2,$Z$2:$AA$15,2,FALSE)),21,FALSE),FALSE))))) ->  | G80: =IF($A80="","",IF(G$73="","",IF(G$73="Trend",IF($B$21="Yes",$I81^2,$I81),IF(G$73="Log Trend",IF($B$21="Yes",LN($I81^2),LN($I81)),VLOOKUP($A80,'CKY Table'!$A$5:$CX$24,HLOOKUP(G$73,INDIRECT(VLOOKUP($B$2,$Z$2:$AA$15,2,FALSE)),21,FALSE),FALSE))))) ->  | H80: =IF($A80="","",IF(H$73="","",IF(H$73="Trend",IF($B$21="Yes",$I81^2,$I81),IF(H$73="Log Trend",IF($B$21="Yes",LN($I81^2),LN($I81)),VLOOKUP($A80,'CKY Table'!$A$5:$CX$24,HLOOKUP(H$73,INDIRECT(VLOOKUP($B$2,$Z$2:$AA$15,2,FALSE)),21,FALSE),FALSE))))) ->  | I80: 6
B81: =IF($A81="","",IF(B$73="","",VLOOKUP($A81,'CKY Table'!$A$5:$CX$24,HLOOKUP(B$73,INDIRECT(VLOOKUP($B$2,$Z$2:$AA$15,2,FALSE)),21,FALSE),FALSE))) ->  | C81: =IF($A81="","",IF(C$73="","",IF(C$73="Trend",IF($B$21="Yes",$I82^2,$I82),IF(C$73="Log Trend",IF($B$21="Yes",LN($I82^2),LN($I82)),VLOOKUP($A81,'CKY Table'!$A$5:$CX$24,HLOOKUP(C$73,INDIRECT(VLOOKUP($B$2,$Z$2:$AA$15,2,FALSE)),21,FALSE),FALSE))))) ->  | D81: =IF($A81="","",IF(D$73="","",IF(D$73="Trend",IF($B$21="Yes",$I82^2,$I82),IF(D$73="Log Trend",IF($B$21="Yes",LN($I82^2),LN($I82)),VLOOKUP($A81,'CKY Table'!$A$5:$CX$24,HLOOKUP(D$73,INDIRECT(VLOOKUP($B$2,$Z$2:$AA$15,2,FALSE)),21,FALSE),FALSE))))) ->  | E81: =IF($A81="","",IF(E$73="","",IF(E$73="Trend",IF($B$21="Yes",$I82^2,$I82),IF(E$73="Log Trend",IF($B$21="Yes",LN($I82^2),LN($I82)),VLOOKUP($A81,'CKY Table'!$A$5:$CX$24,HLOOKUP(E$73,INDIRECT(VLOOKUP($B$2,$Z$2:$AA$15,2,FALSE)),21,FALSE),FALSE))))) ->  | F81: =IF($A81="","",IF(F$73="","",IF(F$73="Trend",IF($B$21="Yes",$I82^2,$I82),IF(F$73="Log Trend",IF($B$21="Yes",LN($I82^2),LN($I82)),VLOOKUP($A81,'CKY Table'!$A$5:$CX$24,HLOOKUP(F$73,INDIRECT(VLOOKUP($B$2,$Z$2:$AA$15,2,FALSE)),21,FALSE),FALSE))))) ->  | G81: =IF($A81="","",IF(G$73="","",IF(G$73="Trend",IF($B$21="Yes",$I82^2,$I82),IF(G$73="Log Trend",IF($B$21="Yes",LN($I82^2),LN($I82)),VLOOKUP($A81,'CKY Table'!$A$5:$CX$24,HLOOKUP(G$73,INDIRECT(VLOOKUP($B$2,$Z$2:$AA$15,2,FALSE)),21,FALSE),FALSE))))) ->  | H81: =IF($A81="","",IF(H$73="","",IF(H$73="Trend",IF($B$21="Yes",$I82^2,$I82),IF(H$73="Log Trend",IF($B$21="Yes",LN($I82^2),LN($I82)),VLOOKUP($A81,'CKY Table'!$A$5:$CX$24,HLOOKUP(H$73,INDIRECT(VLOOKUP($B$2,$Z$2:$AA$15,2,FALSE)),21,FALSE),FALSE))))) ->  | I81: 7
B82: =IF($A82="","",IF(B$73="","",VLOOKUP($A82,'CKY Table'!$A$5:$CX$24,HLOOKUP(B$73,INDIRECT(VLOOKUP($B$2,$Z$2:$AA$15,2,FALSE)),21,FALSE),FALSE))) ->  | C82: =IF($A82="","",IF(C$73="","",IF(C$73="Trend",IF($B$21="Yes",$I83^2,$I83),IF(C$73="Log Trend",IF($B$21="Yes",LN($I83^2),LN($I83)),VLOOKUP($A82,'CKY Table'!$A$5:$CX$24,HLOOKUP(C$73,INDIRECT(VLOOKUP($B$2,$Z$2:$AA$15,2,FALSE)),21,FALSE),FALSE))))) ->  | D82: =IF($A82="","",IF(D$73="","",IF(D$73="Trend",IF($B$21="Yes",$I83^2,$I83),IF(D$73="Log Trend",IF($B$21="Yes",LN($I83^2),LN($I83)),VLOOKUP($A82,'CKY Table'!$A$5:$CX$24,HLOOKUP(D$73,INDIRECT(VLOOKUP($B$2,$Z$2:$AA$15,2,FALSE)),21,FALSE),FALSE))))) ->  | E82: =IF($A82="","",IF(E$73="","",IF(E$73="Trend",IF($B$21="Yes",$I83^2,$I83),IF(E$73="Log Trend",IF($B$21="Yes",LN($I83^2),LN($I83)),VLOOKUP($A82,'CKY Table'!$A$5:$CX$24,HLOOKUP(E$73,INDIRECT(VLOOKUP($B$2,$Z$2:$AA$15,2,FALSE)),21,FALSE),FALSE))))) ->  | F82: =IF($A82="","",IF(F$73="","",IF(F$73="Trend",IF($B$21="Yes",$I83^2,$I83),IF(F$73="Log Trend",IF($B$21="Yes",LN($I83^2),LN($I83)),VLOOKUP($A82,'CKY Table'!$A$5:$CX$24,HLOOKUP(F$73,INDIRECT(VLOOKUP($B$2,$Z$2:$AA$15,2,FALSE)),21,FALSE),FALSE))))) ->  | G82: =IF($A82="","",IF(G$73="","",IF(G$73="Trend",IF($B$21="Yes",$I83^2,$I83),IF(G$73="Log Trend",IF($B$21="Yes",LN($I83^2),LN($I83)),VLOOKUP($A82,'CKY Table'!$A$5:$CX$24,HLOOKUP(G$73,INDIRECT(VLOOKUP($B$2,$Z$2:$AA$15,2,FALSE)),21,FALSE),FALSE))))) ->  | H82: =IF($A82="","",IF(H$73="","",IF(H$73="Trend",IF($B$21="Yes",$I83^2,$I83),IF(H$73="Log Trend",IF($B$21="Yes",LN($I83^2),LN($I83)),VLOOKUP($A82,'CKY Table'!$A$5:$CX$24,HLOOKUP(H$73,INDIRECT(VLOOKUP($B$2,$Z$2:$AA$15,2,FALSE)),21,FALSE),FALSE))))) ->  | I82: 8
B83: =IF($A83="","",IF(B$73="","",VLOOKUP($A83,'CKY Table'!$A$5:$CX$24,HLOOKUP(B$73,INDIRECT(VLOOKUP($B$2,$Z$2:$AA$15,2,FALSE)),21,FALSE),FALSE))) ->  | C83: =IF($A83="","",IF(C$73="","",IF(C$73="Trend",IF($B$21="Yes",$I84^2,$I84),IF(C$73="Log Trend",IF($B$21="Yes",LN($I84^2),LN($I84)),VLOOKUP($A83,'CKY Table'!$A$5:$CX$24,HLOOKUP(C$73,INDIRECT(VLOOKUP($B$2,$Z$2:$AA$15,2,FALSE)),21,FALSE),FALSE))))) ->  | D83: =IF($A83="","",IF(D$73="","",IF(D$73="Trend",IF($B$21="Yes",$I84^2,$I84),IF(D$73="Log Trend",IF($B$21="Yes",LN($I84^2),LN($I84)),VLOOKUP($A83,'CKY Table'!$A$5:$CX$24,HLOOKUP(D$73,INDIRECT(VLOOKUP($B$2,$Z$2:$AA$15,2,FALSE)),21,FALSE),FALSE))))) ->  | E83: =IF($A83="","",IF(E$73="","",IF(E$73="Trend",IF($B$21="Yes",$I84^2,$I84),IF(E$73="Log Trend",IF($B$21="Yes",LN($I84^2),LN($I84)),VLOOKUP($A83,'CKY Table'!$A$5:$CX$24,HLOOKUP(E$73,INDIRECT(VLOOKUP($B$2,$Z$2:$AA$15,2,FALSE)),21,FALSE),FALSE))))) ->  | F83: =IF($A83="","",IF(F$73="","",IF(F$73="Trend",IF($B$21="Yes",$I84^2,$I84),IF(F$73="Log Trend",IF($B$21="Yes",LN($I84^2),LN($I84)),VLOOKUP($A83,'CKY Table'!$A$5:$CX$24,HLOOKUP(F$73,INDIRECT(VLOOKUP($B$2,$Z$2:$AA$15,2,FALSE)),21,FALSE),FALSE))))) ->  | G83: =IF($A83="","",IF(G$73="","",IF(G$73="Trend",IF($B$21="Yes",$I84^2,$I84),IF(G$73="Log Trend",IF($B$21="Yes",LN($I84^2),LN($I84)),VLOOKUP($A83,'CKY Table'!$A$5:$CX$24,HLOOKUP(G$73,INDIRECT(VLOOKUP($B$2,$Z$2:$AA$15,2,FALSE)),21,FALSE),FALSE))))) ->  | H83: =IF($A83="","",IF(H$73="","",IF(H$73="Trend",IF($B$21="Yes",$I84^2,$I84),IF(H$73="Log Trend",IF($B$21="Yes",LN($I84^2),LN($I84)),VLOOKUP($A83,'CKY Table'!$A$5:$CX$24,HLOOKUP(H$73,INDIRECT(VLOOKUP($B$2,$Z$2:$AA$15,2,FALSE)),21,FALSE),FALSE))))) ->  | I83: 9
B84: =IF($A84="","",IF(B$73="","",VLOOKUP($A84,'CKY Table'!$A$5:$CX$24,HLOOKUP(B$73,INDIRECT(VLOOKUP($B$2,$Z$2:$AA$15,2,FALSE)),21,FALSE),FALSE))) ->  | C84: =IF($A84="","",IF(C$73="","",IF(C$73="Trend",IF($B$21="Yes",$I85^2,$I85),IF(C$73="Log Trend",IF($B$21="Yes",LN($I85^2),LN($I85)),VLOOKUP($A84,'CKY Table'!$A$5:$CX$24,HLOOKUP(C$73,INDIRECT(VLOOKUP($B$2,$Z$2:$AA$15,2,FALSE)),21,FALSE),FALSE))))) ->  | D84: =IF($A84="","",IF(D$73="","",IF(D$73="Trend",IF($B$21="Yes",$I85^2,$I85),IF(D$73="Log Trend",IF($B$21="Yes",LN($I85^2),LN($I85)),VLOOKUP($A84,'CKY Table'!$A$5:$CX$24,HLOOKUP(D$73,INDIRECT(VLOOKUP($B$2,$Z$2:$AA$15,2,FALSE)),21,FALSE),FALSE))))) ->  | E84: =IF($A84="","",IF(E$73="","",IF(E$73="Trend",IF($B$21="Yes",$I85^2,$I85),IF(E$73="Log Trend",IF($B$21="Yes",LN($I85^2),LN($I85)),VLOOKUP($A84,'CKY Table'!$A$5:$CX$24,HLOOKUP(E$73,INDIRECT(VLOOKUP($B$2,$Z$2:$AA$15,2,FALSE)),21,FALSE),FALSE))))) ->  | F84: =IF($A84="","",IF(F$73="","",IF(F$73="Trend",IF($B$21="Yes",$I85^2,$I85),IF(F$73="Log Trend",IF($B$21="Yes",LN($I85^2),LN($I85)),VLOOKUP($A84,'CKY Table'!$A$5:$CX$24,HLOOKUP(F$73,INDIRECT(VLOOKUP($B$2,$Z$2:$AA$15,2,FALSE)),21,FALSE),FALSE))))) ->  | G84: =IF($A84="","",IF(G$73="","",IF(G$73="Trend",IF($B$21="Yes",$I85^2,$I85),IF(G$73="Log Trend",IF($B$21="Yes",LN($I85^2),LN($I85)),VLOOKUP($A84,'CKY Table'!$A$5:$CX$24,HLOOKUP(G$73,INDIRECT(VLOOKUP($B$2,$Z$2:$AA$15,2,FALSE)),21,FALSE),FALSE))))) ->  | H84: =IF($A84="","",IF(H$73="","",IF(H$73="Trend",IF($B$21="Yes",$I85^2,$I85),IF(H$73="Log Trend",IF($B$21="Yes",LN($I85^2),LN($I85)),VLOOKUP($A84,'CKY Table'!$A$5:$CX$24,HLOOKUP(H$73,INDIRECT(VLOOKUP($B$2,$Z$2:$AA$15,2,FALSE)),21,FALSE),FALSE))))) ->  | I84: 10
B85: =IF($A85="","",IF(B$73="","",VLOOKUP($A85,'CKY Table'!$A$5:$CX$24,HLOOKUP(B$73,INDIRECT(VLOOKUP($B$2,$Z$2:$AA$15,2,FALSE)),21,FALSE),FALSE))) ->  | C85: =IF($A85="","",IF(C$73="","",IF(C$73="Trend",IF($B$21="Yes",$I86^2,$I86),IF(C$73="Log Trend",IF($B$21="Yes",LN($I86^2),LN($I86)),VLOOKUP($A85,'CKY Table'!$A$5:$CX$24,HLOOKUP(C$73,INDIRECT(VLOOKUP($B$2,$Z$2:$AA$15,2,FALSE)),21,FALSE),FALSE))))) ->  | D85: =IF($A85="","",IF(D$73="","",IF(D$73="Trend",IF($B$21="Yes",$I86^2,$I86),IF(D$73="Log Trend",IF($B$21="Yes",LN($I86^2),LN($I86)),VLOOKUP($A85,'CKY Table'!$A$5:$CX$24,HLOOKUP(D$73,INDIRECT(VLOOKUP($B$2,$Z$2:$AA$15,2,FALSE)),21,FALSE),FALSE))))) ->  | E85: =IF($A85="","",IF(E$73="","",IF(E$73="Trend",IF($B$21="Yes",$I86^2,$I86),IF(E$73="Log Trend",IF($B$21="Yes",LN($I86^2),LN($I86)),VLOOKUP($A85,'CKY Table'!$A$5:$CX$24,HLOOKUP(E$73,INDIRECT(VLOOKUP($B$2,$Z$2:$AA$15,2,FALSE)),21,FALSE),FALSE))))) ->  | F85: =IF($A85="","",IF(F$73="","",IF(F$73="Trend",IF($B$21="Yes",$I86^2,$I86),IF(F$73="Log Trend",IF($B$21="Yes",LN($I86^2),LN($I86)),VLOOKUP($A85,'CKY Table'!$A$5:$CX$24,HLOOKUP(F$73,INDIRECT(VLOOKUP($B$2,$Z$2:$AA$15,2,FALSE)),21,FALSE),FALSE))))) ->  | G85: =IF($A85="","",IF(G$73="","",IF(G$73="Trend",IF($B$21="Yes",$I86^2,$I86),IF(G$73="Log Trend",IF($B$21="Yes",LN($I86^2),LN($I86)),VLOOKUP($A85,'CKY Table'!$A$5:$CX$24,HLOOKUP(G$73,INDIRECT(VLOOKUP($B$2,$Z$2:$AA$15,2,FALSE)),21,FALSE),FALSE))))) ->  | H85: =IF($A85="","",IF(H$73="","",IF(H$73="Trend",IF($B$21="Yes",$I86^2,$I86),IF(H$73="Log Trend",IF($B$21="Yes",LN($I86^2),LN($I86)),VLOOKUP($A85,'CKY Table'!$A$5:$CX$24,HLOOKUP(H$73,INDIRECT(VLOOKUP($B$2,$Z$2:$AA$15,2,FALSE)),21,FALSE),FALSE))))) ->  | I85: 11
B86: =IF($A86="","",IF(B$73="","",VLOOKUP($A86,'CKY Table'!$A$5:$CX$24,HLOOKUP(B$73,INDIRECT(VLOOKUP($B$2,$Z$2:$AA$15,2,FALSE)),21,FALSE),FALSE))) ->  | C86: =IF($A86="","",IF(C$73="","",IF(C$73="Trend",IF($B$21="Yes",$I87^2,$I87),IF(C$73="Log Trend",IF($B$21="Yes",LN($I87^2),LN($I87)),VLOOKUP($A86,'CKY Table'!$A$5:$CX$24,HLOOKUP(C$73,INDIRECT(VLOOKUP($B$2,$Z$2:$AA$15,2,FALSE)),21,FALSE),FALSE))))) ->  | D86: =IF($A86="","",IF(D$73="","",IF(D$73="Trend",IF($B$21="Yes",$I87^2,$I87),IF(D$73="Log Trend",IF($B$21="Yes",LN($I87^2),LN($I87)),VLOOKUP($A86,'CKY Table'!$A$5:$CX$24,HLOOKUP(D$73,INDIRECT(VLOOKUP($B$2,$Z$2:$AA$15,2,FALSE)),21,FALSE),FALSE))))) ->  | E86: =IF($A86="","",IF(E$73="","",IF(E$73="Trend",IF($B$21="Yes",$I87^2,$I87),IF(E$73="Log Trend",IF($B$21="Yes",LN($I87^2),LN($I87)),VLOOKUP($A86,'CKY Table'!$A$5:$CX$24,HLOOKUP(E$73,INDIRECT(VLOOKUP($B$2,$Z$2:$AA$15,2,FALSE)),21,FALSE),FALSE))))) ->  | F86: =IF($A86="","",IF(F$73="","",IF(F$73="Trend",IF($B$21="Yes",$I87^2,$I87),IF(F$73="Log Trend",IF($B$21="Yes",LN($I87^2),LN($I87)),VLOOKUP($A86,'CKY Table'!$A$5:$CX$24,HLOOKUP(F$73,INDIRECT(VLOOKUP($B$2,$Z$2:$AA$15,2,FALSE)),21,FALSE),FALSE))))) ->  | G86: =IF($A86="","",IF(G$73="","",IF(G$73="Trend",IF($B$21="Yes",$I87^2,$I87),IF(G$73="Log Trend",IF($B$21="Yes",LN($I87^2),LN($I87)),VLOOKUP($A86,'CKY Table'!$A$5:$CX$24,HLOOKUP(G$73,INDIRECT(VLOOKUP($B$2,$Z$2:$AA$15,2,FALSE)),21,FALSE),FALSE))))) ->  | H86: =IF($A86="","",IF(H$73="","",IF(H$73="Trend",IF($B$21="Yes",$I87^2,$I87),IF(H$73="Log Trend",IF($B$21="Yes",LN($I87^2),LN($I87)),VLOOKUP($A86,'CKY Table'!$A$5:$CX$24,HLOOKUP(H$73,INDIRECT(VLOOKUP($B$2,$Z$2:$AA$15,2,FALSE)),21,FALSE),FALSE))))) ->  | I86: 12
B87: =IF($A87="","",IF(B$73="","",VLOOKUP($A87,'CKY Table'!$A$5:$CX$24,HLOOKUP(B$73,INDIRECT(VLOOKUP($B$2,$Z$2:$AA$15,2,FALSE)),21,FALSE),FALSE))) ->  | C87: =IF($A87="","",IF(C$73="","",IF(C$73="Trend",IF($B$21="Yes",$I88^2,$I88),IF(C$73="Log Trend",IF($B$21="Yes",LN($I88^2),LN($I88)),VLOOKUP($A87,'CKY Table'!$A$5:$CX$24,HLOOKUP(C$73,INDIRECT(VLOOKUP($B$2,$Z$2:$AA$15,2,FALSE)),21,FALSE),FALSE))))) ->  | D87: =IF($A87="","",IF(D$73="","",IF(D$73="Trend",IF($B$21="Yes",$I88^2,$I88),IF(D$73="Log Trend",IF($B$21="Yes",LN($I88^2),LN($I88)),VLOOKUP($A87,'CKY Table'!$A$5:$CX$24,HLOOKUP(D$73,INDIRECT(VLOOKUP($B$2,$Z$2:$AA$15,2,FALSE)),21,FALSE),FALSE))))) ->  | E87: =IF($A87="","",IF(E$73="","",IF(E$73="Trend",IF($B$21="Yes",$I88^2,$I88),IF(E$73="Log Trend",IF($B$21="Yes",LN($I88^2),LN($I88)),VLOOKUP($A87,'CKY Table'!$A$5:$CX$24,HLOOKUP(E$73,INDIRECT(VLOOKUP($B$2,$Z$2:$AA$15,2,FALSE)),21,FALSE),FALSE))))) ->  | F87: =IF($A87="","",IF(F$73="","",IF(F$73="Trend",IF($B$21="Yes",$I88^2,$I88),IF(F$73="Log Trend",IF($B$21="Yes",LN($I88^2),LN($I88)),VLOOKUP($A87,'CKY Table'!$A$5:$CX$24,HLOOKUP(F$73,INDIRECT(VLOOKUP($B$2,$Z$2:$AA$15,2,FALSE)),21,FALSE),FALSE))))) ->  | G87: =IF($A87="","",IF(G$73="","",IF(G$73="Trend",IF($B$21="Yes",$I88^2,$I88),IF(G$73="Log Trend",IF($B$21="Yes",LN($I88^2),LN($I88)),VLOOKUP($A87,'CKY Table'!$A$5:$CX$24,HLOOKUP(G$73,INDIRECT(VLOOKUP($B$2,$Z$2:$AA$15,2,FALSE)),21,FALSE),FALSE))))) ->  | H87: =IF($A87="","",IF(H$73="","",IF(H$73="Trend",IF($B$21="Yes",$I88^2,$I88),IF(H$73="Log Trend",IF($B$21="Yes",LN($I88^2),LN($I88)),VLOOKUP($A87,'CKY Table'!$A$5:$CX$24,HLOOKUP(H$73,INDIRECT(VLOOKUP($B$2,$Z$2:$AA$15,2,FALSE)),21,FALSE),FALSE))))) ->  | I87: 13
B88: =IF($A88="","",IF(B$73="","",VLOOKUP($A88,'CKY Table'!$A$5:$CX$24,HLOOKUP(B$73,INDIRECT(VLOOKUP($B$2,$Z$2:$AA$15,2,FALSE)),21,FALSE),FALSE))) ->  | C88: =IF($A88="","",IF(C$73="","",IF(C$73="Trend",IF($B$21="Yes",$I89^2,$I89),IF(C$73="Log Trend",IF($B$21="Yes",LN($I89^2),LN($I89)),VLOOKUP($A88,'CKY Table'!$A$5:$CX$24,HLOOKUP(C$73,INDIRECT(VLOOKUP($B$2,$Z$2:$AA$15,2,FALSE)),21,FALSE),FALSE))))) ->  | D88: =IF($A88="","",IF(D$73="","",IF(D$73="Trend",IF($B$21="Yes",$I89^2,$I89),IF(D$73="Log Trend",IF($B$21="Yes",LN($I89^2),LN($I89)),VLOOKUP($A88,'CKY Table'!$A$5:$CX$24,HLOOKUP(D$73,INDIRECT(VLOOKUP($B$2,$Z$2:$AA$15,2,FALSE)),21,FALSE),FALSE))))) ->  | E88: =IF($A88="","",IF(E$73="","",IF(E$73="Trend",IF($B$21="Yes",$I89^2,$I89),IF(E$73="Log Trend",IF($B$21="Yes",LN($I89^2),LN($I89)),VLOOKUP($A88,'CKY Table'!$A$5:$CX$24,HLOOKUP(E$73,INDIRECT(VLOOKUP($B$2,$Z$2:$AA$15,2,FALSE)),21,FALSE),FALSE))))) ->  | F88: =IF($A88="","",IF(F$73="","",IF(F$73="Trend",IF($B$21="Yes",$I89^2,$I89),IF(F$73="Log Trend",IF($B$21="Yes",LN($I89^2),LN($I89)),VLOOKUP($A88,'CKY Table'!$A$5:$CX$24,HLOOKUP(F$73,INDIRECT(VLOOKUP($B$2,$Z$2:$AA$15,2,FALSE)),21,FALSE),FALSE))))) ->  | G88: =IF($A88="","",IF(G$73="","",IF(G$73="Trend",IF($B$21="Yes",$I89^2,$I89),IF(G$73="Log Trend",IF($B$21="Yes",LN($I89^2),LN($I89)),VLOOKUP($A88,'CKY Table'!$A$5:$CX$24,HLOOKUP(G$73,INDIRECT(VLOOKUP($B$2,$Z$2:$AA$15,2,FALSE)),21,FALSE),FALSE))))) ->  | H88: =IF($A88="","",IF(H$73="","",IF(H$73="Trend",IF($B$21="Yes",$I89^2,$I89),IF(H$73="Log Trend",IF($B$21="Yes",LN($I89^2),LN($I89)),VLOOKUP($A88,'CKY Table'!$A$5:$CX$24,HLOOKUP(H$73,INDIRECT(VLOOKUP($B$2,$Z$2:$AA$15,2,FALSE)),21,FALSE),FALSE))))) ->  | I88: 14
B89: =IF($A89="","",IF(B$73="","",VLOOKUP($A89,'CKY Table'!$A$5:$CX$24,HLOOKUP(B$73,INDIRECT(VLOOKUP($B$2,$Z$2:$AA$15,2,FALSE)),21,FALSE),FALSE))) ->  | C89: =IF($A89="","",IF(C$73="","",IF(C$73="Trend",IF($B$21="Yes",$I90^2,$I90),IF(C$73="Log Trend",IF($B$21="Yes",LN($I90^2),LN($I90)),VLOOKUP($A89,'CKY Table'!$A$5:$CX$24,HLOOKUP(C$73,INDIRECT(VLOOKUP($B$2,$Z$2:$AA$15,2,FALSE)),21,FALSE),FALSE))))) ->  | D89: =IF($A89="","",IF(D$73="","",IF(D$73="Trend",IF($B$21="Yes",$I90^2,$I90),IF(D$73="Log Trend",IF($B$21="Yes",LN($I90^2),LN($I90)),VLOOKUP($A89,'CKY Table'!$A$5:$CX$24,HLOOKUP(D$73,INDIRECT(VLOOKUP($B$2,$Z$2:$AA$15,2,FALSE)),21,FALSE),FALSE))))) ->  | E89: =IF($A89="","",IF(E$73="","",IF(E$73="Trend",IF($B$21="Yes",$I90^2,$I90),IF(E$73="Log Trend",IF($B$21="Yes",LN($I90^2),LN($I90)),VLOOKUP($A89,'CKY Table'!$A$5:$CX$24,HLOOKUP(E$73,INDIRECT(VLOOKUP($B$2,$Z$2:$AA$15,2,FALSE)),21,FALSE),FALSE))))) ->  | F89: =IF($A89="","",IF(F$73="","",IF(F$73="Trend",IF($B$21="Yes",$I90^2,$I90),IF(F$73="Log Trend",IF($B$21="Yes",LN($I90^2),LN($I90)),VLOOKUP($A89,'CKY Table'!$A$5:$CX$24,HLOOKUP(F$73,INDIRECT(VLOOKUP($B$2,$Z$2:$AA$15,2,FALSE)),21,FALSE),FALSE))))) ->  | G89: =IF($A89="","",IF(G$73="","",IF(G$73="Trend",IF($B$21="Yes",$I90^2,$I90),IF(G$73="Log Trend",IF($B$21="Yes",LN($I90^2),LN($I90)),VLOOKUP($A89,'CKY Table'!$A$5:$CX$24,HLOOKUP(G$73,INDIRECT(VLOOKUP($B$2,$Z$2:$AA$15,2,FALSE)),21,FALSE),FALSE))))) ->  | H89: =IF($A89="","",IF(H$73="","",IF(H$73="Trend",IF($B$21="Yes",$I90^2,$I90),IF(H$73="Log Trend",IF($B$21="Yes",LN($I90^2),LN($I90)),VLOOKUP($A89,'CKY Table'!$A$5:$CX$24,HLOOKUP(H$73,INDIRECT(VLOOKUP($B$2,$Z$2:$AA$15,2,FALSE)),21,FALSE),FALSE))))) ->  | I89: 15
B90: =IF($A90="","",IF(B$73="","",VLOOKUP($A90,'CKY Table'!$A$5:$CX$24,HLOOKUP(B$73,INDIRECT(VLOOKUP($B$2,$Z$2:$AA$15,2,FALSE)),21,FALSE),FALSE))) ->  | C90: =IF($A90="","",IF(C$73="","",IF(C$73="Trend",IF($B$21="Yes",$I91^2,$I91),IF(C$73="Log Trend",IF($B$21="Yes",LN($I91^2),LN($I91)),VLOOKUP($A90,'CKY Table'!$A$5:$CX$24,HLOOKUP(C$73,INDIRECT(VLOOKUP($B$2,$Z$2:$AA$15,2,FALSE)),21,FALSE),FALSE))))) ->  | D90: =IF($A90="","",IF(D$73="","",IF(D$73="Trend",IF($B$21="Yes",$I91^2,$I91),IF(D$73="Log Trend",IF($B$21="Yes",LN($I91^2),LN($I91)),VLOOKUP($A90,'CKY Table'!$A$5:$CX$24,HLOOKUP(D$73,INDIRECT(VLOOKUP($B$2,$Z$2:$AA$15,2,FALSE)),21,FALSE),FALSE))))) ->  | E90: =IF($A90="","",IF(E$73="","",IF(E$73="Trend",IF($B$21="Yes",$I91^2,$I91),IF(E$73="Log Trend",IF($B$21="Yes",LN($I91^2),LN($I91)),VLOOKUP($A90,'CKY Table'!$A$5:$CX$24,HLOOKUP(E$73,INDIRECT(VLOOKUP($B$2,$Z$2:$AA$15,2,FALSE)),21,FALSE),FALSE))))) ->  | F90: =IF($A90="","",IF(F$73="","",IF(F$73="Trend",IF($B$21="Yes",$I91^2,$I91),IF(F$73="Log Trend",IF($B$21="Yes",LN($I91^2),LN($I91)),VLOOKUP($A90,'CKY Table'!$A$5:$CX$24,HLOOKUP(F$73,INDIRECT(VLOOKUP($B$2,$Z$2:$AA$15,2,FALSE)),21,FALSE),FALSE))))) ->  | G90: =IF($A90="","",IF(G$73="","",IF(G$73="Trend",IF($B$21="Yes",$I91^2,$I91),IF(G$73="Log Trend",IF($B$21="Yes",LN($I91^2),LN($I91)),VLOOKUP($A90,'CKY Table'!$A$5:$CX$24,HLOOKUP(G$73,INDIRECT(VLOOKUP($B$2,$Z$2:$AA$15,2,FALSE)),21,FALSE),FALSE))))) ->  | H90: =IF($A90="","",IF(H$73="","",IF(H$73="Trend",IF($B$21="Yes",$I91^2,$I91),IF(H$73="Log Trend",IF($B$21="Yes",LN($I91^2),LN($I91)),VLOOKUP($A90,'CKY Table'!$A$5:$CX$24,HLOOKUP(H$73,INDIRECT(VLOOKUP($B$2,$Z$2:$AA$15,2,FALSE)),21,FALSE),FALSE))))) ->  | I90: 16
B91: =IF($A91="","",IF(B$73="","",VLOOKUP($A91,'CKY Table'!$A$5:$CX$24,HLOOKUP(B$73,INDIRECT(VLOOKUP($B$2,$Z$2:$AA$15,2,FALSE)),21,FALSE),FALSE))) ->  | C91: =IF($A91="","",IF(C$73="","",IF(C$73="Trend",IF($B$21="Yes",$I92^2,$I92),IF(C$73="Log Trend",IF($B$21="Yes",LN($I92^2),LN($I92)),VLOOKUP($A91,'CKY Table'!$A$5:$CX$24,HLOOKUP(C$73,INDIRECT(VLOOKUP($B$2,$Z$2:$AA$15,2,FALSE)),21,FALSE),FALSE))))) ->  | D91: =IF($A91="","",IF(D$73="","",IF(D$73="Trend",IF($B$21="Yes",$I92^2,$I92),IF(D$73="Log Trend",IF($B$21="Yes",LN($I92^2),LN($I92)),VLOOKUP($A91,'CKY Table'!$A$5:$CX$24,HLOOKUP(D$73,INDIRECT(VLOOKUP($B$2,$Z$2:$AA$15,2,FALSE)),21,FALSE),FALSE))))) ->  | E91: =IF($A91="","",IF(E$73="","",IF(E$73="Trend",IF($B$21="Yes",$I92^2,$I92),IF(E$73="Log Trend",IF($B$21="Yes",LN($I92^2),LN($I92)),VLOOKUP($A91,'CKY Table'!$A$5:$CX$24,HLOOKUP(E$73,INDIRECT(VLOOKUP($B$2,$Z$2:$AA$15,2,FALSE)),21,FALSE),FALSE))))) ->  | F91: =IF($A91="","",IF(F$73="","",IF(F$73="Trend",IF($B$21="Yes",$I92^2,$I92),IF(F$73="Log Trend",IF($B$21="Yes",LN($I92^2),LN($I92)),VLOOKUP($A91,'CKY Table'!$A$5:$CX$24,HLOOKUP(F$73,INDIRECT(VLOOKUP($B$2,$Z$2:$AA$15,2,FALSE)),21,FALSE),FALSE))))) ->  | G91: =IF($A91="","",IF(G$73="","",IF(G$73="Trend",IF($B$21="Yes",$I92^2,$I92),IF(G$73="Log Trend",IF($B$21="Yes",LN($I92^2),LN($I92)),VLOOKUP($A91,'CKY Table'!$A$5:$CX$24,HLOOKUP(G$73,INDIRECT(VLOOKUP($B$2,$Z$2:$AA$15,2,FALSE)),21,FALSE),FALSE))))) ->  | H91: =IF($A91="","",IF(H$73="","",IF(H$73="Trend",IF($B$21="Yes",$I92^2,$I92),IF(H$73="Log Trend",IF($B$21="Yes",LN($I92^2),LN($I92)),VLOOKUP($A91,'CKY Table'!$A$5:$CX$24,HLOOKUP(H$73,INDIRECT(VLOOKUP($B$2,$Z$2:$AA$15,2,FALSE)),21,FALSE),FALSE))))) ->  | I91: 17
B92: =IF($A92="","",IF(B$73="","",VLOOKUP($A92,'CKY Table'!$A$5:$CX$24,HLOOKUP(B$73,INDIRECT(VLOOKUP($B$2,$Z$2:$AA$15,2,FALSE)),21,FALSE),FALSE))) ->  | C92: =IF($A92="","",IF(C$73="","",IF(C$73="Trend",IF($B$21="Yes",$I93^2,$I93),IF(C$73="Log Trend",IF($B$21="Yes",LN($I93^2),LN($I93)),VLOOKUP($A92,'CKY Table'!$A$5:$CX$24,HLOOKUP(C$73,INDIRECT(VLOOKUP($B$2,$Z$2:$AA$15,2,FALSE)),21,FALSE),FALSE))))) ->  | D92: =IF($A92="","",IF(D$73="","",IF(D$73="Trend",IF($B$21="Yes",$I93^2,$I93),IF(D$73="Log Trend",IF($B$21="Yes",LN($I93^2),LN($I93)),VLOOKUP($A92,'CKY Table'!$A$5:$CX$24,HLOOKUP(D$73,INDIRECT(VLOOKUP($B$2,$Z$2:$AA$15,2,FALSE)),21,FALSE),FALSE))))) ->  | E92: =IF($A92="","",IF(E$73="","",IF(E$73="Trend",IF($B$21="Yes",$I93^2,$I93),IF(E$73="Log Trend",IF($B$21="Yes",LN($I93^2),LN($I93)),VLOOKUP($A92,'CKY Table'!$A$5:$CX$24,HLOOKUP(E$73,INDIRECT(VLOOKUP($B$2,$Z$2:$AA$15,2,FALSE)),21,FALSE),FALSE))))) ->  | F92: =IF($A92="","",IF(F$73="","",IF(F$73="Trend",IF($B$21="Yes",$I93^2,$I93),IF(F$73="Log Trend",IF($B$21="Yes",LN($I93^2),LN($I93)),VLOOKUP($A92,'CKY Table'!$A$5:$CX$24,HLOOKUP(F$73,INDIRECT(VLOOKUP($B$2,$Z$2:$AA$15,2,FALSE)),21,FALSE),FALSE))))) ->  | G92: =IF($A92="","",IF(G$73="","",IF(G$73="Trend",IF($B$21="Yes",$I93^2,$I93),IF(G$73="Log Trend",IF($B$21="Yes",LN($I93^2),LN($I93)),VLOOKUP($A92,'CKY Table'!$A$5:$CX$24,HLOOKUP(G$73,INDIRECT(VLOOKUP($B$2,$Z$2:$AA$15,2,FALSE)),21,FALSE),FALSE))))) ->  | H92: =IF($A92="","",IF(H$73="","",IF(H$73="Trend",IF($B$21="Yes",$I93^2,$I93),IF(H$73="Log Trend",IF($B$21="Yes",LN($I93^2),LN($I93)),VLOOKUP($A92,'CKY Table'!$A$5:$CX$24,HLOOKUP(H$73,INDIRECT(VLOOKUP($B$2,$Z$2:$AA$15,2,FALSE)),21,FALSE),FALSE))))) ->  | I92: 18
I93: 19
A95: Different Scenarios (19 Years): | B95: =IF($B$4="Log",IF(B65="","",B65),IF(B59="","",B59)) -> Log Degree Days | C95: Log Rate | D95: Log Lag Rate | E95: Log Trend | F95: Log Nonfarm | G95: Log Degree Days | H95: Log Degree Days | I95: Log Degree Days | J95: Log Rate | K95: Log Rate | L95: Log Lag Rate | M95: Log Degree Days | N95: Log Rate | O95: Log Lag Rate | P95: Log Trend | Q95: Log Degree Days | R95: Log Degree Days | S95: Log Degree Days | T95: Log Rate | U95: Log Degree Days | V95: Log Degree Days | W95: Log Degree Days | X95: Log Rate | Y95: Log Rate | Z95: Log Lag Rate | AA95: Log Degree Days | AB95: Log Degree Days | AC95: Log Degree Days | AD95: Log Degree Days | AE95: Log Rate | AF95: Log Degree Days
G96: =IF($B$4="Log",IF(G66="","",G66),IF(G60="","",G60)) -> Log Rate | H96: Log Lag Rate | I96: Log Trend | J96: Log Lag Rate | K96: Log Trend | L96: Log Trend | M96: Log Nonfarm | N96: Log Nonfarm | O96: Log Nonfarm | P96: Log Nonfarm | Q96: Log Rate | R96: Log Rate | S96: Log Lag Rate | T96: Log Lag Rate | U96: Log Rate | V96: Log Lag Rate | W96: Log Trend | X96: Log Lag Rate | Y96: Log Trend | Z96: Log Trend | AA96: Log Rate | AB96: Log Rate | AC96: Log Rate | AD96: Log Lag Rate | AE96: Log Lag Rate | AF96: Log Rate
G97: =IF($B$4="Log",IF(G67="","",G67),IF(G61="","",G61)) ->  | Q97: Log Lag Rate | R97: Log Trend | S97: Log Trend | T97: Log Trend | U97: Log Nonfarm | V97: Log Nonfarm | W97: Log Nonfarm | X97: Log Nonfarm | Y97: Log Nonfarm | Z97: Log Nonfarm | AA97: Log Lag Rate | AB97: Log Lag Rate | AC97: Log Trend | AD97: Log Trend | AE97: Log Trend | AF97: Log Lag Rate
G98: =IF($B$4="Log",IF(G68="","",G68),IF(G62="","",G62)) ->  | AA98: Log Trend | AB98: Log Nonfarm | AC98: Log Nonfarm | AD98: Log Nonfarm | AE98: Log Nonfarm | AF98: Log Trend
G99: =IF($B$4="Log",IF(G69="","",G69),IF(G63="","",G63)) ->  | H99: =IF($B$4="Log",IF(H69="","",H69),IF(H63="","",H63)) ->  | I99: =IF($B$4="Log",IF(I69="","",I69),IF(I63="","",I63)) ->  | J99: =IF($B$4="Log",IF(J69="","",J69),IF(J63="","",J63)) ->  | L99: =IF($B$4="Log",IF(L69="","",L69),IF(L63="","",L63)) ->  | AF99: Log Nonfarm
B100: =IF($B$4="Log","",IF(B64="","",B64)) ->  | C100: =IF($B$4="Log","",IF(C64="","",C64)) -> 
A101: Statistics
A102: Multiple R | B102: 0.1213019229 | C102: 0.4490383111 | D102: 0.05281776182 | E102: 0.6122939568 | F102: 0.1817039415 | G102: 0.5581672406 | H102: 0.1524730774 | I102: 0.6448644985 | J102: 0.5282501549 | K102: 0.6589731298 | L102: 0.6339043287 | M102: 0.1963735851 | N102: 0.483412891 | O102: 0.1844069467 | P102: 0.6860299471 | Q102: 0.6147682909 | R102: 0.7333665746 | S102: 0.6890028551 | T102: 0.6593316544 | U102: 0.5642913129 | V102: 0.2054610485 | W102: 0.6978207495 | X102: 0.5729170428 | Y102: 0.719833023 | Z102: 0.6997376263 | AA102: 0.7333683183 | AB102: 0.6282321462 | AC102: 0.759846145 | AD102: 0.7250297009 | AE102: 0.7205450169 | AF102: 0.7599602656
A103: R-Squared | B103: 0.0147141565 | C103: 0.2016354049 | D103: 0.002789715964 | E103: 0.3749038895 | F103: 0.03301632235 | G103: 0.3115506685 | H103: 0.02324803933 | I103: 0.4158502214 | J103: 0.2790482262 | K103: 0.4342455857 | L103: 0.401834698 | M103: 0.03856258493 | N103: 0.2336880232 | O103: 0.03400592198 | P103: 0.4706370884 | Q103: 0.3779400515 | R103: 0.5378265327 | S103: 0.4747249344 | T103: 0.4347182305 | U103: 0.3184246858 | V103: 0.04221424243 | W103: 0.4869537985 | X103: 0.3282339379 | Y103: 0.5181595811 | Z103: 0.4896327457 | AA103: 0.5378290902 | AB103: 0.3946756295 | AC103: 0.5773661641 | AD103: 0.5256680671 | AE103: 0.5191851214 | AF103: 0.5775396053
A104: Adjusted R-Squared | B104: -0.0432438343 | C104: 0.1546727816 | D104: -0.05586971251 | E104: 0.3381335301 | F104: -0.02386507046 | G104: 0.225494502 | H104: -0.09884595575 | I104: 0.3428314991 | J104: 0.1889292545 | K104: 0.363526284 | L104: 0.3270640352 | M104: -0.08161709196 | N104: 0.1378990261 | O104: -0.08674333777 | P104: 0.4044667244 | Q104: 0.2535280618 | R104: 0.4453918392 | S104: 0.3696699213 | T104: 0.3216618766 | U104: 0.182109623 | V104: -0.1493429091 | W104: 0.3843445582 | X104: 0.1938807255 | Y104: 0.4217914973 | Z104: 0.3875592948 | AA104: 0.4057802589 | AB104: 0.2217258093 | AC104: 0.4566136395 | AD104: 0.3901446577 | AE104: 0.3818094418 | AF104: 0.4150548381
A105: Significance F | B105: 0.6208257473 | C105: 0.05378231398 | D105: 0.8299649219 | E105: 0.005326160857 | F105: 0.4565797679 | G105: 0.05046332478 | H105: 0.8284653201 | I105: 0.01355794074 | J105: 0.0729877066 | K105: 0.01049599486 | L105: 0.01638965219 | M105: 0.7300761348 | N105: 0.1189172633 | O105: 0.7582208313 | P105: 0.006166348744 | Q105: 0.06174846179 | R105: 0.00763324223 | S105: 0.01896443553 | T105: 0.03177439321 | U105: 0.1150331148 | V105: 0.8807324957 | W105: 0.01605388087 | X105: 0.1043220138 | Y105: 0.01027864549 | Z105: 0.01546936159 | AA105: 0.0214616571 | AB105: 0.112052126 | AC105: 0.01214269416 | AD105: 0.02528089069 | AE105: 0.02753144735 | AF105: 0.03029183192
A106: Coefficients
A107: Intercept | B107: 9.422306654 | C107: 6.70077521 | D107: 7.231025245 | E107: 7.910957311 | F107: -0.08401916224 | G107: 12.89426818 | H107: 9.819296618 | I107: 11.53147316 | J107: 6.789224867 | K107: 7.473429678 | L107: 7.766679434 | M107: 2.137650386 | N107: -0.5599093151 | O107: 0.0354740503 | P107: -4.83019898 | Q107: 12.66949254 | R107: 13.47660681 | S107: 12.7907477 | T107: 7.459351818 | U107: 8.877756209 | V107: 3.034654849 | W107: -1.080816575 | X107: -2.291010212 | Y107: -4.454420296 | Z107: -4.458390292 | AA107: 13.47369844 | AB107: 6.286974538 | AC107: 3.63087097 | AD107: 1.707913356 | AE107: -4.521919578 | AF107: 3.568944915
A108: Coefficient 1 | B108: -0.2943482655 | C108: 0.4044406821 | D108: 0.03930471123 | E108: -0.3016965262 | F108: 2.853921093 | G108: -0.8798606489 | H108: -0.3629842337 | I108: -0.4951977205 | J108: 0.5968803256 | K108: 0.2354291659 | L108: 0.1240911857 | M108: -0.1878687225 | N108: 0.4034801824 | O108: 0.02357652488 | P108: -0.33257484 | Q108: -0.8362685654 | R108: -0.8543066486 | S108: -0.6982721802 | T108: 0.258154115 | U108: -0.810263357 | V108: -0.2430770683 | W108: -0.3232668965 | X108: 0.6181873075 | Y108: 0.2114543146 | Z108: 0.1046113031 | AA108: -0.8540404229 | AB108: -0.7221779249 | AC108: -0.680143262 | AD108: -0.5146782382 | AE108: 0.2448557082 | AF108: -0.6772761388
A109: Coefficient 2 | G109: 0.5366871466 | H109: 0.07189470412 | I109: -0.314726659 | J109: -0.2610532213 | K109: -0.2549961031 | L109: -0.3162808422 | M109: 2.521552233 | N109: 2.81201138 | O109: 2.794815123 | P109: 4.958370693 | Q109: 0.7087090339 | R109: 0.366117717 | S109: 0.1939097137 | T109: -0.02421548594 | U109: 0.5257598774 | V109: 0.04816788937 | W109: -0.3377222258 | X109: -0.2915884665 | Y109: -0.2887670641 | Z109: -0.3436738533 | AA109: 0.3677519317 | AB109: 0.7065467056 | AC109: 0.3221449498 | AD109: 0.1599976666 | AE109: -0.03569233076 | AF109: 0.3354560664
A110: Coefficient 3 | Q110: -0.2422437659 | R110: -0.2515516997 | S110: -0.3428601749 | T110: -0.2476422928 | U110: 1.365828778 | V110: 2.303123995 | W110: 4.419032855 | X110: 3.520717239 | Y110: 4.659202272 | Z110: 4.766343587 | AA110: -0.001784800706 | AB110: -0.2635754256 | AC110: -0.27666481 | AD110: -0.357745449 | AE110: -0.278060301 | AF110: -0.01472271751
A111: Coefficient 4 | AA111: -0.251010761 | AB111: 2.163666482 | AC111: 3.36784602 | AD111: 3.805986869 | AE111: 4.677463258 | AF111: -0.2722993975
A112: Coefficient 5 | AF112: 3.380822161
A113: Coefficient 6
A114: p-value for Intercept | B114: 0.04014018976 | C114: 3.656431512e-14 | D114: 2.452803924e-15 | E114: 7.572828661e-18 | F114: 0.993171844 | G114: 0.004344848603 | H114: 0.04351206864 | I114: 0.003925959626 | J114: 1.177826452e-13 | K114: 2.264399806e-12 | L114: 3.509915644e-15 | M114: 0.8646765435 | N114: 0.9505076678 | O114: 0.9972164164 | P114: 0.5282946162 | Q114: 0.004683782323 | R114: 0.0009652740358 | S114: 0.002309037288 | T114: 2.211740026e-11 | U114: 0.4351576429 | V114: 0.822135679 | W114: 0.909550464 | X114: 0.7951750136 | Y114: 0.5556447088 | Z114: 0.5669201556 | AA114: 0.001503319424 | AB114: 0.5758307084 | AC114: 0.6990544561 | AD114: 0.8623224449 | AE114: 0.5639109693 | AF114: 0.7155875469
A115: p-value for Coefficient 1 | B115: 0.6208257473 | C115: 0.05378231398 | D115: 0.8299649219 | E115: 0.005326160857 | F115: 0.4565797679 | G115: 0.129539009 | H115: 0.5707177998 | I115: 0.305316044 | J115: 0.02483989352 | K115: 0.2135391048 | L115: 0.4085459143 | M115: 0.7651891421 | N115: 0.05745735598 | O115: 0.8997227515 | P115: 0.002219256468 | Q115: 0.1433671051 | R115: 0.08664516977 | S115: 0.1696512178 | T115: 0.3650369292 | U115: 0.1921930582 | V115: 0.7249348023 | W115: 0.5003091041 | X115: 0.02162527447 | Y115: 0.2426616671 | Z115: 0.4665006205 | AA115: 0.09895521268 | AB115: 0.2354920056 | AC115: 0.1831512912 | AD115: 0.3198860964 | AE115: 0.3693204181 | AF115: 0.2031870201
A116: p-value for Coefficient 2 | G116: 0.01832496938 | H116: 0.7133960774 | I116: 0.004381511939 | J116: 0.2084517606 | K116: 0.02077016123 | L116: 0.004843680086 | M116: 0.5375988889 | N116: 0.4253349396 | O116: 0.4824769772 | P116: 0.1082853246 | Q116: 0.01046097712 | R116: 0.06517903 | S116: 0.214350797 | T116: 0.9123159732 | U116: 0.02540307902 | V116: 0.8142319288 | W116: 0.002516400583 | X116: 0.1668298884 | Y116: 0.009424472794 | Z116: 0.002324667777 | AA116: 0.18845043 | AB116: 0.01272057694 | AC116: 0.1054940974 | AD116: 0.3031763238 | AE116: 0.8652795844 | AF116: 0.2286312135
A117: p-value for Coefficient 3 | Q117: 0.2250815348 | R117: 0.01613335608 | S117: 0.002676632872 | T117: 0.0602080913 | U117: 0.7027785893 | V117: 0.5937605723 | W117: 0.1699036808 | X117: 0.3112378992 | Y117: 0.1268705532 | Z117: 0.1290336751 | AA117: 0.9931014209 | AB117: 0.2054289857 | AC117: 0.01099870786 | AD117: 0.002039606542 | AE117: 0.0334518976 | AF117: 0.9428737835
A118: p-value for Coefficient 4 | AA118: 0.04503635747 | AB118: 0.5438477856 | AC118: 0.2716257163 | AD118: 0.240344442 | AE118: 0.1391396312 | AF118: 0.0337997684
A119: p-value for Coefficient 5 | AF119: 0.2890118912
A120: p-value for Coefficient 6
A122: Adjusted R-Squared Rank | B122: =IFERROR(RANK(B104,$B104:$BL104),"") -> 26 | C122: =IFERROR(RANK(C104,$B104:$BL104),"") -> 23 | D122: 27 | E122: 14 | F122: 25 | G122: 18 | H122: 30 | I122: 13 | J122: 21 | K122: 12 | L122: 15 | M122: 28 | N122: 24 | O122: 29 | P122: 6 | Q122: 17 | R122: 2 | S122: 11 | T122: 16 | U122: 22 | V122: 31 | W122: 9 | X122: 20 | Y122: 3 | Z122: 8 | AA122: 5 | AB122: 19 | AC122: 1 | AD122: 7 | AE122: 10 | AF122: 4
A123: ="Adjusted R-Squared > "&$B$18&", p-Values at "&$B$16&" signficance, and F-Test < "&$B$17&", and Correct Signs" -> Adjusted R-Squared > 0.6, p-Values at 0.2 signficance, and F-Test < 0.15, and Correct Signs | B123: =IFERROR(IF(COUNT(B114:B120)=0,"",IF(AND(B115<=$B$16,B116<=$B$16,B117<=$B$16,B118<=$B$16,B119<=$B$16,B120<=$B$16,B104>=$B$18,B105<$B$17,B124="Yes"),"!!!","")),"") ->  | C123: =IFERROR(IF(COUNT(C114:C120)=0,"",IF(AND(C115<=$B$16,C116<=$B$16,C117<=$B$16,C118<=$B$16,C119<=$B$16,C120<=$B$16,C104>=$B$18,C105<$B$17,C124="Yes"),"!!!","")),"") -> 
A124: Correct Signs? | B124: =IFERROR(IF(COUNT(B114:B120)=0,"",IF(AND(IF(B$95="",IF(B108<0,"negative","positive"),IF(OR(B$95="Trend",B$95="Log Trend"),IF(B108<0,"negative","positive"),IF($B$4="Log",VLOOKUP(B$95,$W$19:$X$23,2,FALSE),VLOOKUP(B$95,$W$12:$X$17,2,FALSE))))=IF(B108<0,"negative","positive"),IF(B$96="",IF(B109<0,"negative","positive"),IF(OR(B$96="Trend",B$96="Log Trend"),IF(B109<0,"negative","positive"),IF($B$4="Log",VLOOKUP(B$96,$W$19:$X$23,2,FALSE),VLOOKUP(B$96,$W$12:$X$17,2,FALSE))))=IF(B109<0,"negative","positive"),IF(B$97="",IF(B110<0,"negative","positive"),IF(OR(B$97="Trend",B$97="Log Trend"),IF(B110<0,"negative","positive"),IF($B$4="Log",VLOOKUP(B$97,$W$19:$X$23,2,FALSE),VLOOKUP(B$97,$W$12:$X$17,2,FALSE))))=IF(B110<0,"negative","positive"),IF(B$98="",IF(B111<0,"negative","positive"),IF(OR(B$98="Trend",B$98="Log Trend"),IF(B111<0,"negative","positive"),IF($B$4="Log",VLOOKUP(B$98,$W$19:$X$23,2,FALSE),VLOOKUP(B$98,$W$12:$X$17,2,FALSE))))=IF(B111<0,"negative","positive"),IF(B$99="",IF(B112<0,"negative","positive"),IF(OR(B$99="Trend",B$99="Log Trend"),IF(B112<0,"negative","positive"),IF($B$4="Log",VLOOKUP(B$99,$W$19:$X$23,2,FALSE),VLOOKUP(B$99,$W$12:$X$17,2,FALSE))))=IF(B112<0,"negative","positive"),IF(B$100="",IF(B113<0,"negative","positive"),IF(OR(B$100="Trend",B$100="Log Trend"),IF(B113<0,"negative","positive"),IF($B$4="Log",VLOOKUP(B$100,$W$19:$X$23,2,FALSE),VLOOKUP(B$100,$W$12:$X$17,2,FALSE))))=IF(B113<0,"negative","positive")),"YES","")),"") ->  | C124: =IFERROR(IF(COUNT(C114:C120)=0,"",IF(AND(IF(C$95="",IF(C108<0,"negative","positive"),IF(OR(C$95="Trend",C$95="Log Trend"),IF(C108<0,"negative","positive"),IF($B$4="Log",VLOOKUP(C$95,$W$19:$X$23,2,FALSE),VLOOKUP(C$95,$W$12:$X$17,2,FALSE))))=IF(C108<0,"negative","positive"),IF(C$96="",IF(C109<0,"negative","positive"),IF(OR(C$96="Trend",C$96="Log Trend"),IF(C109<0,"negative","positive"),IF($B$4="Log",VLOOKUP(C$96,$W$19:$X$23,2,FALSE),VLOOKUP(C$96,$W$12:$X$17,2,FALSE))))=IF(C109<0,"negative","positive"),IF(C$97="",IF(C110<0,"negative","positive"),IF(OR(C$97="Trend",C$97="Log Trend"),IF(C110<0,"negative","positive"),IF($B$4="Log",VLOOKUP(C$97,$W$19:$X$23,2,FALSE),VLOOKUP(C$97,$W$12:$X$17,2,FALSE))))=IF(C110<0,"negative","positive"),IF(C$98="",IF(C111<0,"negative","positive"),IF(OR(C$98="Trend",C$98="Log Trend"),IF(C111<0,"negative","positive"),IF($B$4="Log",VLOOKUP(C$98,$W$19:$X$23,2,FALSE),VLOOKUP(C$98,$W$12:$X$17,2,FALSE))))=IF(C111<0,"negative","positive"),IF(C$99="",IF(C112<0,"negative","positive"),IF(OR(C$99="Trend",C$99="Log Trend"),IF(C112<0,"negative","positive"),IF($B$4="Log",VLOOKUP(C$99,$W$19:$X$23,2,FALSE),VLOOKUP(C$99,$W$12:$X$17,2,FALSE))))=IF(C112<0,"negative","positive"),IF(C$100="",IF(C113<0,"negative","positive"),IF(OR(C$100="Trend",C$100="Log Trend"),IF(C113<0,"negative","positive"),IF($B$4="Log",VLOOKUP(C$100,$W$19:$X$23,2,FALSE),VLOOKUP(C$100,$W$12:$X$17,2,FALSE))))=IF(C113<0,"negative","positive")),"YES","")),"") ->  | E124: YES | F124: YES | P124: YES
AF125: =IF(AND(AF115<=$B$16,AF116<=$B$16,AF117<=$B$16,AF118<=$B$16,AF119<=$B$16,AF104>=$B$18,AF105<$B$17,AF124="Yes"),"Great","") -> 
A126: Different Scenarios (18 Years): | B126: =B$95 -> Log Degree Days | C126: =C95 -> Log Rate | D126: Log Lag Rate | E126: Log Trend | F126: Log Nonfarm | G126: Log Degree Days | H126: Log Degree Days | I126: Log Degree Days | J126: Log Rate | K126: Log Rate | L126: Log Lag Rate | M126: Log Degree Days | N126: Log Rate | O126: Log Lag Rate | P126: Log Trend | Q126: Log Degree Days | R126: Log Degree Days | S126: Log Degree Days | T126: Log Rate | U126: Log Degree Days | V126: Log Degree Days | W126: Log Degree Days | X126: Log Rate | Y126: Log Rate | Z126: Log Lag Rate | AA126: Log Degree Days | AB126: Log Degree Days | AC126: Log Degree Days | AD126: Log Degree Days | AE126: Log Rate | AF126: Log Degree Days
B127: =B$96 ->  | G127: Log Rate | H127: Log Lag Rate | I127: Log Trend | J127: Log Lag Rate | K127: Log Trend | L127: Log Trend | M127: Log Nonfarm | N127: Log Nonfarm | O127: Log Nonfarm | P127: Log Nonfarm | Q127: Log Rate | R127: Log Rate | S127: Log Lag Rate | T127: Log Lag Rate | U127: Log Rate | V127: Log Lag Rate | W127: Log Trend | X127: Log Lag Rate | Y127: Log Trend | Z127: Log Trend | AA127: Log Rate | AB127: Log Rate | AC127: Log Rate | AD127: Log Lag Rate | AE127: Log Lag Rate | AF127: Log Rate
B128: =B$97 ->  | Q128: Log Lag Rate | R128: Log Trend | S128: Log Trend | T128: Log Trend | U128: Log Nonfarm | V128: Log Nonfarm | W128: Log Nonfarm | X128: Log Nonfarm | Y128: Log Nonfarm | Z128: Log Nonfarm | AA128: Log Lag Rate | AB128: Log Lag Rate | AC128: Log Trend | AD128: Log Trend | AE128: Log Trend | AF128: Log Lag Rate
B129: =B$98 ->  | AA129: Log Trend | AB129: Log Nonfarm | AC129: Log Nonfarm | AD129: Log Nonfarm | AE129: Log Nonfarm | AF129: Log Trend
B130: =B$99 ->  | J130: =J99 ->  | AF130: Log Nonfarm
B131: =B$100 ->  | C131: =C100 -> 
A132: Statistics
A133: Multiple R | B133: 0.07258520104 | C133: 0.5386457045 | D133: 0.252569468 | E133: 0.6171261144 | F133: 0.2379159332 | G133: 0.6108549989 | H133: 0.2801065771 | I133: 0.69697818 | J133: 0.5447123262 | K133: 0.6418120073 | L133: 0.6213018987 | M133: 0.238103642 | N133: 0.6012458407 | O133: 0.3505517975 | P133: 0.6891820893 | Q133: 0.61787813 | R133: 0.7356608268 | S133: 0.7039975264 | T133: 0.6424952295 | U133: 0.6363134554 | V133: 0.3528006488 | W133: 0.7286526632 | X133: 0.607199337 | Y133: 0.7095969636 | Z133: 0.6925297856 | AA133: 0.7364679161 | AB133: 0.6430545231 | AC133: 0.7605425295 | AD133: 0.7342192126 | AE133: 0.7102087888 | AF133: 0.7612773431
A134: R-Squared | B134: 0.005268611411 | C134: 0.2901391949 | D134: 0.06379133614 | E134: 0.3808446411 | F134: 0.05660399127 | G134: 0.3731438297 | H134: 0.07845969454 | I134: 0.4857785833 | J134: 0.2967115183 | K134: 0.4119226528 | L134: 0.3860160493 | M134: 0.05669334431 | N134: 0.361496561 | O134: 0.1228865627 | P134: 0.4749719522 | Q134: 0.3817733835 | R134: 0.5411968521 | S134: 0.4956125172 | T134: 0.4128001199 | U134: 0.4048948135 | V134: 0.1244682978 | W134: 0.5309347036 | X134: 0.3686910349 | Y134: 0.5035278507 | Z134: 0.479597504 | AA134: 0.5423849914 | AB134: 0.4135191197 | AC134: 0.5784249392 | AD134: 0.5390778522 | AE134: 0.5043965237 | AF134: 0.5795431932
A135: Adjusted R-Squared | B135: -0.05690210038 | C135: 0.2457728946 | D135: 0.005278294652 | E135: 0.3421474311 | F135: -0.002358259271 | G135: 0.289563007 | H135: -0.04441234619 | I135: 0.4172157278 | J135: 0.2029397207 | K135: 0.3335123398 | L135: 0.3041515225 | M135: -0.06908087644 | N135: 0.2763627691 | O135: 0.005938104418 | P135: 0.4049682125 | Q135: 0.2492962514 | R135: 0.4428818918 | S135: 0.3875294852 | T135: 0.2869715742 | U135: 0.2773722736 | V135: -0.06314563842 | W135: 0.4304207115 | X135: 0.2334105424 | Y135: 0.3971409615 | Z135: 0.3680826834 | AA135: 0.4015803734 | AB135: 0.2330634643 | AC135: 0.4487095359 | AD135: 0.3972556529 | AE135: 0.3519031464 | AF135: 0.404352857
A136: Significance F | B136: 0.774708106 | C136: 0.02109085323 | D136: 0.3119449777 | E136: 0.006364593525 | F136: 0.3417697302 | G136: 0.03011336499 | H136: 0.5418230922 | I136: 0.006817516593 | J136: 0.07136763173 | K136: 0.01865341618 | L136: 0.02577375184 | M136: 0.6455007337 | N136: 0.03457198419 | O136: 0.3740401591 | P136: 0.007968357039 | Q136: 0.0732950248 | R136: 0.01039401555 | S136: 0.01948203467 | T136: 0.05262969167 | U136: 0.05737517706 | V136: 0.5881702679 | W136: 0.01204263481 | X136: 0.08378120779 | Y136: 0.01754895109 | Z136: 0.02393778722 | AA136: 0.02811373145 | AB136: 0.1149280893 | AC136: 0.01734890906 | AD136: 0.02932096195 | AE136: 0.04463470093 | AF136: 0.04154167634
A137: Coefficients
A138: Intercept | B138: 8.555126356 | C138: 6.541452955 | D138: 6.913324076 | E138: 7.888719234 | F138: -2.377369029 | G138: 11.88009954 | H138: 9.068927078 | I138: 14.2085954 | J138: 6.602115321 | K138: 7.418548684 | L138: 7.760708865 | M138: -2.695612524 | N138: -4.32145505 | O138: -2.949526853 | P138: -4.587842794 | Q138: 12.01992035 | R138: 14.37182425 | S138: 14.19274173 | T138: 7.429792651 | U138: 2.931024217 | V138: -1.603089937 | W138: 3.627810531 | X138: -4.306303785 | Y138: -4.873909863 | Z138: -4.673698147 | AA138: 14.39389134 | AB138: 3.071541952 | AC138: 4.717288565 | AD138: 3.804010138 | AE138: -4.862133812 | AF138: 4.747625931
A139: Coefficient 1 | B139: -0.1773372781 | C139: 0.4916805916 | D139: 0.2380378664 | E139: -0.3076777177 | F139: 3.732558492 | G139: -0.7555797955 | H139: -0.3010356451 | I139: -0.8518937061 | J139: 0.5458089633 | K139: 0.2136060825 | L139: 0.07100168299 | M139: 0.02458032374 | N139: 0.5047498627 | O139: 0.2426914307 | P139: -0.3244003738 | Q139: -0.7655225571 | R139: -0.9598038297 | S139: -0.8736339862 | T139: 0.237146527 | U139: -0.5825793251 | V139: -0.1053051844 | W139: -0.6583707708 | X139: 0.5614459662 | Y139: 0.2048140234 | Z139: 0.06715544269 | AA139: -0.9610436693 | AB139: -0.592533358 | AC139: -0.7757894304 | AD139: -0.6816586176 | AE139: 0.2282366314 | AF139: -0.777162453
A140: Coefficient 2 | G140: 0.5943022047 | H140: 0.2593997174 | I140: -0.372005006 | J140: -0.09466335632 | K140: -0.2309528942 | L140: -0.2964835331 | M140: 3.786605787 | N140: 4.196869106 | O140: 3.814598764 | P140: 4.841957093 | Q140: 0.6577282318 | R140: 0.2895426966 | S140: 0.09824980597 | T140: -0.03497608039 | U140: 0.5801016539 | V140: 0.249884509 | W140: -0.3696493363 | X140: -0.09905230261 | Y140: -0.2506127356 | Z140: -0.3137653836 | AA140: 0.3170358536 | AB140: 0.6435095678 | AC140: 0.2690322318 | AD140: 0.089485937 | AE140: -0.03480037518 | AF140: 0.295723922
A141: Coefficient 3 | Q141: -0.1085620372 | R141: -0.2761530269 | S141: -0.3581564883 | T141: -0.2280117981 | U141: 2.985206607 | V141: 3.585484958 | W141: 3.549073701 | X141: 4.215538873 | Y141: 4.778019753 | Z141: 4.828288552 | AA141: -0.0407032244 | AB141: -0.1085290256 | AC141: -0.2807960577 | AD141: -0.3570785477 | AE141: -0.2476854729 | AF141: -0.03948858145
A142: Coefficient 4 | AA142: -0.2727887301 | AB142: 2.984959948 | AC142: 3.234506909 | AD142: 3.485128318 | AE142: 4.777790979 | AF142: -0.2775278624
A143: Coefficient 5 | AF143: 3.231515546
A144: Coefficient 6
A145: p-value for Intercept | B145: 0.07121946146 | C145: 1.951891084e-13 | D145: 1.219990232e-12 | E145: 5.950883886e-17 | F145: 0.8122184479 | G145: 0.006920813529 | H145: 0.05838461066 | I145: 0.0013439769 | J145: 5.71810681e-12 | K145: 1.406002089e-09 | L145: 1.034621744e-11 | M145: 0.8411025933 | N145: 0.6142180996 | O145: 0.7679611512 | P145: 0.5556471424 | Q145: 0.008346416574 | R145: 0.001169105765 | S145: 0.001850865074 | T145: 5.533904922e-09 | U145: 0.794512656 | V145: 0.9052020049 | W145: 0.7165294297 | X145: 0.6259553956 | Y145: 0.5352483314 | Z145: 0.5609472799 | AA145: 0.001752641263 | AB145: 0.7914449899 | AC145: 0.6339434077 | AD145: 0.7119364424 | AE145: 0.5513694046 | AF145: 0.6453547898
A146: p-value for Coefficient 1 | B146: 0.774708106 | C146: 0.02109085323 | D146: 0.3119449777 | E146: 0.006364593525 | F146: 0.3417697302 | G146: 0.1791317669 | H146: 0.6321709869 | I146: 0.1006185215 | J146: 0.04153901756 | K146: 0.3873418521 | L146: 0.7272056487 | M146: 0.9704286389 | N146: 0.01725862444 | O146: 0.3038617173 | P146: 0.003518932706 | Q146: 0.1868611468 | R146: 0.06695842945 | S146: 0.1030402999 | T146: 0.4375718008 | U146: 0.3294380294 | V146: 0.8759121061 | W146: 0.2171435544 | X146: 0.03496521562 | Y146: 0.3847013884 | Z146: 0.7295248404 | AA146: 0.07725252382 | AB146: 0.3370419113 | AC146: 0.1525205804 | AD146: 0.2177726253 | AE146: 0.4344433907 | AF146: 0.1687629961
A147: p-value for Coefficient 2 | G147: 0.009596728703 | H147: 0.2922819926 | I147: 0.0019552953 | J147: 0.7133450496 | K147: 0.09834738276 | L147: 0.01330487724 | M147: 0.3801389105 | N147: 0.2149852373 | O147: 0.3306968581 | P147: 0.1218278384 | Q147: 0.02014398297 | R147: 0.2144639223 | S147: 0.6095248956 | T147: 0.8870572051 | U147: 0.01254719267 | V147: 0.3155072932 | W147: 0.002101882778 | X147: 0.6956020695 | Y147: 0.06513537304 | Z147: 0.007866783996 | AA147: 0.2697889241 | AB147: 0.02506653076 | AC147: 0.247769175 | AD147: 0.6397283302 | AE147: 0.8823324365 | AF147: 0.303660327
A148: p-value for Coefficient 3 | Q148: 0.6651956561 | R148: 0.03994508685 | S148: 0.004289401739 | T148: 0.118393745 | U148: 0.4020092973 | V148: 0.405489571 | W148: 0.2650838546 | X148: 0.2270733688 | Y148: 0.1303170526 | Z148: 0.1349073308 | AA148: 0.8570681512 | AB148: 0.6691221874 | AC148: 0.03771975594 | AD148: 0.004566927974 | AE148: 0.08173389482 | AF148: 0.8611941033
A149: p-value for Coefficient 4 | AA149: 0.05227063757 | AB149: 0.4167088196 | AC149: 0.3034586212 | AD149: 0.2882705964 | AE149: 0.1451259895 | AF149: 0.05018188982
A150: p-value for Coefficient 5 | AF150: 0.3234093282
A151: p-value for Coefficient 6
A153: Adjusted R-Squared Rank | B153: =IFERROR(RANK(B135,$B135:$BL135),"") -> 29 | C153: =IFERROR(RANK(C135,$B135:$BL135),"") -> 21 | D153: 26 | E153: 13 | F153: 27 | G153: 16 | H153: 28 | I153: 4 | J153: 24 | K153: 14 | L153: 15 | M153: 31 | N153: 19 | O153: 25 | P153: 5 | Q153: 20 | R153: 2 | S153: 10 | T153: 17 | U153: 18 | V153: 30 | W153: 3 | X153: 22 | Y153: 9 | Z153: 11 | AA153: 7 | AB153: 23 | AC153: 1 | AD153: 8 | AE153: 12 | AF153: 6
A154: ="Adjusted R-Squared > "&$B$18&", p-Values at "&$B$16&" signficance, and F-Test < "&$B$17&", and Correct Signs" -> Adjusted R-Squared > 0.6, p-Values at 0.2 signficance, and F-Test < 0.15, and Correct Signs | B154: =IFERROR(IF(COUNT(B145:B151)=0,"",IF(AND(B146<=$B$16,B147<=$B$16,B148<=$B$16,B149<=$B$16,B150<=$B$16,B151<=$B$16,B135>=$B$18,B136<$B$17,B155="Yes"),"!!!","")),"") ->  | C154: =IFERROR(IF(COUNT(C145:C151)=0,"",IF(AND(C146<=$B$16,C147<=$B$16,C148<=$B$16,C149<=$B$16,C150<=$B$16,C151<=$B$16,C135>=$B$18,C136<$B$17,C155="Yes"),"!!!","")),"") -> 
A155: Correct Signs? | B155: =IFERROR(IF(COUNT(B145:B151)=0,"",IF(AND(IF(B$95="",IF(B139<0,"negative","positive"),IF(OR(B$95="Trend",B$95="Log Trend"),IF(B139<0,"negative","positive"),IF($B$4="Log",VLOOKUP(B$95,$W$19:$X$23,2,FALSE),VLOOKUP(B$95,$W$12:$X$17,2,FALSE))))=IF(B139<0,"negative","positive"),IF(B$96="",IF(B140<0,"negative","positive"),IF(OR(B$96="Trend",B$96="Log Trend"),IF(B140<0,"negative","positive"),IF($B$4="Log",VLOOKUP(B$96,$W$19:$X$23,2,FALSE),VLOOKUP(B$96,$W$12:$X$17,2,FALSE))))=IF(B140<0,"negative","positive"),IF(B$97="",IF(B141<0,"negative","positive"),IF(OR(B$97="Trend",B$97="Log Trend"),IF(B141<0,"negative","positive"),IF($B$4="Log",VLOOKUP(B$97,$W$19:$X$23,2,FALSE),VLOOKUP(B$97,$W$12:$X$17,2,FALSE))))=IF(B141<0,"negative","positive"),IF(B$98="",IF(B142<0,"negative","positive"),IF(OR(B$98="Trend",B$98="Log Trend"),IF(B142<0,"negative","positive"),IF($B$4="Log",VLOOKUP(B$98,$W$19:$X$23,2,FALSE),VLOOKUP(B$98,$W$12:$X$17,2,FALSE))))=IF(B142<0,"negative","positive"),IF(B$99="",IF(B143<0,"negative","positive"),IF(OR(B$99="Trend",B$99="Log Trend"),IF(B143<0,"negative","positive"),IF($B$4="Log",VLOOKUP(B$99,$W$19:$X$23,2,FALSE),VLOOKUP(B$99,$W$12:$X$17,2,FALSE))))=IF(B143<0,"negative","positive"),IF(B$100="",IF(B144<0,"negative","positive"),IF(OR(B$100="Trend",B$100="Log Trend"),IF(B144<0,"negative","positive"),IF($B$4="Log",VLOOKUP(B$100,$W$19:$X$23,2,FALSE),VLOOKUP(B$100,$W$12:$X$17,2,FALSE))))=IF(B144<0,"negative","positive")),"YES","")),"") ->  | C155: =IFERROR(IF(COUNT(C145:C151)=0,"",IF(AND(IF(C$95="",IF(C139<0,"negative","positive"),IF(OR(C$95="Trend",C$95="Log Trend"),IF(C139<0,"negative","positive"),IF($B$4="Log",VLOOKUP(C$95,$W$19:$X$23,2,FALSE),VLOOKUP(C$95,$W$12:$X$17,2,FALSE))))=IF(C139<0,"negative","positive"),IF(C$96="",IF(C140<0,"negative","positive"),IF(OR(C$96="Trend",C$96="Log Trend"),IF(C140<0,"negative","positive"),IF($B$4="Log",VLOOKUP(C$96,$W$19:$X$23,2,FALSE),VLOOKUP(C$96,$W$12:$X$17,2,FALSE))))=IF(C140<0,"negative","positive"),IF(C$97="",IF(C141<0,"negative","positive"),IF(OR(C$97="Trend",C$97="Log Trend"),IF(C141<0,"negative","positive"),IF($B$4="Log",VLOOKUP(C$97,$W$19:$X$23,2,FALSE),VLOOKUP(C$97,$W$12:$X$17,2,FALSE))))=IF(C141<0,"negative","positive"),IF(C$98="",IF(C142<0,"negative","positive"),IF(OR(C$98="Trend",C$98="Log Trend"),IF(C142<0,"negative","positive"),IF($B$4="Log",VLOOKUP(C$98,$W$19:$X$23,2,FALSE),VLOOKUP(C$98,$W$12:$X$17,2,FALSE))))=IF(C142<0,"negative","positive"),IF(C$99="",IF(C143<0,"negative","positive"),IF(OR(C$99="Trend",C$99="Log Trend"),IF(C143<0,"negative","positive"),IF($B$4="Log",VLOOKUP(C$99,$W$19:$X$23,2,FALSE),VLOOKUP(C$99,$W$12:$X$17,2,FALSE))))=IF(C143<0,"negative","positive"),IF(C$100="",IF(C144<0,"negative","positive"),IF(OR(C$100="Trend",C$100="Log Trend"),IF(C144<0,"negative","positive"),IF($B$4="Log",VLOOKUP(C$100,$W$19:$X$23,2,FALSE),VLOOKUP(C$100,$W$12:$X$17,2,FALSE))))=IF(C144<0,"negative","positive")),"YES","")),"") ->  | E155: YES | F155: YES | M155: YES | P155: YES
AF156: =IF(AND(AF146<=$B$16,AF147<=$B$16,AF148<=$B$16,AF149<=$B$16,AF150<=$B$16,AF135>=$B$18,AF136<$B$17,AF155="Yes"),"Great","") -> 
A157: Different Scenarios (17 Years): | B157: =B$95 -> Log Degree Days | C157: =C$95 -> Log Rate | D157: Log Lag Rate | E157: Log Trend | F157: Log Nonfarm | G157: Log Degree Days | H157: Log Degree Days | I157: Log Degree Days | J157: Log Rate | K157: Log Rate | L157: Log Lag Rate | M157: Log Degree Days | N157: Log Rate | O157: Log Lag Rate | P157: Log Trend | Q157: Log Degree Days | R157: Log Degree Days | S157: Log Degree Days | T157: Log Rate | U157: Log Degree Days | V157: Log Degree Days | W157: Log Degree Days | X157: Log Rate | Y157: Log Rate | Z157: Log Lag Rate | AA157: Log Degree Days | AB157: Log Degree Days | AC157: Log Degree Days | AD157: Log Degree Days | AE157: Log Rate | AF157: Log Degree Days
B158: =B$96 ->  | C158: =C$96 ->  | G158: Log Rate | H158: Log Lag Rate | I158: Log Trend | J158: Log Lag Rate | K158: Log Trend | L158: Log Trend | M158: Log Nonfarm | N158: Log Nonfarm | O158: Log Nonfarm | P158: Log Nonfarm | Q158: Log Rate | R158: Log Rate | S158: Log Lag Rate | T158: Log Lag Rate | U158: Log Rate | V158: Log Lag Rate | W158: Log Trend | X158: Log Lag Rate | Y158: Log Trend | Z158: Log Trend | AA158: Log Rate | AB158: Log Rate | AC158: Log Rate | AD158: Log Lag Rate | AE158: Log Lag Rate | AF158: Log Rate
B159: =B$97 ->  | C159: =C$97 ->  | Q159: Log Lag Rate | R159: Log Trend | S159: Log Trend | T159: Log Trend | U159: Log Nonfarm | V159: Log Nonfarm | W159: Log Nonfarm | X159: Log Nonfarm | Y159: Log Nonfarm | Z159: Log Nonfarm | AA159: Log Lag Rate | AB159: Log Lag Rate | AC159: Log Trend | AD159: Log Trend | AE159: Log Trend | AF159: Log Lag Rate
B160: =B$98 ->  | C160: =C$98 ->  | AA160: Log Trend | AB160: Log Nonfarm | AC160: Log Nonfarm | AD160: Log Nonfarm | AE160: Log Nonfarm | AF160: Log Trend
B161: =B$99 ->  | C161: =C$99 ->  | AF161: Log Nonfarm
B162: =B$100 ->  | C162: =C$100 -> 
A163: Statistics
A164: Multiple R | B164: 0.1652918925 | C164: 0.5418411574 | D164: 0.373173203 | E164: 0.5819268368 | F164: 0.3165054795 | G164: 0.6648037446 | H164: 0.4718417555 | I164: 0.6657345047 | J164: 0.542696436 | K164: 0.6021830609 | L164: 0.5820871853 | M164: 0.324788593 | N164: 0.638717896 | O164: 0.51284573 | P164: 0.6585183243 | Q164: 0.6680344735 | R164: 0.7107639585 | S164: 0.6698316775 | T164: 0.6036178112 | U164: 0.7035657841 | V164: 0.5487000516 | W164: 0.7002004146 | X164: 0.6414875554 | Y164: 0.6824556492 | Z164: 0.6606735591 | AA164: 0.7107701552 | AB164: 0.708067031 | AC164: 0.7426343363 | AD164: 0.7060081391 | AE164: 0.6824918952 | AF164: 0.7427741242
A165: R-Squared | B165: 0.02732140973 | C165: 0.2935918399 | D165: 0.1392582394 | E165: 0.3386388434 | F165: 0.1001757185 | G165: 0.4419640189 | H165: 0.2226346422 | I165: 0.4432024308 | J165: 0.2945194216 | K165: 0.3626244388 | L165: 0.3388254912 | M165: 0.1054876301 | N165: 0.4079605506 | O165: 0.2630107428 | P165: 0.4336463835 | Q165: 0.4462700578 | R165: 0.5051854048 | S165: 0.4486744762 | T165: 0.364354462 | U165: 0.4950048126 | V165: 0.3010717466 | W165: 0.4902806206 | X165: 0.4115062837 | Y165: 0.4657457131 | Z165: 0.4364895517 | AA165: 0.5051942135 | AB165: 0.5013589204 | AC165: 0.5515057575 | AD165: 0.4984474925 | AE165: 0.465795187 | AF165: 0.5517133997
A166: Adjusted R-Squared | B166: -0.03752382962 | C166: 0.2464979626 | D166: 0.0818754554 | E166: 0.2945480997 | F166: 0.04018743311 | G166: 0.362244593 | H166: 0.1115824483 | I166: 0.3636599209 | J166: 0.1937364818 | K166: 0.2715707872 | L166: 0.24437199 | M166: -0.02229985126 | N166: 0.3233834864 | O166: 0.1577265632 | P166: 0.352738724 | Q166: 0.3184862249 | R166: 0.3909974213 | S166: 0.3214455092 | T166: 0.2176670302 | U166: 0.3784674617 | V166: 0.1397806112 | W166: 0.3726530715 | X166: 0.2757000415 | Y166: 0.3424562623 | Z166: 0.306448679 | AA166: 0.3402589513 | AB166: 0.3351452272 | AC166: 0.4020076766 | AD166: 0.3312633234 | AE166: 0.287726916 | AF166: 0.3479467631
A167: Significance F | B167: 0.5260875191 | C167: 0.02465936915 | D167: 0.1401187498 | E167: 0.01425939805 | F167: 0.2158231091 | G167: 0.01685137784 | H167: 0.1715442955 | I167: 0.01659133431 | J167: 0.0869752 | K167: 0.04273343972 | L167: 0.05523479017 | M167: 0.45825209 | N167: 0.02549497099 | O167: 0.118094073 | P167: 0.01869019131 | Q167: 0.04692988474 | R167: 0.02368557553 | S167: 0.04571366311 | T167: 0.1067727312 | U167: 0.02682600247 | V167: 0.1850729696 | W167: 0.02839461501 | X167: 0.06763455429 | Y167: 0.03779260087 | Z167: 0.05214989813 | AA167: 0.05916150647 | AB167: 0.06161304502 | AC167: 0.03506882454 | AD167: 0.06352517639 | AE167: 0.08819264467 | AF167: 0.07832137278
A168: Coefficients
A169: Intercept | B169: 10.16593887 | C169: 6.54215983 | D169: 6.70271949 | E169: 7.809260789 | F169: -5.340440191 | G169: 13.65629759 | H169: 11.92554702 | I169: 13.80984382 | J169: 6.517915565 | K169: 7.328162631 | L169: 7.773480279 | M169: -3.06636677 | N169: -6.927524535 | O169: -7.383715047 | P169: -4.447747734 | Q169: 13.71408934 | R169: 14.27117374 | S169: 13.86782794 | T169: 7.397204904 | U169: 2.626045077 | V169: -1.32845407 | W169: 3.368614782 | X169: -7.178323075 | Y169: -5.556719365 | Z169: -4.86058951 | AA169: 14.27051145 | AB169: 2.464771353 | AC169: 3.911248126 | AD169: 3.115119395 | AE169: -5.514388132 | AF169: 3.858436816
A170: Coefficient 1 | B170: -0.4033153488 | C170: 0.4754463457 | D170: 0.3545264292 | E170: -0.2889218107 | F170: 4.86666202 | G170: -1.006822798 | H170: -0.7376391259 | I170: -0.8156514387 | J170: 0.4528422137 | K170: 0.2080930945 | L170: 0.01659120704 | M170: -0.1865939083 | N170: 0.4871835094 | O170: 0.38494981 | P170: -0.2867378211 | Q170: -1.022424945 | R170: -0.9873424583 | S170: -0.850318048 | T170: 0.2283460631 | U170: -0.8109572191 | V170: -0.5207743179 | W170: -0.6328712819 | X170: 0.4430044977 | Y170: 0.2414483389 | Z170: 0.06528499198 | AA170: -0.9865439867 | AB170: -0.8258321838 | AC170: -0.8049863266 | AD170: -0.6696590208 | AE170: 0.2448141367 | AF170: -0.8078892806
A171: Coefficient 2 | G171: 0.6052713165 | H171: 0.4395751873 | I171: -0.3309921271 | J171: 0.03789659503 | K171: -0.1997523731 | L171: -0.2835208123 | M171: 4.510641937 | N171: 5.204068629 | O171: 5.431489964 | P171: 4.739944003 | Q171: 0.5583796215 | R171: 0.3467941409 | S171: 0.09137142127 | T171: -0.05372630331 | U171: 0.5884209296 | V171: 0.4398801733 | W171: -0.319943697 | X171: 0.07436450211 | Y171: -0.1831772776 | Z171: -0.2654368762 | AA171: 0.3481347679 | AB171: 0.531000524 | AC171: 0.3446761763 | AD171: 0.1119358814 | AE171: -0.00913871048 | AF171: 0.3381345736
A172: Coefficient 3 | Q172: 0.0819884074 | R172: -0.1912438757 | S172: -0.3030357045 | T172: -0.2085635523 | U172: 3.726880578 | V172: 4.518453669 | W172: 3.517754638 | X172: 5.282585071 | Y172: 4.952929352 | Z172: 4.845148685 | AA172: -0.003853921101 | AB172: 0.099778843 | AC172: -0.1811379384 | AD172: -0.2853518746 | AE172: -0.1847153847 | AF172: 0.01877231194
A173: Coefficient 4 | AA173: -0.1918828044 | AB173: 3.805135013 | AC173: 3.489413469 | AD173: 3.627091935 | AE173: 4.941171634 | AF173: -0.1779710763
A174: Coefficient 5 | AF174: 3.508287869
A175: Coefficient 6
A176: p-value for Intercept | B176: 0.03953776712 | C176: 5.915381374e-13 | D176: 7.803132115e-12 | E176: 7.208401626e-16 | F176: 0.5913871071 | G176: 0.002406661418 | H176: 0.01450348889 | I176: 0.002259506007 | J176: 2.881876134e-11 | K176: 5.25409861e-08 | L176: 4.616361639e-09 | M176: 0.8137619482 | N176: 0.4121519541 | O176: 0.4353252858 | P176: 0.5870485037 | Q176: 0.003330251671 | R176: 0.001771104529 | S176: 0.003111444223 | T176: 5.302858512e-07 | U176: 0.7993320401 | V176: 0.9117282088 | W176: 0.7468212721 | X176: 0.4150631237 | Y176: 0.5079005517 | Z176: 0.5744034789 | AA176: 0.002710299032 | AB176: 0.8179513616 | AC176: 0.7020520988 | AD176: 0.7730820632 | AE176: 0.532901712 | AF176: 0.7189569049
A177: p-value for Coefficient 1 | B177: 0.5260875191 | C177: 0.02465936915 | D177: 0.1401187498 | E177: 0.01425939805 | F177: 0.2158231091 | G177: 0.07420906792 | H177: 0.2406458223 | I177: 0.1272164995 | J177: 0.1010536501 | K177: 0.4798952471 | L177: 0.9507617749 | M177: 0.7773157009 | N177: 0.01733061431 | O177: 0.1004458049 | P177: 0.01232579707 | Q177: 0.08161852469 | R177: 0.07500792579 | S177: 0.1315314863 | T177: 0.482740483 | U177: 0.158294982 | V177: 0.4153409353 | W177: 0.2508632851 | X177: 0.09327458861 | Y177: 0.3928647386 | Z177: 0.8018759499 | AA177: 0.08936454259 | AB177: 0.1671579364 | AC177: 0.1557113658 | AD177: 0.2468020386 | AE177: 0.4329592931 | AF177: 0.1744255599
A178: p-value for Coefficient 2 | G178: 0.006105468688 | H178: 0.08173356463 | I178: 0.006004261253 | J178: 0.8940102622 | K178: 0.2384642978 | L178: 0.05896327286 | M178: 0.2873433889 | N178: 0.1223251433 | O178: 0.1474996823 | P178: 0.1476821925 | Q178: 0.03928346418 | R178: 0.2242465395 | S178: 0.7252087569 | T178: 0.8537022066 | U178: 0.007430528891 | V178: 0.07881757398 | W178: 0.00793135119 | X178: 0.7839821107 | Y178: 0.2569291822 | Z178: 0.06677759033 | AA178: 0.2644142185 | AB178: 0.04853148328 | AC178: 0.2247696943 | AD178: 0.6663224253 | AE178: 0.9739540384 | AF178: 0.2772041895
A179: p-value for Coefficient 3 | Q179: 0.7555709965 | R179: 0.2199339273 | S179: 0.03804231302 | T179: 0.2533988911 | U179: 0.2635828018 | V179: 0.2486168809 | W179: 0.2930683638 | X179: 0.1319353483 | Y179: 0.1371950691 | Z179: 0.1572418984 | AA179: 0.9885787238 | AB179: 0.7026200105 | AC179: 0.2424350441 | AD179: 0.05051410891 | AE179: 0.2911088106 | AF179: 0.9443766268
A180: p-value for Coefficient 4 | AA180: 0.2550132735 | AB180: 0.2719903868 | AC180: 0.2873983826 | AD180: 0.2965836567 | AE180: 0.1570352205 | AF180: 0.2900270339
A181: p-value for Coefficient 5 | AF181: 0.3082251262
A182: p-value for Coefficient 6
A184: Adjusted R-Squared Rank | B184: =IFERROR(RANK(B166,$B166:$BL166),"") -> 31 | C184: =IFERROR(RANK(C166,$B166:$BL166),"") -> 21 | D184: 28 | E184: 17 | F184: 29 | G184: 6 | H184: 27 | I184: 5 | J184: 24 | K184: 20 | L184: 22 | M184: 30 | N184: 13 | O184: 25 | P184: 7 | Q184: 15 | R184: 2 | S184: 14 | T184: 23 | U184: 3 | V184: 26 | W184: 4 | X184: 19 | Y184: 9 | Z184: 16 | AA184: 10 | AB184: 11 | AC184: 1 | AD184: 12 | AE184: 18 | AF184: 8
A185: ="Adjusted R-Squared > "&$B$18&", p-Values at "&$B$16&" signficance, and F-Test < "&$B$17&", and Correct Signs" -> Adjusted R-Squared > 0.6, p-Values at 0.2 signficance, and F-Test < 0.15, and Correct Signs | B185: =IFERROR(IF(COUNT(B176:B182)=0,"",IF(AND(B177<=$B$16,B178<=$B$16,B179<=$B$16,B180<=$B$16,B181<=$B$16,B182<=$B$16,B166>=$B$18,B167<$B$17,B186="Yes"),"!!!","")),"") ->  | C185: =IFERROR(IF(COUNT(C176:C182)=0,"",IF(AND(C177<=$B$16,C178<=$B$16,C179<=$B$16,C180<=$B$16,C181<=$B$16,C182<=$B$16,C166>=$B$18,C167<$B$17,C186="Yes"),"!!!","")),"") -> 
A186: Correct Signs? | B186: =IFERROR(IF(COUNT(B176:B182)=0,"",IF(AND(IF(B$95="",IF(B170<0,"negative","positive"),IF(OR(B$95="Trend",B$95="Log Trend"),IF(B170<0,"negative","positive"),IF($B$4="Log",VLOOKUP(B$95,$W$19:$X$23,2,FALSE),VLOOKUP(B$95,$W$12:$X$17,2,FALSE))))=IF(B170<0,"negative","positive"),IF(B$96="",IF(B171<0,"negative","positive"),IF(OR(B$96="Trend",B$96="Log Trend"),IF(B171<0,"negative","positive"),IF($B$4="Log",VLOOKUP(B$96,$W$19:$X$23,2,FALSE),VLOOKUP(B$96,$W$12:$X$17,2,FALSE))))=IF(B171<0,"negative","positive"),IF(B$97="",IF(B172<0,"negative","positive"),IF(OR(B$97="Trend",B$97="Log Trend"),IF(B172<0,"negative","positive"),IF($B$4="Log",VLOOKUP(B$97,$W$19:$X$23,2,FALSE),VLOOKUP(B$97,$W$12:$X$17,2,FALSE))))=IF(B172<0,"negative","positive"),IF(B$98="",IF(B173<0,"negative","positive"),IF(OR(B$98="Trend",B$98="Log Trend"),IF(B173<0,"negative","positive"),IF($B$4="Log",VLOOKUP(B$98,$W$19:$X$23,2,FALSE),VLOOKUP(B$98,$W$12:$X$17,2,FALSE))))=IF(B173<0,"negative","positive"),IF(B$99="",IF(B174<0,"negative","positive"),IF(OR(B$99="Trend",B$99="Log Trend"),IF(B174<0,"negative","positive"),IF($B$4="Log",VLOOKUP(B$99,$W$19:$X$23,2,FALSE),VLOOKUP(B$99,$W$12:$X$17,2,FALSE))))=IF(B174<0,"negative","positive"),IF(B$100="",IF(B175<0,"negative","positive"),IF(OR(B$100="Trend",B$100="Log Trend"),IF(B175<0,"negative","positive"),IF($B$4="Log",VLOOKUP(B$100,$W$19:$X$23,2,FALSE),VLOOKUP(B$100,$W$12:$X$17,2,FALSE))))=IF(B175<0,"negative","positive")),"YES","")),"") ->  | C186: =IFERROR(IF(COUNT(C176:C182)=0,"",IF(AND(IF(C$95="",IF(C170<0,"negative","positive"),IF(OR(C$95="Trend",C$95="Log Trend"),IF(C170<0,"negative","positive"),IF($B$4="Log",VLOOKUP(C$95,$W$19:$X$23,2,FALSE),VLOOKUP(C$95,$W$12:$X$17,2,FALSE))))=IF(C170<0,"negative","positive"),IF(C$96="",IF(C171<0,"negative","positive"),IF(OR(C$96="Trend",C$96="Log Trend"),IF(C171<0,"negative","positive"),IF($B$4="Log",VLOOKUP(C$96,$W$19:$X$23,2,FALSE),VLOOKUP(C$96,$W$12:$X$17,2,FALSE))))=IF(C171<0,"negative","positive"),IF(C$97="",IF(C172<0,"negative","positive"),IF(OR(C$97="Trend",C$97="Log Trend"),IF(C172<0,"negative","positive"),IF($B$4="Log",VLOOKUP(C$97,$W$19:$X$23,2,FALSE),VLOOKUP(C$97,$W$12:$X$17,2,FALSE))))=IF(C172<0,"negative","positive"),IF(C$98="",IF(C173<0,"negative","positive"),IF(OR(C$98="Trend",C$98="Log Trend"),IF(C173<0,"negative","positive"),IF($B$4="Log",VLOOKUP(C$98,$W$19:$X$23,2,FALSE),VLOOKUP(C$98,$W$12:$X$17,2,FALSE))))=IF(C173<0,"negative","positive"),IF(C$99="",IF(C174<0,"negative","positive"),IF(OR(C$99="Trend",C$99="Log Trend"),IF(C174<0,"negative","positive"),IF($B$4="Log",VLOOKUP(C$99,$W$19:$X$23,2,FALSE),VLOOKUP(C$99,$W$12:$X$17,2,FALSE))))=IF(C174<0,"negative","positive"),IF(C$100="",IF(C175<0,"negative","positive"),IF(OR(C$100="Trend",C$100="Log Trend"),IF(C175<0,"negative","positive"),IF($B$4="Log",VLOOKUP(C$100,$W$19:$X$23,2,FALSE),VLOOKUP(C$100,$W$12:$X$17,2,FALSE))))=IF(C175<0,"negative","positive")),"YES","")),"") ->  | E186: YES | F186: YES | P186: YES
A188: Different Scenarios (16 Years): | B188: =B$95 -> Log Degree Days | C188: =C$95 -> Log Rate | D188: Log Lag Rate | E188: Log Trend | F188: Log Nonfarm | G188: Log Degree Days | H188: Log Degree Days | I188: Log Degree Days | J188: Log Rate | K188: Log Rate | L188: Log Lag Rate | M188: Log Degree Days | N188: Log Rate | O188: Log Lag Rate | P188: Log Trend | Q188: Log Degree Days | R188: Log Degree Days | S188: Log Degree Days | T188: Log Rate | U188: Log Degree Days | V188: Log Degree Days | W188: Log Degree Days | X188: Log Rate | Y188: Log Rate | Z188: Log Lag Rate | AA188: Log Degree Days | AB188: Log Degree Days | AC188: Log Degree Days | AD188: Log Degree Days | AE188: Log Rate | AF188: Log Degree Days
B189: =B$96 ->  | C189: =C$96 ->  | G189: Log Rate | H189: Log Lag Rate | I189: Log Trend | J189: Log Lag Rate | K189: Log Trend | L189: Log Trend | M189: Log Nonfarm | N189: Log Nonfarm | O189: Log Nonfarm | P189: Log Nonfarm | Q189: Log Rate | R189: Log Rate | S189: Log Lag Rate | T189: Log Lag Rate | U189: Log Rate | V189: Log Lag Rate | W189: Log Trend | X189: Log Lag Rate | Y189: Log Trend | Z189: Log Trend | AA189: Log Rate | AB189: Log Rate | AC189: Log Rate | AD189: Log Lag Rate | AE189: Log Lag Rate | AF189: Log Rate
B190: =B$97 ->  | C190: =C$97 ->  | Q190: Log Lag Rate | R190: Log Trend | S190: Log Trend | T190: Log Trend | U190: Log Nonfarm | V190: Log Nonfarm | W190: Log Nonfarm | X190: Log Nonfarm | Y190: Log Nonfarm | Z190: Log Nonfarm | AA190: Log Lag Rate | AB190: Log Lag Rate | AC190: Log Trend | AD190: Log Trend | AE190: Log Trend | AF190: Log Lag Rate
B191: =B$98 ->  | C191: =C$98 ->  | AA191: Log Trend | AB191: Log Nonfarm | AC191: Log Nonfarm | AD191: Log Nonfarm | AE191: Log Nonfarm | AF191: Log Trend
B192: =B$99 ->  | C192: =C$99 ->  | AF192: Log Nonfarm
B193: =B$100 ->  | C193: =C$100 -> 
A194: Statistics
A195: Multiple R | B195: 0.2349971019 | C195: 0.5184938151 | D195: 0.3721142226 | E195: 0.5670316988 | F195: 0.3485170252 | G195: 0.6730049231 | H195: 0.5172720819 | I195: 0.6442711955 | J195: 0.520596902 | K195: 0.5759105379 | L195: 0.5706580252 | M195: 0.3751730371 | N195: 0.6318802486 | O195: 0.5334691445 | P195: 0.6457895787 | Q195: 0.6795912254 | R195: 0.6880779167 | S195: 0.6449339098 | T195: 0.5812865096 | U195: 0.7154822353 | V195: 0.5945115499 | W195: 0.6829574997 | X195: 0.6370337956 | Y195: 0.6619438128 | Z195: 0.645790339 | AA195: 0.6884994568 | AB195: 0.7239001223 | AC195: 0.7261058212 | AD195: 0.6854026559 | AE195: 0.662174829 | AF195: 0.7280543019
A196: R-Squared | B196: 0.05522363792 | C196: 0.2688358362 | D196: 0.1384689947 | E196: 0.3215249474 | F196: 0.1214641168 | G196: 0.4529356265 | H196: 0.2675704067 | I196: 0.4150853734 | J196: 0.2710211344 | K196: 0.3316729477 | L196: 0.3256505817 | M196: 0.1407548078 | N196: 0.3992726485 | O196: 0.2845893282 | P196: 0.4170441799 | Q196: 0.4618442337 | R196: 0.4734512195 | S196: 0.4159397481 | T196: 0.3378940062 | U196: 0.5119148291 | V196: 0.353443983 | W196: 0.4664309464 | X196: 0.4058120567 | Y196: 0.4381696113 | Z196: 0.417045162 | AA196: 0.474031502 | AB196: 0.5240313871 | AC196: 0.5272296636 | AD196: 0.4697768007 | AE196: 0.4384755042 | AF196: 0.5300630666
A197: Adjusted R-Squared | B197: -0.01226038794 | C197: 0.2166098245 | D197: 0.07693106571 | E197: 0.2730624437 | F197: 0.05871155374 | G197: 0.3687718767 | H197: 0.1548889308 | I197: 0.3250985078 | J197: 0.1588705397 | K197: 0.2288534012 | L197: 0.2219045174 | M197: 0.008563239746 | N197: 0.306853056 | O197: 0.1745261479 | P197: 0.3273586691 | Q197: 0.3273052921 | R197: 0.3418140244 | S197: 0.2699246851 | T197: 0.1723675078 | U197: 0.3898935364 | V197: 0.1918049787 | W197: 0.333038683 | X197: 0.2572650709 | Y197: 0.2977120142 | Z197: 0.2713064525 | AA197: 0.2827702299 | AB197: 0.3509518915 | AC197: 0.3553131777 | AD197: 0.2769683645 | AE197: 0.2342847784 | AF197: 0.2950945999
A198: Significance F | B198: 0.3809749803 | C198: 0.03962101896 | D198: 0.1558133035 | E198: 0.02199008022 | F198: 0.1858613817 | G198: 0.01982667169 | H198: 0.1321229439 | I198: 0.03062676531 | J198: 0.1281288989 | K198: 0.07284986721 | L198: 0.07722402199 | M198: 0.3730449971 | N198: 0.03642530019 | O198: 0.1133992527 | P198: 0.02996620019 | Q198: 0.05219241955 | R198: 0.04621929825 | S198: 0.08206464251 | T198: 0.1618133568 | U198: 0.03019969594 | V198: 0.1425135677 | W198: 0.04976292225 | X198: 0.09017186734 | Y198: 0.06627033217 | Z198: 0.08121552396 | AA198: 0.1053041624 | AB198: 0.06542678412 | AC198: 0.06333072168 | AD198: 0.1093612368 | AE198: 0.1427210185 | AF198: 0.1281355814
A199: Coefficients
A200: Intercept | B200: 11.34567609 | C200: 6.565961964 | D200: 6.698394186 | E200: 7.76010961 | F200: -6.24277154 | G200: 14.36207915 | H200: 13.14792595 | I200: 13.21112198 | J200: 6.530500823 | K200: 7.410956023 | L200: 7.957965219 | M200: -2.044278133 | N200: -7.395975613 | O200: -8.165428924 | P200: -4.226172744 | Q200: 14.47931992 | R200: 14.15563893 | S200: 13.28118701 | T200: 7.61820362 | U200: 3.114329879 | V200: -0.2673603407 | W200: 2.691154366 | X200: -7.75114474 | Y200: -5.530336184 | Z200: -4.215016978 | AA200: 14.21138816 | AB200: 2.926005499 | AC200: 3.406493229 | AD200: 2.494490442 | AE200: -5.349996261 | AF200: 3.222587767
A201: Coefficient 1 | B201: -0.5699182562 | C201: 0.4495956604 | D201: 0.3428017271 | E201: -0.283893003 | F201: 5.205467845 | G201: -1.10168455 | H201: -0.911099306 | I201: -0.7473099737 | J201: 0.4150074334 | K201: 0.1490549867 | L201: -0.08702480987 | M201: -0.3523337597 | N201: 0.4571706366 | O201: 0.3734816654 | P201: -0.2728858123 | Q201: -1.128431191 | R201: -1.001812401 | S201: -0.7698602278 | T201: 0.1653009766 | U201: -0.9040126423 | V201: -0.6933547806 | W201: -0.5700907081 | X201: 0.3972334966 | Y201: 0.2171901981 | Z201: -0.001371721354 | AA201: -1.019860285 | AB201: -0.9295513577 | AC201: -0.8257117987 | AD201: -0.6093977313 | AE201: 0.2201557393 | AF201: -0.8608552158
A202: Coefficient 2 | G202: 0.5789531503 | H202: 0.44385357 | I202: -0.302565779 | J202: 0.05661168153 | K202: -0.2141574571 | L202: -0.3185736862 | M202: 4.569074924 | N202: 5.395887253 | O202: 5.731035628 | P202: 4.627828103 | Q202: 0.5118338939 | R202: 0.3892804095 | S202: 0.04152993746 | T202: -0.1078940644 | U202: 0.561086407 | V202: 0.4442116374 | W202: -0.2896640897 | X202: 0.09836175384 | Y202: -0.1705426955 | Z202: -0.2734398443 | AA202: 0.3884534194 | AB202: 0.4821338193 | AC202: 0.3974046892 | AD202: 0.08282694646 | AE202: -0.02436431952 | AF202: 0.3957959237
A203: Coefficient 3 | Q203: 0.114996496 | R203: -0.1267996586 | S203: -0.2865789356 | T203: -0.2495541442 | U203: 3.8063226 | V203: 4.578215147 | W203: 3.562601878 | X203: 5.509338221 | Y203: 4.934929599 | Z203: 4.624725035 | AA203: 0.03423382042 | AB203: 0.1343853217 | AC203: -0.1099244926 | AD203: -0.2573675059 | AE203: -0.1789859273 | AF203: 0.07623399121
A204: Coefficient 4 | AA204: -0.1139948356 | AB204: 3.916417511 | AC204: 3.646888876 | AD204: 3.676524549 | AE204: 4.884006561 | AF204: -0.08092630782
A205: Coefficient 5 | AF205: 3.751402191
A206: Coefficient 6
A207: p-value for Intercept | B207: 0.0262336782 | C207: 3.087790602e-12 | D207: 2.628841205e-11 | E207: 7.050903085e-15 | F207: 0.5291663086 | G207: 0.002033637731 | H207: 0.008846182842 | I207: 0.003997220097 | J207: 1.233989935e-10 | K207: 5.745937877e-07 | L207: 7.690703851e-08 | M207: 0.8736920004 | N207: 0.3899113517 | O207: 0.3872959618 | P207: 0.6155995275 | Q207: 0.002798670906 | R207: 0.003046869952 | S207: 0.005862014843 | T207: 1.007908876e-05 | U207: 0.7616704884 | V207: 0.9817049577 | W207: 0.8018458027 | X207: 0.3884981261 | Y207: 0.5330421918 | Z207: 0.6444248096 | AA207: 0.004729027409 | AB207: 0.7828271629 | AC207: 0.7477534845 | AD207: 0.8239093393 | AE207: 0.5764330845 | AF207: 0.7720640258
A208: p-value for Coefficient 1 | B208: 0.3809749803 | C208: 0.03962101896 | D208: 0.1558133035 | E208: 0.02199008022 | F208: 0.1858613817 | G208: 0.05666934793 | H208: 0.1540168411 | I208: 0.1729523283 | J208: 0.1481543021 | K208: 0.6641384674 | L208: 0.7823704868 | M208: 0.5981651794 | N208: 0.02910793404 | O208: 0.1088184394 | P208: 0.02340934214 | Q208: 0.06146845419 | R208: 0.09744164874 | S208: 0.1982157719 | T208: 0.6460442567 | U208: 0.1219555353 | V208: 0.280372208 | W208: 0.3126858492 | X208: 0.143638369 | Y208: 0.5144837091 | Z208: 0.9964864307 | AA208: 0.1196529766 | AB208: 0.1265740889 | AC208: 0.1778525864 | AD208: 0.3180330283 | AE208: 0.5303231981 | AF208: 0.1929192559
A209: p-value for Coefficient 2 | G209: 0.008876242855 | H209: 0.0742039533 | I209: 0.01424260445 | J209: 0.846559717 | K209: 0.2889547151 | L209: 0.07989859137 | M209: 0.2758357084 | N209: 0.1167958217 | O209: 0.1271904781 | P209: 0.1681710676 | Q209: 0.05948114531 | R209: 0.2712333969 | S209: 0.8967917304 | T209: 0.7428323321 | U209: 0.01064687885 | V209: 0.07025866133 | W209: 0.01908289798 | X209: 0.7226194373 | Y209: 0.3799900631 | Z209: 0.1245983014 | AA209: 0.2938920475 | AB209: 0.07257735463 | AC209: 0.2593324393 | AD209: 0.7970633672 | AE209: 0.939687553 | AF209: 0.2837946635
A210: p-value for Coefficient 3 | Q210: 0.66374947 | R210: 0.5071064498 | S210: 0.1063425305 | T210: 0.2925290403 | U210: 0.2517339085 | V210: 0.2307666056 | W210: 0.3036866352 | X210: 0.1248730065 | Y210: 0.1573748105 | Z210: 0.1952834239 | AA210: 0.9142641868 | AB210: 0.6071995756 | AC210: 0.5626352825 | AD210: 0.1485790177 | AE210: 0.4406937722 | AF210: 0.8109989973
A211: p-value for Coefficient 4 | AA211: 0.6236190157 | AB211: 0.255782876 | AC211: 0.2871433137 | AD211: 0.3132441738 | AE211: 0.188007205 | AF211: 0.7275954398
A212: p-value for Coefficient 5 | AF212: 0.3004703071
A213: p-value for Coefficient 6
A215: Adjusted R-Squared Rank | B215: =IFERROR(RANK(B197,$B197:$AF197),"") -> 31 | C215: =IFERROR(RANK(C197,$B197:$AF197),"") -> 22 | D215: 28 | E215: 15 | F215: 29 | G215: 2 | H215: 27 | I215: 9 | J215: 26 | K215: 20 | L215: 21 | M215: 30 | N215: 10 | O215: 24 | P215: 7 | Q215: 8 | R215: 5 | S215: =IFERROR(RANK(S197,$B197:$AF197),"") -> 17 | T215: =IFERROR(RANK(T197,$B197:$AF197),"") -> 25 | U215: =IFERROR(RANK(U197,$B197:$AF197),"") -> 1 | V215: 23 | W215: =IFERROR(RANK(W197,$B197:$AF197),"") -> 6 | X215: =IFERROR(RANK(X197,$B197:$AF197),"") -> 18 | Y215: =IFERROR(RANK(Y197,$B197:$AF197),"") -> 11 | Z215: 16 | AA215: 13 | AB215: 4 | AC215: 3 | AD215: 14 | AE215: 19 | AF215: 12
A216: ="Adjusted R-Squared > "&$B$18&", p-Values at "&$B$16&" signficance, and F-Test < "&$B$17&", and Correct Signs" -> Adjusted R-Squared > 0.6, p-Values at 0.2 signficance, and F-Test < 0.15, and Correct Signs | B216: =IFERROR(IF(COUNT(B207:B212)=0,"",IF(AND(B208<=$B$16,B209<=$B$16,B210<=$B$16,B211<=$B$16,B212<=$B$16,B197>=$B$18,B198<$B$17,B217="Yes"),"!!!","")),"") -> 
A217: Correct Signs? | B217: =IFERROR(IF(COUNT(B207:B212)=0,"",IF(AND(IF(B$126="",IF(B201<0,"negative","positive"),IF(OR(B$126="Trend",B$126="Log Trend"),IF(B201<0,"negative","positive"),IF($B$4="Log",VLOOKUP(B$126,$W$19:$X$22,2,FALSE),VLOOKUP(B$126,$W$12:$X$17,2,FALSE))))=IF(B201<0,"negative","positive"),IF(B$127="",IF(B202<0,"negative","positive"),IF(OR(B$127="Trend",B$127="Log Trend"),IF(B202<0,"negative","positive"),IF($B$4="Log",VLOOKUP(B$127,$W$19:$X$22,2,FALSE),VLOOKUP(B$127,$W$12:$X$17,2,FALSE))))=IF(B202<0,"negative","positive"),IF(B$128="",IF(B203<0,"negative","positive"),IF(OR(B$128="Trend",B$128="Log Trend"),IF(B203<0,"negative","positive"),IF($B$4="Log",VLOOKUP(B$128,$W$19:$X$22,2,FALSE),VLOOKUP(B$128,$W$12:$X$17,2,FALSE))))=IF(B203<0,"negative","positive"),IF(B$129="",IF(B204<0,"negative","positive"),IF(OR(B$129="Trend",B$129="Log Trend"),IF(B204<0,"negative","positive"),IF($B$4="Log",VLOOKUP(B$129,$W$19:$X$22,2,FALSE),VLOOKUP(B$129,$W$12:$X$17,2,FALSE))))=IF(B204<0,"negative","positive"),IF(B$130="",IF(B205<0,"negative","positive"),IF(OR(B$130="Trend",B$130="Log Trend"),IF(B205<0,"negative","positive"),IF($B$4="Log",VLOOKUP(B$130,$W$19:$X$22,2,FALSE),VLOOKUP(B$130,$W$12:$X$17,2,FALSE))))=IF(B205<0,"negative","positive")),"YES","")),"") ->  | E217: YES | L217: YES
A219: Different Scenarios (15 Years): | B219: =B$95 -> Log Degree Days | C219: =C$95 -> Log Rate | D219: Log Lag Rate | E219: Log Trend | F219: Log Nonfarm | G219: Log Degree Days | H219: Log Degree Days | I219: Log Degree Days | J219: Log Rate | K219: Log Rate | L219: Log Lag Rate | M219: Log Degree Days | N219: Log Rate | O219: Log Lag Rate | P219: Log Trend | Q219: Log Degree Days | R219: Log Degree Days | S219: Log Degree Days | T219: Log Rate | U219: Log Degree Days | V219: Log Degree Days | W219: Log Degree Days | X219: Log Rate | Y219: Log Rate | Z219: Log Lag Rate | AA219: Log Degree Days | AB219: Log Degree Days | AC219: Log Degree Days | AD219: Log Degree Days | AE219: Log Rate | AF219: Log Degree Days
B220: =B$96 ->  | C220: =C$96 ->  | G220: Log Rate | H220: Log Lag Rate | I220: Log Trend | J220: Log Lag Rate | K220: Log Trend | L220: Log Trend | M220: Log Nonfarm | N220: Log Nonfarm | O220: Log Nonfarm | P220: Log Nonfarm | Q220: Log Rate | R220: Log Rate | S220: Log Lag Rate | T220: Log Lag Rate | U220: Log Rate | V220: Log Lag Rate | W220: Log Trend | X220: Log Lag Rate | Y220: Log Trend | Z220: Log Trend | AA220: Log Rate | AB220: Log Rate | AC220: Log Rate | AD220: Log Lag Rate | AE220: Log Lag Rate | AF220: Log Rate
B221: =B$97 ->  | C221: =C$97 ->  | Q221: Log Lag Rate | R221: Log Trend | S221: Log Trend | T221: Log Trend | U221: Log Nonfarm | V221: Log Nonfarm | W221: Log Nonfarm | X221: Log Nonfarm | Y221: Log Nonfarm | Z221: Log Nonfarm | AA221: Log Lag Rate | AB221: Log Lag Rate | AC221: Log Trend | AD221: Log Trend | AE221: Log Trend | AF221: Log Lag Rate
B222: =B$98 ->  | C222: =C$98 ->  | AA222: Log Trend | AB222: Log Nonfarm | AC222: Log Nonfarm | AD222: Log Nonfarm | AE222: Log Nonfarm | AF222: Log Trend
B223: =B$99 ->  | C223: =C$99 ->  | AF223: Log Nonfarm
B224: =B$100 ->  | C224: =C$100 -> 
A225: Statistics
A226: Multiple R | B226: 0.2407784858 | C226: 0.4889366312 | D226: 0.3398816103 | E226: 0.5506662151 | F226: 0.3892316242 | G226: 0.6526362513 | H226: 0.4944034813 | I226: 0.6355689994 | J226: 0.4904682152 | K226: 0.5507999922 | L226: 0.5724725419 | M226: 0.4108715785 | N226: 0.6258426841 | O226: 0.5357098728 | P226: 0.6258499024 | Q226: 0.6587451755 | R226: 0.6579012029 | S226: 0.6382286967 | T226: 0.5754803218 | U226: 0.705817679 | V226: 0.5912561119 | W226: 0.6677788924 | X226: 0.6301436529 | Y226: 0.6345932345 | Z226: 0.628440681 | AA226: 0.6591101957 | AB226: 0.7135049971 | AC226: 0.7058211752 | AD226: 0.6677854396 | AE226: 0.6346516295 | AF226: 0.7316521433
A227: R-Squared | B227: 0.05797427924 | C227: 0.2390590294 | D227: 0.115519509 | E227: 0.3032332804 | F227: 0.1515012573 | G227: 0.4259340766 | H227: 0.2444348023 | I227: 0.403947953 | J227: 0.2405590701 | K227: 0.3033806314 | L227: 0.3277248113 | M227: 0.168815454 | N227: 0.3916790652 | O227: 0.2869850678 | P227: 0.3916881003 | Q227: 0.4339452062 | R227: 0.4328339928 | S227: 0.4073358694 | T227: 0.3311776007 | U227: 0.4981785959 | V227: 0.3495837899 | W227: 0.4459286491 | X227: 0.3970810233 | Y227: 0.4027085733 | Z227: 0.3949376895 | AA227: 0.4344262501 | AB227: 0.5090893809 | AC227: 0.4981835314 | AD227: 0.4459373934 | AE227: 0.4027826908 | AF227: 0.5353148588
A228: Adjusted R-Squared | B228: -0.01448923774 | C228: 0.1805251085 | D228: 0.04748254818 | E228: 0.2496358404 | F228: 0.08623212325 | G228: 0.3302564227 | H228: 0.1185072694 | I228: 0.3046059452 | J228: 0.1139855818 | K228: 0.1872774032 | L228: 0.2156789465 | M228: 0.03028469632 | N228: 0.2902922428 | O228: 0.1681492457 | P228: 0.2903027837 | Q228: 0.2795666261 | R228: 0.2781523544 | S228: 0.2457001974 | T228: 0.1487714918 | U228: 0.361318213 | V228: 0.1721975507 | W228: 0.2948182806 | X228: 0.2326485751 | Y228: 0.2398109114 | Z228: 0.2299206957 | AA228: 0.2081967502 | AB228: 0.3127251332 | AC228: 0.2974569439 | AD228: 0.2243123508 | AE228: 0.1638957671 | AF228: 0.277156447
A229: Significance F | B229: 0.3873397135 | C229: 0.0643793597 | D229: 0.215171748 | E229: 0.03339688162 | F229: 0.151573768 | G229: 0.0357907342 | H229: 0.1860508563 | I229: 0.04484407835 | J229: 0.1918509694 | K229: 0.1142808 | L229: 0.09231717364 | M229: 0.329749966 | N229: 0.0506753288 | O229: 0.1313989064 | P229: 0.05067081302 | Q229: 0.0888548887 | R229: 0.08973583335 | S229: 0.1118445797 | T229: 0.2025368862 | U229: 0.04818252484 | V229: 0.1769048555 | W229: 0.07976929143 | X229: 0.1218125061 | Y229: 0.1162629314 | Z229: 0.1239777717 | AA229: 0.1835681663 | AB229: 0.1010841629 | AC229: 0.1110872343 | AD229: 0.1686376863 | AE229: 0.2289774472 | AF229: 0.1612450219
A230: Coefficients
A231: Intercept | B231: 11.27223624 | C231: 6.594049764 | D231: 6.731657269 | E231: 7.706607904 | F231: -7.380654108 | G231: 14.19557998 | H231: 12.96018477 | I231: 13.17644192 | J231: 6.565220939 | K231: 7.763364648 | L231: 8.241414483 | M231: -3.520823703 | N231: -8.031629206 | O231: -8.846681374 | P231: -3.651087055 | Q231: 14.31240459 | R231: 13.9562038 | S231: 13.0482916 | T231: 8.586991267 | U231: 2.04075871 | V231: -1.476592842 | W231: 3.674540563 | X231: -8.330364009 | Y231: -5.770252673 | Z231: -2.639588424 | AA231: 14.17806744 | AB231: 1.916962193 | AC231: 2.013943707 | AD231: 3.706261646 | AE231: -5.504410025 | AF231: -1.916296096
A232: Coefficient 1 | B232: -0.5633416328 | C232: 0.4195276761 | D232: 0.3076992927 | E232: -0.2778249217 | F232: 5.63412661 | G232: -1.075180527 | H232: -0.8804648099 | I232: -0.7492515858 | J232: 0.3922917115 | K232: -0.02363009828 | L232: -0.2316059984 | M232: -0.3222683354 | N232: 0.4205100152 | O232: 0.3340510882 | P232: -0.251141182 | Q232: -1.101191911 | R232: -0.9818859278 | S232: -0.7029460607 | T232: -0.1192471302 | U232: -0.8546819551 | V232: -0.6408009917 | W232: -0.5818446384 | X232: 0.368638614 | Y232: 0.21986327 | Z232: -0.08993146314 | AA232: -1.054652825 | AB232: -0.8803612256 | AC232: -0.8567037864 | AD232: -0.5800792707 | AE232: 0.2102449942 | AF232: -1.207696696
A233: Coefficient 2 | G233: 0.5532988778 | H233: 0.4097301221 | I233: -0.2994549002 | J233: 0.04533438504 | K233: -0.2902967792 | L233: -0.3799302649 | M233: 5.044653449 | N233: 5.654915558 | O233: 6.008655321 | P233: 4.372600433 | Q233: 0.4931652903 | R233: 0.382433684 | S233: -0.09089964371 | T233: -0.2572257171 | U233: 0.5265766885 | V233: 0.403510043 | W233: -0.275169609 | X233: 0.08636743683 | Y233: -0.1313602782 | Z233: -0.2926767115 | AA233: 0.4400504506 | AB233: 0.4557202718 | AC233: 0.5313209648 | AD233: -0.004796441205 | AE233: -0.01539339837 | AF233: 0.9165093066
A234: Coefficient 3 | Q234: 0.1054794107 | R234: -0.1043240254 | S234: -0.3381919458 | T234: -0.4541630096 | U234: 4.096828243 | V234: 4.914417504 | W234: 3.187627471 | X234: 5.749183916 | Y234: 4.98515039 | Z234: 4.063131554 | AA234: 0.07404321289 | AB234: 0.1232842019 | AC234: 0.002941735951 | AD234: -0.2773119775 | AE234: -0.1437098463 | AF234: 0.4122451315
A235: Coefficient 4 | AA235: -0.04337231357 | AB235: 4.184577149 | AC235: 4.108141435 | AD235: 3.174717444 | AE235: 4.905382195 | AF235: 0.3886948819
A236: Coefficient 5 | AF236: 5.885073153
A237: Coefficient 6
A238: p-value for Intercept | B238: 0.02818016464 | C238: 1.667106088e-11 | D238: 1.069291994e-10 | E238: 6.729813364e-14 | F238: 0.4540890372 | G238: 0.003141622178 | H238: 0.0117511581 | I238: 0.005038514036 | J238: 5.939833866e-10 | K238: 2.088052656e-05 | L238: 4.607756991e-07 | M238: 0.7832828788 | N238: 0.3597424747 | O238: 0.3540593041 | P238: 0.6787196476 | Q238: 0.004404108278 | R238: 0.00552022888 | S238: 0.008019030745 | T238: 0.0003640166131 | U238: 0.847532854 | V238: 0.9012071125 | W238: 0.7469670345 | X238: 0.3652782799 | Y238: 0.5780949632 | Z238: 0.7942617089 | AA238: 0.009713003251 | AB238: 0.8621232378 | AC238: 0.8609377915 | AD238: 0.7622119347 | AE238: 0.6804561865 | AF238: 0.8793736146
A239: p-value for Coefficient 1 | B239: 0.3873397135 | C239: 0.0643793597 | D239: 0.215171748 | E239: 0.03339688162 | F239: 0.151573768 | G239: 0.07154668515 | H239: 0.1779836742 | I239: 0.1799409228 | J239: 0.185196851 | K239: 0.9606474415 | L239: 0.5209845441 | M239: 0.6261386714 | N239: 0.05019304909 | O239: 0.1569105604 | P239: 0.0501879182 | Q239: 0.07863357177 | R239: 0.1413820947 | S239: 0.2495946934 | T239: 0.8160285511 | U239: 0.1547668989 | V239: 0.3256090747 | W239: 0.3216789417 | X239: 0.1841005061 | Y239: 0.6610937506 | Z239: 0.8124330922 | AA239: 0.2064287775 | AB239: 0.1618469905 | AC239: 0.1978525174 | AD239: 0.3599741064 | AE239: 0.7245694393 | AF239: 0.1435867799
A240: p-value for Coefficient 2 | G240: 0.01685586493 | H240: 0.1109301571 | I240: 0.02160618426 | J240: 0.8802036814 | K240: 0.3132504953 | L240: 0.0754209116 | M240: 0.2298832371 | N240: 0.108302873 | O240: 0.1151201263 | P240: 0.2111523301 | Q240: 0.08128530315 | R240: 0.4698672033 | S240: 0.8066218612 | T240: 0.5129140895 | U240: 0.02114412233 | V240: 0.1081936427 | W240: 0.03879163176 | X240: 0.7594422301 | Y240: 0.6609647054 | Z240: 0.1888128293 | AA240: 0.5046325846 | AB240: 0.1016295544 | AC240: 0.3315683324 | AD240: 0.9902237619 | AE240: 0.9725908176 | AF240: 0.2208026016
... 449 more rows

Sheet CKY 011
S1: 19 | T1: 01/02 | U1: T1 | W1: 0.05 | X1: 0.5 | AA1: Iterations | AB1: Actuals | AD1: 19 | AE1: 101
A2: Choose Your Market Area: | B2: 11 | S2: 18 | T2: 02/03 | U2: T2 | W2: 0.1 | X2: 0.55 | Z2: 10 | AA2: 'CKY Table'!$B$4:$M$33 | AB2: 'CKY Table'!B | AD2: 18 | AE2: =AE1+31 -> 132 | AG2: 25 | AH2: 'CMD Table'!$B$4:$M$33 | AI2: 'CMD Table'!B | AK2: 17 | AL2: 'CGV Table'!$B$4:$M$33 | AM2: 'CGV Table'!B | AO2: 25 | AP2: 'CPA Table'!$B$4:$M$33 | AQ2: 'CPA Table'!B
S3: =S2-1 -> 17 | T3: 03/04 | U3: T3 | W3: 0.15 | X3: 0.6 | Z3: 11 | AA3: 'CKY Table'!$N$4:$Y$33 | AB3: 'CKY Table'!N | AD3: =AD2-1 -> 17 | AE3: =AE2+31 -> 163 | AG3: 26 | AH3: 'CMD Table'!$N$4:$Y$33 | AI3: 'CMD Table'!N | AK3: 30 | AL3: 'CGV Table'!$N$4:$Y$33 | AM3: 'CGV Table'!N | AO3: 26 | AP3: 'CPA Table'!$N$4:$Y$33 | AQ3: 'CPA Table'!N
A4: Choose Log/UPC or No Log/No UPC: | B4: No Log | E4: SINGLE REGRESSION: | S4: =S3-1 -> 16 | T4: 04/05 | U4: T4 | W4: 0.2 | X4: 0.65 | Z4: 12 | AA4: 'CKY Table'!$Z$4:$AK$33 | AB4: 'CKY Table'!Z | AD4: =AD3-1 -> 16 | AE4: 194 | AG4: 27 | AH4: 'CMD Table'!$Z$4:$AK$33 | AI4: 'CMD Table'!Z | AK4: 31 | AL4: 'CGV Table'!$Z$4:$AK$33 | AM4: 'CGV Table'!Z | AO4: 29 | AP4: 'CPA Table'!$Z$4:$AK$33 | AQ4: 'CPA Table'!Z
S5: =S4-1 -> 15 | T5: 05/06 | U5: T5 | W5: 0.25 | X5: 0.7 | Z5: 13 | AA5: 'CKY Table'!$AL$4:$AW$33 | AB5: 'CKY Table'!AL | AD5: 15 | AE5: 225 | AG5: 32 | AH5: 'CMD Table'!$AL$4:$AW$33 | AI5: 'CMD Table'!AL | AK5: 33 | AL5: 'CGV Table'!$AL$4:$AW$33 | AM5: 'CGV Table'!AL | AO5: 35 | AP5: 'CPA Table'!$AL$4:$AW$33 | AQ5: 'CPA Table'!AL
B6: Start | C6: End | S6: =S5-1 -> 14 | T6: 06/07 | U6: T6 | W6: 0.3 | X6: 0.75 | Z6: 15 | AA6: 'CKY Table'!$AX$4:$BI$33 | AB6: 'CKY Table'!AX | AD6: 14 | AE6: 256 | AG6: Total | AH6: 'CMD Table'!$AX$4:$BI$33 | AI6: 'CMD Table'!AX | AK6: 34 | AL6: 'CGV Table'!$AX$4:$BI$33 | AM6: 'CGV Table'!AX | AO6: 36 | AP6: 'CPA Table'!$AX$4:$BI$33 | AQ6: 'CPA Table'!AX
A7: Choose Start/End Date: | B7: 15/16 | C7: 19/20 | S7: 13 | T7: 07/08 | U7: T7 | W7: 0.35 | X7: 8 | Z7: 16 | AA7: 'CKY Table'!$BJ$4:$BU$33 | AB7: 'CKY Table'!BJ | AD7: 13 | AE7: 287 | AK7: 80 | AL7: 'CGV Table'!$BJ$4:$BU$33 | AM7: 'CGV Table'!BJ | AO7: 38 | AP7: 'CPA Table'!$BJ$4:$BU$33 | AQ7: 'CPA Table'!BJ
S8: 12 | T8: 08/09 | U8: T8 | W8: 0.4 | X8: 0.85 | Z8: 18 | AA8: 'CKY Table'!$BV$4:$CG$33 | AB8: 'CKY Table'!BV | AD8: 12 | AE8: 318 | AK8: 81 | AL8: 'CGV Table'!$BV$4:$CG$33 | AM8: 'CGV Table'!BV | AO8: 39 | AP8: 'CPA Table'!$BV$4:$CG$33 | AQ8: 'CPA Table'!BV
A9: Choose Explanatory Variables: | B9: Degree Days | S9: 11 | T9: 09/10 | U9: T9 | W9: 0.45 | X9: 0.9 | Z9: Total | AA9: 'CKY Table'!$CH$4:$CS$33 | AB9: 'CKY Table'!CH | AD9: 11 | AE9: 349 | AG9: 1 | AH9: 'COH Table'!$B$4:$M$33 | AI9: 'COH Table'!B | AK9: 90 | AL9: 'CGV Table'!$CH$4:$CS$33 | AM9: 'CGV Table'!CH | AO9: 40 | AP9: 'CPA Table'!$CH$4:$CS$33 | AQ9: 'CPA Table'!CH
B10: Customers | E10: ALL REGRESSIONS: | S10: 10 | T10: 10/11 | U10: T10 | W10: 0.5 | X10: 0.95 | AD10: 10 | AE10: 380 | AG10: 2 | AH10: 'COH Table'!$N$4:$Y$33 | AI10: 'COH Table'!N | AK10: Total | AL10: 'CGV Table'!$CT$4:$DE$33 | AM10: 'CGV Table'!CT | AO10: Total | AP10: 'CPA Table'!$CT$4:$DE$33 | AQ10: 'CPA Table'!CT
B11: Rate | S11: 9 | T11: 11/12 | U11: T11 | AD11: 9 | AE11: 411 | AG11: 3 | AH11: 'COH Table'!$Z$4:$AK$33 | AI11: 'COH Table'!Z
B12: Lag Rate | S12: 8 | T12: 12/13 | U12: T12 | W12: Degree Days | X12: positive | AD12: 8 | AE12: 442 | AG12: 4 | AH12: 'COH Table'!$AL$4:$AW$33 | AI12: 'COH Table'!AL
B13: Trend | S13: 7 | T13: 13/14 | U13: T13 | W13: Customers | X13: positive | AD13: 7 | AE13: 473 | AG13: 5 | AH13: 'COH Table'!$AX$4:$BI$33 | AI13: 'COH Table'!AX | AK13: 10 | AL13: 'CKY Table'!$B$4:$M$33 | AM13: 'CKY Table'!B
B14: Nonfarm | S14: 6 | T14: 14/15 | U14: T14 | W14: Rate | X14: negative | AD14: 6 | AE14: 504 | AG14: 6 | AH14: 'COH Table'!$BJ$4:$BU$33 | AI14: 'COH Table'!BJ | AK14: 11 | AL14: 'CKY Table'!$N$4:$Y$33 | AM14: 'CKY Table'!N
A15: Choose Parameters: | S15: 5 | T15: 15/16 | U15: T15 | W15: Lag Rate | X15: negative | AD15: =AD14-1 -> 5 | AE15: 535 | AG15: 7 | AH15: 'COH Table'!$BV$4:$CG$33 | AI15: 'COH Table'!BV | AK15: 12 | AL15: 'CKY Table'!$Z$4:$AK$33 | AM15: 'CKY Table'!Z
A16: p-value: | B16: 0.2 | S16: 4 | T16: 16/17 | U16: T16 | W16: Trend | X16: negative | AG16: 8 | AH16: 'COH Table'!$CH$4:$CS$33 | AI16: 'COH Table'!CH | AK16: 13 | AL16: 'CKY Table'!$AL$4:$AW$33 | AM16: 'CKY Table'!AL
A17: Significance F: | B17: 0.15 | S17: 3 | T17: 17/18 | U17: T17 | W17: Nonfarm | X17: positive | AG17: 9 | AH17: 'COH Table'!$CT$4:$DE$33 | AI17: 'COH Table'!CT | AK17: 15 | AL17: 'CKY Table'!$AX$4:$BI$33 | AM17: 'CKY Table'!AX
A18: Adj R-Sqaured: | B18: 0.6 | S18: 2 | T18: 18/19 | U18: T18 | AG18: 15 | AH18: 'COH Table'!$DF$4:$DQ$33 | AI18: 'COH Table'!DF | AK18: 16 | AL18: 'CKY Table'!$BJ$4:$BU$33 | AM18: 'CKY Table'!BJ
S19: 1 | T19: 19/20 | U19: T19 | W19: Log Degree Days | X19: positive | AG19: 35 | AH19: 'COH Table'!$DR$4:$EC$33 | AI19: 'COH Table'!DR | AK19: 18 | AL19: 'CKY Table'!$BV$4:$CG$33 | AM19: 'CKY Table'!BV
A20: Trend Squared: | B20: No | W20: Log Rate | X20: negative | AG20: 39 | AH20: 'COH Table'!$ED$4:$EO$33 | AI20: 'COH Table'!ED | AK20: Total | AL20: 'CKY Table'!$CH$4:$CS$33 | AM20: 'CKY Table'!CH
A21: SUMMARY OUTPUT | W21: Log Lag Rate | X21: negative | AG21: Total | AH21: 'COH Table'!$EP$4:$FA$33 | AI21: 'COH Table'!EP
W22: Log Trend | X22: negative | Z22: ***Cells S1:U?? Need to be updated to add a new year every year. Update dropdowns in B7 and C7 to add new row (highlight->data->data validation)
A23: Regression Statistics | W23: Log Nonfarm | X23: positive | Z23: ***To Change states, copy paste from the relevant state list into Z2:AB14, these can be find in column AG and to the right
A24: Multiple R | B24: 1 | Z24: ***Numbers in column AE should point to the line that contains the word "Statistics" for each number of years. Update every year
A25: R Square | B25: 1 | W25: Log | X25: Yes | Z25: ***Cells W1:X27 should only need changed if new variables are added (or removed)
A26: Adjusted R Square | B26: 65535 | W26: No Log | X26: No | Z26: ***See hidden rows 45 - 93. Changes are needed in rows 59:69 if new var added. Need to add row to blue box for each new year
A27: Standard Error | B27: 0
A28: Observations | B28: 5
A30: ANOVA
B31: df | C31: SS | D31: MS | E31: F | F31: Significance F
A32: Regression | B32: 6 | C32: 70520.8 | D32: 11753.46667
A33: Residual | B33: 0 | C33: 0 | D33: 65535
A34: Total | B34: 6 | C34: 70520.8
B36: Coefficients | C36: Standard Error | D36: t Stat | E36: P-value | F36: Lower 95% | G36: Upper 95%
A37: Intercept | B37: -678.369606 | C37: 0 | D37: 65535 | F37: -678.369606 | G37: -678.369606
A38: Degree Days | B38: 0.4334384821 | C38: 0 | D38: 65535 | F38: 0.4334384821 | G38: 0.4334384821
A39: Customers | B39: 122.6041942 | C39: 0 | D39: 65535 | F39: 122.6041942 | G39: 122.6041942
A40: Rate | B40: -46.13421329 | C40: 0 | D40: 65535 | F40: -46.13421329 | G40: -46.13421329
A41: Lag Rate | B41: 0 | C41: 0 | D41: 65535 | F41: 0 | G41: 0
A42: Trend | B42: 45.34269672 | C42: 0 | D42: 65535 | F42: 45.34269672 | G42: 45.34269672
A43: Nonfarm | B43: 0 | C43: 0 | D43: 65535 | F43: 0 | G43: 0
A59: No Log | B59: Degree Days | C59: Customers | D59: Rate | E59: Lag Rate | F59: Trend | G59: Nonfarm | H59: Degree Days | I59: Degree Days | J59: Degree Days | K59: Degree Days | L59: Customers | M59: Customers | N59: Customers | O59: Rate | P59: Rate | Q59: Lag Rate | R59: Nonfarm | S59: Nonfarm | T59: Nonfarm | U59: Nonfarm | V59: Nonfarm | W59: Degree Days | X59: Degree Days | Y59: Degree Days | Z59: Degree Days | AA59: Degree Days | AB59: Degree Days | AC59: Customers | AD59: Customers | AE59: Customers | AF59: Rate | AG59: Degree Days | AH59: Degree Days | AI59: Degree Days | AJ59: Degree Days | AK59: Customers | AL59: Customers | AM59: Customers | AN59: Rate | AO59: Rate | AP59: Lag Rate | AQ59: Degree Days | AR59: Degree Days | AS59: Degree Days | AT59: Degree Days | AU59: Customers | AV59: Degree Days | AW59: Degree Days | AX59: Degree Days | AY59: Degree Days | AZ59: Degree Days | BA59: Degree Days | BB59: Customers | BC59: Customers | BD59: Customers | BE59: Rate | BF59: Degree Days | BG59: Degree Days | BH59: Degree Days | BI59: Degree Days | BJ59: Degree Days | BK59: Customers | BL59: Degree Days
H60: Customers | I60: Rate | J60: Lag Rate | K60: Trend | L60: Rate | M60: Lag Rate | N60: Trend | O60: Lag Rate | P60: Trend | Q60: Trend | R60: Degree Days | S60: Customers | T60: Rate | U60: Lag Rate | V60: Trend | W60: Customers | X60: Customers | Y60: Customers | Z60: Rate | AA60: Rate | AB60: Lag Rate | AC60: Rate | AD60: Rate | AE60: Lag Rate | AF60: Lag Rate | AG60: Customers | AH60: Rate | AI60: Lag Rate | AJ60: Trend | AK60: Rate | AL60: Lag Rate | AM60: Trend | AN60: Lag Rate | AO60: Trend | AP60: Trend | AQ60: Rate | AR60: Customers | AS60: Customers | AT60: Customers | AU60: Rate | AV60: Customers | AW60: Customers | AX60: Customers | AY60: Rate | AZ60: Rate | BA60: Lag Rate | BB60: Rate | BC60: Rate | BD60: Lag Rate | BE60: Lag Rate | BF60: Customers | BG60: Rate | BH60: Customers | BI60: Customers | BJ60: Customers | BK60: Rate | BL60: Customers
W61: Rate | X61: Lag Rate | Y61: Trend | Z61: Lag Rate | AA61: Trend | AB61: Trend | AC61: Lag Rate | AD61: Trend | AE61: Trend | AF61: Trend | AG61: Nonfarm | AH61: Nonfarm | AI61: Nonfarm | AJ61: Nonfarm | AK61: Nonfarm | AL61: Nonfarm | AM61: Nonfarm | AN61: Nonfarm | AO61: Nonfarm | AP61: Nonfarm | AQ61: Lag Rate | AR61: Lag Rate | AS61: Rate | AT61: Rate | AU61: Lag Rate | AV61: Rate | AW61: Lag Rate | AX61: Trend | AY61: Lag Rate | AZ61: Trend | BA61: Trend | BB61: Lag Rate | BC61: Trend | BD61: Trend | BE61: Trend | BF61: Rate | BG61: Lag Rate | BH61: Lag Rate | BI61: Rate | BJ61: Rate | BK61: Lag Rate | BL61: Rate
AQ62: Trend | AR62: Trend | AS62: Trend | AT62: Lag Rate | AU62: Trend | AV62: Nonfarm | AW62: Nonfarm | AX62: Nonfarm | AY62: Nonfarm | AZ62: Nonfarm | BA62: Nonfarm | BB62: Nonfarm | BC62: Nonfarm | BD62: Nonfarm | BE62: Nonfarm | BF62: Lag Rate | BG62: Trend | BH62: Trend | BI62: Trend | BJ62: Lag Rate | BK62: Trend | BL62: Lag Rate
BF63: Trend | BG63: Nonfarm | BH63: Nonfarm | BI63: Nonfarm | BJ63: Nonfarm | BK63: Nonfarm | BL63: Trend
BL64: Nonfarm
A65: Log | B65: Log Degree Days | C65: Log Rate | D65: Log Lag Rate | E65: Log Trend | F65: Log Nonfarm | G65: Log Degree Days | H65: Log Degree Days | I65: Log Degree Days | J65: Log Rate | K65: Log Rate | L65: Log Lag Rate | M65: Log Degree Days | N65: Log Rate | O65: Log Lag Rate | P65: Log Trend | Q65: Log Degree Days | R65: Log Degree Days | S65: Log Degree Days | T65: Log Rate | U65: Log Degree Days | V65: Log Degree Days | W65: Log Degree Days | X65: Log Rate | Y65: Log Rate | Z65: Log Lag Rate | AA65: Log Degree Days | AB65: Log Degree Days | AC65: Log Degree Days | AD65: Log Degree Days | AE65: Log Rate | AF65: Log Degree Days
G66: Log Rate | H66: Log Lag Rate | I66: Log Trend | J66: Log Lag Rate | K66: Log Trend | L66: Log Trend | M66: Log Nonfarm | N66: Log Nonfarm | O66: Log Nonfarm | P66: Log Nonfarm | Q66: Log Rate | R66: Log Rate | S66: Log Lag Rate | T66: Log Lag Rate | U66: Log Rate | V66: Log Lag Rate | W66: Log Trend | X66: Log Lag Rate | Y66: Log Trend | Z66: Log Trend | AA66: Log Rate | AB66: Log Rate | AC66: Log Rate | AD66: Log Lag Rate | AE66: Log Lag Rate | AF66: Log Rate
Q67: Log Lag Rate | R67: Log Trend | S67: Log Trend | T67: Log Trend | U67: Log Nonfarm | V67: Log Nonfarm | W67: Log Nonfarm | X67: Log Nonfarm | Y67: Log Nonfarm | Z67: Log Nonfarm | AA67: Log Lag Rate | AB67: Log Lag Rate | AC67: Log Trend | AD67: Log Trend | AE67: Log Trend | AF67: Log Lag Rate
AA68: Log Trend | AB68: Log Nonfarm | AC68: Log Nonfarm | AD68: Log Nonfarm | AE68: Log Nonfarm | AF68: Log Trend
AF69: Log Nonfarm
B71: B | C71: C | D71: D | E71: E | F71: F | G71: G | H71: H | J71: =IF(C72<>"",C72,IF(D72<>"",D72,IF(E72<>"",E72,IF(F72<>"",F72,IF(G72<>"",G72,IF(H72<>"",H72,"")))))) -> H
B72: =IF(AND(B73="",A73<>""),B71,"") ->  | C72: =IF(AND(D73="",C73<>""),C71,"") ->  | H72: H | J72: =SUM(J75:J92) -> 78
A73: Winter | B73: =IF($B$4="No Log","Usage","Log UPC") -> Usage | C73: =IF($B$9<>"",$B$9,"") -> Degree Days | D73: =IF($B$10<>"",$B$10,"") -> Customers | E73: =IF($B$11<>"",$B$11,"") -> Rate | F73: =IF($B$12<>"",$B$12,"") -> Lag Rate | G73: =IF($B$13<>"",$B$13,"") -> Trend | H73: =IF(B14<>"",B14,"") -> Nonfarm
A74: =B7 -> 15/16 | B74: =IF($A74="","",IF(B$73="","",VLOOKUP($A74,'CKY Table'!$A$5:$CX$24,HLOOKUP(B$73,INDIRECT(VLOOKUP($B$2,$Z$2:$AA$15,2,FALSE)),21,FALSE),FALSE))) -> 516 | C74: =IF($A74="","",IF(C$73="","",IF(C$73="Trend",IF($B$21="Yes",$I75^2,$I75),IF(C$73="Log Trend",IF($B$21="Yes",LN($I75^2),LN($I75)),VLOOKUP($A74,'CKY Table'!$A$5:$CX$24,HLOOKUP(C$73,INDIRECT(VLOOKUP($B$2,$Z$2:$AA$15,2,FALSE)),21,FALSE),FALSE))))) -> 1189 | D74: =IF($A74="","",IF(D$73="","",IF(D$73="Trend",IF($B$21="Yes",$I75^2,$I75),IF(D$73="Log Trend",IF($B$21="Yes",LN($I75^2),LN($I75)),VLOOKUP($A74,'CKY Table'!$A$5:$CX$24,HLOOKUP(D$73,INDIRECT(VLOOKUP($B$2,$Z$2:$AA$15,2,FALSE)),21,FALSE),FALSE))))) -> 6 | E74: =IF($A74="","",IF(E$73="","",IF(E$73="Trend",IF($B$21="Yes",$I75^2,$I75),IF(E$73="Log Trend",IF($B$21="Yes",LN($I75^2),LN($I75)),VLOOKUP($A74,'CKY Table'!$A$5:$CX$24,HLOOKUP(E$73,INDIRECT(VLOOKUP($B$2,$Z$2:$AA$15,2,FALSE)),21,FALSE),FALSE))))) -> 2.21 | F74: =IF($A74="","",IF(F$73="","",IF(F$73="Trend",IF($B$21="Yes",$I75^2,$I75),IF(F$73="Log Trend",IF($B$21="Yes",LN($I75^2),LN($I75)),VLOOKUP($A74,'CKY Table'!$A$5:$CX$24,HLOOKUP(F$73,INDIRECT(VLOOKUP($B$2,$Z$2:$AA$15,2,FALSE)),21,FALSE),FALSE))))) -> 3.075 | G74: =IF($A74="","",IF(G$73="","",IF(G$73="Trend",IF($B$21="Yes",$I75^2,$I75),IF(G$73="Log Trend",IF($B$21="Yes",LN($I75^2),LN($I75)),VLOOKUP($A74,'CKY Table'!$A$5:$CX$24,HLOOKUP(G$73,INDIRECT(VLOOKUP($B$2,$Z$2:$AA$15,2,FALSE)),21,FALSE),FALSE))))) -> 1 | H74: =IF($A74="","",IF(H$73="","",IF(H$73="Trend",IF($B$21="Yes",$I75^2,$I75),IF(H$73="Log Trend",IF($B$21="Yes",LN($I75^2),LN($I75)),VLOOKUP($A74,'CKY Table'!$A$5:$CX$24,HLOOKUP(H$73,INDIRECT(VLOOKUP($B$2,$Z$2:$AA$15,2,FALSE)),21,FALSE),FALSE))))) -> 9.128974807
A75: =IFERROR(IF(IF(LEFT($C$7,2)+0>LEFT(A74,2)+0,OFFSET(INDIRECT(VLOOKUP($A$74,$T$1:$U$15,2,FALSE)),$I75,0),$C$7)=A74,"",IF(LEFT($C$7,2)+0>LEFT(A74,2)+0,OFFSET(INDIRECT(VLOOKUP($A$74,$T$1:$U$15,2,FALSE)),$I75,0),$C$7)),"") -> 16/17 | B75: =IF($A75="","",IF(B$73="","",VLOOKUP($A75,'CKY Table'!$A$5:$CX$24,HLOOKUP(B$73,INDIRECT(VLOOKUP($B$2,$Z$2:$AA$15,2,FALSE)),21,FALSE),FALSE))) -> 513 | C75: =IF($A75="","",IF(C$73="","",IF(C$73="Trend",IF($B$21="Yes",$I76^2,$I76),IF(C$73="Log Trend",IF($B$21="Yes",LN($I76^2),LN($I76)),VLOOKUP($A75,'CKY Table'!$A$5:$CX$24,HLOOKUP(C$73,INDIRECT(VLOOKUP($B$2,$Z$2:$AA$15,2,FALSE)),21,FALSE),FALSE))))) -> 1245 | D75: =IF($A75="","",IF(D$73="","",IF(D$73="Trend",IF($B$21="Yes",$I76^2,$I76),IF(D$73="Log Trend",IF($B$21="Yes",LN($I76^2),LN($I76)),VLOOKUP($A75,'CKY Table'!$A$5:$CX$24,HLOOKUP(D$73,INDIRECT(VLOOKUP($B$2,$Z$2:$AA$15,2,FALSE)),21,FALSE),FALSE))))) -> 6 | E75: =IF($A75="","",IF(E$73="","",IF(E$73="Trend",IF($B$21="Yes",$I76^2,$I76),IF(E$73="Log Trend",IF($B$21="Yes",LN($I76^2),LN($I76)),VLOOKUP($A75,'CKY Table'!$A$5:$CX$24,HLOOKUP(E$73,INDIRECT(VLOOKUP($B$2,$Z$2:$AA$15,2,FALSE)),21,FALSE),FALSE))))) -> 3.784 | F75: =IF($A75="","",IF(F$73="","",IF(F$73="Trend",IF($B$21="Yes",$I76^2,$I76),IF(F$73="Log Trend",IF($B$21="Yes",LN($I76^2),LN($I76)),VLOOKUP($A75,'CKY Table'!$A$5:$CX$24,HLOOKUP(F$73,INDIRECT(VLOOKUP($B$2,$Z$2:$AA$15,2,FALSE)),21,FALSE),FALSE))))) -> 2.21 | G75: =IF($A75="","",IF(G$73="","",IF(G$73="Trend",IF($B$21="Yes",$I76^2,$I76),IF(G$73="Log Trend",IF($B$21="Yes",LN($I76^2),LN($I76)),VLOOKUP($A75,'CKY Table'!$A$5:$CX$24,HLOOKUP(G$73,INDIRECT(VLOOKUP($B$2,$Z$2:$AA$15,2,FALSE)),21,FALSE),FALSE))))) -> 2 | H75: =IF($A75="","",IF(H$73="","",IF(H$73="Trend",IF($B$21="Yes",$I76^2,$I76),IF(H$73="Log Trend",IF($B$21="Yes",LN($I76^2),LN($I76)),VLOOKUP($A75,'CKY Table'!$A$5:$CX$24,HLOOKUP(H$73,INDIRECT(VLOOKUP($B$2,$Z$2:$AA$15,2,FALSE)),21,FALSE),FALSE))))) -> 8.907148481 | I75: 1 | J75: =IF(AND(A76="",A75<>""),ROW(),"") -> 
A76: 17/18 | B76: =IF($A76="","",IF(B$73="","",VLOOKUP($A76,'CKY Table'!$A$5:$CX$24,HLOOKUP(B$73,INDIRECT(VLOOKUP($B$2,$Z$2:$AA$15,2,FALSE)),21,FALSE),FALSE))) -> 523 | C76: =IF($A76="","",IF(C$73="","",IF(C$73="Trend",IF($B$21="Yes",$I77^2,$I77),IF(C$73="Log Trend",IF($B$21="Yes",LN($I77^2),LN($I77)),VLOOKUP($A76,'CKY Table'!$A$5:$CX$24,HLOOKUP(C$73,INDIRECT(VLOOKUP($B$2,$Z$2:$AA$15,2,FALSE)),21,FALSE),FALSE))))) -> 1612 | D76: =IF($A76="","",IF(D$73="","",IF(D$73="Trend",IF($B$21="Yes",$I77^2,$I77),IF(D$73="Log Trend",IF($B$21="Yes",LN($I77^2),LN($I77)),VLOOKUP($A76,'CKY Table'!$A$5:$CX$24,HLOOKUP(D$73,INDIRECT(VLOOKUP($B$2,$Z$2:$AA$15,2,FALSE)),21,FALSE),FALSE))))) -> 4 | E76: =IF($A76="","",IF(E$73="","",IF(E$73="Trend",IF($B$21="Yes",$I77^2,$I77),IF(E$73="Log Trend",IF($B$21="Yes",LN($I77^2),LN($I77)),VLOOKUP($A76,'CKY Table'!$A$5:$CX$24,HLOOKUP(E$73,INDIRECT(VLOOKUP($B$2,$Z$2:$AA$15,2,FALSE)),21,FALSE),FALSE))))) -> 2.683 | F76: =IF($A76="","",IF(F$73="","",IF(F$73="Trend",IF($B$21="Yes",$I77^2,$I77),IF(F$73="Log Trend",IF($B$21="Yes",LN($I77^2),LN($I77)),VLOOKUP($A76,'CKY Table'!$A$5:$CX$24,HLOOKUP(F$73,INDIRECT(VLOOKUP($B$2,$Z$2:$AA$15,2,FALSE)),21,FALSE),FALSE))))) -> 3.784 | G76: =IF($A76="","",IF(G$73="","",IF(G$73="Trend",IF($B$21="Yes",$I77^2,$I77),IF(G$73="Log Trend",IF($B$21="Yes",LN($I77^2),LN($I77)),VLOOKUP($A76,'CKY Table'!$A$5:$CX$24,HLOOKUP(G$73,INDIRECT(VLOOKUP($B$2,$Z$2:$AA$15,2,FALSE)),21,FALSE),FALSE))))) -> 3 | H76: =IF($A76="","",IF(H$73="","",IF(H$73="Trend",IF($B$21="Yes",$I77^2,$I77),IF(H$73="Log Trend",IF($B$21="Yes",LN($I77^2),LN($I77)),VLOOKUP($A76,'CKY Table'!$A$5:$CX$24,HLOOKUP(H$73,INDIRECT(VLOOKUP($B$2,$Z$2:$AA$15,2,FALSE)),21,FALSE),FALSE))))) -> 8.81041437 | I76: 2
A77: 18/19 | B77: =IF($A77="","",IF(B$73="","",VLOOKUP($A77,'CKY Table'!$A$5:$CX$24,HLOOKUP(B$73,INDIRECT(VLOOKUP($B$2,$Z$2:$AA$15,2,FALSE)),21,FALSE),FALSE))) -> 293 | C77: =IF($A77="","",IF(C$73="","",IF(C$73="Trend",IF($B$21="Yes",$I78^2,$I78),IF(C$73="Log Trend",IF($B$21="Yes",LN($I78^2),LN($I78)),VLOOKUP($A77,'CKY Table'!$A$5:$CX$24,HLOOKUP(C$73,INDIRECT(VLOOKUP($B$2,$Z$2:$AA$15,2,FALSE)),21,FALSE),FALSE))))) -> 1352 | D77: =IF($A77="","",IF(D$73="","",IF(D$73="Trend",IF($B$21="Yes",$I78^2,$I78),IF(D$73="Log Trend",IF($B$21="Yes",LN($I78^2),LN($I78)),VLOOKUP($A77,'CKY Table'!$A$5:$CX$24,HLOOKUP(D$73,INDIRECT(VLOOKUP($B$2,$Z$2:$AA$15,2,FALSE)),21,FALSE),FALSE))))) -> 3 | E77: =IF($A77="","",IF(E$73="","",IF(E$73="Trend",IF($B$21="Yes",$I78^2,$I78),IF(E$73="Log Trend",IF($B$21="Yes",LN($I78^2),LN($I78)),VLOOKUP($A77,'CKY Table'!$A$5:$CX$24,HLOOKUP(E$73,INDIRECT(VLOOKUP($B$2,$Z$2:$AA$15,2,FALSE)),21,FALSE),FALSE))))) -> 3.551 | F77: =IF($A77="","",IF(F$73="","",IF(F$73="Trend",IF($B$21="Yes",$I78^2,$I78),IF(F$73="Log Trend",IF($B$21="Yes",LN($I78^2),LN($I78)),VLOOKUP($A77,'CKY Table'!$A$5:$CX$24,HLOOKUP(F$73,INDIRECT(VLOOKUP($B$2,$Z$2:$AA$15,2,FALSE)),21,FALSE),FALSE))))) -> 2.683 | G77: =IF($A77="","",IF(G$73="","",IF(G$73="Trend",IF($B$21="Yes",$I78^2,$I78),IF(G$73="Log Trend",IF($B$21="Yes",LN($I78^2),LN($I78)),VLOOKUP($A77,'CKY Table'!$A$5:$CX$24,HLOOKUP(G$73,INDIRECT(VLOOKUP($B$2,$Z$2:$AA$15,2,FALSE)),21,FALSE),FALSE))))) -> 4 | H77: =IF($A77="","",IF(H$73="","",IF(H$73="Trend",IF($B$21="Yes",$I78^2,$I78),IF(H$73="Log Trend",IF($B$21="Yes",LN($I78^2),LN($I78)),VLOOKUP($A77,'CKY Table'!$A$5:$CX$24,HLOOKUP(H$73,INDIRECT(VLOOKUP($B$2,$Z$2:$AA$15,2,FALSE)),21,FALSE),FALSE))))) -> 8.675112573 | I77: 3
A78: 19/20 | B78: =IF($A78="","",IF(B$73="","",VLOOKUP($A78,'CKY Table'!$A$5:$CX$24,HLOOKUP(B$73,INDIRECT(VLOOKUP($B$2,$Z$2:$AA$15,2,FALSE)),21,FALSE),FALSE))) -> 259 | C78: =IF($A78="","",IF(C$73="","",IF(C$73="Trend",IF($B$21="Yes",$I79^2,$I79),IF(C$73="Log Trend",IF($B$21="Yes",LN($I79^2),LN($I79)),VLOOKUP($A78,'CKY Table'!$A$5:$CX$24,HLOOKUP(C$73,INDIRECT(VLOOKUP($B$2,$Z$2:$AA$15,2,FALSE)),21,FALSE),FALSE))))) -> 1026 | D78: =IF($A78="","",IF(D$73="","",IF(D$73="Trend",IF($B$21="Yes",$I79^2,$I79),IF(D$73="Log Trend",IF($B$21="Yes",LN($I79^2),LN($I79)),VLOOKUP($A78,'CKY Table'!$A$5:$CX$24,HLOOKUP(D$73,INDIRECT(VLOOKUP($B$2,$Z$2:$AA$15,2,FALSE)),21,FALSE),FALSE))))) -> 3 | E78: =IF($A78="","",IF(E$73="","",IF(E$73="Trend",IF($B$21="Yes",$I79^2,$I79),IF(E$73="Log Trend",IF($B$21="Yes",LN($I79^2),LN($I79)),VLOOKUP($A78,'CKY Table'!$A$5:$CX$24,HLOOKUP(E$73,INDIRECT(VLOOKUP($B$2,$Z$2:$AA$15,2,FALSE)),21,FALSE),FALSE))))) -> 2.208 | F78: =IF($A78="","",IF(F$73="","",IF(F$73="Trend",IF($B$21="Yes",$I79^2,$I79),IF(F$73="Log Trend",IF($B$21="Yes",LN($I79^2),LN($I79)),VLOOKUP($A78,'CKY Table'!$A$5:$CX$24,HLOOKUP(F$73,INDIRECT(VLOOKUP($B$2,$Z$2:$AA$15,2,FALSE)),21,FALSE),FALSE))))) -> 3.551 | G78: =IF($A78="","",IF(G$73="","",IF(G$73="Trend",IF($B$21="Yes",$I79^2,$I79),IF(G$73="Log Trend",IF($B$21="Yes",LN($I79^2),LN($I79)),VLOOKUP($A78,'CKY Table'!$A$5:$CX$24,HLOOKUP(G$73,INDIRECT(VLOOKUP($B$2,$Z$2:$AA$15,2,FALSE)),21,FALSE),FALSE))))) -> 5 | H78: =IF($A78="","",IF(H$73="","",IF(H$73="Trend",IF($B$21="Yes",$I79^2,$I79),IF(H$73="Log Trend",IF($B$21="Yes",LN($I79^2),LN($I79)),VLOOKUP($A78,'CKY Table'!$A$5:$CX$24,HLOOKUP(H$73,INDIRECT(VLOOKUP($B$2,$Z$2:$AA$15,2,FALSE)),21,FALSE),FALSE))))) -> 8.598721286 | I78: 4 | J78: 78
B79: =IF($A79="","",IF(B$73="","",VLOOKUP($A79,'CKY Table'!$A$5:$CX$24,HLOOKUP(B$73,INDIRECT(VLOOKUP($B$2,$Z$2:$AA$15,2,FALSE)),21,FALSE),FALSE))) ->  | C79: =IF($A79="","",IF(C$73="","",IF(C$73="Trend",IF($B$21="Yes",$I80^2,$I80),IF(C$73="Log Trend",IF($B$21="Yes",LN($I80^2),LN($I80)),VLOOKUP($A79,'CKY Table'!$A$5:$CX$24,HLOOKUP(C$73,INDIRECT(VLOOKUP($B$2,$Z$2:$AA$15,2,FALSE)),21,FALSE),FALSE))))) ->  | D79: =IF($A79="","",IF(D$73="","",IF(D$73="Trend",IF($B$21="Yes",$I80^2,$I80),IF(D$73="Log Trend",IF($B$21="Yes",LN($I80^2),LN($I80)),VLOOKUP($A79,'CKY Table'!$A$5:$CX$24,HLOOKUP(D$73,INDIRECT(VLOOKUP($B$2,$Z$2:$AA$15,2,FALSE)),21,FALSE),FALSE))))) ->  | E79: =IF($A79="","",IF(E$73="","",IF(E$73="Trend",IF($B$21="Yes",$I80^2,$I80),IF(E$73="Log Trend",IF($B$21="Yes",LN($I80^2),LN($I80)),VLOOKUP($A79,'CKY Table'!$A$5:$CX$24,HLOOKUP(E$73,INDIRECT(VLOOKUP($B$2,$Z$2:$AA$15,2,FALSE)),21,FALSE),FALSE))))) ->  | F79: =IF($A79="","",IF(F$73="","",IF(F$73="Trend",IF($B$21="Yes",$I80^2,$I80),IF(F$73="Log Trend",IF($B$21="Yes",LN($I80^2),LN($I80)),VLOOKUP($A79,'CKY Table'!$A$5:$CX$24,HLOOKUP(F$73,INDIRECT(VLOOKUP($B$2,$Z$2:$AA$15,2,FALSE)),21,FALSE),FALSE))))) ->  | G79: =IF($A79="","",IF(G$73="","",IF(G$73="Trend",IF($B$21="Yes",$I80^2,$I80),IF(G$73="Log Trend",IF($B$21="Yes",LN($I80^2),LN($I80)),VLOOKUP($A79,'CKY Table'!$A$5:$CX$24,HLOOKUP(G$73,INDIRECT(VLOOKUP($B$2,$Z$2:$AA$15,2,FALSE)),21,FALSE),FALSE))))) ->  | H79: =IF($A79="","",IF(H$73="","",IF(H$73="Trend",IF($B$21="Yes",$I80^2,$I80),IF(H$73="Log Trend",IF($B$21="Yes",LN($I80^2),LN($I80)),VLOOKUP($A79,'CKY Table'!$A$5:$CX$24,HLOOKUP(H$73,INDIRECT(VLOOKUP($B$2,$Z$2:$AA$15,2,FALSE)),21,FALSE),FALSE))))) ->  | I79: 5
B80: =IF($A80="","",IF(B$73="","",VLOOKUP($A80,'CKY Table'!$A$5:$CX$24,HLOOKUP(B$73,INDIRECT(VLOOKUP($B$2,$Z$2:$AA$15,2,FALSE)),21,FALSE),FALSE))) ->  | C80: =IF($A80="","",IF(C$73="","",IF(C$73="Trend",IF($B$21="Yes",$I81^2,$I81),IF(C$73="Log Trend",IF($B$21="Yes",LN($I81^2),LN($I81)),VLOOKUP($A80,'CKY Table'!$A$5:$CX$24,HLOOKUP(C$73,INDIRECT(VLOOKUP($B$2,$Z$2:$AA$15,2,FALSE)),21,FALSE),FALSE))))) ->  | D80: =IF($A80="","",IF(D$73="","",IF(D$73="Trend",IF($B$21="Yes",$I81^2,$I81),IF(D$73="Log Trend",IF($B$21="Yes",LN($I81^2),LN($I81)),VLOOKUP($A80,'CKY Table'!$A$5:$CX$24,HLOOKUP(D$73,INDIRECT(VLOOKUP($B$2,$Z$2:$AA$15,2,FALSE)),21,FALSE),FALSE))))) ->  | E80: =IF($A80="","",IF(E$73="","",IF(E$73="Trend",IF($B$21="Yes",$I81^2,$I81),IF(E$73="Log Trend",IF($B$21="Yes",LN($I81^2),LN($I81)),VLOOKUP($A80,'CKY Table'!$A$5:$CX$24,HLOOKUP(E$73,INDIRECT(VLOOKUP($B$2,$Z$2:$AA$15,2,FALSE)),21,FALSE),FALSE))))) ->  | F80: =IF($A80="","",IF(F$73="","",IF(F$73="Trend",IF($B$21="Yes",$I81^2,$I81),IF(F$73="Log Trend",IF($B$21="Yes",LN($I81^2),LN($I81)),VLOOKUP($A80,'CKY Table'!$A$5:$CX$24,HLOOKUP(F$73,INDIRECT(VLOOKUP($B$2,$Z$2:$AA$15,2,FALSE)),21,FALSE),FALSE))))) ->  | G80: =IF($A80="","",IF(G$73="","",IF(G$73="Trend",IF($B$21="Yes",$I81^2,$I81),IF(G$73="Log Trend",IF($B$21="Yes",LN($I81^2),LN($I81)),VLOOKUP($A80,'CKY Table'!$A$5:$CX$24,HLOOKUP(G$73,INDIRECT(VLOOKUP($B$2,$Z$2:$AA$15,2,FALSE)),21,FALSE),FALSE))))) ->  | H80: =IF($A80="","",IF(H$73="","",IF(H$73="Trend",IF($B$21="Yes",$I81^2,$I81),IF(H$73="Log Trend",IF($B$21="Yes",LN($I81^2),LN($I81)),VLOOKUP($A80,'CKY Table'!$A$5:$CX$24,HLOOKUP(H$73,INDIRECT(VLOOKUP($B$2,$Z$2:$AA$15,2,FALSE)),21,FALSE),FALSE))))) ->  | I80: 6
B81: =IF($A81="","",IF(B$73="","",VLOOKUP($A81,'CKY Table'!$A$5:$CX$24,HLOOKUP(B$73,INDIRECT(VLOOKUP($B$2,$Z$2:$AA$15,2,FALSE)),21,FALSE),FALSE))) ->  | C81: =IF($A81="","",IF(C$73="","",IF(C$73="Trend",IF($B$21="Yes",$I82^2,$I82),IF(C$73="Log Trend",IF($B$21="Yes",LN($I82^2),LN($I82)),VLOOKUP($A81,'CKY Table'!$A$5:$CX$24,HLOOKUP(C$73,INDIRECT(VLOOKUP($B$2,$Z$2:$AA$15,2,FALSE)),21,FALSE),FALSE))))) ->  | D81: =IF($A81="","",IF(D$73="","",IF(D$73="Trend",IF($B$21="Yes",$I82^2,$I82),IF(D$73="Log Trend",IF($B$21="Yes",LN($I82^2),LN($I82)),VLOOKUP($A81,'CKY Table'!$A$5:$CX$24,HLOOKUP(D$73,INDIRECT(VLOOKUP($B$2,$Z$2:$AA$15,2,FALSE)),21,FALSE),FALSE))))) ->  | E81: =IF($A81="","",IF(E$73="","",IF(E$73="Trend",IF($B$21="Yes",$I82^2,$I82),IF(E$73="Log Trend",IF($B$21="Yes",LN($I82^2),LN($I82)),VLOOKUP($A81,'CKY Table'!$A$5:$CX$24,HLOOKUP(E$73,INDIRECT(VLOOKUP($B$2,$Z$2:$AA$15,2,FALSE)),21,FALSE),FALSE))))) ->  | F81: =IF($A81="","",IF(F$73="","",IF(F$73="Trend",IF($B$21="Yes",$I82^2,$I82),IF(F$73="Log Trend",IF($B$21="Yes",LN($I82^2),LN($I82)),VLOOKUP($A81,'CKY Table'!$A$5:$CX$24,HLOOKUP(F$73,INDIRECT(VLOOKUP($B$2,$Z$2:$AA$15,2,FALSE)),21,FALSE),FALSE))))) ->  | G81: =IF($A81="","",IF(G$73="","",IF(G$73="Trend",IF($B$21="Yes",$I82^2,$I82),IF(G$73="Log Trend",IF($B$21="Yes",LN($I82^2),LN($I82)),VLOOKUP($A81,'CKY Table'!$A$5:$CX$24,HLOOKUP(G$73,INDIRECT(VLOOKUP($B$2,$Z$2:$AA$15,2,FALSE)),21,FALSE),FALSE))))) ->  | H81: =IF($A81="","",IF(H$73="","",IF(H$73="Trend",IF($B$21="Yes",$I82^2,$I82),IF(H$73="Log Trend",IF($B$21="Yes",LN($I82^2),LN($I82)),VLOOKUP($A81,'CKY Table'!$A$5:$CX$24,HLOOKUP(H$73,INDIRECT(VLOOKUP($B$2,$Z$2:$AA$15,2,FALSE)),21,FALSE),FALSE))))) ->  | I81: 7
B82: =IF($A82="","",IF(B$73="","",VLOOKUP($A82,'CKY Table'!$A$5:$CX$24,HLOOKUP(B$73,INDIRECT(VLOOKUP($B$2,$Z$2:$AA$15,2,FALSE)),21,FALSE),FALSE))) ->  | C82: =IF($A82="","",IF(C$73="","",IF(C$73="Trend",IF($B$21="Yes",$I83^2,$I83),IF(C$73="Log Trend",IF($B$21="Yes",LN($I83^2),LN($I83)),VLOOKUP($A82,'CKY Table'!$A$5:$CX$24,HLOOKUP(C$73,INDIRECT(VLOOKUP($B$2,$Z$2:$AA$15,2,FALSE)),21,FALSE),FALSE))))) ->  | D82: =IF($A82="","",IF(D$73="","",IF(D$73="Trend",IF($B$21="Yes",$I83^2,$I83),IF(D$73="Log Trend",IF($B$21="Yes",LN($I83^2),LN($I83)),VLOOKUP($A82,'CKY Table'!$A$5:$CX$24,HLOOKUP(D$73,INDIRECT(VLOOKUP($B$2,$Z$2:$AA$15,2,FALSE)),21,FALSE),FALSE))))) ->  | E82: =IF($A82="","",IF(E$73="","",IF(E$73="Trend",IF($B$21="Yes",$I83^2,$I83),IF(E$73="Log Trend",IF($B$21="Yes",LN($I83^2),LN($I83)),VLOOKUP($A82,'CKY Table'!$A$5:$CX$24,HLOOKUP(E$73,INDIRECT(VLOOKUP($B$2,$Z$2:$AA$15,2,FALSE)),21,FALSE),FALSE))))) ->  | F82: =IF($A82="","",IF(F$73="","",IF(F$73="Trend",IF($B$21="Yes",$I83^2,$I83),IF(F$73="Log Trend",IF($B$21="Yes",LN($I83^2),LN($I83)),VLOOKUP($A82,'CKY Table'!$A$5:$CX$24,HLOOKUP(F$73,INDIRECT(VLOOKUP($B$2,$Z$2:$AA$15,2,FALSE)),21,FALSE),FALSE))))) ->  | G82: =IF($A82="","",IF(G$73="","",IF(G$73="Trend",IF($B$21="Yes",$I83^2,$I83),IF(G$73="Log Trend",IF($B$21="Yes",LN($I83^2),LN($I83)),VLOOKUP($A82,'CKY Table'!$A$5:$CX$24,HLOOKUP(G$73,INDIRECT(VLOOKUP($B$2,$Z$2:$AA$15,2,FALSE)),21,FALSE),FALSE))))) ->  | H82: =IF($A82="","",IF(H$73="","",IF(H$73="Trend",IF($B$21="Yes",$I83^2,$I83),IF(H$73="Log Trend",IF($B$21="Yes",LN($I83^2),LN($I83)),VLOOKUP($A82,'CKY Table'!$A$5:$CX$24,HLOOKUP(H$73,INDIRECT(VLOOKUP($B$2,$Z$2:$AA$15,2,FALSE)),21,FALSE),FALSE))))) ->  | I82: 8
B83: =IF($A83="","",IF(B$73="","",VLOOKUP($A83,'CKY Table'!$A$5:$CX$24,HLOOKUP(B$73,INDIRECT(VLOOKUP($B$2,$Z$2:$AA$15,2,FALSE)),21,FALSE),FALSE))) ->  | C83: =IF($A83="","",IF(C$73="","",IF(C$73="Trend",IF($B$21="Yes",$I84^2,$I84),IF(C$73="Log Trend",IF($B$21="Yes",LN($I84^2),LN($I84)),VLOOKUP($A83,'CKY Table'!$A$5:$CX$24,HLOOKUP(C$73,INDIRECT(VLOOKUP($B$2,$Z$2:$AA$15,2,FALSE)),21,FALSE),FALSE))))) ->  | D83: =IF($A83="","",IF(D$73="","",IF(D$73="Trend",IF($B$21="Yes",$I84^2,$I84),IF(D$73="Log Trend",IF($B$21="Yes",LN($I84^2),LN($I84)),VLOOKUP($A83,'CKY Table'!$A$5:$CX$24,HLOOKUP(D$73,INDIRECT(VLOOKUP($B$2,$Z$2:$AA$15,2,FALSE)),21,FALSE),FALSE))))) ->  | E83: =IF($A83="","",IF(E$73="","",IF(E$73="Trend",IF($B$21="Yes",$I84^2,$I84),IF(E$73="Log Trend",IF($B$21="Yes",LN($I84^2),LN($I84)),VLOOKUP($A83,'CKY Table'!$A$5:$CX$24,HLOOKUP(E$73,INDIRECT(VLOOKUP($B$2,$Z$2:$AA$15,2,FALSE)),21,FALSE),FALSE))))) ->  | F83: =IF($A83="","",IF(F$73="","",IF(F$73="Trend",IF($B$21="Yes",$I84^2,$I84),IF(F$73="Log Trend",IF($B$21="Yes",LN($I84^2),LN($I84)),VLOOKUP($A83,'CKY Table'!$A$5:$CX$24,HLOOKUP(F$73,INDIRECT(VLOOKUP($B$2,$Z$2:$AA$15,2,FALSE)),21,FALSE),FALSE))))) ->  | G83: =IF($A83="","",IF(G$73="","",IF(G$73="Trend",IF($B$21="Yes",$I84^2,$I84),IF(G$73="Log Trend",IF($B$21="Yes",LN($I84^2),LN($I84)),VLOOKUP($A83,'CKY Table'!$A$5:$CX$24,HLOOKUP(G$73,INDIRECT(VLOOKUP($B$2,$Z$2:$AA$15,2,FALSE)),21,FALSE),FALSE))))) ->  | H83: =IF($A83="","",IF(H$73="","",IF(H$73="Trend",IF($B$21="Yes",$I84^2,$I84),IF(H$73="Log Trend",IF($B$21="Yes",LN($I84^2),LN($I84)),VLOOKUP($A83,'CKY Table'!$A$5:$CX$24,HLOOKUP(H$73,INDIRECT(VLOOKUP($B$2,$Z$2:$AA$15,2,FALSE)),21,FALSE),FALSE))))) ->  | I83: 9
B84: =IF($A84="","",IF(B$73="","",VLOOKUP($A84,'CKY Table'!$A$5:$CX$24,HLOOKUP(B$73,INDIRECT(VLOOKUP($B$2,$Z$2:$AA$15,2,FALSE)),21,FALSE),FALSE))) ->  | C84: =IF($A84="","",IF(C$73="","",IF(C$73="Trend",IF($B$21="Yes",$I85^2,$I85),IF(C$73="Log Trend",IF($B$21="Yes",LN($I85^2),LN($I85)),VLOOKUP($A84,'CKY Table'!$A$5:$CX$24,HLOOKUP(C$73,INDIRECT(VLOOKUP($B$2,$Z$2:$AA$15,2,FALSE)),21,FALSE),FALSE))))) ->  | D84: =IF($A84="","",IF(D$73="","",IF(D$73="Trend",IF($B$21="Yes",$I85^2,$I85),IF(D$73="Log Trend",IF($B$21="Yes",LN($I85^2),LN($I85)),VLOOKUP($A84,'CKY Table'!$A$5:$CX$24,HLOOKUP(D$73,INDIRECT(VLOOKUP($B$2,$Z$2:$AA$15,2,FALSE)),21,FALSE),FALSE))))) ->  | E84: =IF($A84="","",IF(E$73="","",IF(E$73="Trend",IF($B$21="Yes",$I85^2,$I85),IF(E$73="Log Trend",IF($B$21="Yes",LN($I85^2),LN($I85)),VLOOKUP($A84,'CKY Table'!$A$5:$CX$24,HLOOKUP(E$73,INDIRECT(VLOOKUP($B$2,$Z$2:$AA$15,2,FALSE)),21,FALSE),FALSE))))) ->  | F84: =IF($A84="","",IF(F$73="","",IF(F$73="Trend",IF($B$21="Yes",$I85^2,$I85),IF(F$73="Log Trend",IF($B$21="Yes",LN($I85^2),LN($I85)),VLOOKUP($A84,'CKY Table'!$A$5:$CX$24,HLOOKUP(F$73,INDIRECT(VLOOKUP($B$2,$Z$2:$AA$15,2,FALSE)),21,FALSE),FALSE))))) ->  | G84: =IF($A84="","",IF(G$73="","",IF(G$73="Trend",IF($B$21="Yes",$I85^2,$I85),IF(G$73="Log Trend",IF($B$21="Yes",LN($I85^2),LN($I85)),VLOOKUP($A84,'CKY Table'!$A$5:$CX$24,HLOOKUP(G$73,INDIRECT(VLOOKUP($B$2,$Z$2:$AA$15,2,FALSE)),21,FALSE),FALSE))))) ->  | H84: =IF($A84="","",IF(H$73="","",IF(H$73="Trend",IF($B$21="Yes",$I85^2,$I85),IF(H$73="Log Trend",IF($B$21="Yes",LN($I85^2),LN($I85)),VLOOKUP($A84,'CKY Table'!$A$5:$CX$24,HLOOKUP(H$73,INDIRECT(VLOOKUP($B$2,$Z$2:$AA$15,2,FALSE)),21,FALSE),FALSE))))) ->  | I84: 10
B85: =IF($A85="","",IF(B$73="","",VLOOKUP($A85,'CKY Table'!$A$5:$CX$24,HLOOKUP(B$73,INDIRECT(VLOOKUP($B$2,$Z$2:$AA$15,2,FALSE)),21,FALSE),FALSE))) ->  | C85: =IF($A85="","",IF(C$73="","",IF(C$73="Trend",IF($B$21="Yes",$I86^2,$I86),IF(C$73="Log Trend",IF($B$21="Yes",LN($I86^2),LN($I86)),VLOOKUP($A85,'CKY Table'!$A$5:$CX$24,HLOOKUP(C$73,INDIRECT(VLOOKUP($B$2,$Z$2:$AA$15,2,FALSE)),21,FALSE),FALSE))))) ->  | D85: =IF($A85="","",IF(D$73="","",IF(D$73="Trend",IF($B$21="Yes",$I86^2,$I86),IF(D$73="Log Trend",IF($B$21="Yes",LN($I86^2),LN($I86)),VLOOKUP($A85,'CKY Table'!$A$5:$CX$24,HLOOKUP(D$73,INDIRECT(VLOOKUP($B$2,$Z$2:$AA$15,2,FALSE)),21,FALSE),FALSE))))) ->  | E85: =IF($A85="","",IF(E$73="","",IF(E$73="Trend",IF($B$21="Yes",$I86^2,$I86),IF(E$73="Log Trend",IF($B$21="Yes",LN($I86^2),LN($I86)),VLOOKUP($A85,'CKY Table'!$A$5:$CX$24,HLOOKUP(E$73,INDIRECT(VLOOKUP($B$2,$Z$2:$AA$15,2,FALSE)),21,FALSE),FALSE))))) ->  | F85: =IF($A85="","",IF(F$73="","",IF(F$73="Trend",IF($B$21="Yes",$I86^2,$I86),IF(F$73="Log Trend",IF($B$21="Yes",LN($I86^2),LN($I86)),VLOOKUP($A85,'CKY Table'!$A$5:$CX$24,HLOOKUP(F$73,INDIRECT(VLOOKUP($B$2,$Z$2:$AA$15,2,FALSE)),21,FALSE),FALSE))))) ->  | G85: =IF($A85="","",IF(G$73="","",IF(G$73="Trend",IF($B$21="Yes",$I86^2,$I86),IF(G$73="Log Trend",IF($B$21="Yes",LN($I86^2),LN($I86)),VLOOKUP($A85,'CKY Table'!$A$5:$CX$24,HLOOKUP(G$73,INDIRECT(VLOOKUP($B$2,$Z$2:$AA$15,2,FALSE)),21,FALSE),FALSE))))) ->  | H85: =IF($A85="","",IF(H$73="","",IF(H$73="Trend",IF($B$21="Yes",$I86^2,$I86),IF(H$73="Log Trend",IF($B$21="Yes",LN($I86^2),LN($I86)),VLOOKUP($A85,'CKY Table'!$A$5:$CX$24,HLOOKUP(H$73,INDIRECT(VLOOKUP($B$2,$Z$2:$AA$15,2,FALSE)),21,FALSE),FALSE))))) ->  | I85: 11
B86: =IF($A86="","",IF(B$73="","",VLOOKUP($A86,'CKY Table'!$A$5:$CX$24,HLOOKUP(B$73,INDIRECT(VLOOKUP($B$2,$Z$2:$AA$15,2,FALSE)),21,FALSE),FALSE))) ->  | C86: =IF($A86="","",IF(C$73="","",IF(C$73="Trend",IF($B$21="Yes",$I87^2,$I87),IF(C$73="Log Trend",IF($B$21="Yes",LN($I87^2),LN($I87)),VLOOKUP($A86,'CKY Table'!$A$5:$CX$24,HLOOKUP(C$73,INDIRECT(VLOOKUP($B$2,$Z$2:$AA$15,2,FALSE)),21,FALSE),FALSE))))) ->  | D86: =IF($A86="","",IF(D$73="","",IF(D$73="Trend",IF($B$21="Yes",$I87^2,$I87),IF(D$73="Log Trend",IF($B$21="Yes",LN($I87^2),LN($I87)),VLOOKUP($A86,'CKY Table'!$A$5:$CX$24,HLOOKUP(D$73,INDIRECT(VLOOKUP($B$2,$Z$2:$AA$15,2,FALSE)),21,FALSE),FALSE))))) ->  | E86: =IF($A86="","",IF(E$73="","",IF(E$73="Trend",IF($B$21="Yes",$I87^2,$I87),IF(E$73="Log Trend",IF($B$21="Yes",LN($I87^2),LN($I87)),VLOOKUP($A86,'CKY Table'!$A$5:$CX$24,HLOOKUP(E$73,INDIRECT(VLOOKUP($B$2,$Z$2:$AA$15,2,FALSE)),21,FALSE),FALSE))))) ->  | F86: =IF($A86="","",IF(F$73="","",IF(F$73="Trend",IF($B$21="Yes",$I87^2,$I87),IF(F$73="Log Trend",IF($B$21="Yes",LN($I87^2),LN($I87)),VLOOKUP($A86,'CKY Table'!$A$5:$CX$24,HLOOKUP(F$73,INDIRECT(VLOOKUP($B$2,$Z$2:$AA$15,2,FALSE)),21,FALSE),FALSE))))) ->  | G86: =IF($A86="","",IF(G$73="","",IF(G$73="Trend",IF($B$21="Yes",$I87^2,$I87),IF(G$73="Log Trend",IF($B$21="Yes",LN($I87^2),LN($I87)),VLOOKUP($A86,'CKY Table'!$A$5:$CX$24,HLOOKUP(G$73,INDIRECT(VLOOKUP($B$2,$Z$2:$AA$15,2,FALSE)),21,FALSE),FALSE))))) ->  | H86: =IF($A86="","",IF(H$73="","",IF(H$73="Trend",IF($B$21="Yes",$I87^2,$I87),IF(H$73="Log Trend",IF($B$21="Yes",LN($I87^2),LN($I87)),VLOOKUP($A86,'CKY Table'!$A$5:$CX$24,HLOOKUP(H$73,INDIRECT(VLOOKUP($B$2,$Z$2:$AA$15,2,FALSE)),21,FALSE),FALSE))))) ->  | I86: 12
B87: =IF($A87="","",IF(B$73="","",VLOOKUP($A87,'CKY Table'!$A$5:$CX$24,HLOOKUP(B$73,INDIRECT(VLOOKUP($B$2,$Z$2:$AA$15,2,FALSE)),21,FALSE),FALSE))) ->  | C87: =IF($A87="","",IF(C$73="","",IF(C$73="Trend",IF($B$21="Yes",$I88^2,$I88),IF(C$73="Log Trend",IF($B$21="Yes",LN($I88^2),LN($I88)),VLOOKUP($A87,'CKY Table'!$A$5:$CX$24,HLOOKUP(C$73,INDIRECT(VLOOKUP($B$2,$Z$2:$AA$15,2,FALSE)),21,FALSE),FALSE))))) ->  | D87: =IF($A87="","",IF(D$73="","",IF(D$73="Trend",IF($B$21="Yes",$I88^2,$I88),IF(D$73="Log Trend",IF($B$21="Yes",LN($I88^2),LN($I88)),VLOOKUP($A87,'CKY Table'!$A$5:$CX$24,HLOOKUP(D$73,INDIRECT(VLOOKUP($B$2,$Z$2:$AA$15,2,FALSE)),21,FALSE),FALSE))))) ->  | E87: =IF($A87="","",IF(E$73="","",IF(E$73="Trend",IF($B$21="Yes",$I88^2,$I88),IF(E$73="Log Trend",IF($B$21="Yes",LN($I88^2),LN($I88)),VLOOKUP($A87,'CKY Table'!$A$5:$CX$24,HLOOKUP(E$73,INDIRECT(VLOOKUP($B$2,$Z$2:$AA$15,2,FALSE)),21,FALSE),FALSE))))) ->  | F87: =IF($A87="","",IF(F$73="","",IF(F$73="Trend",IF($B$21="Yes",$I88^2,$I88),IF(F$73="Log Trend",IF($B$21="Yes",LN($I88^2),LN($I88)),VLOOKUP($A87,'CKY Table'!$A$5:$CX$24,HLOOKUP(F$73,INDIRECT(VLOOKUP($B$2,$Z$2:$AA$15,2,FALSE)),21,FALSE),FALSE))))) ->  | G87: =IF($A87="","",IF(G$73="","",IF(G$73="Trend",IF($B$21="Yes",$I88^2,$I88),IF(G$73="Log Trend",IF($B$21="Yes",LN($I88^2),LN($I88)),VLOOKUP($A87,'CKY Table'!$A$5:$CX$24,HLOOKUP(G$73,INDIRECT(VLOOKUP($B$2,$Z$2:$AA$15,2,FALSE)),21,FALSE),FALSE))))) ->  | H87: =IF($A87="","",IF(H$73="","",IF(H$73="Trend",IF($B$21="Yes",$I88^2,$I88),IF(H$73="Log Trend",IF($B$21="Yes",LN($I88^2),LN($I88)),VLOOKUP($A87,'CKY Table'!$A$5:$CX$24,HLOOKUP(H$73,INDIRECT(VLOOKUP($B$2,$Z$2:$AA$15,2,FALSE)),21,FALSE),FALSE))))) ->  | I87: 13
B88: =IF($A88="","",IF(B$73="","",VLOOKUP($A88,'CKY Table'!$A$5:$CX$24,HLOOKUP(B$73,INDIRECT(VLOOKUP($B$2,$Z$2:$AA$15,2,FALSE)),21,FALSE),FALSE))) ->  | C88: =IF($A88="","",IF(C$73="","",IF(C$73="Trend",IF($B$21="Yes",$I89^2,$I89),IF(C$73="Log Trend",IF($B$21="Yes",LN($I89^2),LN($I89)),VLOOKUP($A88,'CKY Table'!$A$5:$CX$24,HLOOKUP(C$73,INDIRECT(VLOOKUP($B$2,$Z$2:$AA$15,2,FALSE)),21,FALSE),FALSE))))) ->  | D88: =IF($A88="","",IF(D$73="","",IF(D$73="Trend",IF($B$21="Yes",$I89^2,$I89),IF(D$73="Log Trend",IF($B$21="Yes",LN($I89^2),LN($I89)),VLOOKUP($A88,'CKY Table'!$A$5:$CX$24,HLOOKUP(D$73,INDIRECT(VLOOKUP($B$2,$Z$2:$AA$15,2,FALSE)),21,FALSE),FALSE))))) ->  | E88: =IF($A88="","",IF(E$73="","",IF(E$73="Trend",IF($B$21="Yes",$I89^2,$I89),IF(E$73="Log Trend",IF($B$21="Yes",LN($I89^2),LN($I89)),VLOOKUP($A88,'CKY Table'!$A$5:$CX$24,HLOOKUP(E$73,INDIRECT(VLOOKUP($B$2,$Z$2:$AA$15,2,FALSE)),21,FALSE),FALSE))))) ->  | F88: =IF($A88="","",IF(F$73="","",IF(F$73="Trend",IF($B$21="Yes",$I89^2,$I89),IF(F$73="Log Trend",IF($B$21="Yes",LN($I89^2),LN($I89)),VLOOKUP($A88,'CKY Table'!$A$5:$CX$24,HLOOKUP(F$73,INDIRECT(VLOOKUP($B$2,$Z$2:$AA$15,2,FALSE)),21,FALSE),FALSE))))) ->  | G88: =IF($A88="","",IF(G$73="","",IF(G$73="Trend",IF($B$21="Yes",$I89^2,$I89),IF(G$73="Log Trend",IF($B$21="Yes",LN($I89^2),LN($I89)),VLOOKUP($A88,'CKY Table'!$A$5:$CX$24,HLOOKUP(G$73,INDIRECT(VLOOKUP($B$2,$Z$2:$AA$15,2,FALSE)),21,FALSE),FALSE))))) ->  | H88: =IF($A88="","",IF(H$73="","",IF(H$73="Trend",IF($B$21="Yes",$I89^2,$I89),IF(H$73="Log Trend",IF($B$21="Yes",LN($I89^2),LN($I89)),VLOOKUP($A88,'CKY Table'!$A$5:$CX$24,HLOOKUP(H$73,INDIRECT(VLOOKUP($B$2,$Z$2:$AA$15,2,FALSE)),21,FALSE),FALSE))))) ->  | I88: 14
B89: =IF($A89="","",IF(B$73="","",VLOOKUP($A89,'CKY Table'!$A$5:$CX$24,HLOOKUP(B$73,INDIRECT(VLOOKUP($B$2,$Z$2:$AA$15,2,FALSE)),21,FALSE),FALSE))) ->  | C89: =IF($A89="","",IF(C$73="","",IF(C$73="Trend",IF($B$21="Yes",$I90^2,$I90),IF(C$73="Log Trend",IF($B$21="Yes",LN($I90^2),LN($I90)),VLOOKUP($A89,'CKY Table'!$A$5:$CX$24,HLOOKUP(C$73,INDIRECT(VLOOKUP($B$2,$Z$2:$AA$15,2,FALSE)),21,FALSE),FALSE))))) ->  | D89: =IF($A89="","",IF(D$73="","",IF(D$73="Trend",IF($B$21="Yes",$I90^2,$I90),IF(D$73="Log Trend",IF($B$21="Yes",LN($I90^2),LN($I90)),VLOOKUP($A89,'CKY Table'!$A$5:$CX$24,HLOOKUP(D$73,INDIRECT(VLOOKUP($B$2,$Z$2:$AA$15,2,FALSE)),21,FALSE),FALSE))))) ->  | E89: =IF($A89="","",IF(E$73="","",IF(E$73="Trend",IF($B$21="Yes",$I90^2,$I90),IF(E$73="Log Trend",IF($B$21="Yes",LN($I90^2),LN($I90)),VLOOKUP($A89,'CKY Table'!$A$5:$CX$24,HLOOKUP(E$73,INDIRECT(VLOOKUP($B$2,$Z$2:$AA$15,2,FALSE)),21,FALSE),FALSE))))) ->  | F89: =IF($A89="","",IF(F$73="","",IF(F$73="Trend",IF($B$21="Yes",$I90^2,$I90),IF(F$73="Log Trend",IF($B$21="Yes",LN($I90^2),LN($I90)),VLOOKUP($A89,'CKY Table'!$A$5:$CX$24,HLOOKUP(F$73,INDIRECT(VLOOKUP($B$2,$Z$2:$AA$15,2,FALSE)),21,FALSE),FALSE))))) ->  | G89: =IF($A89="","",IF(G$73="","",IF(G$73="Trend",IF($B$21="Yes",$I90^2,$I90),IF(G$73="Log Trend",IF($B$21="Yes",LN($I90^2),LN($I90)),VLOOKUP($A89,'CKY Table'!$A$5:$CX$24,HLOOKUP(G$73,INDIRECT(VLOOKUP($B$2,$Z$2:$AA$15,2,FALSE)),21,FALSE),FALSE))))) ->  | H89: =IF($A89="","",IF(H$73="","",IF(H$73="Trend",IF($B$21="Yes",$I90^2,$I90),IF(H$73="Log Trend",IF($B$21="Yes",LN($I90^2),LN($I90)),VLOOKUP($A89,'CKY Table'!$A$5:$CX$24,HLOOKUP(H$73,INDIRECT(VLOOKUP($B$2,$Z$2:$AA$15,2,FALSE)),21,FALSE),FALSE))))) ->  | I89: 15
B90: =IF($A90="","",IF(B$73="","",VLOOKUP($A90,'CKY Table'!$A$5:$CX$24,HLOOKUP(B$73,INDIRECT(VLOOKUP($B$2,$Z$2:$AA$15,2,FALSE)),21,FALSE),FALSE))) ->  | C90: =IF($A90="","",IF(C$73="","",IF(C$73="Trend",IF($B$21="Yes",$I91^2,$I91),IF(C$73="Log Trend",IF($B$21="Yes",LN($I91^2),LN($I91)),VLOOKUP($A90,'CKY Table'!$A$5:$CX$24,HLOOKUP(C$73,INDIRECT(VLOOKUP($B$2,$Z$2:$AA$15,2,FALSE)),21,FALSE),FALSE))))) ->  | D90: =IF($A90="","",IF(D$73="","",IF(D$73="Trend",IF($B$21="Yes",$I91^2,$I91),IF(D$73="Log Trend",IF($B$21="Yes",LN($I91^2),LN($I91)),VLOOKUP($A90,'CKY Table'!$A$5:$CX$24,HLOOKUP(D$73,INDIRECT(VLOOKUP($B$2,$Z$2:$AA$15,2,FALSE)),21,FALSE),FALSE))))) ->  | E90: =IF($A90="","",IF(E$73="","",IF(E$73="Trend",IF($B$21="Yes",$I91^2,$I91),IF(E$73="Log Trend",IF($B$21="Yes",LN($I91^2),LN($I91)),VLOOKUP($A90,'CKY Table'!$A$5:$CX$24,HLOOKUP(E$73,INDIRECT(VLOOKUP($B$2,$Z$2:$AA$15,2,FALSE)),21,FALSE),FALSE))))) ->  | F90: =IF($A90="","",IF(F$73="","",IF(F$73="Trend",IF($B$21="Yes",$I91^2,$I91),IF(F$73="Log Trend",IF($B$21="Yes",LN($I91^2),LN($I91)),VLOOKUP($A90,'CKY Table'!$A$5:$CX$24,HLOOKUP(F$73,INDIRECT(VLOOKUP($B$2,$Z$2:$AA$15,2,FALSE)),21,FALSE),FALSE))))) ->  | G90: =IF($A90="","",IF(G$73="","",IF(G$73="Trend",IF($B$21="Yes",$I91^2,$I91),IF(G$73="Log Trend",IF($B$21="Yes",LN($I91^2),LN($I91)),VLOOKUP($A90,'CKY Table'!$A$5:$CX$24,HLOOKUP(G$73,INDIRECT(VLOOKUP($B$2,$Z$2:$AA$15,2,FALSE)),21,FALSE),FALSE))))) ->  | H90: =IF($A90="","",IF(H$73="","",IF(H$73="Trend",IF($B$21="Yes",$I91^2,$I91),IF(H$73="Log Trend",IF($B$21="Yes",LN($I91^2),LN($I91)),VLOOKUP($A90,'CKY Table'!$A$5:$CX$24,HLOOKUP(H$73,INDIRECT(VLOOKUP($B$2,$Z$2:$AA$15,2,FALSE)),21,FALSE),FALSE))))) ->  | I90: 16
B91: =IF($A91="","",IF(B$73="","",VLOOKUP($A91,'CKY Table'!$A$5:$CX$24,HLOOKUP(B$73,INDIRECT(VLOOKUP($B$2,$Z$2:$AA$15,2,FALSE)),21,FALSE),FALSE))) ->  | C91: =IF($A91="","",IF(C$73="","",IF(C$73="Trend",IF($B$21="Yes",$I92^2,$I92),IF(C$73="Log Trend",IF($B$21="Yes",LN($I92^2),LN($I92)),VLOOKUP($A91,'CKY Table'!$A$5:$CX$24,HLOOKUP(C$73,INDIRECT(VLOOKUP($B$2,$Z$2:$AA$15,2,FALSE)),21,FALSE),FALSE))))) ->  | D91: =IF($A91="","",IF(D$73="","",IF(D$73="Trend",IF($B$21="Yes",$I92^2,$I92),IF(D$73="Log Trend",IF($B$21="Yes",LN($I92^2),LN($I92)),VLOOKUP($A91,'CKY Table'!$A$5:$CX$24,HLOOKUP(D$73,INDIRECT(VLOOKUP($B$2,$Z$2:$AA$15,2,FALSE)),21,FALSE),FALSE))))) ->  | E91: =IF($A91="","",IF(E$73="","",IF(E$73="Trend",IF($B$21="Yes",$I92^2,$I92),IF(E$73="Log Trend",IF($B$21="Yes",LN($I92^2),LN($I92)),VLOOKUP($A91,'CKY Table'!$A$5:$CX$24,HLOOKUP(E$73,INDIRECT(VLOOKUP($B$2,$Z$2:$AA$15,2,FALSE)),21,FALSE),FALSE))))) ->  | F91: =IF($A91="","",IF(F$73="","",IF(F$73="Trend",IF($B$21="Yes",$I92^2,$I92),IF(F$73="Log Trend",IF($B$21="Yes",LN($I92^2),LN($I92)),VLOOKUP($A91,'CKY Table'!$A$5:$CX$24,HLOOKUP(F$73,INDIRECT(VLOOKUP($B$2,$Z$2:$AA$15,2,FALSE)),21,FALSE),FALSE))))) ->  | G91: =IF($A91="","",IF(G$73="","",IF(G$73="Trend",IF($B$21="Yes",$I92^2,$I92),IF(G$73="Log Trend",IF($B$21="Yes",LN($I92^2),LN($I92)),VLOOKUP($A91,'CKY Table'!$A$5:$CX$24,HLOOKUP(G$73,INDIRECT(VLOOKUP($B$2,$Z$2:$AA$15,2,FALSE)),21,FALSE),FALSE))))) ->  | H91: =IF($A91="","",IF(H$73="","",IF(H$73="Trend",IF($B$21="Yes",$I92^2,$I92),IF(H$73="Log Trend",IF($B$21="Yes",LN($I92^2),LN($I92)),VLOOKUP($A91,'CKY Table'!$A$5:$CX$24,HLOOKUP(H$73,INDIRECT(VLOOKUP($B$2,$Z$2:$AA$15,2,FALSE)),21,FALSE),FALSE))))) ->  | I91: 17
